Workbook

Sheet Cover sheet
B1: Contributions Policy 2022 Variation A DC modelling
B2: Additional explanation added 24 July 2023
B3: The Development Contributions Policy 2022 came into effect in January 2022 and includes projects planned for delivery within the 10-Year Budget 2021-2031 across Auckland. You can find the models used for this policy on our website at https://www.aucklandcouncil.govt.nz/plans-projects-policies-reports-bylaws/our-policies/development-contributions-policy/Pages/previous-development-contributions-policy.aspx Development Contributions Policy 2022 Variation A which came into effect in June 2023 added projects planned for delivery beyond 2032 and updated the Development Contributions Policy 2022 for projects planned for delivery in the Drury both within the 10-Year Budget 2021-2031 and beyond 2032. These calculations were completed using four models. Development Contributions Policy 2022 Variation A only impacted DC local prices within Drury local and sub-regional Drury funding area. As the model contains all projects, adjustments to the input factors can result in price adjustments for projects outside of Drury. However, only those prices consulted on as part of the Variation A update, Drury, are incorporated into the final DC policy. Changes to regional prices will be consulted on when we next propose to update the policy. You can find further details on our methodology on our website at https://www.aucklandcouncil.govt.nz/plans-projects-policies-reports-bylaws/our-policies/development-contributions-policy/Pages/development-contributions-policy.aspx The DCP 2022 Variation A prices are calculated by adding the pricing in the following sheets: • LTP Funding Model Drury final - O_DCP_SCH3 sheet • DCP 2022 Variation A project and price model - Schedule_3_DC_prices sheet • An offline adjustment reduces Drury local transport prices to ensure that the share of project costs attributed to the region is not also charged to developers in Drury. This is explained further below. More detailed work completed on projects to be delivered within the 10-year Budget 2021-2031 period meant that beneficiaries for some transport related projects were assessed to be across the Auckland region. To ensure that developers in Drury are not charged twice, an offline adjustment was made to reduce the price calculated for local transport prices in the Drury funding areas by the increased regional Auckland wide price. The DC price set out in Schedule 3 of the Contributions Policy 2022 Variation A reduces the local Transport prices in the Drury funding areas by $14 -$15. The following diagram sets out the models used for the Contributions Policy 2022 Variation A, and how these relate to the previously adopted Development Contributions Policy 2022.
B6: The council’s Development Contributions Policy 2022 was released in December 2021, and Development Contributions Policy 2022 Variation A was released in April 2023.

Sheet Overview
A1: Explanation of sheets in the Cost Allocation Model | E1: Colour codes of sheet types
A2: This model provides an update of transport and reserve projects planned for delivery in the Drury area within the 10-Year Budget 2021-2031. The data from this model is used in the LTP Funding Model Drury final to calculate the DC price.
E3: Category | F3: Sheet Type | G3: Tab Colour | H3: Description
B4: Sheet Type | C4: Description | E4: Input | F4: Input—Common values | G4: Red | H4: Contains codes, values, and definitions which are used throughout the model
A5: Lists | B5: Input—Variables | C5: List of static data used throughout the model in formulas and the outputs | E5: Input | F5: Input | G5: Light Green | H5: Project data and calculations
A6: FA_Codes | B6: Input—Variables | C6: The static data for DC funding areas used throughout the model in formulas and the outputs | E6: Output | F6: Output—Internal use | G6: Orange | H6: Contains output data used as input for the DC funding model
A7: Planned_capex_starting_position | B7: Input—Internal | C7: The information on projects planned for delivery within the 10-Year Budget 2021-2031. The growth share of the project costs to be recovered is calculated in this sheet (columns shown in green headings). For futher information, please refer to Methodology for Calculating DCs document which is available on the council's website. | E7: Output | F7: Output—External use | G7: Yellow | H7: Contains output data used in the DC policy
A8: O_CWP_TOT | B8: Output—Internal use | C8: Total CAPEX expenditure forecast for the current 10 year period (O_CWP_NOW sheet) plus planned CAPEX expenditure fundable (O_CWP_FUT sheet) sorted by DC activity and funding area. This information is used as an input the DC funding model.
A9: O_CWP_NOW | B9: Output—Internal use | C9: Consolidation of the CAPEX expenditure forecast for all infrastructure types for recovery within the 10-Year Budget 2021-2031. This information is used as an input the DC funding model.
A10: O_CWP_FUT | B10: Output—Internal use | C10: Consolidation of the CAPEX expenditure forecast for all infrastructure types in future LTP periods sorted by DC activity and funding area. This information is used as an input the DC funding model. These totals include estimated interest which will be incurred.
A11: Sch_8_Planned | B11: Output—External | C11: List of planned CAPEX expenditure extracted for Schedule 8 published with the DC policy. Data from the Planned_capex_starting_position tab is used to extract this information.
A12: Sch_8_consolidated_list | B12: Output—External | C12: The transport projects are consolidated into collector roads and arterial roads by funding area. For ease, these consolidated projects are listed in Schedule 8 of the Contributions Policy 2022 Varaiation A.

Sheet Lists
A1: List of tables used for validation lists
A5: Local boards | D5: LTP Activity | E5: LTP GoA | G5: DC infrastructure type | H5: DC infrastructure type code
A6: Albert-Eden | D6: Regional planning | E6: Regionally Delivered Council Services | G6: CI - Community infrastructure | H6: =TRIM(LEFT(G6,3)) -> CI | I6: Community infrastructure
A7: Aotea/Great Barrier | D7: Regulatory services | E7: Regionally Delivered Council Services | G7: OSD - Open space development | H7: =TRIM(LEFT(G7,3)) -> OSD | I7: Reserve development
A8: Devonport-Takapuna | D8: Waste services | E8: Regionally Delivered Council Services | G8: OSL - Open space land acquisition | H8: OSL | I8: Reserve acquistion
A9: Franklin | D9: Enviromental services | E9: Regionally Delivered Council Services | G9: PTR - Public transport | H9: PTR | I9: Transport
A10: Henderson-Massey | D10: Emergency management | E10: Regionally Delivered Council Services | G10: STW - stormwater | H10: STW | I10: Stormwater
A11: Hibiscus and Bays | D11: Organisational support | E11: Regionally Delivered Council Services | G11: TRA - Transport | H11: TRA | I11: Transport
A12: Howick | D12: Regional governance | E12: Regionally Delivered Council Services
A13: Kaipatiki | D13: 3rd party amenitiy and grant | E13: Regionally Delivered Council Services
A14: Mangere | D14: Regional community services | E14: Regionally Delivered Council Services
A15: Manurewa | D15: Local planning and development | E15: Local Council Services
A16: Mangakiekie-Tamaki | D16: Local environmental management | E16: Local Council Services
A17: Orakei | D17: Local goverenance | E17: Local Council Services
A18: Otara-Paptoetoe | D18: Local community services | E18: Local Council Services
A19: Papakura | D19: Development Auckland | E19: Local Controlled Services
A20: Puketapapa | D20: Economic growth and vistor economy | E20: Local Controlled Services
A21: Rodney | D21: Regional facilities | E21: Local Controlled Services
A22: Upper Harbour | D22: Investment | E22: Local Controlled Services
A23: Waiheke
A24: Waitakere
A25: Waitemata
A26: Whau

Sheet FA_Codes
A1: Infrastructure type | B1: Funding area description | C1: Combined Activity and funding area | D1: Funding area code | E1: Infrastructure type and funding area description | F1: Area Local/Wider | G1: Funding area description | H1: Area type | I1: DC price calulation type | J1: DC infrastructure code
A2: Reserve Acquisition | B2: Auckland wide | C2: =A2&" - "&B2 -> Reserve Acquisition - Auckland wide | D2: OSL A1 | E2: =+C2 -> Reserve Acquisition - Auckland wide | F2: Wider | G2: =+B2 -> Auckland wide | H2: Regional | I2: Standard | J2: =TRIM(LEFT(D2,3)) -> OSL
A3: Reserve Acquisition | B3: Area 2 | C3: =A3&" - "&B3 -> Reserve Acquisition - Area 2 | D3: OSL A2 | E3: =+C3 -> Reserve Acquisition - Area 2 | F3: Wider | G3: =+B3 -> Area 2 | I3: Standard | J3: OSL
A4: Reserve Acquisition | B4: Urban | C4: Reserve Acquisition - Urban | D4: OSL A3 | E4: Reserve Acquisition - Urban | F4: Wider | G4: Urban | H4: Sub-regional | I4: Standard | J4: OSL
A5: Reserve Acquisition | B5: Area 4 | C5: Reserve Acquisition - Area 4 | D5: OSL A4 | E5: Reserve Acquisition - Area 4 | F5: Wider | G5: Area 4 | I5: Standard | J5: OSL
A6: Reserve Acquisition | B6: Warkworth | C6: Reserve Acquisition - Warkworth | D6: OSL A5 | E6: Reserve Acquisition - Warkworth | F6: Local | G6: Warkworth | H6: Local | I6: Standard | J6: OSL
A7: Reserve Acquisition | B7: Dairy Flat | C7: Reserve Acquisition - Dairy Flat | D7: OSL A6 | E7: Reserve Acquisition - Dairy Flat | F7: Local | G7: Dairy Flat | H7: Local | I7: Standard | J7: OSL
A8: Reserve Acquisition | B8: Northwest Greenfield | C8: Reserve Acquisition - Northwest Greenfield | D8: OSL A7 | E8: Reserve Acquisition - Northwest Greenfield | F8: Wider | G8: Northwest Greenfield | H8: Sub-regional | I8: Standard | J8: OSL
A9: Reserve Acquisition | B9: North Greenfield | C9: Reserve Acquisition - North Greenfield | D9: OSL A8 | E9: Reserve Acquisition - North Greenfield | F9: Wider | G9: North Greenfield | H9: Sub-regional | I9: Standard | J9: OSL
A10: Reserve Acquisition | B10: South Greenfield | C10: Reserve Acquisition - South Greenfield | D10: OSL A9 | E10: Reserve Acquisition - South Greenfield | F10: Wider | G10: South Greenfield | H10: Sub-regional | I10: Standard | J10: OSL
A11: Reserve Acquisition | B11: Flatbush | C11: Reserve Acquisition - Flatbush | D11: OSL A10 | E11: Reserve Acquisition - Flatbush | F11: Local | G11: Flatbush | H11: Local | I11: Standard | J11: OSL
A12: Reserve Acquisition | B12: Takanini | C12: Reserve Acquisition - Takanini | D12: OSL A11 | E12: Reserve Acquisition - Takanini | F12: Local | G12: Takanini | H12: Local | I12: Standard | J12: OSL
A13: Reserve Acquisition | B13: Opaheke / Drury | C13: Reserve Acquisition - Opaheke / Drury | D13: OSL A12 | E13: Reserve Acquisition - Opaheke / Drury | F13: Local | G13: Opaheke / Drury | H13: Local | I13: Standard | J13: OSL
A14: Reserve Acquisition | B14: Hingaia | C14: Reserve Acquisition - Hingaia | D14: OSL A13 | E14: Reserve Acquisition - Hingaia | F14: Local | G14: Hingaia | H14: Local | I14: Standard | J14: OSL
A15: Reserve Acquisition | B15: Paerata / Pukekohe | C15: Reserve Acquisition - Paerata / Pukekohe | D15: OSL A14 | E15: Reserve Acquisition - Paerata / Pukekohe | F15: Local | G15: Paerata / Pukekohe | H15: Local | I15: Standard | J15: OSL
A16: Reserve Acquisition | B16: Hibiscus | C16: Reserve Acquisition - Hibiscus | D16: OSL A15 | E16: Reserve Acquisition - Hibiscus | F16: Local | G16: Hibiscus | H16: Local | I16: Standard | J16: OSL
A17: Reserve Acquisition | B17: North Shore | C17: Reserve Acquisition - North Shore | D17: OSL A16 | E17: Reserve Acquisition - North Shore | F17: Local | G17: North Shore | H17: Local | I17: Standard | J17: OSL
A18: Reserve Acquisition | B18: West | C18: Reserve Acquisition - West | D18: OSL A17 | E18: Reserve Acquisition - West | F18: Wider | G18: West | H18: Local | I18: Standard | J18: OSL
A19: Reserve Acquisition | B19: Central | C19: Reserve Acquisition - Central | D19: OSL A18 | E19: Reserve Acquisition - Central | F19: Wider | G19: Central | H19: Local | I19: Standard | J19: OSL
A20: Reserve Acquisition | B20: South (West) | C20: Reserve Acquisition - South (West) | D20: OSL A19 | E20: Reserve Acquisition - South (West) | F20: Wider | G20: South (West) | H20: Local | I20: Standard | J20: OSL
A21: Reserve Acquisition | B21: South (East) | C21: Reserve Acquisition - South (East) | D21: OSL A20 | E21: Reserve Acquisition - South (East) | F21: Wider | G21: South (East) | H21: Local | I21: Standard | J21: OSL
A22: Reserve Acquisition | B22: Rural North Upper | C22: Reserve Acquisition - Rural North Upper | D22: OSL A21 | E22: Reserve Acquisition - Rural North Upper | F22: Wider | G22: Rural North Upper | H22: Local | I22: Standard | J22: OSL
A23: Reserve Acquisition | B23: Rural North Lower | C23: Reserve Acquisition - Rural North Lower | D23: OSL A22 | E23: Reserve Acquisition - Rural North Lower | F23: Wider | G23: Rural North Lower | H23: Local | I23: Standard | J23: OSL
A24: Reserve Acquisition | B24: Rural West | C24: Reserve Acquisition - Rural West | D24: OSL A23 | E24: Reserve Acquisition - Rural West | F24: Wider | G24: Rural West | H24: Local | I24: Standard | J24: OSL
A25: Reserve Acquisition | B25: Rural South West | C25: Reserve Acquisition - Rural South West | D25: OSL A24 | E25: Reserve Acquisition - Rural South West | F25: Wider | G25: Rural South West | H25: Local | I25: Standard | J25: OSL
A26: Reserve Acquisition | B26: Rural South East | C26: Reserve Acquisition - Rural South East | D26: OSL A25 | E26: Reserve Acquisition - Rural South East | F26: Wider | G26: Rural South East | H26: Local | I26: Standard | J26: OSL
A27: Reserve Acquisition | B27: Rural Islands | C27: Reserve Acquisition - Rural Islands | D27: OSL A26 | E27: Reserve Acquisition - Rural Islands | F27: Local | G27: Rural Islands | H27: Local | I27: Standard | J27: OSL
A28: Reserve Acquisition | B28: Tamaki | C28: Reserve Acquisition - Tamaki | D28: OSL A27 | E28: Reserve Acquisition - Tamaki | F28: Local | G28: Tamaki | H28: Local | I28: Standard | J28: OSL
A29: Reserve Acquisition | B29: Drury IPA | C29: Reserve Acquisition - Drury IPA | D29: OSL A28 | E29: Reserve Acquisition - Drury IPA | F29: Local | G29: Drury IPA | I29: Standard | J29: OSL
A30: Reserve Acquisition | B30: Auranga | C30: Reserve Acquisition - Auranga | D30: OSL A29 | E30: Reserve Acquisition - Auranga | F30: Local | G30: Auranga | I30: Standard | J30: OSL
A31: Reserve Acquisition | B31: Drury West 1 IPA | C31: Reserve Acquisition - Drury West 1 IPA | D31: OSL A30 | E31: Reserve Acquisition - Drury West 1 IPA | F31: Local | G31: Drury West 1 IPA | I31: Standard | J31: OSL
A32: Reserve Acquisition | B32: Drury West 2 IPA | C32: Reserve Acquisition - Drury West 2 IPA | D32: OSL A31 | E32: Reserve Acquisition - Drury West 2 IPA | F32: Local | G32: Drury West 2 IPA | I32: Standard | J32: OSL
A33: Reserve Acquisition | B33: Opaheke IPA | C33: Reserve Acquisition - Opaheke IPA | D33: OSL A32 | E33: Reserve Acquisition - Opaheke IPA | F33: Local | G33: Opaheke IPA | I33: Standard | J33: OSL
A34: Reserve Acquisition | B34: Drury East IPA | C34: Reserve Acquisition - Drury East IPA | D34: OSL A33 | E34: Reserve Acquisition - Drury East IPA | F34: Local | G34: Drury East IPA | I34: Standard | J34: OSL
A35: Reserve Acquisition | B35: Drury IPA (Community spaces) | C35: Reserve Acquisition - Drury IPA (Community spaces) | D35: OSL A34 | E35: Reserve Acquisition - Drury IPA (Community spaces) | F35: Local | G35: Drury IPA (Community spaces) | I35: Standard | J35: OSL
A36: Reserve Acquisition | B36: Area 35 | C36: Reserve Acquisition - Area 35 | D36: OSL A35 | E36: Reserve Acquisition - Area 35 | F36: Local | G36: Area 35 | I36: Standard | J36: OSL
A37: Reserve Acquisition | B37: Area 36 | C37: Reserve Acquisition - Area 36 | D37: OSL A36 | E37: Reserve Acquisition - Area 36 | F37: Local | G37: Area 36 | I37: Standard | J37: OSL
A38: Reserve Acquisition | B38: Area 37 | C38: Reserve Acquisition - Area 37 | D38: OSL A37 | E38: Reserve Acquisition - Area 37 | F38: Local | G38: Area 37 | I38: Standard | J38: OSL
A39: Reserve Acquisition | B39: Area 38 | C39: Reserve Acquisition - Area 38 | D39: OSL A38 | E39: Reserve Acquisition - Area 38 | F39: Local | G39: Area 38 | I39: Standard | J39: OSL
A40: Reserve Acquisition | B40: Area 39 | C40: Reserve Acquisition - Area 39 | D40: OSL A39 | E40: Reserve Acquisition - Area 39 | F40: Local | G40: Area 39 | I40: Standard | J40: OSL
A41: Reserve Acquisition | B41: Area 40 | C41: Reserve Acquisition - Area 40 | D41: OSL A40 | E41: Reserve Acquisition - Area 40 | F41: Local | G41: Area 40 | I41: Standard | J41: OSL
A42: Reserve Acquisition | B42: Area 41 | C42: Reserve Acquisition - Area 41 | D42: OSL A41 | E42: Reserve Acquisition - Area 41 | F42: Local | G42: Area 41 | I42: Standard | J42: OSL
A43: Reserve Acquisition | B43: Area 42 | C43: Reserve Acquisition - Area 42 | D43: OSL A42 | E43: Reserve Acquisition - Area 42 | F43: Local | G43: Area 42 | I43: Standard | J43: OSL
A44: Reserve Acquisition | B44: Area 43 | C44: Reserve Acquisition - Area 43 | D44: OSL A43 | E44: Reserve Acquisition - Area 43 | F44: Local | G44: Area 43 | I44: Standard | J44: OSL
A45: Community infrastructure | B45: Auckland wide | C45: Community infrastructure - Auckland wide | D45: CI A1 | E45: Community infrastructure - Auckland wide | F45: Wider | G45: Auckland wide | H45: Regional | I45: Standard | J45: CI
A46: Community infrastructure | B46: Area 2 | C46: Community infrastructure - Area 2 | D46: CI A2 | E46: Community infrastructure - Area 2 | F46: Wider | G46: Area 2 | I46: Standard | J46: CI
A47: Community infrastructure | B47: Area 3 | C47: Community infrastructure - Area 3 | D47: CI A3 | E47: Community infrastructure - Area 3 | F47: Wider | G47: Area 3 | I47: Standard | J47: CI
A48: Community infrastructure | B48: Area 4 | C48: Community infrastructure - Area 4 | D48: CI A4 | E48: Community infrastructure - Area 4 | F48: Wider | G48: Area 4 | I48: Standard | J48: CI
A49: Community infrastructure | B49: Warkworth | C49: Community infrastructure - Warkworth | D49: CI A5 | E49: Community infrastructure - Warkworth | F49: Local | G49: Warkworth | H49: Local | I49: Standard | J49: CI
A50: Community infrastructure | B50: Dairy Flat | C50: Community infrastructure - Dairy Flat | D50: CI A6 | E50: Community infrastructure - Dairy Flat | F50: Local | G50: Dairy Flat | H50: Local | I50: Standard | J50: CI
A51: Community infrastructure | B51: Northwest | C51: Community infrastructure - Northwest | D51: CI A7 | E51: Community infrastructure - Northwest | F51: Wider | G51: Northwest | H51: Local | I51: Standard | J51: CI
A52: Community infrastructure | B52: Area 8 | C52: Community infrastructure - Area 8 | D52: CI A8 | E52: Community infrastructure - Area 8 | F52: Local | G52: Area 8 | I52: Standard | J52: CI
A53: Community infrastructure | B53: Area 9 | C53: Community infrastructure - Area 9 | D53: CI A9 | E53: Community infrastructure - Area 9 | F53: Local | G53: Area 9 | I53: Standard | J53: CI
A54: Community infrastructure | B54: Flatbush | C54: Community infrastructure - Flatbush | D54: CI A10 | E54: Community infrastructure - Flatbush | F54: Local | G54: Flatbush | H54: Local | I54: Standard | J54: CI
A55: Community infrastructure | B55: Takanini | C55: Community infrastructure - Takanini | D55: CI A11 | E55: Community infrastructure - Takanini | F55: Local | G55: Takanini | H55: Local | I55: Standard | J55: CI
A56: Community infrastructure | B56: Opaheke / Drury | C56: Community infrastructure - Opaheke / Drury | D56: CI A12 | E56: Community infrastructure - Opaheke / Drury | F56: Local | G56: Opaheke / Drury | H56: Local | I56: Standard | J56: CI
A57: Community infrastructure | B57: Hingaia | C57: Community infrastructure - Hingaia | D57: CI A13 | E57: Community infrastructure - Hingaia | F57: Local | G57: Hingaia | H57: Local | I57: Standard | J57: CI
A58: Community infrastructure | B58: Paerata / Pukekohe | C58: Community infrastructure - Paerata / Pukekohe | D58: CI A14 | E58: Community infrastructure - Paerata / Pukekohe | F58: Local | G58: Paerata / Pukekohe | H58: Local | I58: Standard | J58: CI
A59: Community infrastructure | B59: Hibiscus | C59: Community infrastructure - Hibiscus | D59: CI A15 | E59: Community infrastructure - Hibiscus | F59: Local | G59: Hibiscus | H59: Local | I59: Standard | J59: CI
A60: Community infrastructure | B60: North Shore | C60: Community infrastructure - North Shore | D60: CI A16 | E60: Community infrastructure - North Shore | F60: Local | G60: North Shore | H60: Local | I60: Standard | J60: CI
A61: Community infrastructure | B61: West | C61: Community infrastructure - West | D61: CI A17 | E61: Community infrastructure - West | F61: Wider | G61: West | H61: Local | I61: Standard | J61: CI
A62: Community infrastructure | B62: Central | C62: Community infrastructure - Central | D62: CI A18 | E62: Community infrastructure - Central | F62: Wider | G62: Central | H62: Local | I62: Standard | J62: CI
A63: Community infrastructure | B63: South (West) | C63: Community infrastructure - South (West) | D63: CI A19 | E63: Community infrastructure - South (West) | F63: Wider | G63: South (West) | H63: Local | I63: Standard | J63: CI
A64: Community infrastructure | B64: South (East) | C64: Community infrastructure - South (East) | D64: CI A20 | E64: Community infrastructure - South (East) | F64: Wider | G64: South (East) | H64: Local | I64: Standard | J64: CI
A65: Community infrastructure | B65: Rural North Upper | C65: Community infrastructure - Rural North Upper | D65: CI A21 | E65: Community infrastructure - Rural North Upper | F65: Wider | G65: Rural North Upper | H65: Local | I65: Standard | J65: CI
A66: Community infrastructure | B66: Rural North Lower | C66: Community infrastructure - Rural North Lower | D66: CI A22 | E66: Community infrastructure - Rural North Lower | F66: Wider | G66: Rural North Lower | H66: Local | I66: Standard | J66: =TRIM(LEFT(D66,3)) -> CI
A67: Community infrastructure | B67: Rural West | C67: =A67&" - "&B67 -> Community infrastructure - Rural West | D67: CI A23 | E67: =+C67 -> Community infrastructure - Rural West | F67: Wider | G67: =+B67 -> Rural West | H67: Local | I67: Standard | J67: CI
A68: Community infrastructure | B68: Rural South West | C68: Community infrastructure - Rural South West | D68: CI A24 | E68: Community infrastructure - Rural South West | F68: Wider | G68: Rural South West | H68: Local | I68: Standard | J68: CI
A69: Community infrastructure | B69: Rural South East | C69: Community infrastructure - Rural South East | D69: CI A25 | E69: Community infrastructure - Rural South East | F69: Wider | G69: Rural South East | H69: Local | I69: Standard | J69: CI
A70: Community infrastructure | B70: Rural Islands | C70: Community infrastructure - Rural Islands | D70: CI A26 | E70: Community infrastructure - Rural Islands | F70: Local | G70: Rural Islands | H70: Local | I70: Standard | J70: CI
A71: Community infrastructure | B71: Tamaki | C71: Community infrastructure - Tamaki | D71: CI A27 | E71: Community infrastructure - Tamaki | F71: Local | G71: Tamaki | H71: Local | I71: Standard | J71: CI
A72: Community infrastructure | B72: Drury IPA (civic park) | C72: Community infrastructure - Drury IPA (civic park) | D72: CI A28 | E72: Community infrastructure - Drury IPA (civic park) | F72: Local | G72: Drury IPA (civic park) | I72: Standard | J72: CI
A73: Community infrastructure | B73: Auranga | C73: Community infrastructure - Auranga | D73: CI A29 | E73: Community infrastructure - Auranga | F73: Local | G73: Auranga | I73: Standard | J73: CI
A74: Community infrastructure | B74: Drury West 1 IPA | C74: Community infrastructure - Drury West 1 IPA | D74: CI A30 | E74: Community infrastructure - Drury West 1 IPA | F74: Local | G74: Drury West 1 IPA | I74: Standard | J74: CI
A75: Community infrastructure | B75: Drury West 2 IPA | C75: Community infrastructure - Drury West 2 IPA | D75: CI A31 | E75: Community infrastructure - Drury West 2 IPA | F75: Local | G75: Drury West 2 IPA | I75: Standard | J75: CI
A76: Community infrastructure | B76: Opaheke IPA | C76: Community infrastructure - Opaheke IPA | D76: CI A32 | E76: Community infrastructure - Opaheke IPA | F76: Local | G76: Opaheke IPA | I76: Standard | J76: CI
A77: Community infrastructure | B77: Drury East IPA | C77: Community infrastructure - Drury East IPA | D77: CI A33 | E77: Community infrastructure - Drury East IPA | F77: Local | G77: Drury East IPA | I77: Standard | J77: CI
A78: Community infrastructure | B78: Drury IPA (Community spaces) | C78: Community infrastructure - Drury IPA (Community spaces) | D78: CI A34 | E78: Community infrastructure - Drury IPA (Community spaces) | F78: Local | G78: Drury IPA (Community spaces) | I78: Standard | J78: CI
A79: Community infrastructure | B79: Area 35 | C79: Community infrastructure - Area 35 | D79: CI A35 | E79: Community infrastructure - Area 35 | F79: Local | G79: Area 35 | I79: Standard | J79: CI
A80: Community infrastructure | B80: Area 36 | C80: Community infrastructure - Area 36 | D80: CI A36 | E80: Community infrastructure - Area 36 | F80: Local | G80: Area 36 | I80: Standard | J80: CI
A81: Community infrastructure | B81: Area 37 | C81: Community infrastructure - Area 37 | D81: CI A37 | E81: Community infrastructure - Area 37 | F81: Local | G81: Area 37 | I81: Standard | J81: CI
A82: Community infrastructure | B82: Area 38 | C82: Community infrastructure - Area 38 | D82: CI A38 | E82: Community infrastructure - Area 38 | F82: Local | G82: Area 38 | I82: Standard | J82: CI
A83: Community infrastructure | B83: Area 39 | C83: Community infrastructure - Area 39 | D83: CI A39 | E83: Community infrastructure - Area 39 | F83: Local | G83: Area 39 | I83: Standard | J83: CI
A84: Community infrastructure | B84: Area 40 | C84: Community infrastructure - Area 40 | D84: CI A40 | E84: Community infrastructure - Area 40 | F84: Local | G84: Area 40 | I84: Standard | J84: CI
A85: Community infrastructure | B85: Area 41 | C85: Community infrastructure - Area 41 | D85: CI A41 | E85: Community infrastructure - Area 41 | F85: Local | G85: Area 41 | I85: Standard | J85: CI
A86: Community infrastructure | B86: Area 42 | C86: Community infrastructure - Area 42 | D86: CI A42 | E86: Community infrastructure - Area 42 | F86: Local | G86: Area 42 | I86: Standard | J86: CI
A87: Community infrastructure | B87: Area 43 | C87: Community infrastructure - Area 43 | D87: CI A43 | E87: Community infrastructure - Area 43 | F87: Local | G87: Area 43 | I87: Standard | J87: CI
A88: Reserve Development | B88: Auckland wide | C88: Reserve Development - Auckland wide | D88: OSD A1 | E88: Reserve Development - Auckland wide | F88: Wider | G88: Auckland wide | H88: Regional | I88: Standard | J88: OSD
A89: Reserve Development | B89: Area 2 | C89: Reserve Development - Area 2 | D89: OSD A2 | E89: Reserve Development - Area 2 | F89: Wider | G89: Area 2 | I89: Standard | J89: OSD
A90: Reserve Development | B90: Area 3 | C90: Reserve Development - Area 3 | D90: OSD A3 | E90: Reserve Development - Area 3 | F90: Wider | G90: Area 3 | I90: Standard | J90: OSD
A91: Reserve Development | B91: Area 4 | C91: Reserve Development - Area 4 | D91: OSD A4 | E91: Reserve Development - Area 4 | F91: Wider | G91: Area 4 | I91: Standard | J91: OSD
A92: Reserve Development | B92: Warkworth | C92: Reserve Development - Warkworth | D92: OSD A5 | E92: Reserve Development - Warkworth | F92: Local | G92: Warkworth | H92: Local | I92: Standard | J92: OSD
A93: Reserve Development | B93: Dairy Flat | C93: Reserve Development - Dairy Flat | D93: OSD A6 | E93: Reserve Development - Dairy Flat | F93: Local | G93: Dairy Flat | H93: Local | I93: Standard | J93: OSD
A94: Reserve Development | B94: Northwest | C94: Reserve Development - Northwest | D94: OSD A7 | E94: Reserve Development - Northwest | F94: Wider | G94: Northwest | H94: Local | I94: Standard | J94: OSD
A95: Reserve Development | B95: Area 8 | C95: Reserve Development - Area 8 | D95: OSD A8 | E95: Reserve Development - Area 8 | F95: Local | G95: Area 8 | I95: Standard | J95: OSD
A96: Reserve Development | B96: Area 9 | C96: Reserve Development - Area 9 | D96: OSD A9 | E96: Reserve Development - Area 9 | F96: Local | G96: Area 9 | I96: Standard | J96: OSD
A97: Reserve Development | B97: Flatbush | C97: Reserve Development - Flatbush | D97: OSD A10 | E97: Reserve Development - Flatbush | F97: Local | G97: Flatbush | H97: Local | I97: Standard | J97: OSD
A98: Reserve Development | B98: Takanini | C98: Reserve Development - Takanini | D98: OSD A11 | E98: Reserve Development - Takanini | F98: Local | G98: Takanini | H98: Local | I98: Standard | J98: OSD
A99: Reserve Development | B99: Opaheke / Drury | C99: Reserve Development - Opaheke / Drury | D99: OSD A12 | E99: Reserve Development - Opaheke / Drury | F99: Local | G99: Opaheke / Drury | H99: Local | I99: Standard | J99: OSD
A100: Reserve Development | B100: Hingaia | C100: Reserve Development - Hingaia | D100: OSD A13 | E100: Reserve Development - Hingaia | F100: Local | G100: Hingaia | H100: Local | I100: Standard | J100: OSD
A101: Reserve Development | B101: Paerata / Pukekohe | C101: Reserve Development - Paerata / Pukekohe | D101: OSD A14 | E101: Reserve Development - Paerata / Pukekohe | F101: Local | G101: Paerata / Pukekohe | H101: Local | I101: Standard | J101: OSD
A102: Reserve Development | B102: Hibiscus | C102: Reserve Development - Hibiscus | D102: OSD A15 | E102: Reserve Development - Hibiscus | F102: Local | G102: Hibiscus | H102: Local | I102: Standard | J102: OSD
A103: Reserve Development | B103: North Shore | C103: Reserve Development - North Shore | D103: OSD A16 | E103: Reserve Development - North Shore | F103: Local | G103: North Shore | H103: Local | I103: Standard | J103: OSD
A104: Reserve Development | B104: West | C104: Reserve Development - West | D104: OSD A17 | E104: Reserve Development - West | F104: Wider | G104: West | H104: Local | I104: Standard | J104: OSD
A105: Reserve Development | B105: Central | C105: Reserve Development - Central | D105: OSD A18 | E105: Reserve Development - Central | F105: Wider | G105: Central | H105: Local | I105: Standard | J105: OSD
A106: Reserve Development | B106: South (West) | C106: Reserve Development - South (West) | D106: OSD A19 | E106: Reserve Development - South (West) | F106: Wider | G106: South (West) | H106: Local | I106: Standard | J106: OSD
A107: Reserve Development | B107: South (East) | C107: Reserve Development - South (East) | D107: OSD A20 | E107: Reserve Development - South (East) | F107: Wider | G107: South (East) | H107: Local | I107: Standard | J107: OSD
A108: Reserve Development | B108: Rural North Upper | C108: Reserve Development - Rural North Upper | D108: OSD A21 | E108: Reserve Development - Rural North Upper | F108: Wider | G108: Rural North Upper | H108: Local | I108: Standard | J108: OSD
A109: Reserve Development | B109: Rural North Lower | C109: Reserve Development - Rural North Lower | D109: OSD A22 | E109: Reserve Development - Rural North Lower | F109: Wider | G109: Rural North Lower | H109: Local | I109: Standard | J109: OSD
A110: Reserve Development | B110: Rural West | C110: Reserve Development - Rural West | D110: OSD A23 | E110: Reserve Development - Rural West | F110: Wider | G110: Rural West | H110: Local | I110: Standard | J110: OSD
A111: Reserve Development | B111: Rural South West | C111: Reserve Development - Rural South West | D111: OSD A24 | E111: Reserve Development - Rural South West | F111: Wider | G111: Rural South West | H111: Local | I111: Standard | J111: OSD
A112: Reserve Development | B112: Rural South East | C112: Reserve Development - Rural South East | D112: OSD A25 | E112: Reserve Development - Rural South East | F112: Wider | G112: Rural South East | H112: Local | I112: Standard | J112: OSD
A113: Reserve Development | B113: Rural Islands | C113: Reserve Development - Rural Islands | D113: OSD A26 | E113: Reserve Development - Rural Islands | F113: Local | G113: Rural Islands | H113: Local | I113: Standard | J113: OSD
A114: Reserve Development | B114: Tamaki | C114: Reserve Development - Tamaki | D114: OSD A27 | E114: Reserve Development - Tamaki | F114: Local | G114: Tamaki | H114: Local | I114: Standard | J114: OSD
A115: Reserve Development | B115: Drury IPA | C115: Reserve Development - Drury IPA | D115: OSD A28 | E115: Reserve Development - Drury IPA | F115: Local | G115: Drury IPA | I115: Standard | J115: OSD
A116: Reserve Development | B116: Auranga | C116: Reserve Development - Auranga | D116: OSD A29 | E116: Reserve Development - Auranga | F116: Local | G116: Auranga | I116: Standard | J116: OSD
A117: Reserve Development | B117: Drury West 1 IPA | C117: Reserve Development - Drury West 1 IPA | D117: OSD A30 | E117: Reserve Development - Drury West 1 IPA | F117: Local | G117: Drury West 1 IPA | I117: Standard | J117: OSD
A118: Reserve Development | B118: Drury West 2 IPA | C118: Reserve Development - Drury West 2 IPA | D118: OSD A31 | E118: Reserve Development - Drury West 2 IPA | F118: Local | G118: Drury West 2 IPA | I118: Standard | J118: OSD
A119: Reserve Development | B119: Opaheke IPA | C119: Reserve Development - Opaheke IPA | D119: OSD A32 | E119: Reserve Development - Opaheke IPA | F119: Local | G119: Opaheke IPA | I119: Standard | J119: OSD
A120: Reserve Development | B120: Drury East IPA | C120: Reserve Development - Drury East IPA | D120: OSD A33 | E120: Reserve Development - Drury East IPA | F120: Local | G120: Drury East IPA | I120: Standard | J120: OSD
A121: Reserve Development | B121: Drury IPA (Community spaces) | C121: Reserve Development - Drury IPA (Community spaces) | D121: OSD A34 | E121: Reserve Development - Drury IPA (Community spaces) | F121: Local | G121: Drury IPA (Community spaces) | I121: Standard | J121: OSD
A122: Reserve Development | B122: Area 35 | C122: Reserve Development - Area 35 | D122: OSD A35 | E122: Reserve Development - Area 35 | F122: Local | G122: Area 35 | I122: Standard | J122: OSD
A123: Reserve Development | B123: Area 36 | C123: Reserve Development - Area 36 | D123: OSD A36 | E123: Reserve Development - Area 36 | F123: Local | G123: Area 36 | I123: Standard | J123: OSD
A124: Reserve Development | B124: Area 37 | C124: Reserve Development - Area 37 | D124: OSD A37 | E124: Reserve Development - Area 37 | F124: Local | G124: Area 37 | I124: Standard | J124: OSD
A125: Reserve Development | B125: Area 38 | C125: Reserve Development - Area 38 | D125: OSD A38 | E125: Reserve Development - Area 38 | F125: Local | G125: Area 38 | I125: Standard | J125: OSD
A126: Reserve Development | B126: Area 39 | C126: Reserve Development - Area 39 | D126: OSD A39 | E126: Reserve Development - Area 39 | F126: Local | G126: Area 39 | I126: Standard | J126: OSD
A127: Reserve Development | B127: Area 40 | C127: Reserve Development - Area 40 | D127: OSD A40 | E127: Reserve Development - Area 40 | F127: Local | G127: Area 40 | I127: Standard | J127: OSD
A128: Reserve Development | B128: Area 41 | C128: Reserve Development - Area 41 | D128: OSD A41 | E128: Reserve Development - Area 41 | F128: Local | G128: Area 41 | I128: Standard | J128: OSD
A129: Reserve Development | B129: Area 42 | C129: Reserve Development - Area 42 | D129: OSD A42 | E129: Reserve Development - Area 42 | F129: Local | G129: Area 42 | I129: Standard | J129: OSD
A130: Reserve Development | B130: Area 43 | C130: Reserve Development - Area 43 | D130: OSD A43 | E130: Reserve Development - Area 43 | F130: Local | G130: Area 43 | I130: Standard | J130: =TRIM(LEFT(D130,3)) -> OSD
A131: Stormwater | C131: =A131&" - "&B131 -> Stormwater - | D131: STW AW | E131: =+C131 -> Stormwater - | F131: Local | G131: =+B131 -> 0 | I131: Standard | J131: STW
A132: Stormwater | B132: Ararimu | C132: Stormwater - Ararimu | D132: STW A1 | E132: Stormwater - Ararimu | F132: Local | G132: Ararimu | H132: Local | I132: Standard | J132: STW
A133: Stormwater | B133: City Centre GPA | C133: Stormwater - City Centre GPA | D133: STW A2 | E133: Stormwater - City Centre GPA | F133: Local | G133: City Centre GPA | H133: Local | I133: Standard | J133: STW
A134: Stormwater | B134: East Coast Bays | C134: Stormwater - East Coast Bays | D134: STW A3 | E134: Stormwater - East Coast Bays | F134: Local | G134: East Coast Bays | H134: Local | I134: Standard | J134: STW
A135: Stormwater | B135: Flat Bush GPA | C135: Stormwater - Flat Bush GPA | D135: STW A4 | E135: Stormwater - Flat Bush GPA | F135: Local | G135: Flat Bush GPA | H135: Local | I135: Standard | J135: STW
A136: Stormwater | B136: Metro Manukau GPA | C136: Stormwater - Metro Manukau GPA | D136: STW A5 | E136: Stormwater - Metro Manukau GPA | F136: Local | G136: Metro Manukau GPA | H136: Local | I136: Standard | J136: STW
A137: Stormwater | B137: Manurewa / Papakura GPA | C137: Stormwater - Manurewa / Papakura GPA | D137: STW A6 | E137: Stormwater - Manurewa / Papakura GPA | F137: Local | G137: Manurewa / Papakura GPA | H137: Local | I137: Standard | J137: STW
A138: Stormwater | B138: Greater Takapuna GPA | C138: Stormwater - Greater Takapuna GPA | D138: STW A7 | E138: Stormwater - Greater Takapuna GPA | F138: Local | G138: Greater Takapuna GPA | H138: Local | I138: Standard | J138: STW
A139: Stormwater | B139: Greater Tamaki GPA | C139: Stormwater - Greater Tamaki GPA | D139: STW A8 | E139: Stormwater - Greater Tamaki GPA | F139: Local | G139: Greater Tamaki GPA | H139: Local | I139: Standard | J139: STW
A140: Stormwater | B140: Helensville | C140: Stormwater - Helensville | D140: STW A9 | E140: Stormwater - Helensville | F140: Local | G140: Helensville | H140: Local | I140: Standard | J140: STW
A141: Stormwater | B141: Hibiscus Coast | C141: Stormwater - Hibiscus Coast | D141: STW A10 | E141: Stormwater - Hibiscus Coast | F141: Local | G141: Hibiscus Coast | H141: Local | I141: Standard | J141: STW
A142: Stormwater | B142: Inner West Triangle GPA | C142: Stormwater - Inner West Triangle GPA | D142: STW A11 | E142: Stormwater - Inner West Triangle GPA | F142: Local | G142: Inner West Triangle GPA | H142: Local | I142: Standard | J142: STW
A143: Stormwater | B143: Kumeu / Huapai | C143: Stormwater - Kumeu / Huapai | D143: STW A12 | E143: Stormwater - Kumeu / Huapai | F143: Local | G143: Kumeu / Huapai | H143: Local | I143: Standard | J143: STW
A144: Stormwater | B144: Mahurangi | C144: Stormwater - Mahurangi | D144: STW A13 | E144: Stormwater - Mahurangi | F144: Local | G144: Mahurangi | H144: Local | I144: Standard | J144: STW
A145: Stormwater | B145: Manukau Central | C145: Stormwater - Manukau Central | D145: STW A14 | E145: Stormwater - Manukau Central | F145: Local | G145: Manukau Central | H145: Local | I145: Standard | J145: STW
A146: Stormwater | B146: Manukau North | C146: Stormwater - Manukau North | D146: STW A15 | E146: Stormwater - Manukau North | F146: Local | G146: Manukau North | H146: Local | I146: Standard | J146: STW
A147: Stormwater | B147: Manukau South | C147: Stormwater - Manukau South | D147: STW A16 | E147: Stormwater - Manukau South | F147: Local | G147: Manukau South | H147: Local | I147: Standard | J147: STW
A148: Stormwater | B148: Manukau West | C148: Stormwater - Manukau West | D148: STW A17 | E148: Stormwater - Manukau West | F148: Local | G148: Manukau West | H148: Local | I148: Standard | J148: STW
A149: Stormwater | B149: NORSGA GPA | C149: Stormwater - NORSGA GPA | D149: STW A18 | E149: Stormwater - NORSGA GPA | F149: Local | G149: NORSGA GPA | H149: Local | I149: Standard | J149: STW
A150: Stormwater | B150: Otahuhu GPA | C150: Stormwater - Otahuhu GPA | D150: STW A19 | E150: Stormwater - Otahuhu GPA | F150: Local | G150: Otahuhu GPA | H150: Local | I150: Standard | J150: STW
A151: Stormwater | B151: Other Auckland | C151: Stormwater - Other Auckland | D151: STW A20 | E151: Stormwater - Other Auckland | F151: Local | G151: Other Auckland | H151: Local | I151: Standard | J151: STW
A152: Stormwater | B152: Pukekohe GPA | C152: Stormwater - Pukekohe GPA | D152: STW A21 | E152: Stormwater - Pukekohe GPA | F152: Local | G152: Pukekohe GPA | H152: Local | I152: Standard | J152: STW
A153: Stormwater | B153: Tamaki East | C153: Stormwater - Tamaki East | D153: STW A22 | E153: Stormwater - Tamaki East | F153: Local | G153: Tamaki East | H153: Local | I153: Standard | J153: STW
A154: Stormwater | B154: Tamaki West 1 | C154: =A154&" - "&B154 -> Stormwater - Tamaki West 1 | D154: STW A23 | E154: Stormwater - Tamaki West 1 | F154: Local | G154: Tamaki West 1 | H154: Local | I154: Standard | J154: STW
A155: Stormwater | B155: Wairoa | C155: Stormwater - Wairoa | D155: STW A24 | E155: Stormwater - Wairoa | F155: Local | G155: Wairoa | H155: Local | I155: Standard | J155: STW
A156: Stormwater | B156: Waitakere Ranges | C156: Stormwater - Waitakere Ranges | D156: STW A25 | E156: Stormwater - Waitakere Ranges | F156: Local | G156: Waitakere Ranges | H156: Local | I156: Standard | J156: STW
A157: Stormwater | B157: Waitemata Central 1 | C157: Stormwater - Waitemata Central 1 | D157: STW A26 | E157: Stormwater - Waitemata Central 1 | F157: Local | G157: Waitemata Central 1 | H157: Local | I157: Standard | J157: STW
A158: Stormwater | B158: Waitemata North | C158: Stormwater - Waitemata North | D158: STW A27 | E158: Stormwater - Waitemata North | F158: Local | G158: Waitemata North | H158: Local | I158: Standard | J158: STW
A159: Stormwater | B159: Area 28 | C159: Stormwater - Area 28 | D159: STW A28 | E159: Stormwater - Area 28 | F159: Local | G159: Area 28 | H159: Local | I159: Standard | J159: STW
A160: Stormwater | B160: Waitemata West | C160: Stormwater - Waitemata West | D160: STW A29 | E160: Stormwater - Waitemata West | F160: Local | G160: Waitemata West | H160: Local | I160: Standard | J160: STW
A161: Stormwater | B161: Waiuku | C161: Stormwater - Waiuku | D161: STW A30 | E161: Stormwater - Waiuku | F161: Local | G161: Waiuku | H161: Local | I161: Standard | J161: STW
A162: Stormwater | B162: Warkworth | C162: Stormwater - Warkworth | D162: STW A31 | E162: Stormwater - Warkworth | F162: Local | G162: Warkworth | H162: Local | I162: Standard | J162: STW
A163: Stormwater | B163: Urban Auckland Non GPA | C163: Stormwater - Urban Auckland Non GPA | D163: STW A32 | E163: Stormwater - Urban Auckland Non GPA | F163: Wider | G163: Urban Auckland Non GPA | H163: Sub-regional | I163: Standard | J163: STW
A164: Stormwater | B164: Urban Auckland | C164: Stormwater - Urban Auckland | D164: STW A33 | E164: Stormwater - Urban Auckland | F164: Wider | G164: Urban Auckland | H164: Sub-regional | I164: Standard | J164: STW
A165: Stormwater | B165: Waitemata Central 2 | C165: Stormwater - Waitemata Central 2 | D165: STW A34 | E165: Stormwater - Waitemata Central 2 | F165: Local | G165: Waitemata Central 2 | H165: Local | I165: Standard | J165: STW
A166: Stormwater | B166: Tamaki West 2 | C166: Stormwater - Tamaki West 2 | D166: STW A35 | E166: Stormwater - Tamaki West 2 | F166: Local | G166: Tamaki West 2 | H166: Local | I166: Standard | J166: STW
A167: Stormwater | B167: Tamaki West 3 | C167: Stormwater - Tamaki West 3 | D167: STW A36 | E167: Stormwater - Tamaki West 3 | F167: Local | G167: Tamaki West 3 | H167: Local | I167: Standard | J167: STW
A168: Stormwater | B168: Whenuapai / Redhills | C168: Stormwater - Whenuapai / Redhills | D168: STW A37 | E168: Stormwater - Whenuapai / Redhills | F168: Local | G168: Whenuapai / Redhills | H168: Local | I168: Standard | J168: STW
A169: Stormwater | B169: Dairy Flat / Wainui / Silverdale | C169: Stormwater - Dairy Flat / Wainui / Silverdale | D169: STW A38 | E169: Stormwater - Dairy Flat / Wainui / Silverdale | F169: Local | G169: Dairy Flat / Wainui / Silverdale | H169: Local | I169: Standard | J169: STW
A170: Stormwater | B170: Drury West | C170: Stormwater - Drury West | D170: STW A39 | E170: Stormwater - Drury West | F170: Local | G170: Drury West | H170: Local | I170: Standard | J170: STW
A171: Stormwater | B171: Opaheke / Drury | C171: Stormwater - Opaheke / Drury | D171: STW A40 | E171: Stormwater - Opaheke / Drury | F171: Local | G171: Opaheke / Drury | H171: Local | I171: Standard | J171: STW
A172: Stormwater | B172: Hauraki Gulf Islands | C172: Stormwater - Hauraki Gulf Islands | D172: STW A41 | E172: Stormwater - Hauraki Gulf Islands | F172: Local | G172: Hauraki Gulf Islands | H172: Local | I172: Standard | J172: STW
A173: Stormwater | B173: Omaha / Matakana | C173: Stormwater - Omaha / Matakana | D173: STW A42 | E173: Stormwater - Omaha / Matakana | F173: Local | G173: Omaha / Matakana | H173: Local | I173: Standard | J173: STW
A174: Stormwater | B174: Oakley | C174: Stormwater - Oakley | D174: STW A43 | E174: Stormwater - Oakley | F174: Local | G174: Oakley | H174: Local | I174: Standard | J174: STW
A175: Stormwater | B175: Area 44 | C175: Stormwater - Area 44 | D175: STW A44 | E175: Stormwater - Area 44 | F175: Local | G175: Area 44 | I175: Standard | J175: STW
A176: Stormwater | B176: Area 45 | C176: Stormwater - Area 45 | D176: STW A45 | E176: Stormwater - Area 45 | F176: Local | G176: Area 45 | I176: Standard | J176: STW
A177: Stormwater | B177: Area 46 | C177: Stormwater - Area 46 | D177: STW A46 | E177: Stormwater - Area 46 | F177: Local | G177: Area 46 | I177: Standard | J177: STW
A178: Stormwater | B178: Area 47 | C178: Stormwater - Area 47 | D178: STW A47 | E178: Stormwater - Area 47 | F178: Local | G178: Area 47 | I178: Standard | J178: STW
A179: Stormwater | B179: Area 48 | C179: Stormwater - Area 48 | D179: STW A48 | E179: Stormwater - Area 48 | F179: Local | G179: Area 48 | I179: Standard | J179: STW
A180: Stormwater | B180: Area 49 | C180: Stormwater - Area 49 | D180: STW A49 | E180: Stormwater - Area 49 | F180: Local | G180: Area 49 | I180: Standard | J180: STW
A181: Stormwater | B181: Area 50 | C181: Stormwater - Area 50 | D181: STW A50 | E181: Stormwater - Area 50 | F181: Local | G181: Area 50 | I181: Standard | J181: STW
A182: Stormwater | B182: Area 51 | C182: Stormwater - Area 51 | D182: STW A51 | E182: Stormwater - Area 51 | F182: Local | G182: Area 51 | I182: Standard | J182: STW
A183: Transport | B183: Auckland wide | C183: Transport - Auckland wide | D183: TRA A1 | E183: Transport - Auckland wide | F183: Wider | G183: Auckland wide | H183: Regional | I183: Standard | J183: TRA
A184: Transport | B184: North | C184: Transport - North | D184: TRA A2 | E184: Transport - North | F184: Wider | G184: North | H184: Sub-regional | I184: Standard | J184: TRA
A185: Transport | B185: Central | C185: Transport - Central | D185: TRA A3 | E185: Transport - Central | F185: Wider | G185: Central | H185: Sub-regional | I185: Standard | J185: TRA
A186: Transport | B186: West | C186: Transport - West | D186: TRA A4 | E186: Transport - West | F186: Wider | G186: West | H186: Sub-regional | I186: Standard | J186: TRA
A187: Transport | B187: South | C187: Transport - South | D187: TRA A5 | E187: Transport - South | F187: Wider | G187: South | H187: Sub-regional | I187: Standard | J187: TRA
A188: Transport | B188: Drury South | C188: Transport - Drury South | D188: TRA A6 | E188: Transport - Drury South | F188: Local | G188: Drury South | H188: Local | I188: Standard | J188: TRA
A189: Transport | B189: Hauraki Gulf Islands | C189: Transport - Hauraki Gulf Islands | D189: TRA A7 | E189: Transport - Hauraki Gulf Islands | F189: Local | G189: Hauraki Gulf Islands | H189: Local | I189: Standard | J189: TRA
A190: Transport | B190: Auckland Wide Less Parallel | C190: Transport - Auckland Wide Less Parallel | D190: TRA A8 | E190: Transport - Auckland Wide Less Parallel | F190: Wider | G190: Auckland Wide Less Parallel | H190: Sub-regional | I190: Standard | J190: TRA
A191: Transport | B191: NorthWest | C191: Transport - NorthWest | D191: TRA A9 | E191: Transport - NorthWest | F191: Wider | G191: NorthWest | H191: Local | I191: Special_HIF_int_adj | J191: TRA
A192: Transport | B192: Dairyflat / Wainui / Silverdale | C192: Transport - Dairyflat / Wainui / Silverdale | D192: TRA A10 | E192: Transport - Dairyflat / Wainui / Silverdale | F192: Local | G192: Dairyflat / Wainui / Silverdale | H192: Local | I192: Special_Milldale | J192: TRA
A193: Transport | B193: Tamaki AHP | C193: Transport - Tamaki AHP | D193: TRA A11 | E193: Transport - Tamaki AHP | F193: Local | G193: Tamaki AHP | H193: Local | I193: Standard | J193: TRA
A194: Transport | B194: Albany | C194: Transport - Albany | D194: TRA A12 | E194: Transport - Albany | F194: Local | G194: Albany | H194: Local | I194: Standard | J194: =TRIM(LEFT(D194,3)) -> TRA
A195: Transport | B195: Rural North | C195: =A195&" - "&B195 -> Transport - Rural North | D195: TRA A13 | E195: =+C195 -> Transport - Rural North | F195: Wider | G195: =+B195 -> Rural North | H195: Local | I195: Standard | J195: TRA
A196: Transport | B196: Rural West | C196: Transport - Rural West | D196: TRA A14 | E196: Transport - Rural West | F196: Wider | G196: Rural West | H196: Local | I196: Standard | J196: TRA
A197: Transport | B197: Rural South | C197: Transport - Rural South | D197: TRA A15 | E197: Transport - Rural South | F197: Wider | G197: Rural South | H197: Local | I197: Standard | J197: TRA
A198: Transport | B198: Area 16 | C198: Transport - Area 16 | D198: TRA A16 | E198: Transport - Area 16 | F198: Local | G198: Area 16 | H198: Local | I198: Special_HIF | J198: TRA
A199: Transport | B199: Mt Roskill AHP | C199: Transport - Mt Roskill AHP | D199: TRA A17 | E199: Transport - Mt Roskill AHP | F199: Local | G199: Mt Roskill AHP | H199: Local | I199: Standard | J199: TRA
A200: Transport | B200: Mangere AHP | C200: Transport - Mangere AHP | D200: TRA A18 | E200: Transport - Mangere AHP | F200: Local | G200: Mangere AHP | H200: Local | I200: Standard | J200: TRA
... 47 more rows

Sheet Planned_capex_starting_position
A1: ="Planned capex for " & B6 & "-" & (B6+10) & " LTP" -> Planned capex for 2021-2031 LTP | E1: 1 | F1: =+E1+1 -> 2 | G1: =+F1+1 -> 3 | H1: 4 | I1: 5 | J1: 6 | K1: 7 | L1: 8 | M1: 9 | N1: 10 | O1: 11 | P1: 12 | Q1: 13 | R1: 14 | S1: 15 | T1: 16 | U1: 17 | V1: 18 | W1: 19 | X1: 20 | Y1: 21 | Z1: 22 | AA1: 23 | AB1: 24 | AC1: 25 | AD1: 26 | AE1: =+AD1+1 -> 27 | AF1: =+AE1+1 -> 28 | AG1: =+AF1+1 -> 29 | AH1: =+AG1+1 -> 30 | AI1: =+AH1+1 -> 31 | AJ1: =+AI1+1 -> 32 | AK1: =+AJ1+1 -> 33 | AL1: =+AK1+1 -> 34 | AM1: =+AL1+1 -> 35 | AN1: =+AM1+1 -> 36 | AO1: =+AN1+1 -> 37 | AP1: =+AO1+1 -> 38 | AQ1: =+AP1+1 -> 39 | AR1: =+AQ1+1 -> 40 | AS1: =+AR1+1 -> 41 | AT1: =+AS1+1 -> 42 | AU1: =+AT1+1 -> 43 | AV1: =+AU1+1 -> 44 | AW1: =+AV1+1 -> 45 | AX1: =+AW1+1 -> 46 | AY1: =+AX1+1 -> 47 | AZ1: =+AY1+1 -> 48 | BA1: =+AZ1+1 -> 49 | BB1: =+BA1+1 -> 50 | BC1: =+BB1+1 -> 51 | BD1: =+BC1+1 -> 52 | BE1: =+BD1+1 -> 53 | BF1: =+BE1+1 -> 54 | BG1: =+BF1+1 -> 55 | BH1: =+BG1+1 -> 56 | BI1: =+BH1+1 -> 57 | BJ1: =+BI1+1 -> 58 | BK1: =+BJ1+1 -> 59 | BL1: 60 | BM1: 61 | BN1: 62 | BO1: 63 | BP1: 64 | BQ1: 65 | BR1: =+BQ1+1 -> 66
A3: Groups populate the data under the blue highlighted header. The fields under the green highlighted header are calculated automatically
A4: Set up validation lists DC activity, LTP activity and funding area description
AI5: Last year for LTP
A6: Set starting year for LTP: | B6: 2021 | AI6: 2031 | AL6: Intergenerational cost (Years 1 - 10) | AZ6: Intergenerational cost (Years 11 -20)
A7: Department | B7: Development Contribution Activity | C7: Hyperion code | D7: WBS code | E7: Unique Id (Project code, funding area code, WK subsidy if applicable) | F7: Project / programme name | G7: Project/Programme description | H7: Local Board | I7: LTP activity | J7: LTP Group of activities | K7: Funding area description | L7: Growth % | M7: Level of Service % | N7: Renewal % | O7: Benefit considerations % benefit to growth s101(3)(a)(ii) | P7: Cause considerations % caused by growth s101(3)(a)(iv) | Q7: DC growth % (O12+P12)/2 | R7: In which FY will the asset reach full capacity? s101(3)(a)(iii) | S7: FY 2022 costs | T7: FY 2023 costs | U7: FY 2024 costs | V7: FY 2025 costs | W7: FY 2026 costs | X7: FY 2027 costs | Y7: FY 2027 costs | Z7: FY 2028 costs | AA7: FY 2029 costs | AB7: FY 2030 costs | AC7: Total cost | AD7: Revenue from external sources | AE7: x | AF7: Funding area code | AG7: Net cost | AH7: Local / Wider | AI7: Intergenerational equity % consumed within LTP12-22 s101(3)(a)(iii) | AJ7: Intergenerational equity % consumed beyond LTP12-22 s101(3)(a)(iii) | AK7: Cost attributable to existing (E) | AL7: FY22 | AM7: FY23 | AN7: FY24 | AO7: FY25 | AP7: FY26 | AQ7: FY27 | AR7: FY28 | AS7: FY29 | AT7: FY30 | AU7: FY31 | AV7: Total DC CAPEX for delivery within CURRENTLTP | AW7: Funded from other sources $ | AX7: Funded from other sources % | AY7: x | AZ7: FY22 | BA7: FY23 | BB7: FY24 | BC7: FY25 | BD7: FY26 | BE7: FY27 | BF7: FY28 | BG7: FY29 | BH7: FY30 | BI7: FY31 | BJ7: Total DC CAPEX for delivery within FUTURELTP | BK7: Check of totals | BL7: Unique identifier for schedule 8 - Planned capex projects | BM7: Count of unique identifier | BR7: Remove WK from unique identifier | BS7: Project id | BT7: Collector / Arterial | BU7: Capacity year
B8: Transport | E8: 14a TRA A23 | F8: Western end of Brookefield Road Extension tie in with Quarry Rd | G8: 2-lane urban (New Road connection to Quarry Road with active modes on both sides + intersection improvements) | K8: Transport - Drury East IPA | Q8: 0.9569224105 | R8: 2060 | S8: 0 | T8: 0 | U8: 0 | V8: 0 | W8: 0 | X8: 0 | Y8: 0 | Z8: 0 | AA8: 0 | AB8: 7231748.204 | AC8: =SUM(S8:AB8) -> 7231748.204 | AF8: =IFERROR(VLOOKUP(K8,FA_Codes!C:F,2,FALSE),"CHECK") -> TRA A23 | AG8: =AC8-AD8 -> 7231748.204 | AH8: =IFERROR(VLOOKUP(AF8,FA_Codes!D:F,3,FALSE),"CHECK") -> Local | AI8: 0.0786637931 | AJ8: =1-AI8 -> 0.9213362069 | AK8: =AG8*(1-Q8) -> 311526.2803 | AL8: =S8*$Q8*$AI8*(1-$AX8) -> 0 | AM8: =T8*$Q8*$AI8*(1-$AX8) -> 0 | AN8: =U8*$Q8*$AI8*(1-$AX8) -> 0 | AO8: =V8*$Q8*$AI8*(1-$AX8) -> 0 | AP8: =W8*$Q8*$AI8*(1-$AX8) -> 0 | AQ8: =X8*$Q8*$AI8*(1-$AX8) -> 0 | AR8: =Y8*$Q8*$AI8*(1-$AX8) -> 0 | AS8: =Z8*$Q8*$AI8*(1-$AX8) -> 0 | AT8: =AA8*$Q8*$AI8*(1-$AX8) -> 0 | AU8: =AB8*$Q8*$AI8*(1-$AX8) -> 544370.9056 | AV8: =SUM(AL8:AU8) -> 544370.9056 | AW8: =AD8 -> 0 | AX8: =IFERROR(AW8/AC8,0) -> 0 | AZ8: =S8*$Q8*$AJ8*(1-$AX8) -> 0 | BA8: =T8*$Q8*$AJ8*(1-$AX8) -> 0 | BB8: =U8*$Q8*$AJ8*(1-$AX8) -> 0 | BC8: =V8*$Q8*$AJ8*(1-$AX8) -> 0 | BD8: =W8*$Q8*$AJ8*(1-$AX8) -> 0 | BE8: =X8*$Q8*$AJ8*(1-$AX8) -> 0 | BF8: =Y8*$Q8*$AJ8*(1-$AX8) -> 0 | BG8: =Z8*$Q8*$AJ8*(1-$AX8) -> 0 | BH8: =AA8*$Q8*$AJ8*(1-$AX8) -> 0 | BI8: =AB8*$Q8*$AJ8*(1-$AX8) -> 6375851.018 | BJ8: =SUM(AZ8:BI8) -> 6375851.018 | BK8: =IF(ABS(AG8-BJ8-AV8-AK8)<0.5,"OK","CHECK") -> OK | BL8: =IF($Q8=0,"",F8&" "&AF8&" "&Q8&" "&R8&" "&AI8) -> Western end of Brookefield Road Extension tie in with Quarry Rd TRA A23 0.956922410530503 2060 0.0786637931034483 | BM8: =COUNTIF($BL$8:$BL$149,BL8) -> 1 | BN8: =+BJ8+AV8 -> 6920221.924 | BO8: =IFERROR(VLOOKUP(AF8,FA_Codes!D:H,5,FALSE),"CHECK") -> 0 | BP8: =TRIM(LEFT(AF8,3)) -> TRA | BQ8: =IF(AC8>0,+AC8,0) -> 7231748.204 | BR8: =IF(RIGHT(E8,11)=" WK subsidy",LEFT(E8,LEN(E8)-11),E8) -> 14a TRA A23 | BS8: =IFERROR(LEFT(BR8,LEN(BR8)-8)*1,LEFT(BR8,LEN(BR8)-8)) -> 14a | BT8: Collector | BU8: =+R8 -> 2060
B9: Transport | E9: 1b TRA A23 | F9: GSR improvements - Waihoehoe Rd to Drury Interchange | G9: 4-lane urban- existing road layout with active modes on both sides + intersection improvements (TDM) | K9: Transport - Drury East IPA | Q9: 0.9569224105 | R9: 2060 | S9: 0 | T9: 0 | U9: 0 | V9: 0 | W9: 0 | X9: 0 | Y9: 0 | Z9: 0 | AA9: 1398663.912 | AB9: 13895853.12 | AC9: =SUM(S9:AB9) -> 15294517.03 | AF9: =IFERROR(VLOOKUP(K9,FA_Codes!C:F,2,FALSE),"CHECK") -> TRA A23 | AG9: 15294517.03 | AH9: =IFERROR(VLOOKUP(AF9,FA_Codes!D:F,3,FALSE),"CHECK") -> Local | AI9: 0.0786637931 | AJ9: =1-AI9 -> 0.9213362069 | AK9: 658850.9258 | AL9: 0 | AM9: 0 | AN9: 0 | AO9: 0 | AP9: 0 | AQ9: 0 | AR9: 0 | AS9: 0 | AT9: 105284.6309 | AU9: 1046012.379 | AV9: =SUM(AL9:AU9) -> 1151297.01 | AW9: 0 | AX9: 0 | AZ9: 0 | BA9: 0 | BB9: 0 | BC9: 0 | BD9: 0 | BE9: 0 | BF9: 0 | BG9: 0 | BH9: 1233128.211 | BI9: 12251240.88 | BJ9: =SUM(AZ9:BI9) -> 13484369.09 | BK9: =IF(ABS(AG9-BJ9-AV9-AK9)<0.5,"OK","CHECK") -> OK | BL9: GSR improvements - Waihoehoe Rd to Drury Interchange TRA A23 0.956922410530503 2060 0.0786637931034483 | BM9: 2 | BN9: =+BJ9+AV9 -> 14635666.1 | BO9: =IFERROR(VLOOKUP(AF9,FA_Codes!D:H,5,FALSE),"CHECK") -> 0 | BP9: TRA | BQ9: 15294517.03 | BR9: 1b TRA A23 | BS9: =IFERROR(LEFT(BR9,LEN(BR9)-8)*1,LEFT(BR9,LEN(BR9)-8)) -> 1b | BT9: Arterial | BU9: 2060
B10: Transport | E10: 2a TRA A23 | F10: GSR improvements - From Drury School to Waihoehoe Rd | G10: 2-lane urban- existing road layout with active modes on both sides + intersection improvements (TDM) | K10: Transport - Drury East IPA | Q10: 0.9569224105 | R10: 2060 | S10: 0 | T10: 0 | U10: 0 | V10: 0 | W10: 0 | X10: 0 | Y10: 0 | Z10: 851058.5617 | AA10: 8455344.18 | AB10: 0 | AC10: 9306402.741 | AF10: =IFERROR(VLOOKUP(K10,FA_Codes!C:F,2,FALSE),"CHECK") -> TRA A23 | AG10: 9306402.741 | AH10: =IFERROR(VLOOKUP(AF10,FA_Codes!D:F,3,FALSE),"CHECK") -> Local | AI10: 0.0786637931 | AJ10: 0.9213362069 | AK10: 400897.3967 | AL10: 0 | AM10: 0 | AN10: 0 | AO10: 0 | AP10: 0 | AQ10: 0 | AR10: 0 | AS10: 64063.55793 | AT10: 636477.272 | AU10: 0 | AV10: 700540.8299 | AW10: 0 | AX10: 0 | AZ10: 0 | BA10: 0 | BB10: 0 | BC10: 0 | BD10: 0 | BE10: 0 | BF10: 0 | BG10: 750333.4524 | BH10: 7454631.062 | BI10: 0 | BJ10: 8204964.515 | BK10: OK | BL10: GSR improvements - From Drury School to Waihoehoe Rd TRA A23 0.956922410530503 2060 0.0786637931034483 | BM10: 2 | BN10: 8905505.345 | BO10: =IFERROR(VLOOKUP(AF10,FA_Codes!D:H,5,FALSE),"CHECK") -> 0 | BP10: TRA | BQ10: 9306402.741 | BR10: 2a TRA A23 | BS10: 2a | BT10: Arterial | BU10: 2060
B11: Transport | E11: 4b TRA A23 | F11: Waihoehoe Rd East upgrades- from Fitzgerald Rd to before Cossey Rd (development boundary) | G11: Expand to 24m cross section | K11: Transport - Drury East IPA | Q11: 0.9569224105 | R11: 2060 | S11: 0 | T11: 0 | U11: 19109.69524 | V11: 0 | W11: 0 | X11: 2018320.664 | Y11: 576439.754 | Z11: 6285505.193 | AA11: 0 | AB11: 0 | AC11: 8899375.306 | AF11: =IFERROR(VLOOKUP(K11,FA_Codes!C:F,2,FALSE),"CHECK") -> TRA A23 | AG11: 8899375.306 | AH11: =IFERROR(VLOOKUP(AF11,FA_Codes!D:F,3,FALSE),"CHECK") -> Local | AI11: 0.0786637931 | AJ11: 0.9213362069 | AK11: 383363.636 | AL11: 0 | AM11: 0 | AN11: 1438.485109 | AO11: 0 | AP11: 0 | AQ11: 151929.3837 | AR11: 43391.58694 | AS11: 473142.3244 | AT11: 0 | AU11: 0 | AV11: 669901.7801 | AW11: 0 | AX11: 0 | AZ11: 0 | BA11: 0 | BB11: 16848.01053 | BC11: 0 | BD11: 0 | BE11: 1779446.891 | BF11: 508216.532 | BG11: 5541598.457 | BH11: 0 | BI11: 0 | BJ11: 7846109.89 | BK11: OK | BL11: Waihoehoe Rd East upgrades- from Fitzgerald Rd to before Cossey Rd (development boundary) TRA A23 0.956922410530503 2060 0.0786637931034483 | BM11: 2 | BN11: 8516011.67 | BO11: =IFERROR(VLOOKUP(AF11,FA_Codes!D:H,5,FALSE),"CHECK") -> 0 | BP11: TRA | BQ11: 8899375.306 | BR11: 4b TRA A23 | BS11: 4b | BT11: Arterial | BU11: 2060
B12: Transport | E12: 9b TRA A23 | F12: Upgrade in Norrie Rd/GSR/Waihoehoe intersection | G12: multi-lane signalised intersection with active mode crossings, SGA design | K12: Transport - Drury East IPA | Q12: 0.9569224105 | R12: 2060 | S12: 0 | T12: 0 | U12: 0 | V12: 0 | W12: 0 | X12: 0 | Y12: 0 | Z12: 538727.4272 | AA12: 668142.0589 | AB12: 6752880.825 | AC12: 7959750.311 | AF12: =IFERROR(VLOOKUP(K12,FA_Codes!C:F,2,FALSE),"CHECK") -> TRA A23 | AG12: 7959750.311 | AH12: =IFERROR(VLOOKUP(AF12,FA_Codes!D:F,3,FALSE),"CHECK") -> Local | AI12: 0.0786637931 | AJ12: 0.9213362069 | AK12: 342886.8562 | AL12: 0 | AM12: 0 | AN12: 0 | AO12: 0 | AP12: 0 | AQ12: 0 | AR12: 0 | AS12: 40552.78602 | AT12: 50294.49138 | AU12: 508324.0935 | AV12: 599171.3709 | AW12: 0 | AX12: 0 | AZ12: 0 | BA12: 0 | BB12: 0 | BC12: 0 | BD12: 0 | BE12: 0 | BF12: 0 | BG12: 474967.5623 | BH12: 589065.6182 | BI12: 5953658.903 | BJ12: 7017692.084 | BK12: OK | BL12: Upgrade in Norrie Rd/GSR/Waihoehoe intersection TRA A23 0.956922410530503 2060 0.0786637931034483 | BM12: 2 | BN12: 7616863.454 | BO12: =IFERROR(VLOOKUP(AF12,FA_Codes!D:H,5,FALSE),"CHECK") -> 0 | BP12: TRA | BQ12: 7959750.311 | BR12: 9b TRA A23 | BS12: 9b | BT12: Arterial | BU12: 2060
B13: Transport | E13: 10b TRA A23 | F13: New intersection on Waihoehoe Rd/Fitzgerald Rd( including approach cross-sections) | G13: multi-lane roundabout with active mode crossings, SGA design | K13: Transport - Drury East IPA | Q13: 0.9569224105 | R13: 2060 | S13: 0 | T13: 0 | U13: 0 | V13: 0 | W13: 0 | X13: 0 | Y13: 0 | Z13: 777327.6158 | AA13: 604288.9565 | AB13: 6101614.903 | AC13: 7483231.475 | AF13: =IFERROR(VLOOKUP(K13,FA_Codes!C:F,2,FALSE),"CHECK") -> TRA A23 | AG13: 7483231.475 | AH13: =IFERROR(VLOOKUP(AF13,FA_Codes!D:F,3,FALSE),"CHECK") -> Local | AI13: 0.0786637931 | AJ13: 0.9213362069 | AK13: 322359.5734 | AL13: 0 | AM13: 0 | AN13: 0 | AO13: 0 | AP13: 0 | AQ13: 0 | AR13: 0 | AS13: 58513.45017 | AT13: 45487.93974 | AU13: 459299.9558 | AV13: 563301.3457 | AW13: 0 | AX13: 0 | AZ13: 0 | BA13: 0 | BB13: 0 | BC13: 0 | BD13: 0 | BE13: 0 | BF13: 0 | BG13: 685328.7657 | BH13: 532769.7052 | BI13: 5379472.085 | BJ13: 6597570.556 | BK13: OK | BL13: New intersection on Waihoehoe Rd/Fitzgerald Rd( including approach cross-sections) TRA A23 0.956922410530503 2060 0.0786637931034483 | BM13: 2 | BN13: 7160871.902 | BO13: =IFERROR(VLOOKUP(AF13,FA_Codes!D:H,5,FALSE),"CHECK") -> 0 | BP13: TRA | BQ13: 7483231.475 | BR13: 10b TRA A23 | BS13: 10b | BT13: Arterial | BU13: 2060
B14: Transport | E14: 11 TRA A23 | F14: Intersection upgrade Waihoehoe Rd/Fielding Rd/Appleby Rd | G14: Roundabout as per SGA design | K14: Transport - Drury East IPA | Q14: 0.9569224105 | R14: 2060 | S14: 0 | T14: 0 | U14: 0 | V14: 0 | W14: 0 | X14: 76295.45787 | Y14: 0 | Z14: 152064.5314 | AA14: 77694.2944 | AB14: 771899.878 | AC14: 1077954.162 | AF14: =IFERROR(VLOOKUP(K14,FA_Codes!C:F,2,FALSE),"CHECK") -> TRA A23 | AG14: 1077954.162 | AH14: =IFERROR(VLOOKUP(AF14,FA_Codes!D:F,3,FALSE),"CHECK") -> Local | AI14: 0.0786637931 | AJ14: 0.9213362069 | AK14: 46435.66685 | AL14: 0 | AM14: 0 | AN14: 0 | AO14: 0 | AP14: 0 | AQ14: 5743.15177 | AR14: 0 | AS14: 11446.67988 | AT14: 5848.449395 | AU14: 58104.87642 | AV14: 81143.15746 | AW14: 0 | AX14: 0 | AZ14: 0 | BA14: 0 | BB14: 0 | BC14: 0 | BD14: 0 | BE14: 67265.68169 | BF14: 0 | BG14: 134067.2781 | BH14: 68498.96209 | BI14: 680543.4156 | BJ14: 950375.3374 | BK14: OK | BL14: Intersection upgrade Waihoehoe Rd/Fielding Rd/Appleby Rd TRA A23 0.956922410530503 2060 0.0786637931034483 | BM14: 2 | BN14: 1031518.495 | BO14: =IFERROR(VLOOKUP(AF14,FA_Codes!D:H,5,FALSE),"CHECK") -> 0 | BP14: TRA | BQ14: 1077954.162 | BR14: 11 TRA A23 | BS14: 11 | BT14: Arterial | BU14: 2060
B15: Transport | E15: 13a TRA A23 | F15: N-S Opaheke Arterial across development (up to Waihoehoe Stream) | G15: 2-lane urban- new 2-lane arterial with active modes on both sides + intersection improvements (TDM) | K15: Transport - Drury East IPA | Q15: 0.9569224105 | R15: 2060 | S15: 0 | T15: 0 | U15: 293913.185 | V15: 0 | W15: 0 | X15: 1093412.033 | Y15: 0 | Z15: 0 | AA15: 0 | AB15: 0 | AC15: 1387325.218 | AF15: =IFERROR(VLOOKUP(K15,FA_Codes!C:F,2,FALSE),"CHECK") -> TRA A23 | AG15: 1387325.218 | AH15: =IFERROR(VLOOKUP(AF15,FA_Codes!D:F,3,FALSE),"CHECK") -> Local | AI15: 0.0786637931 | AJ15: 0.9213362069 | AK15: 59762.6262 | AL15: 0 | AM15: 0 | AN15: 22124.35806 | AO15: 0 | AP15: 0 | AQ15: 82306.75098 | AR15: 0 | AS15: 0 | AT15: 0 | AU15: 0 | AV15: 104431.109 | AW15: 0 | AX15: 0 | AZ15: 0 | BA15: 0 | BB15: 259127.7554 | BC15: 0 | BD15: 0 | BE15: 964003.7273 | BF15: 0 | BG15: 0 | BH15: 0 | BI15: 0 | BJ15: 1223131.483 | BK15: OK | BL15: N-S Opaheke Arterial across development (up to Waihoehoe Stream) TRA A23 0.956922410530503 2060 0.0786637931034483 | BM15: 2 | BN15: 1327562.592 | BO15: =IFERROR(VLOOKUP(AF15,FA_Codes!D:H,5,FALSE),"CHECK") -> 0 | BP15: TRA | BQ15: 1387325.218 | BR15: 13a TRA A23 | BS15: 13a | BT15: Arterial | BU15: 2060
B16: Transport | E16: 23b TRA A23 | F16: Waihoehoe Rd West upgrades- between GSR & Kath Henry Lane | G16: Final 4-lane - following interim option, upgrade Road corridor to provide four lanes with additional turning lanes at intersections where required (as indicated in SGA Design | K16: Transport - Drury East IPA | Q16: 0.9569224105 | R16: 2060 | S16: 0 | T16: 939353.739 | U16: 0 | V16: 0 | W16: 0 | X16: 0 | Y16: 0 | Z16: 9246169.829 | AA16: 2735830.528 | AB16: 27388227.08 | AC16: 40309581.18 | AF16: =IFERROR(VLOOKUP(K16,FA_Codes!C:F,2,FALSE),"CHECK") -> TRA A23 | AG16: 40309581.18 | AH16: =IFERROR(VLOOKUP(AF16,FA_Codes!D:F,3,FALSE),"CHECK") -> Local | AI16: 0.0786637931 | AJ16: 0.9213362069 | AK16: 1736439.59 | AL16: 0 | AM16: 70709.99033 | AN16: 0 | AO16: 0 | AP16: 0 | AQ16: 0 | AR16: 0 | AS16: 696006.7886 | AT16: 205940.0438 | AU16: 2061652.806 | AV16: 3034309.629 | AW16: 0 | AX16: 0 | AZ16: 0 | BA16: 828178.6539 | BB16: 0 | BC16: 0 | BD16: 0 | BE16: 0 | BF16: 0 | BG16: 8151860.332 | BH16: 2412037.5 | BI16: 24146755.47 | BJ16: 35538831.96 | BK16: OK | BL16: Waihoehoe Rd West upgrades- between GSR & Kath Henry Lane TRA A23 0.956922410530503 2060 0.0786637931034483 | BM16: 2 | BN16: 38573141.59 | BO16: =IFERROR(VLOOKUP(AF16,FA_Codes!D:H,5,FALSE),"CHECK") -> 0 | BP16: TRA | BQ16: 40309581.18 | BR16: 23b TRA A23 | BS16: 23b | BT16: Arterial | BU16: 2060
B17: Transport | E17: 23d TRA A23 | F17: Waihoehoe Rd West upgrades- between Kath Henry Lane and Fitzgerald Rd | G17: Final 4-lane - following interim option, upgrade Road corridor to provide four lanes with additional turning lanes at intersections where required (as indicated in SGA Design | K17: Transport - Drury East IPA | Q17: 0.9569224105 | R17: 2060 | S17: 0 | T17: 0 | U17: 0 | V17: 0 | W17: 0 | X17: 30573.96059 | Y17: 0 | Z17: 1602270.71 | AA17: 519838.2281 | AB17: 5430860.333 | AC17: 7583543.231 | AF17: =IFERROR(VLOOKUP(K17,FA_Codes!C:F,2,FALSE),"CHECK") -> TRA A23 | AG17: 7583543.231 | AH17: =IFERROR(VLOOKUP(AF17,FA_Codes!D:F,3,FALSE),"CHECK") -> Local | AI17: 0.0786637931 | AJ17: 0.9213362069 | AK17: 326680.762 | AL17: 0 | AM17: 0 | AN17: 0 | AO17: 0 | AP17: 0 | AQ17: 2301.459363 | AR17: 0 | AS17: 120611.1624 | AT17: 39130.89879 | AU17: 408808.8073 | AV17: 570852.3279 | AW17: 0 | AX17: 0 | AZ17: 0 | BA17: 0 | BB17: 0 | BC17: 0 | BD17: 0 | BE17: 26955.44871 | BF17: 0 | BG17: 1412637.587 | BH17: 458313.9515 | BI17: 4788103.154 | BJ17: 6686010.141 | BK17: OK | BL17: Waihoehoe Rd West upgrades- between Kath Henry Lane and Fitzgerald Rd TRA A23 0.956922410530503 2060 0.0786637931034483 | BM17: 2 | BN17: 7256862.469 | BO17: =IFERROR(VLOOKUP(AF17,FA_Codes!D:H,5,FALSE),"CHECK") -> 0 | BP17: TRA | BQ17: 7583543.231 | BR17: 23d TRA A23 | BS17: 23d | BT17: Arterial | BU17: 2060
B18: Transport | E18: 24 TRA A23 | F18: Upgrades on Waihoehoe Rd east- from project 4 to Drury Hills + Drury Hills Intersection | G18: 2-lane urban - upgrade existing road layout with active modes on both sides, 20m cross-section | K18: Transport - Drury East IPA | Q18: 0.9569224105 | R18: 2060 | S18: 0 | T18: 0 | U18: 0 | V18: 0 | W18: 0 | X18: 140450.9048 | Y18: 0 | Z18: 0 | AA18: 0 | AB18: 0 | AC18: 140450.9048 | AF18: =IFERROR(VLOOKUP(K18,FA_Codes!C:F,2,FALSE),"CHECK") -> TRA A23 | AG18: 140450.9048 | AH18: =IFERROR(VLOOKUP(AF18,FA_Codes!D:F,3,FALSE),"CHECK") -> Local | AI18: 0.0786637931 | AJ18: 0.9213362069 | AK18: 6050.286419 | AL18: 0 | AM18: 0 | AN18: 0 | AO18: 0 | AP18: 0 | AQ18: 10572.46244 | AR18: 0 | AS18: 0 | AT18: 0 | AU18: 0 | AV18: 10572.46244 | AW18: 0 | AX18: 0 | AZ18: 0 | BA18: 0 | BB18: 0 | BC18: 0 | BD18: 0 | BE18: 123828.156 | BF18: 0 | BG18: 0 | BH18: 0 | BI18: 0 | BJ18: 123828.156 | BK18: OK | BL18: Upgrades on Waihoehoe Rd east- from project 4 to Drury Hills + Drury Hills Intersection TRA A23 0.956922410530503 2060 0.0786637931034483 | BM18: 2 | BN18: 134400.6184 | BO18: =IFERROR(VLOOKUP(AF18,FA_Codes!D:H,5,FALSE),"CHECK") -> 0 | BP18: TRA | BQ18: 140450.9048 | BR18: 24 TRA A23 | BS18: 24 | BT18: Arterial | BU18: 2060
B19: Transport | E19: 36a TRA A23 | F19: Bremner-Norrie Road east of SH1 up to GSR (overlap with project 12) | G19: 2-lane urban- upgrade existing road layout with active modes on both sides (Under construction) | K19: Transport - Drury East IPA | Q19: 0.9569224105 | R19: 2060 | S19: 0 | T19: 0 | U19: 0 | V19: 0 | W19: 0 | X19: 0 | Y19: 0 | Z19: 0 | AA19: 0 | AB19: 12178101.97 | AC19: 12178101.97 | AF19: =IFERROR(VLOOKUP(K19,FA_Codes!C:F,2,FALSE),"CHECK") -> TRA A23 | AG19: 12178101.97 | AH19: =IFERROR(VLOOKUP(AF19,FA_Codes!D:F,3,FALSE),"CHECK") -> Local | AI19: 0.0786637931 | AJ19: 0.9213362069 | AK19: 524603.2774 | AL19: 0 | AM19: 0 | AN19: 0 | AO19: 0 | AP19: 0 | AQ19: 0 | AR19: 0 | AS19: 0 | AT19: 0 | AU19: 916708.4105 | AV19: 916708.4105 | AW19: 0 | AX19: 0 | AZ19: 0 | BA19: 0 | BB19: 0 | BC19: 0 | BD19: 0 | BE19: 0 | BF19: 0 | BG19: 0 | BH19: 0 | BI19: 10736790.29 | BJ19: 10736790.29 | BK19: OK | BL19: Bremner-Norrie Road east of SH1 up to GSR (overlap with project 12) TRA A23 0.956922410530503 2060 0.0786637931034483 | BM19: 2 | BN19: 11653498.7 | BO19: =IFERROR(VLOOKUP(AF19,FA_Codes!D:H,5,FALSE),"CHECK") -> 0 | BP19: TRA | BQ19: 12178101.97 | BR19: 36a TRA A23 | BS19: 36a | BT19: Arterial | BU19: 2060
B20: Transport | E20: 46 TRA A23 | F20: Upgrades in GSR/Firth St intersection (overlap with project12) | G20: Possible signals(subject to Auranga assessment) | K20: Transport - Drury East IPA | Q20: 0.9569224105 | R20: 2060 | S20: 0 | T20: 0 | U20: 0 | V20: 0 | W20: 0 | X20: 0 | Y20: 0 | Z20: 0 | AA20: 362573.3739 | AB20: 3602199.431 | AC20: 3964772.805 | AF20: =IFERROR(VLOOKUP(K20,FA_Codes!C:F,2,FALSE),"CHECK") -> TRA A23 | AG20: 3964772.805 | AH20: =IFERROR(VLOOKUP(AF20,FA_Codes!D:F,3,FALSE),"CHECK") -> Local | AI20: 0.0786637931 | AJ20: 0.9213362069 | AK20: 170792.8552 | AL20: 0 | AM20: 0 | AN20: 0 | AO20: 0 | AP20: 0 | AQ20: 0 | AR20: 0 | AS20: 0 | AT20: 27292.76384 | AU20: 271156.0899 | AV20: 298448.8538 | AW20: 0 | AX20: 0 | AZ20: 0 | BA20: 0 | BB20: 0 | BC20: 0 | BD20: 0 | BE20: 0 | BF20: 0 | BG20: 0 | BH20: 319661.8231 | BI20: 3175869.273 | BJ20: 3495531.096 | BK20: OK | BL20: Upgrades in GSR/Firth St intersection (overlap with project12) TRA A23 0.956922410530503 2060 0.0786637931034483 | BM20: 2 | BN20: 3793979.949 | BO20: =IFERROR(VLOOKUP(AF20,FA_Codes!D:H,5,FALSE),"CHECK") -> 0 | BP20: TRA | BQ20: 3964772.805 | BR20: 46 TRA A23 | BS20: 46 | BT20: Arterial | BU20: 2060
B21: Transport | E21: 67 TRA A23 | F21: Active Mode Corridor Drury Central to GSR | G21: 0 | K21: Transport - Drury East IPA | Q21: 0.9569224105 | R21: 2060 | S21: 0 | T21: 0 | U21: 0 | V21: 0 | W21: 0 | X21: 0 | Y21: 0 | Z21: 365228.9046 | AA21: 0 | AB21: 3802772.175 | AC21: 4168001.079 | AF21: =IFERROR(VLOOKUP(K21,FA_Codes!C:F,2,FALSE),"CHECK") -> TRA A23 | AG21: 4168001.079 | AH21: =IFERROR(VLOOKUP(AF21,FA_Codes!D:F,3,FALSE),"CHECK") -> Local | AI21: 0.0786637931 | AJ21: 0.9213362069 | AK21: 179547.4394 | AL21: 0 | AM21: 0 | AN21: 0 | AO21: 0 | AP21: 0 | AQ21: 0 | AR21: 0 | AS21: 27492.65931 | AT21: 0 | AU21: 286254.2326 | AV21: 313746.8919 | AW21: 0 | AX21: 0 | AZ21: 0 | BA21: 0 | BB21: 0 | BC21: 0 | BD21: 0 | BE21: 0 | BF21: 0 | BG21: 322003.0645 | BH21: 0 | BI21: 3352703.683 | BJ21: 3674706.748 | BK21: OK | BL21: Active Mode Corridor Drury Central to GSR TRA A23 0.956922410530503 2060 0.0786637931034483 | BM21: 2 | BN21: 3988453.64 | BO21: =IFERROR(VLOOKUP(AF21,FA_Codes!D:H,5,FALSE),"CHECK") -> 0 | BP21: TRA | BQ21: 4168001.079 | BR21: 67 TRA A23 | BS21: 67 | BT21: Arterial | BU21: 2060
B22: Transport | E22: 70 TRA A23 | F22: walk/cycle bridges on GSR Road bridge over the rail corridor | G22: New cycle bridge 5m wide, 80m long, approach lengths 270m total for both sides. No property required | K22: Transport - Drury East IPA | Q22: 0.9569224105 | R22: 2060 | S22: 0 | T22: 0 | U22: 0 | V22: 0 | W22: 0 | X22: 0 | Y22: 0 | Z22: 0 | AA22: 96255.36943 | AB22: 956745.8645 | AC22: 1053001.234 | AF22: =IFERROR(VLOOKUP(K22,FA_Codes!C:F,2,FALSE),"CHECK") -> TRA A23 | AG22: 1053001.234 | AH22: =IFERROR(VLOOKUP(AF22,FA_Codes!D:F,3,FALSE),"CHECK") -> Local | AI22: 0.0786637931 | AJ22: 0.9213362069 | AK22: 45360.75487 | AL22: 0 | AM22: 0 | AN22: 0 | AO22: 0 | AP22: 0 | AQ22: 0 | AR22: 0 | AS22: 0 | AT22: 7245.637037 | AU22: 72019.18513 | AV22: 79264.82217 | AW22: 0 | AX22: 0 | AZ22: 0 | BA22: 0 | BB22: 0 | BC22: 0 | BD22: 0 | BE22: 0 | BF22: 0 | BG22: 0 | BH22: 84863.2831 | BI22: 843512.3738 | BJ22: 928375.6569 | BK22: OK | BL22: walk/cycle bridges on GSR Road bridge over the rail corridor TRA A23 0.956922410530503 2060 0.0786637931034483 | BM22: 2 | BN22: 1007640.479 | BO22: =IFERROR(VLOOKUP(AF22,FA_Codes!D:H,5,FALSE),"CHECK") -> 0 | BP22: TRA | BQ22: 1053001.234 | BR22: 70 TRA A23 | BS22: 70 | BT22: Arterial | BU22: 2060
B23: Transport | E23: 1b TRA A23 WK subsidy | F23: GSR improvements - Waihoehoe Rd to Drury Interchange | G23: 4-lane urban- existing road layout with active modes on both sides + intersection improvements (TDM) | K23: Transport - Drury East IPA | Q23: 0.9569224105 | R23: 2060 | S23: 0 | T23: 0 | U23: 0 | V23: 0 | W23: 0 | X23: 0 | Y23: 0 | Z23: 0 | AA23: -713318.5952 | AB23: -7086885.09 | AC23: -7800203.685 | AF23: =IFERROR(VLOOKUP(K23,FA_Codes!C:F,2,FALSE),"CHECK") -> TRA A23 | AG23: -7800203.685 | AH23: =IFERROR(VLOOKUP(AF23,FA_Codes!D:F,3,FALSE),"CHECK") -> Local | AI23: 0.0786637931 | AJ23: 0.9213362069 | AK23: -336013.9721 | AL23: 0 | AM23: 0 | AN23: 0 | AO23: 0 | AP23: 0 | AQ23: 0 | AR23: 0 | AS23: 0 | AT23: -53695.16177 | AU23: -533466.3135 | AV23: -587161.4753 | AW23: 0 | AX23: 0 | AZ23: 0 | BA23: 0 | BB23: 0 | BC23: 0 | BD23: 0 | BE23: 0 | BF23: 0 | BG23: 0 | BH23: -628895.3878 | BI23: -6248132.85 | BJ23: -6877028.238 | BK23: OK | BL23: GSR improvements - Waihoehoe Rd to Drury Interchange TRA A23 0.956922410530503 2060 0.0786637931034483 | BM23: 2 | BN23: -7464189.713 | BO23: =IFERROR(VLOOKUP(AF23,FA_Codes!D:H,5,FALSE),"CHECK") -> 0 | BP23: TRA | BQ23: 0 | BR23: 1b TRA A23 | BS23: 1b | BT23: Arterial | BU23: 2060
B24: Transport | E24: 2a TRA A23 WK subsidy | F24: GSR improvements - From Drury School to Waihoehoe Rd | G24: 2-lane urban- existing road layout with active modes on both sides + intersection improvements (TDM) | K24: Transport - Drury East IPA | Q24: 0.9569224105 | R24: 2060 | S24: 0 | T24: 0 | U24: 0 | V24: 0 | W24: 0 | X24: 0 | Y24: 0 | Z24: -434039.8665 | AA24: -4312225.532 | AB24: 0 | AC24: -4746265.398 | AF24: =IFERROR(VLOOKUP(K24,FA_Codes!C:F,2,FALSE),"CHECK") -> TRA A23 | AG24: -4746265.398 | AH24: =IFERROR(VLOOKUP(AF24,FA_Codes!D:F,3,FALSE),"CHECK") -> Local | AI24: 0.0786637931 | AJ24: 0.9213362069 | AK24: -204457.6723 | AL24: 0 | AM24: 0 | AN24: 0 | AO24: 0 | AP24: 0 | AQ24: 0 | AR24: 0 | AS24: -32672.41454 | AT24: -324603.4087 | AU24: 0 | AV24: -357275.8233 | AW24: 0 | AX24: 0 | AZ24: 0 | BA24: 0 | BB24: 0 | BC24: 0 | BD24: 0 | BE24: 0 | BF24: 0 | BG24: -382670.0607 | BH24: -3801861.842 | BI24: 0 | BJ24: -4184531.902 | BK24: OK | BL24: GSR improvements - From Drury School to Waihoehoe Rd TRA A23 0.956922410530503 2060 0.0786637931034483 | BM24: 2 | BN24: -4541807.726 | BO24: =IFERROR(VLOOKUP(AF24,FA_Codes!D:H,5,FALSE),"CHECK") -> 0 | BP24: TRA | BQ24: 0 | BR24: 2a TRA A23 | BS24: 2a | BT24: Arterial | BU24: 2060
B25: Transport | E25: 4b TRA A23 WK subsidy | F25: Waihoehoe Rd East upgrades- from Fitzgerald Rd to before Cossey Rd (development boundary) | G25: Expand to 24m cross section | K25: Transport - Drury East IPA | Q25: 0.9569224105 | R25: 2060 | S25: 0 | T25: 0 | U25: -9745.944574 | V25: 0 | W25: 0 | X25: -1029343.539 | Y25: -293984.2745 | Z25: -3205607.649 | AA25: 0 | AB25: 0 | AC25: -4538681.406 | AF25: =IFERROR(VLOOKUP(K25,FA_Codes!C:F,2,FALSE),"CHECK") -> TRA A23 | AG25: -4538681.406 | AH25: =IFERROR(VLOOKUP(AF25,FA_Codes!D:F,3,FALSE),"CHECK") -> Local | AI25: 0.0786637931 | AJ25: 0.9213362069 | AK25: -195515.4544 | AL25: 0 | AM25: 0 | AN25: -733.6274057 | AO25: 0 | AP25: 0 | AQ25: -77483.98568 | AR25: -22129.70934 | AS25: -241302.5854 | AT25: 0 | AU25: 0 | AV25: -341649.9079 | AW25: 0 | AX25: 0 | AZ25: 0 | BA25: 0 | BB25: -8592.485369 | BC25: 0 | BD25: 0 | BE25: -907517.9145 | BF25: -259190.4313 | BG25: -2826215.213 | BH25: 0 | BI25: 0 | BJ25: -4001516.044 | BK25: OK | BL25: Waihoehoe Rd East upgrades- from Fitzgerald Rd to before Cossey Rd (development boundary) TRA A23 0.956922410530503 2060 0.0786637931034483 | BM25: 2 | BN25: -4343165.952 | BO25: =IFERROR(VLOOKUP(AF25,FA_Codes!D:H,5,FALSE),"CHECK") -> 0 | BP25: TRA | BQ25: 0 | BR25: 4b TRA A23 | BS25: 4b | BT25: Arterial | BU25: 2060
B26: Transport | E26: 9b TRA A23 WK subsidy | F26: Upgrade in Norrie Rd/GSR/Waihoehoe intersection | G26: multi-lane signalised intersection with active mode crossings, SGA design | K26: Transport - Drury East IPA | Q26: 0.9569224105 | R26: 2060 | S26: 0 | T26: 0 | U26: 0 | V26: 0 | W26: 0 | X26: 0 | Y26: 0 | Z26: -274750.9879 | AA26: -340752.45 | AB26: -3443969.22 | AC26: -4059472.658 | AF26: =IFERROR(VLOOKUP(K26,FA_Codes!C:F,2,FALSE),"CHECK") -> TRA A23 | AG26: -4059472.658 | AH26: =IFERROR(VLOOKUP(AF26,FA_Codes!D:F,3,FALSE),"CHECK") -> Local | AI26: 0.0786637931 | AJ26: 0.9213362069 | AK26: -174872.2966 | AL26: 0 | AM26: 0 | AN26: 0 | AO26: 0 | AP26: 0 | AQ26: 0 | AR26: 0 | AS26: -20681.92087 | AT26: -25650.1906 | AU26: -259245.2877 | AV26: -305577.3991 | AW26: 0 | AX26: 0 | AZ26: 0 | BA26: 0 | BB26: 0 | BC26: 0 | BD26: 0 | BE26: 0 | BF26: 0 | BG26: -242233.4567 | BH26: -300423.4653 | BI26: -3036366.041 | BJ26: -3579022.963 | BK26: OK | BL26: Upgrade in Norrie Rd/GSR/Waihoehoe intersection TRA A23 0.956922410530503 2060 0.0786637931034483 | BM26: 2 | BN26: -3884600.362 | BO26: =IFERROR(VLOOKUP(AF26,FA_Codes!D:H,5,FALSE),"CHECK") -> 0 | BP26: TRA | BQ26: 0 | BR26: 9b TRA A23 | BS26: 9b | BT26: Arterial | BU26: 2060
B27: Transport | E27: 10b TRA A23 WK subsidy | F27: New intersection on Waihoehoe Rd/Fitzgerald Rd( including approach cross-sections) | G27: multi-lane roundabout with active mode crossings, SGA design | K27: Transport - Drury East IPA | Q27: 0.9569224105 | R27: 2060 | S27: 0 | T27: 0 | U27: 0 | V27: 0 | W27: 0 | X27: 0 | Y27: 0 | Z27: -396437.0841 | AA27: -308187.3678 | AB27: -3111823.601 | AC27: -3816448.052 | AF27: =IFERROR(VLOOKUP(K27,FA_Codes!C:F,2,FALSE),"CHECK") -> TRA A23 | AG27: -3816448.052 | AH27: =IFERROR(VLOOKUP(AF27,FA_Codes!D:F,3,FALSE),"CHECK") -> Local | AI27: 0.0786637931 | AJ27: 0.9213362069 | AK27: -164403.3824 | AL27: 0 | AM27: 0 | AN27: 0 | AO27: 0 | AP27: 0 | AQ27: 0 | AR27: 0 | AS27: -29841.85959 | AT27: -23198.84927 | AU27: -234242.9775 | AV27: -287283.6863 | AW27: 0 | AX27: 0 | AZ27: 0 | BA27: 0 | BB27: 0 | BC27: 0 | BD27: 0 | BE27: 0 | BF27: 0 | BG27: -349517.6705 | BH27: -271712.5496 | BI27: -2743530.764 | BJ27: -3364760.984 | BK27: OK | BL27: New intersection on Waihoehoe Rd/Fitzgerald Rd( including approach cross-sections) TRA A23 0.956922410530503 2060 0.0786637931034483 | BM27: 2 | BN27: -3652044.67 | BO27: =IFERROR(VLOOKUP(AF27,FA_Codes!D:H,5,FALSE),"CHECK") -> 0 | BP27: TRA | BQ27: 0 | BR27: 10b TRA A23 | BS27: 10b | BT27: Arterial | BU27: 2060
B28: Transport | E28: 11 TRA A23 WK subsidy | F28: Intersection upgrade Waihoehoe Rd/Fielding Rd/Appleby Rd | G28: Roundabout as per SGA design | K28: Transport - Drury East IPA | Q28: 0.9569224105 | R28: 2060 | S28: 0 | T28: 0 | U28: 0 | V28: 0 | W28: 0 | X28: -38910.68352 | Y28: 0 | Z28: -77552.91102 | AA28: -39624.09015 | AB28: -393668.9378 | AC28: -549756.6225 | AF28: =IFERROR(VLOOKUP(K28,FA_Codes!C:F,2,FALSE),"CHECK") -> TRA A23 | AG28: -549756.6225 | AH28: =IFERROR(VLOOKUP(AF28,FA_Codes!D:F,3,FALSE),"CHECK") -> Local | AI28: 0.0786637931 | AJ28: 0.9213362069 | AK28: -23682.19009 | AL28: 0 | AM28: 0 | AN28: 0 | AO28: 0 | AP28: 0 | AQ28: -2929.007403 | AR28: 0 | AS28: -5837.80674 | AT28: -2982.709191 | AU28: -29633.48697 | AV28: -41383.01031 | AW28: 0 | AX28: 0 | AZ28: 0 | BA28: 0 | BB28: 0 | BC28: 0 | BD28: 0 | BE28: -34305.49766 | BF28: 0 | BG28: -68374.31181 | BH28: -34934.47067 | BI28: -347077.1419 | BJ28: -484691.4221 | BK28: OK | BL28: Intersection upgrade Waihoehoe Rd/Fielding Rd/Appleby Rd TRA A23 0.956922410530503 2060 0.0786637931034483 | BM28: 2 | BN28: -526074.4324 | BO28: =IFERROR(VLOOKUP(AF28,FA_Codes!D:H,5,FALSE),"CHECK") -> 0 | BP28: TRA | BQ28: 0 | BR28: 11 TRA A23 | BS28: 11 | BT28: Arterial | BU28: 2060
B29: Transport | E29: 13a TRA A23 WK subsidy | F29: N-S Opaheke Arterial across development (up to Waihoehoe Stream) | G29: 2-lane urban- new 2-lane arterial with active modes on both sides + intersection improvements (TDM) | K29: Transport - Drury East IPA | Q29: 0.9569224105 | R29: 2060 | S29: 0 | T29: 0 | U29: -149895.7243 | V29: 0 | W29: 0 | X29: -557640.1368 | Y29: 0 | Z29: 0 | AA29: 0 | AB29: 0 | AC29: -707535.8611 | AF29: =IFERROR(VLOOKUP(K29,FA_Codes!C:F,2,FALSE),"CHECK") -> TRA A23 | AG29: -707535.8611 | AH29: =IFERROR(VLOOKUP(AF29,FA_Codes!D:F,3,FALSE),"CHECK") -> Local | AI29: 0.0786637931 | AJ29: 0.9213362069 | AK29: -30478.93936 | AL29: 0 | AM29: 0 | AN29: -11283.42261 | AO29: 0 | AP29: 0 | AQ29: -41976.443 | AR29: 0 | AS29: 0 | AT29: 0 | AU29: 0 | AV29: -53259.86561 | AW29: 0 | AX29: 0 | AZ29: 0 | BA29: 0 | BB29: -132155.1552 | BC29: 0 | BD29: 0 | BE29: -491641.9009 | BF29: 0 | BG29: 0 | BH29: 0 | BI29: 0 | BJ29: -623797.0561 | BK29: OK | BL29: N-S Opaheke Arterial across development (up to Waihoehoe Stream) TRA A23 0.956922410530503 2060 0.0786637931034483 | BM29: 2 | BN29: -677056.9218 | BO29: =IFERROR(VLOOKUP(AF29,FA_Codes!D:H,5,FALSE),"CHECK") -> 0 | BP29: TRA | BQ29: 0 | BR29: 13a TRA A23 | BS29: 13a | BT29: Arterial | BU29: 2060
B30: Transport | E30: 23b TRA A23 WK subsidy | F30: Waihoehoe Rd West upgrades- between GSR & Kath Henry Lane | G30: Final 4-lane - following interim option, upgrade Road corridor to provide four lanes with additional turning lanes at intersections where required (as indicated in SGA Design | K30: Transport - Drury East IPA | Q30: 0.9569224105 | R30: 2060 | S30: 0 | T30: -479070.4069 | U30: 0 | V30: 0 | W30: 0 | X30: 0 | Y30: 0 | Z30: -4715546.613 | AA30: -1395273.569 | AB30: -13967995.81 | AC30: -20557886.4 | AF30: =IFERROR(VLOOKUP(K30,FA_Codes!C:F,2,FALSE),"CHECK") -> TRA A23 | AG30: -20557886.4 | AH30: =IFERROR(VLOOKUP(AF30,FA_Codes!D:F,3,FALSE),"CHECK") -> Local | AI30: 0.0786637931 | AJ30: 0.9213362069 | AK30: -885584.1907 | AL30: 0 | AM30: -36062.09507 | AN30: 0 | AO30: 0 | AP30: 0 | AQ30: 0 | AR30: 0 | AS30: -354963.4622 | AT30: -105029.4224 | AU30: -1051442.931 | AV30: -1547497.911 | AW30: 0 | AX30: 0 | AZ30: 0 | BA30: -422371.1135 | BB30: 0 | BC30: 0 | BD30: 0 | BE30: 0 | BF30: 0 | BG30: -4157448.769 | BH30: -1230139.125 | BI30: -12314845.29 | BJ30: -18124804.3 | BK30: OK | BL30: Waihoehoe Rd West upgrades- between GSR & Kath Henry Lane TRA A23 0.956922410530503 2060 0.0786637931034483 | BM30: 2 | BN30: -19672302.21 | BO30: =IFERROR(VLOOKUP(AF30,FA_Codes!D:H,5,FALSE),"CHECK") -> 0 | BP30: TRA | BQ30: 0 | BR30: 23b TRA A23 | BS30: 23b | BT30: Arterial | BU30: 2060
B31: Transport | E31: 23d TRA A23 WK subsidy | F31: Waihoehoe Rd West upgrades- between Kath Henry Lane and Fitzgerald Rd | G31: Final 4-lane - following interim option, upgrade Road corridor to provide four lanes with additional turning lanes at intersections where required (as indicated in SGA Design | K31: Transport - Drury East IPA | Q31: 0.9569224105 | R31: 2060 | S31: 0 | T31: 0 | U31: 0 | V31: 0 | W31: 0 | X31: -15592.7199 | Y31: 0 | Z31: -817158.062 | AA31: -265117.4963 | AB31: -2769738.77 | AC31: -3867607.048 | AF31: =IFERROR(VLOOKUP(K31,FA_Codes!C:F,2,FALSE),"CHECK") -> TRA A23 | AG31: -3867607.048 | AH31: =IFERROR(VLOOKUP(AF31,FA_Codes!D:F,3,FALSE),"CHECK") -> Local | AI31: 0.0786637931 | AJ31: 0.9213362069 | AK31: -166607.1886 | AL31: 0 | AM31: 0 | AN31: 0 | AO31: 0 | AP31: 0 | AQ31: -1173.744275 | AR31: 0 | AS31: -61511.69284 | AT31: -19956.75838 | AU31: -208492.4917 | AV31: -291134.6872 | AW31: 0 | AX31: 0 | AZ31: 0 | BA31: 0 | BB31: 0 | BC31: 0 | BD31: 0 | BE31: -13747.27884 | BF31: 0 | BG31: -720445.1696 | BH31: -233740.1153 | BI31: -2441932.608 | BJ31: -3409865.172 | BK31: OK | BL31: Waihoehoe Rd West upgrades- between Kath Henry Lane and Fitzgerald Rd TRA A23 0.956922410530503 2060 0.0786637931034483 | BM31: 2 | BN31: -3700999.859 | BO31: =IFERROR(VLOOKUP(AF31,FA_Codes!D:H,5,FALSE),"CHECK") -> 0 | BP31: TRA | BQ31: 0 | BR31: 23d TRA A23 | BS31: 23d | BT31: Arterial | BU31: 2060
B32: Transport | E32: 24 TRA A23 WK subsidy | F32: Upgrades on Waihoehoe Rd east- from project 4 to Drury Hills + Drury Hills Intersection | G32: 2-lane urban - upgrade existing road layout with active modes on both sides, 20m cross-section | K32: Transport - Drury East IPA | Q32: 0.9569224105 | R32: 2060 | S32: 0 | T32: 0 | U32: 0 | V32: 0 | W32: 0 | X32: -71629.96146 | Y32: 0 | Z32: 0 | AA32: 0 | AB32: 0 | AC32: -71629.96146 | AF32: =IFERROR(VLOOKUP(K32,FA_Codes!C:F,2,FALSE),"CHECK") -> TRA A23 | AG32: -71629.96146 | AH32: =IFERROR(VLOOKUP(AF32,FA_Codes!D:F,3,FALSE),"CHECK") -> Local | AI32: 0.0786637931 | AJ32: 0.9213362069 | AK32: -3085.646073 | AL32: 0 | AM32: 0 | AN32: 0 | AO32: 0 | AP32: 0 | AQ32: -5391.955844 | AR32: 0 | AS32: 0 | AT32: 0 | AU32: 0 | AV32: -5391.955844 | AW32: 0 | AX32: 0 | AZ32: 0 | BA32: 0 | BB32: 0 | BC32: 0 | BD32: 0 | BE32: -63152.35954 | BF32: 0 | BG32: 0 | BH32: 0 | BI32: 0 | BJ32: -63152.35954 | BK32: OK | BL32: Upgrades on Waihoehoe Rd east- from project 4 to Drury Hills + Drury Hills Intersection TRA A23 0.956922410530503 2060 0.0786637931034483 | BM32: 2 | BN32: -68544.31539 | BO32: =IFERROR(VLOOKUP(AF32,FA_Codes!D:H,5,FALSE),"CHECK") -> 0 | BP32: TRA | BQ32: 0 | BR32: 24 TRA A23 | BS32: 24 | BT32: Arterial | BU32: 2060
B33: Transport | E33: 36a TRA A23 WK subsidy | F33: Bremner-Norrie Road east of SH1 up to GSR (overlap with project 12) | G33: 2-lane urban- upgrade existing road layout with active modes on both sides (Under construction) | K33: Transport - Drury East IPA | Q33: 0.9569224105 | R33: 2060 | S33: 0 | T33: 0 | U33: 0 | V33: 0 | W33: 0 | X33: 0 | Y33: 0 | Z33: 0 | AA33: 0 | AB33: -6210832.007 | AC33: -6210832.007 | AF33: =IFERROR(VLOOKUP(K33,FA_Codes!C:F,2,FALSE),"CHECK") -> TRA A23 | AG33: -6210832.007 | AH33: =IFERROR(VLOOKUP(AF33,FA_Codes!D:F,3,FALSE),"CHECK") -> Local | AI33: 0.0786637931 | AJ33: 0.9213362069 | AK33: -267547.6715 | AL33: 0 | AM33: 0 | AN33: 0 | AO33: 0 | AP33: 0 | AQ33: 0 | AR33: 0 | AS33: 0 | AT33: 0 | AU33: -467521.2893 | AV33: -467521.2893 | AW33: 0 | AX33: 0 | AZ33: 0 | BA33: 0 | BB33: 0 | BC33: 0 | BD33: 0 | BE33: 0 | BF33: 0 | BG33: 0 | BH33: 0 | BI33: -5475763.046 | BJ33: -5475763.046 | BK33: OK | BL33: Bremner-Norrie Road east of SH1 up to GSR (overlap with project 12) TRA A23 0.956922410530503 2060 0.0786637931034483 | BM33: 2 | BN33: -5943284.336 | BO33: =IFERROR(VLOOKUP(AF33,FA_Codes!D:H,5,FALSE),"CHECK") -> 0 | BP33: TRA | BQ33: 0 | BR33: 36a TRA A23 | BS33: 36a | BT33: Arterial | BU33: 2060
B34: Transport | E34: 46 TRA A23 WK subsidy | F34: Upgrades in GSR/Firth St intersection (overlap with project12) | G34: Possible signals(subject to Auranga assessment) | K34: Transport - Drury East IPA | Q34: 0.9569224105 | R34: 2060 | S34: 0 | T34: 0 | U34: 0 | V34: 0 | W34: 0 | X34: 0 | Y34: 0 | Z34: 0 | AA34: -184912.4207 | AB34: -1837121.71 | AC34: -2022034.13 | AF34: =IFERROR(VLOOKUP(K34,FA_Codes!C:F,2,FALSE),"CHECK") -> TRA A23 | AG34: -2022034.13 | AH34: =IFERROR(VLOOKUP(AF34,FA_Codes!D:F,3,FALSE),"CHECK") -> Local | AI34: 0.0786637931 | AJ34: 0.9213362069 | AK34: -87104.35616 | AL34: 0 | AM34: 0 | AN34: 0 | AO34: 0 | AP34: 0 | AQ34: 0 | AR34: 0 | AS34: 0 | AT34: -13919.30956 | AU34: -138289.6059 | AV34: -152208.9154 | AW34: 0 | AX34: 0 | AZ34: 0 | BA34: 0 | BB34: 0 | BC34: 0 | BD34: 0 | BE34: 0 | BF34: 0 | BG34: 0 | BH34: -163027.5298 | BI34: -1619693.329 | BJ34: -1782720.859 | BK34: OK | BL34: Upgrades in GSR/Firth St intersection (overlap with project12) TRA A23 0.956922410530503 2060 0.0786637931034483 | BM34: 2 | BN34: -1934929.774 | BO34: =IFERROR(VLOOKUP(AF34,FA_Codes!D:H,5,FALSE),"CHECK") -> 0 | BP34: TRA | BQ34: 0 | BR34: 46 TRA A23 | BS34: 46 | BT34: Arterial | BU34: 2060
B35: Transport | E35: 67 TRA A23 WK subsidy | F35: Active Mode Corridor Drury Central to GSR | G35: 0 | K35: Transport - Drury East IPA | Q35: 0.9569224105 | R35: 2060 | S35: 0 | T35: 0 | U35: 0 | V35: 0 | W35: 0 | X35: 0 | Y35: 0 | Z35: -186266.7413 | AA35: 0 | AB35: -1939413.809 | AC35: -2125680.55 | AF35: =IFERROR(VLOOKUP(K35,FA_Codes!C:F,2,FALSE),"CHECK") -> TRA A23 | AG35: -2125680.55 | AH35: =IFERROR(VLOOKUP(AF35,FA_Codes!D:F,3,FALSE),"CHECK") -> Local | AI35: 0.0786637931 | AJ35: 0.9213362069 | AK35: -91569.1941 | AL35: 0 | AM35: 0 | AN35: 0 | AO35: 0 | AP35: 0 | AQ35: 0 | AR35: 0 | AS35: -14021.25625 | AT35: 0 | AU35: -145989.6586 | AV35: -160010.9149 | AW35: 0 | AX35: 0 | AZ35: 0 | BA35: 0 | BB35: 0 | BC35: 0 | BD35: 0 | BE35: 0 | BF35: 0 | BG35: -164221.5629 | BH35: 0 | BI35: -1709878.879 | BJ35: -1874100.441 | BK35: OK | BL35: Active Mode Corridor Drury Central to GSR TRA A23 0.956922410530503 2060 0.0786637931034483 | BM35: 2 | BN35: -2034111.356 | BO35: =IFERROR(VLOOKUP(AF35,FA_Codes!D:H,5,FALSE),"CHECK") -> 0 | BP35: TRA | BQ35: 0 | BR35: 67 TRA A23 | BS35: 67 | BT35: Arterial | BU35: 2060
B36: Transport | E36: 70 TRA A23 WK subsidy | F36: walk/cycle bridges on GSR Road bridge over the rail corridor | G36: New cycle bridge 5m wide, 80m long, approach lengths 270m total for both sides. No property required | K36: Transport - Drury East IPA | Q36: 0.9569224105 | R36: 2060 | S36: 0 | T36: 0 | U36: 0 | V36: 0 | W36: 0 | X36: 0 | Y36: 0 | Z36: 0 | AA36: -49090.23841 | AB36: -487940.3909 | AC36: -537030.6293 | AF36: =IFERROR(VLOOKUP(K36,FA_Codes!C:F,2,FALSE),"CHECK") -> TRA A23 | AG36: -537030.6293 | AH36: =IFERROR(VLOOKUP(AF36,FA_Codes!D:F,3,FALSE),"CHECK") -> Local | AI36: 0.0786637931 | AJ36: 0.9213362069 | AK36: -23133.98498 | AL36: 0 | AM36: 0 | AN36: 0 | AO36: 0 | AP36: 0 | AQ36: 0 | AR36: 0 | AS36: 0 | AT36: -3695.274889 | AU36: -36729.78442 | AV36: -40425.05931 | AW36: 0 | AX36: 0 | AZ36: 0 | BA36: 0 | BB36: 0 | BC36: 0 | BD36: 0 | BE36: 0 | BF36: 0 | BG36: 0 | BH36: -43280.27438 | BI36: -430191.3106 | BJ36: -473471.585 | BK36: OK | BL36: walk/cycle bridges on GSR Road bridge over the rail corridor TRA A23 0.956922410530503 2060 0.0786637931034483 | BM36: 2 | BN36: -513896.6443 | BO36: =IFERROR(VLOOKUP(AF36,FA_Codes!D:H,5,FALSE),"CHECK") -> 0 | BP36: TRA | BQ36: 0 | BR36: 70 TRA A23 | BS36: 70 | BT36: Arterial | BU36: 2060
B37: Transport | E37: 14a TRA A24 | F37: Western end of Brookefield Road Extension tie in with Quarry Rd | G37: 2-lane urban (New Road connection to Quarry Road with active modes on both sides + intersection improvements) | K37: Transport - Drury West 1 IPA | Q37: 0.9160560106 | R37: 2060 | S37: 0 | T37: 0 | U37: 0 | V37: 0 | W37: 0 | X37: 0 | Y37: 0 | Z37: 0 | AA37: 0 | AB37: 451984.2627 | AC37: 451984.2627 | AF37: =IFERROR(VLOOKUP(K37,FA_Codes!C:F,2,FALSE),"CHECK") -> TRA A24 | AG37: 451984.2627 | AH37: =IFERROR(VLOOKUP(AF37,FA_Codes!D:F,3,FALSE),"CHECK") -> Local | AI37: 0.3181601903 | AJ37: 0.6818398097 | AK37: 37941.36218 | AL37: 0 | AM37: 0 | AN37: 0 | AO37: 0 | AP37: 0 | AQ37: 0 | AR37: 0 | AS37: 0 | AT37: 0 | AU37: 131731.968 | AV37: 131731.968 | AW37: 0 | AX37: 0 | AZ37: 0 | BA37: 0 | BB37: 0 | BC37: 0 | BD37: 0 | BE37: 0 | BF37: 0 | BG37: 0 | BH37: 0 | BI37: 282310.9325 | BJ37: 282310.9325 | BK37: OK | BL37: Western end of Brookefield Road Extension tie in with Quarry Rd TRA A24 0.916056010564664 2060 0.318160190325139 | BM37: 1 | BN37: 414042.9006 | BO37: =IFERROR(VLOOKUP(AF37,FA_Codes!D:H,5,FALSE),"CHECK") -> 0 | BP37: TRA | BQ37: 451984.2627 | BR37: 14a TRA A24 | BS37: 14a | BT37: Collector | BU37: 2060
B38: Transport | E38: 1b TRA A24 | F38: GSR improvements - Waihoehoe Rd to Drury Interchange | G38: 4-lane urban- existing road layout with active modes on both sides + intersection improvements (TDM) | K38: Transport - Drury West 1 IPA | Q38: 0.9160560106 | R38: 2060 | S38: 0 | T38: 0 | U38: 0 | V38: 0 | W38: 0 | X38: 0 | Y38: 0 | Z38: 0 | AA38: 182434.4233 | AB38: 1812502.581 | AC38: 1994937.004 | AF38: =IFERROR(VLOOKUP(K38,FA_Codes!C:F,2,FALSE),"CHECK") -> TRA A24 | AG38: 1994937.004 | AH38: =IFERROR(VLOOKUP(AF38,FA_Codes!D:F,3,FALSE),"CHECK") -> Local | AI38: 0.3181601903 | AJ38: 0.6818398097 | AK38: 167462.9708 | AL38: 0 | AM38: 0 | AN38: 0 | AO38: 0 | AP38: 0 | AQ38: 0 | AR38: 0 | AS38: 0 | AT38: 53170.97874 | AU38: 528258.5075 | AV38: 581429.4862 | AW38: 0 | AX38: 0 | AZ38: 0 | BA38: 0 | BB38: 0 | BC38: 0 | BD38: 0 | BE38: 0 | BF38: 0 | BG38: 0 | BH38: 113949.1713 | BI38: 1132095.376 | BJ38: 1246044.547 | BK38: OK | BL38: GSR improvements - Waihoehoe Rd to Drury Interchange TRA A24 0.916056010564664 2060 0.318160190325139 | BM38: 2 | BN38: 1827474.033 | BO38: =IFERROR(VLOOKUP(AF38,FA_Codes!D:H,5,FALSE),"CHECK") -> 0 | BP38: TRA | BQ38: 1994937.004 | BR38: 1b TRA A24 | BS38: 1b | BT38: Arterial | BU38: 2060
B39: Transport | E39: 2a TRA A24 | F39: GSR improvements - From Drury School to Waihoehoe Rd | G39: 2-lane urban- existing road layout with active modes on both sides + intersection improvements (TDM) | K39: Transport - Drury West 1 IPA | Q39: 0.9160560106 | R39: 2060 | S39: 0 | T39: 0 | U39: 0 | V39: 0 | W39: 0 | X39: 0 | Y39: 0 | Z39: 222015.277 | AA39: 2205741.96 | AB39: 0 | AC39: 2427757.237 | AF39: =IFERROR(VLOOKUP(K39,FA_Codes!C:F,2,FALSE),"CHECK") -> TRA A24 | AG39: 2427757.237 | AH39: =IFERROR(VLOOKUP(AF39,FA_Codes!D:F,3,FALSE),"CHECK") -> Local | AI39: 0.3181601903 | AJ39: 0.6818398097 | AK39: 203795.6278 | AL39: 0 | AM39: 0 | AN39: 0 | AO39: 0 | AP39: 0 | AQ39: 0 | AR39: 0 | AS39: 64706.91965 | AT39: 642869.1292 | AU39: 0 | AV39: 707576.0488 | AW39: 0 | AX39: 0 | AZ39: 0 | BA39: 0 | BB39: 0 | BC39: 0 | BD39: 0 | BE39: 0 | BF39: 0 | BG39: 138671.5093 | BH39: 1377714.051 | BI39: 0 | BJ39: 1516385.56 | BK39: OK | BL39: GSR improvements - From Drury School to Waihoehoe Rd TRA A24 0.916056010564664 2060 0.318160190325139 | BM39: 2 | BN39: 2223961.609 | BO39: =IFERROR(VLOOKUP(AF39,FA_Codes!D:H,5,FALSE),"CHECK") -> 0 | BP39: TRA | BQ39: 2427757.237 | BR39: 2a TRA A24 | BS39: 2a | BT39: Arterial | BU39: 2060
B40: Transport | E40: 9b TRA A24 | F40: Upgrade in Norrie Rd/GSR/Waihoehoe intersection | G40: multi-lane signalised intersection with active mode crossings, SGA design | K40: Transport - Drury West 1 IPA | Q40: 0.9160560106 | R40: 2060 | S40: 0 | T40: 0 | U40: 0 | V40: 0 | W40: 0 | X40: 0 | Y40: 0 | Z40: 64647.29127 | AA40: 80177.04707 | AB40: 810345.6989 | AC40: 955170.0373 | AF40: =IFERROR(VLOOKUP(K40,FA_Codes!C:F,2,FALSE),"CHECK") -> TRA A24 | AG40: =AC40-AD40 -> 955170.0373 | AH40: =IFERROR(VLOOKUP(AF40,FA_Codes!D:F,3,FALSE),"CHECK") -> Local | AI40: 0.3181601903 | AJ40: 0.6818398097 | AK40: =AG40*(1-Q40) -> 80180.78352 | AL40: =S40*$Q40*$AI40*(1-$AX40) -> 0 | AM40: =T40*$Q40*$AI40*(1-$AX40) -> 0 | AN40: =U40*$Q40*$AI40*(1-$AX40) -> 0 | AO40: =V40*$Q40*$AI40*(1-$AX40) -> 0 | AP40: =W40*$Q40*$AI40*(1-$AX40) -> 0 | AQ40: =X40*$Q40*$AI40*(1-$AX40) -> 0 | AR40: =Y40*$Q40*$AI40*(1-$AX40) -> 0 | AS40: =Z40*$Q40*$AI40*(1-$AX40) -> 18841.61819 | AT40: =AA40*$Q40*$AI40*(1-$AX40) -> 23367.80519 | AU40: =AB40*$Q40*$AI40*(1-$AX40) -> 236177.3241 | AV40: 278386.7475 | AW40: =AD40 -> 0 | AX40: =IFERROR(AW40/AC40,0) -> 0 | AZ40: =S40*$Q40*$AJ40*(1-$AX40) -> 0 | BA40: =T40*$Q40*$AJ40*(1-$AX40) -> 0 | BB40: =U40*$Q40*$AJ40*(1-$AX40) -> 0 | BC40: =V40*$Q40*$AJ40*(1-$AX40) -> 0 | BD40: =W40*$Q40*$AJ40*(1-$AX40) -> 0 | BE40: =X40*$Q40*$AJ40*(1-$AX40) -> 0 | BF40: =Y40*$Q40*$AJ40*(1-$AX40) -> 0 | BG40: =Z40*$Q40*$AJ40*(1-$AX40) -> 40378.92154 | BH40: =AA40*$Q40*$AJ40*(1-$AX40) -> 50078.86068 | BI40: =AB40*$Q40*$AJ40*(1-$AX40) -> 506144.724 | BJ40: 596602.5062 | BK40: OK | BL40: =IF($Q40=0,"",F40&" "&AF40&" "&Q40&" "&R40&" "&AI40) -> Upgrade in Norrie Rd/GSR/Waihoehoe intersection TRA A24 0.916056010564664 2060 0.318160190325139 | BM40: =COUNTIF($BL$8:$BL$149,BL40) -> 2 | BN40: 874989.2538 | BO40: =IFERROR(VLOOKUP(AF40,FA_Codes!D:H,5,FALSE),"CHECK") -> 0 | BP40: =TRIM(LEFT(AF40,3)) -> TRA | BQ40: =IF(AC40>0,+AC40,0) -> 955170.0373 | BR40: =IF(RIGHT(E40,11)=" WK subsidy",LEFT(E40,LEN(E40)-11),E40) -> 9b TRA A24 | BS40: 9b | BT40: Arterial | BU40: =+R40 -> 2060
B41: Transport | E41: 23b TRA A24 | F41: Waihoehoe Rd West upgrades- between GSR & Kath Henry Lane | G41: Final 4-lane - following interim option, upgrade Road corridor to provide four lanes with additional turning lanes at intersections where required (as indicated in SGA Design | K41: Transport - Drury West 1 IPA | Q41: 0.9160560106 | R41: 2060 | S41: 0 | T41: 34790.87922 | U41: 0 | V41: 0 | W41: 0 | X41: 0 | Y41: 0 | Z41: 342450.7344 | AA41: 101327.0566 | AB41: 1014378.781 | AC41: 1492947.451 | AF41: =IFERROR(VLOOKUP(K41,FA_Codes!C:F,2,FALSE),"CHECK") -> TRA A24 | AG41: 1492947.451 | AH41: =IFERROR(VLOOKUP(AF41,FA_Codes!D:F,3,FALSE),"CHECK") -> Local | AI41: 0.3181601903 | AJ41: 0.6818398097 | AK41: 125323.9651 | AL41: 0 | AM41: 10139.89063 | AN41: 0 | AO41: 0 | AP41: 0 | AQ41: 0 | AR41: 0 | AS41: 99808.14139 | AT41: 29532.0295 | AU41: 295643.2871 | AV41: 435123.3486 | AW41: 0 | AX41: 0 | AZ41: 0 | BA41: 21730.5034 | BB41: 0 | BC41: 0 | BD41: 0 | BE41: 0 | BF41: 0 | BG41: 213895.9122 | BH41: 63289.22972 | BI41: 633584.492 | BJ41: 932500.1373 | BK41: OK | BL41: Waihoehoe Rd West upgrades- between GSR & Kath Henry Lane TRA A24 0.916056010564664 2060 0.318160190325139 | BM41: 2 | BN41: 1367623.486 | BO41: =IFERROR(VLOOKUP(AF41,FA_Codes!D:H,5,FALSE),"CHECK") -> 0 | BP41: TRA | BQ41: 1492947.451 | BR41: 23b TRA A24 | BS41: 23b | BT41: Arterial | BU41: 2060
B42: Transport | E42: 23d TRA A24 | F42: Waihoehoe Rd West upgrades- between Kath Henry Lane and Fitzgerald Rd | G42: Final 4-lane - following interim option, upgrade Road corridor to provide four lanes with additional turning lanes at intersections where required (as indicated in SGA Design | K42: Transport - Drury West 1 IPA | Q42: 0.9160560106 | R42: 2060 | S42: 0 | T42: 0 | U42: 0 | V42: 0 | W42: 0 | X42: 1132.368911 | Y42: 0 | Z42: 59343.35962 | AA42: 19253.26771 | AB42: 201142.9753 | AC42: 280871.9715 | AF42: =IFERROR(VLOOKUP(K42,FA_Codes!C:F,2,FALSE),"CHECK") -> TRA A24 | AG42: 280871.9715 | AH42: =IFERROR(VLOOKUP(AF42,FA_Codes!D:F,3,FALSE),"CHECK") -> Local | AI42: 0.3181601903 | AJ42: 0.6818398097 | AK42: 23577.51381 | AL42: 0 | AM42: 0 | AN42: 0 | AO42: 0 | AP42: 0 | AQ42: 330.0318119 | AR42: 0 | AS42: 17295.77376 | AT42: 5611.414059 | AU42: 58623.634 | AV42: 81860.85364 | AW42: 0 | AX42: 0 | AZ42: 0 | BA42: 0 | BB42: 0 | BC42: 0 | BD42: 0 | BE42: 707.2815351 | BF42: 0 | BG42: 37066.0675 | BH42: 12025.65755 | BI42: 125634.5975 | BJ42: 175433.6041 | BK42: OK | BL42: Waihoehoe Rd West upgrades- between Kath Henry Lane and Fitzgerald Rd TRA A24 0.916056010564664 2060 0.318160190325139 | BM42: 2 | BN42: 257294.4577 | BO42: =IFERROR(VLOOKUP(AF42,FA_Codes!D:H,5,FALSE),"CHECK") -> 0 | BP42: TRA | BQ42: 280871.9715 | BR42: 23d TRA A24 | BS42: 23d | BT42: Arterial | BU42: 2060
B43: Transport | E43: 36a TRA A24 | F43: Bremner-Norrie Road east of SH1 up to GSR (overlap with project 12) | G43: 2-lane urban- upgrade existing road layout with active modes on both sides (Under construction) | K43: Transport - Drury West 1 IPA | Q43: 0.9160560106 | R43: 2060 | S43: 0 | T43: 0 | U43: 0 | V43: 0 | W43: 0 | X43: 0 | Y43: 0 | Z43: 0 | AA43: 0 | AB43: 12854663.2 | AC43: 12854663.2 | AF43: =IFERROR(VLOOKUP(K43,FA_Codes!C:F,2,FALSE),"CHECK") -> TRA A24 | AG43: 12854663.2 | AH43: =IFERROR(VLOOKUP(AF43,FA_Codes!D:F,3,FALSE),"CHECK") -> Local | AI43: 0.3181601903 | AJ43: 0.6818398097 | AK43: 1079071.711 | AL43: 0 | AM43: 0 | AN43: 0 | AO43: 0 | AP43: 0 | AQ43: 0 | AR43: 0 | AS43: 0 | AT43: 0 | AU43: 3746524.428 | AV43: 3746524.428 | AW43: 0 | AX43: 0 | AZ43: 0 | BA43: 0 | BB43: 0 | BC43: 0 | BD43: 0 | BE43: 0 | BF43: 0 | BG43: 0 | BH43: 0 | BI43: 8029067.056 | BJ43: 8029067.056 | BK43: OK | BL43: Bremner-Norrie Road east of SH1 up to GSR (overlap with project 12) TRA A24 0.916056010564664 2060 0.318160190325139 | BM43: 2 | BN43: 11775591.48 | BO43: =IFERROR(VLOOKUP(AF43,FA_Codes!D:H,5,FALSE),"CHECK") -> 0 | BP43: TRA | BQ43: 12854663.2 | BR43: 36a TRA A24 | BS43: 36a | BT43: Arterial | BU43: 2060
B44: Transport | E44: 40a TRA A24 | F44: New intersection on Jesmond/Bremner Rd | G44: 2-lane signalised intersection (new intersection with active mode crossings) | K44: Transport - Drury West 1 IPA | Q44: 0.9160560106 | R44: 2060 | S44: 0 | T44: 0 | U44: 0 | V44: 1328689.653 | W44: 893796.5751 | X44: 8973784.411 | Y44: 0 | Z44: 0 | AA44: 0 | AB44: 0 | AC44: 11196270.64 | AF44: =IFERROR(VLOOKUP(K44,FA_Codes!C:F,2,FALSE),"CHECK") -> TRA A24 | AG44: 11196270.64 | AH44: =IFERROR(VLOOKUP(AF44,FA_Codes!D:F,3,FALSE),"CHECK") -> Local | AI44: 0.3181601903 | AJ44: 0.6818398097 | AK44: 939859.6242 | AL44: 0 | AM44: 0 | AN44: 0 | AO44: 387249.9938 | AP44: 260499.2952 | AQ44: 2615432.392 | AR44: 0 | AS44: 0 | AT44: 0 | AU44: 0 | AV44: 3263181.681 | AW44: 0 | AX44: 0 | AZ44: 0 | BA44: 0 | BB44: 0 | BC44: 829904.1493 | BD44: 558268.4296 | BE44: 5605056.755 | BF44: 0 | BG44: 0 | BH44: 0 | BI44: 0 | BJ44: 6993229.334 | BK44: OK | BL44: New intersection on Jesmond/Bremner Rd TRA A24 0.916056010564664 2060 0.318160190325139 | BM44: 2 | BN44: 10256411.01 | BO44: =IFERROR(VLOOKUP(AF44,FA_Codes!D:H,5,FALSE),"CHECK") -> 0 | BP44: TRA | BQ44: 11196270.64 | BR44: 40a TRA A24 | BS44: 40a | BT44: Arterial | BU44: 2060
B45: Transport | E45: 40b TRA A24 | F45: Upgrade intersection on Jesmond/Bremner Rd | G45: Multi-lane signalised intersection (upgrade intersection with active mode crossings) | K45: Transport - Drury West 1 IPA | Q45: 0.9160560106 | R45: 2060 | S45: 0 | T45: 0 | U45: 0 | V45: 0 | W45: 0 | X45: 0 | Y45: 0 | Z45: 0 | AA45: 517961.9627 | AB45: 5145999.187 | AC45: 5663961.15 | AF45: =IFERROR(VLOOKUP(K45,FA_Codes!C:F,2,FALSE),"CHECK") -> TRA A24 | AG45: 5663961.15 | AH45: =IFERROR(VLOOKUP(AF45,FA_Codes!D:F,3,FALSE),"CHECK") -> Local | AI45: 0.3181601903 | AJ45: 0.6818398097 | AK45: 475455.4949 | AL45: 0 | AM45: 0 | AN45: 0 | AO45: 0 | AP45: 0 | AQ45: 0 | AR45: 0 | AS45: 0 | AT45: 150961.3372 | AU45: 1499814.609 | AV45: 1650775.947 | AW45: 0 | AX45: 0 | AZ45: 0 | BA45: 0 | BB45: 0 | BC45: 0 | BD45: 0 | BE45: 0 | BF45: 0 | BG45: 0 | BH45: 323520.8319 | BI45: 3214208.876 | BJ45: 3537729.708 | BK45: OK | BL45: Upgrade intersection on Jesmond/Bremner Rd TRA A24 0.916056010564664 2060 0.318160190325139 | BM45: 2 | BN45: 5188505.655 | BO45: =IFERROR(VLOOKUP(AF45,FA_Codes!D:H,5,FALSE),"CHECK") -> 0 | BP45: TRA | BQ45: 5663961.15 | BR45: 40b TRA A24 | BS45: 40b | BT45: Arterial | BU45: 2060
B46: Transport | E46: 41a TRA A24 | F46: Jesmond Rd upgrades from SH22 to Waipupuke development boundary | G46: 2-lane urban- upgrade existing road with active modes on both sides (TDM) | K46: Transport - Drury West 1 IPA | Q46: 0.9160560106 | R46: 2060 | S46: 0 | T46: 0 | U46: 0 | V46: 0 | W46: 365417.6782 | X46: 3630457.853 | Y46: 0 | Z46: 0 | AA46: 0 | AB46: 0 | AC46: 3995875.531 | AF46: =IFERROR(VLOOKUP(K46,FA_Codes!C:F,2,FALSE),"CHECK") -> TRA A24 | AG46: 3995875.531 | AH46: =IFERROR(VLOOKUP(AF46,FA_Codes!D:F,3,FALSE),"CHECK") -> Local | AI46: 0.3181601903 | AJ46: 0.6818398097 | AK46: 335429.7334 | AL46: 0 | AM46: 0 | AN46: 0 | AO46: 0 | AP46: 106501.9158 | AQ46: 1058106.216 | AR46: 0 | AS46: 0 | AT46: 0 | AU46: 0 | AV46: 1164608.132 | AW46: 0 | AX46: 0 | AZ46: 0 | BA46: 0 | BB46: 0 | BC46: 0 | BD46: 228241.1447 | BE46: 2267596.522 | BF46: 0 | BG46: 0 | BH46: 0 | BI46: 0 | BJ46: 2495837.666 | BK46: OK | BL46: Jesmond Rd upgrades from SH22 to Waipupuke development boundary TRA A24 0.916056010564664 2060 0.318160190325139 | BM46: 2 | BN46: 3660445.798 | BO46: =IFERROR(VLOOKUP(AF46,FA_Codes!D:H,5,FALSE),"CHECK") -> 0 | BP46: TRA | BQ46: 3995875.531 | BR46: 41a TRA A24 | BS46: 41a | BT46: Arterial | BU46: 2060
B47: Transport | E47: 42b TRA A24 | F47: Jesmond Rd upgrades from project 41 to New Bremner Rd | G47: 2-lane urban- upgrade existing road with active mode facility on both sides (TDM) | K47: Transport - Drury West 1 IPA | Q47: 0.9160560106 | R47: 2060 | S47: 0 | T47: 0 | U47: 0 | V47: 0 | W47: 0 | X47: 0 | Y47: 0 | Z47: 0 | AA47: 619320.5262 | AB47: 6153005.729 | AC47: 6772326.256 | AF47: =IFERROR(VLOOKUP(K47,FA_Codes!C:F,2,FALSE),"CHECK") -> TRA A24 | AG47: 6772326.256 | AH47: =IFERROR(VLOOKUP(AF47,FA_Codes!D:F,3,FALSE),"CHECK") -> Local | AI47: 0.3181601903 | AJ47: 0.6818398097 | AK47: 568496.0837 | AL47: 0 | AM47: 0 | AN47: 0 | AO47: 0 | AP47: 0 | AQ47: 0 | AR47: 0 | AS47: 0 | AT47: 180502.5495 | AU47: 1793309.239 | AV47: 1973811.788 | AW47: 0 | AX47: 0 | AZ47: 0 | BA47: 0 | BB47: 0 | BC47: 0 | BD47: 0 | BE47: 0 | BF47: 0 | BG47: 0 | BH47: 386829.741 | BI47: 3843188.643 | BJ47: 4230018.384 | BK47: OK | BL47: Jesmond Rd upgrades from project 41 to New Bremner Rd TRA A24 0.916056010564664 2060 0.318160190325139 | BM47: 2 | BN47: 6203830.172 | BO47: =IFERROR(VLOOKUP(AF47,FA_Codes!D:H,5,FALSE),"CHECK") -> 0 | BP47: TRA | BQ47: 6772326.256 | BR47: 42b TRA A24 | BS47: 42b | BT47: Arterial | BU47: 2060
B48: Transport | E48: 46 TRA A24 | F48: Upgrades in GSR/Firth St intersection (overlap with project12) | G48: Possible signals(subject to Auranga assessment) | K48: Transport - Drury West 1 IPA | Q48: 0.9160560106 | R48: 2060 | S48: 0 | T48: 0 | U48: 0 | V48: 0 | W48: 0 | X48: 0 | Y48: 0 | Z48: 0 | AA48: 328042.5764 | AB48: 3259132.818 | AC48: 3587175.395 | AF48: =IFERROR(VLOOKUP(K48,FA_Codes!C:F,2,FALSE),"CHECK") -> TRA A24 | AG48: 3587175.395 | AH48: =IFERROR(VLOOKUP(AF48,FA_Codes!D:F,3,FALSE),"CHECK") -> Local | AI48: 0.3181601903 | AJ48: 0.6818398097 | AK48: 301121.8134 | AL48: 0 | AM48: 0 | AN48: 0 | AO48: 0 | AP48: 0 | AQ48: 0 | AR48: 0 | AS48: 0 | AT48: 95608.84692 | AU48: 949882.5859 | AV48: 1045491.433 | AW48: 0 | AX48: 0 | AZ48: 0 | BA48: 0 | BB48: 0 | BC48: 0 | BD48: 0 | BE48: 0 | BF48: 0 | BG48: 0 | BH48: 204896.5269 | BI48: 2035665.622 | BJ48: 2240562.148 | BK48: OK | BL48: Upgrades in GSR/Firth St intersection (overlap with project12) TRA A24 0.916056010564664 2060 0.318160190325139 | BM48: 2 | BN48: 3286053.581 | BO48: =IFERROR(VLOOKUP(AF48,FA_Codes!D:H,5,FALSE),"CHECK") -> 0 | BP48: TRA | BQ48: 3587175.395 | BR48: 46 TRA A24 | BS48: 46 | BT48: Arterial | BU48: 2060
B49: Transport | E49: 67 TRA A24 | F49: Active Mode Corridor Drury Central to GSR | G49: 0 | K49: Transport - Drury West 1 IPA | Q49: 0.9160560106 | R49: 2060 | S49: 0 | T49: 0 | U49: 0 | V49: 0 | W49: 0 | X49: 0 | Y49: 0 | Z49: 182614.4523 | AA49: 0 | AB49: 1901386.087 | AC49: 2084000.54 | AF49: =IFERROR(VLOOKUP(K49,FA_Codes!C:F,2,FALSE),"CHECK") -> TRA A24 | AG49: 2084000.54 | AH49: =IFERROR(VLOOKUP(AF49,FA_Codes!D:F,3,FALSE),"CHECK") -> Local | AI49: 0.3181601903 | AJ49: 0.6818398097 | AK49: 174939.3193 | AL49: 0 | AM49: 0 | AN49: 0 | AO49: 0 | AP49: 0 | AQ49: 0 | AR49: 0 | AS49: 53223.44864 | AT49: 0 | AU49: 554163.8326 | AV49: 607387.2812 | AW49: 0 | AX49: 0 | AZ49: 0 | BA49: 0 | BB49: 0 | BC49: 0 | BD49: 0 | BE49: 0 | BF49: 0 | BG49: 114061.618 | BH49: 0 | BI49: 1187612.321 | BJ49: 1301673.939 | BK49: OK | BL49: Active Mode Corridor Drury Central to GSR TRA A24 0.916056010564664 2060 0.318160190325139 | BM49: 2 | BN49: 1909061.22 | BO49: =IFERROR(VLOOKUP(AF49,FA_Codes!D:H,5,FALSE),"CHECK") -> 0 | BP49: TRA | BQ49: 2084000.54 | BR49: 67 TRA A24 | BS49: 67 | BT49: Arterial | BU49: 2060
B50: Transport | E50: 70 TRA A24 | F50: walk/cycle bridges on GSR Road bridge over the rail corridor | G50: New cycle bridge 5m wide, 80m long, approach lengths 270m total for both sides. No property required | K50: Transport - Drury West 1 IPA | Q50: 0.9160560106 | R50: 2060 | S50: 0 | T50: 0 | U50: 0 | V50: 0 | W50: 0 | X50: 0 | Y50: 0 | Z50: 0 | AA50: 176468.1773 | AB50: 1754034.085 | AC50: 1930502.262 | AF50: =IFERROR(VLOOKUP(K50,FA_Codes!C:F,2,FALSE),"CHECK") -> TRA A24 | AG50: 1930502.262 | AH50: =IFERROR(VLOOKUP(AF50,FA_Codes!D:F,3,FALSE),"CHECK") -> Local | AI50: 0.3181601903 | AJ50: 0.6818398097 | AK50: 162054.0615 | AL50: 0 | AM50: 0 | AN50: 0 | AO50: 0 | AP50: 0 | AQ50: 0 | AR50: 0 | AS50: 0 | AT50: 51432.10109 | AU50: 511217.715 | AV50: 562649.8161 | AW50: 0 | AX50: 0 | AZ50: 0 | BA50: 0 | BB50: 0 | BC50: 0 | BD50: 0 | BE50: 0 | BF50: 0 | BG50: 0 | BH50: 110222.6334 | BI50: 1095575.751 | BJ50: 1205798.385 | BK50: OK | BL50: walk/cycle bridges on GSR Road bridge over the rail corridor TRA A24 0.916056010564664 2060 0.318160190325139 | BM50: 2 | BN50: 1768448.201 | BO50: =IFERROR(VLOOKUP(AF50,FA_Codes!D:H,5,FALSE),"CHECK") -> 0 | BP50: TRA | BQ50: 1930502.262 | BR50: 70 TRA A24 | BS50: 70 | BT50: Arterial | BU50: 2060
B51: Transport | E51: 1b TRA A24 WK subsidy | F51: GSR improvements - Waihoehoe Rd to Drury Interchange | G51: 4-lane urban- existing road layout with active modes on both sides + intersection improvements (TDM) | K51: Transport - Drury West 1 IPA | Q51: 0.9160560106 | R51: 2060 | S51: 0 | T51: 0 | U51: 0 | V51: 0 | W51: 0 | X51: 0 | Y51: 0 | Z51: 0 | AA51: -93041.55589 | AB51: -924376.3161 | AC51: -1017417.872 | AF51: =IFERROR(VLOOKUP(K51,FA_Codes!C:F,2,FALSE),"CHECK") -> TRA A24 | AG51: -1017417.872 | AH51: =IFERROR(VLOOKUP(AF51,FA_Codes!D:F,3,FALSE),"CHECK") -> Local | AI51: 0.3181601903 | AJ51: 0.6818398097 | AK51: -85406.1151 | AL51: 0 | AM51: 0 | AN51: 0 | AO51: 0 | AP51: 0 | AQ51: 0 | AR51: 0 | AS51: 0 | AT51: -27117.19916 | AU51: -269411.8388 | AV51: -296529.038 | AW51: 0 | AX51: 0 | AZ51: 0 | BA51: 0 | BB51: 0 | BC51: 0 | BD51: 0 | BE51: 0 | BF51: 0 | BG51: 0 | BH51: -58114.07735 | BI51: -577368.6416 | BJ51: -635482.7189 | BK51: OK | BL51: GSR improvements - Waihoehoe Rd to Drury Interchange TRA A24 0.916056010564664 2060 0.318160190325139 | BM51: 2 | BN51: -932011.7569 | BO51: =IFERROR(VLOOKUP(AF51,FA_Codes!D:H,5,FALSE),"CHECK") -> 0 | BP51: TRA | BQ51: 0 | BR51: 1b TRA A24 | BS51: 1b | BT51: Arterial | BU51: 2060
B52: Transport | E52: 2a TRA A24 WK subsidy | F52: GSR improvements - From Drury School to Waihoehoe Rd | G52: 2-lane urban- existing road layout with active modes on both sides + intersection improvements (TDM) | K52: Transport - Drury West 1 IPA | Q52: 0.9160560106 | R52: 2060 | S52: 0 | T52: 0 | U52: 0 | V52: 0 | W52: 0 | X52: 0 | Y52: 0 | Z52: -113227.7913 | AA52: -1124928.4 | AB52: 0 | AC52: -1238156.191 | AF52: =IFERROR(VLOOKUP(K52,FA_Codes!C:F,2,FALSE),"CHECK") -> TRA A24 | AG52: -1238156.191 | AH52: =IFERROR(VLOOKUP(AF52,FA_Codes!D:F,3,FALSE),"CHECK") -> Local | AI52: 0.3181601903 | AJ52: 0.6818398097 | AK52: -103935.7702 | AL52: 0 | AM52: 0 | AN52: 0 | AO52: 0 | AP52: 0 | AQ52: 0 | AR52: 0 | AS52: -33000.52902 | AT52: -327863.2559 | AU52: 0 | AV52: -360863.7849 | AW52: 0 | AX52: 0 | AZ52: 0 | BA52: 0 | BB52: 0 | BC52: 0 | BD52: 0 | BE52: 0 | BF52: 0 | BG52: -70722.46972 | BH52: -702634.166 | BI52: 0 | BJ52: -773356.6357 | BK52: OK | BL52: GSR improvements - From Drury School to Waihoehoe Rd TRA A24 0.916056010564664 2060 0.318160190325139 | BM52: 2 | BN52: -1134220.421 | BO52: =IFERROR(VLOOKUP(AF52,FA_Codes!D:H,5,FALSE),"CHECK") -> 0 | BP52: TRA | BQ52: 0 | BR52: 2a TRA A24 | BS52: 2a | BT52: Arterial | BU52: 2060
B53: Transport | E53: 9b TRA A24 WK subsidy | F53: Upgrade in Norrie Rd/GSR/Waihoehoe intersection | G53: multi-lane signalised intersection with active mode crossings, SGA design | K53: Transport - Drury West 1 IPA | Q53: 0.9160560106 | R53: 2060 | S53: 0 | T53: 0 | U53: 0 | V53: 0 | W53: 0 | X53: 0 | Y53: 0 | Z53: -32970.11855 | AA53: -40890.294 | AB53: -413276.3065 | AC53: -487136.719 | AF53: =IFERROR(VLOOKUP(K53,FA_Codes!C:F,2,FALSE),"CHECK") -> TRA A24 | AG53: -487136.719 | AH53: =IFERROR(VLOOKUP(AF53,FA_Codes!D:F,3,FALSE),"CHECK") -> Local | AI53: 0.3181601903 | AJ53: 0.6818398097 | AK53: -40892.19959 | AL53: 0 | AM53: 0 | AN53: 0 | AO53: 0 | AP53: 0 | AQ53: 0 | AR53: 0 | AS53: -9609.225278 | AT53: -11917.58065 | AU53: -120450.4353 | AV53: -141977.2412 | AW53: 0 | AX53: 0 | AZ53: 0 | BA53: 0 | BB53: 0 | BC53: 0 | BD53: 0 | BE53: 0 | BF53: 0 | BG53: -20593.24998 | BH53: -25540.21895 | BI53: -258133.8093 | BJ53: -304267.2782 | BK53: OK | BL53: Upgrade in Norrie Rd/GSR/Waihoehoe intersection TRA A24 0.916056010564664 2060 0.318160190325139 | BM53: 2 | BN53: -446244.5194 | BO53: =IFERROR(VLOOKUP(AF53,FA_Codes!D:H,5,FALSE),"CHECK") -> 0 | BP53: TRA | BQ53: 0 | BR53: 9b TRA A24 | BS53: 9b | BT53: Arterial | BU53: 2060
B54: Transport | E54: 23b TRA A24 WK subsidy | F54: Waihoehoe Rd West upgrades- between GSR & Kath Henry Lane | G54: Final 4-lane - following interim option, upgrade Road corridor to provide four lanes with additional turning lanes at intersections where required (as indicated in SGA Design | K54: Transport - Drury West 1 IPA | Q54: 0.9160560106 | R54: 2060 | S54: 0 | T54: -17743.3484 | U54: 0 | V54: 0 | W54: 0 | X54: 0 | Y54: 0 | Z54: -174649.8745 | AA54: -51676.79886 | AB54: -517333.1782 | AC54: -761403.2 | AF54: =IFERROR(VLOOKUP(K54,FA_Codes!C:F,2,FALSE),"CHECK") -> TRA A24 | AG54: -761403.2 | AH54: =IFERROR(VLOOKUP(AF54,FA_Codes!D:F,3,FALSE),"CHECK") -> Local | AI54: 0.3181601903 | AJ54: 0.6818398097 | AK54: -63915.22218 | AL54: 0 | AM54: -5171.34422 | AN54: 0 | AO54: 0 | AP54: 0 | AQ54: 0 | AR54: 0 | AS54: -50902.15211 | AT54: -15061.33504 | AU54: -150778.0764 | AV54: -221912.9078 | AW54: 0 | AX54: 0 | AZ54: 0 | BA54: -11082.55673 | BB54: 0 | BC54: 0 | BD54: 0 | BE54: 0 | BF54: 0 | BG54: -109086.9152 | BH54: -32277.50716 | BI54: -323128.0909 | BJ54: -475575.07 | BK54: OK | BL54: Waihoehoe Rd West upgrades- between GSR & Kath Henry Lane TRA A24 0.916056010564664 2060 0.318160190325139 | BM54: 2 | BN54: -697487.9778 | BO54: =IFERROR(VLOOKUP(AF54,FA_Codes!D:H,5,FALSE),"CHECK") -> 0 | BP54: TRA | BQ54: 0 | BR54: 23b TRA A24 | BS54: 23b | BT54: Arterial | BU54: 2060
B55: Transport | E55: 23d TRA A24 WK subsidy | F55: Waihoehoe Rd West upgrades- between Kath Henry Lane and Fitzgerald Rd | G55: Final 4-lane - following interim option, upgrade Road corridor to provide four lanes with additional turning lanes at intersections where required (as indicated in SGA Design | K55: Transport - Drury West 1 IPA | Q55: 0.9160560106 | R55: 2060 | S55: 0 | T55: 0 | U55: 0 | V55: 0 | W55: 0 | X55: -577.5081446 | Y55: 0 | Z55: -30265.11341 | AA55: -9819.166531 | AB55: -102582.9174 | AC55: -143244.7055 | AF55: =IFERROR(VLOOKUP(K55,FA_Codes!C:F,2,FALSE),"CHECK") -> TRA A24 | AG55: -143244.7055 | AH55: =IFERROR(VLOOKUP(AF55,FA_Codes!D:F,3,FALSE),"CHECK") -> Local | AI55: 0.3181601903 | AJ55: 0.6818398097 | AK55: -12024.53204 | AL55: 0 | AM55: 0 | AN55: 0 | AO55: 0 | AP55: 0 | AQ55: -168.3162241 | AR55: 0 | AS55: -8820.84462 | AT55: -2861.82117 | AU55: -29898.05334 | AV55: -41749.03536 | AW55: 0 | AX55: 0 | AZ55: 0 | BA55: 0 | BB55: 0 | BC55: 0 | BD55: 0 | BE55: -360.7135829 | BF55: 0 | BG55: -18903.69443 | BH55: -6133.085349 | BI55: -64073.64472 | BJ55: -89471.13808 | BK55: OK | BL55: Waihoehoe Rd West upgrades- between Kath Henry Lane and Fitzgerald Rd TRA A24 0.916056010564664 2060 0.318160190325139 | BM55: 2 | BN55: -131220.1734 | BO55: =IFERROR(VLOOKUP(AF55,FA_Codes!D:H,5,FALSE),"CHECK") -> 0 | BP55: TRA | BQ55: 0 | BR55: 23d TRA A24 | BS55: 23d | BT55: Arterial | BU55: 2060
B56: Transport | E56: 36a TRA A24 WK subsidy | F56: Bremner-Norrie Road east of SH1 up to GSR (overlap with project 12) | G56: 2-lane urban- upgrade existing road layout with active modes on both sides (Under construction) | K56: Transport - Drury West 1 IPA | Q56: 0.9160560106 | R56: 2060 | S56: 0 | T56: 0 | U56: 0 | V56: 0 | W56: 0 | X56: 0 | Y56: 0 | Z56: 0 | AA56: 0 | AB56: -6555878.23 | AC56: -6555878.23 | AF56: =IFERROR(VLOOKUP(K56,FA_Codes!C:F,2,FALSE),"CHECK") -> TRA A24 | AG56: -6555878.23 | AH56: =IFERROR(VLOOKUP(AF56,FA_Codes!D:F,3,FALSE),"CHECK") -> Local | AI56: 0.3181601903 | AJ56: 0.6818398097 | AK56: -550326.5729 | AL56: 0 | AM56: 0 | AN56: 0 | AO56: 0 | AP56: 0 | AQ56: 0 | AR56: 0 | AS56: 0 | AT56: 0 | AU56: -1910727.458 | AV56: -1910727.458 | AW56: 0 | AX56: 0 | AZ56: 0 | BA56: 0 | BB56: 0 | BC56: 0 | BD56: 0 | BE56: 0 | BF56: 0 | BG56: 0 | BH56: 0 | BI56: -4094824.199 | BJ56: -4094824.199 | BK56: OK | BL56: Bremner-Norrie Road east of SH1 up to GSR (overlap with project 12) TRA A24 0.916056010564664 2060 0.318160190325139 | BM56: 2 | BN56: -6005551.657 | BO56: =IFERROR(VLOOKUP(AF56,FA_Codes!D:H,5,FALSE),"CHECK") -> 0 | BP56: TRA | BQ56: 0 | BR56: 36a TRA A24 | BS56: 36a | BT56: Arterial | BU56: 2060
B57: Transport | E57: 40a TRA A24 WK subsidy | F57: New intersection on Jesmond/Bremner Rd | G57: 2-lane signalised intersection (new intersection with active mode crossings) | K57: Transport - Drury West 1 IPA | Q57: 0.9160560106 | R57: 2060 | S57: 0 | T57: 0 | U57: 0 | V57: -677631.7232 | W57: -455836.2533 | X57: -4576630.049 | Y57: 0 | Z57: 0 | AA57: 0 | AB57: 0 | AC57: -5710098.026 | AF57: =IFERROR(VLOOKUP(K57,FA_Codes!C:F,2,FALSE),"CHECK") -> TRA A24 | AG57: -5710098.026 | AH57: =IFERROR(VLOOKUP(AF57,FA_Codes!D:F,3,FALSE),"CHECK") -> Local | AI57: 0.3181601903 | AJ57: 0.6818398097 | AK57: -479328.4084 | AL57: 0 | AM57: 0 | AN57: 0 | AO57: -197497.4969 | AP57: -132854.6405 | AQ57: -1333870.52 | AR57: 0 | AS57: 0 | AT57: 0 | AU57: 0 | AV57: -1664222.657 | AW57: 0 | AX57: 0 | AZ57: 0 | BA57: 0 | BB57: 0 | BC57: -423251.1162 | BD57: -284716.8991 | BE57: -2858578.945 | BF57: 0 | BG57: 0 | BH57: 0 | BI57: 0 | BJ57: -3566546.961 | BK57: OK | BL57: New intersection on Jesmond/Bremner Rd TRA A24 0.916056010564664 2060 0.318160190325139 | BM57: 2 | BN57: -5230769.618 | BO57: =IFERROR(VLOOKUP(AF57,FA_Codes!D:H,5,FALSE),"CHECK") -> 0 | BP57: TRA | BQ57: 0 | BR57: 40a TRA A24 | BS57: 40a | BT57: Arterial | BU57: 2060
B58: Transport | E58: 40b TRA A24 WK subsidy | F58: Upgrade intersection on Jesmond/Bremner Rd | G58: Multi-lane signalised intersection (upgrade intersection with active mode crossings) | K58: Transport - Drury West 1 IPA | Q58: 0.9160560106 | R58: 2060 | S58: 0 | T58: 0 | U58: 0 | V58: 0 | W58: 0 | X58: 0 | Y58: 0 | Z58: 0 | AA58: -264160.601 | AB58: -2624459.585 | AC58: -2888620.186 | AF58: =IFERROR(VLOOKUP(K58,FA_Codes!C:F,2,FALSE),"CHECK") -> TRA A24 | AG58: -2888620.186 | AH58: =IFERROR(VLOOKUP(AF58,FA_Codes!D:F,3,FALSE),"CHECK") -> Local | AI58: 0.3181601903 | AJ58: 0.6818398097 | AK58: -242482.3024 | AL58: 0 | AM58: 0 | AN58: 0 | AO58: 0 | AP58: 0 | AQ58: 0 | AR58: 0 | AS58: 0 | AT58: -76990.282 | AU58: -764905.4508 | AV58: -841895.7328 | AW58: 0 | AX58: 0 | AZ58: 0 | BA58: 0 | BB58: 0 | BC58: 0 | BD58: 0 | BE58: 0 | BF58: 0 | BG58: 0 | BH58: -164995.6243 | BI58: -1639246.527 | BJ58: -1804242.151 | BK58: OK | BL58: Upgrade intersection on Jesmond/Bremner Rd TRA A24 0.916056010564664 2060 0.318160190325139 | BM58: 2 | BN58: -2646137.884 | BO58: =IFERROR(VLOOKUP(AF58,FA_Codes!D:H,5,FALSE),"CHECK") -> 0 | BP58: TRA | BQ58: 0 | BR58: 40b TRA A24 | BS58: 40b | BT58: Arterial | BU58: 2060
B59: Transport | E59: 41a TRA A24 WK subsidy | F59: Jesmond Rd upgrades from SH22 to Waipupuke development boundary | G59: 2-lane urban- upgrade existing road with active modes on both sides (TDM) | K59: Transport - Drury West 1 IPA | Q59: 0.9160560106 | R59: 2060 | S59: 0 | T59: 0 | U59: 0 | V59: 0 | W59: -186363.0159 | X59: -1851533.505 | Y59: 0 | Z59: 0 | AA59: 0 | AB59: 0 | AC59: -2037896.521 | AF59: =IFERROR(VLOOKUP(K59,FA_Codes!C:F,2,FALSE),"CHECK") -> TRA A24 | AG59: -2037896.521 | AH59: =IFERROR(VLOOKUP(AF59,FA_Codes!D:F,3,FALSE),"CHECK") -> Local | AI59: 0.3181601903 | AJ59: 0.6818398097 | AK59: -171069.164 | AL59: 0 | AM59: 0 | AN59: 0 | AO59: 0 | AP59: -54315.97708 | AQ59: -539634.1701 | AR59: 0 | AS59: 0 | AT59: 0 | AU59: 0 | AV59: -593950.1472 | AW59: 0 | AX59: 0 | AZ59: 0 | BA59: 0 | BB59: 0 | BC59: 0 | BD59: -116402.9838 | BE59: -1156474.226 | BF59: 0 | BG59: 0 | BH59: 0 | BI59: 0 | BJ59: -1272877.21 | BK59: OK | BL59: Jesmond Rd upgrades from SH22 to Waipupuke development boundary TRA A24 0.916056010564664 2060 0.318160190325139 | BM59: 2 | BN59: -1866827.357 | BO59: =IFERROR(VLOOKUP(AF59,FA_Codes!D:H,5,FALSE),"CHECK") -> 0 | BP59: TRA | BQ59: 0 | BR59: 41a TRA A24 | BS59: 41a | BT59: Arterial | BU59: 2060
B60: Transport | E60: 42b TRA A24 WK subsidy | F60: Jesmond Rd upgrades from project 41 to New Bremner Rd | G60: 2-lane urban- upgrade existing road with active mode facility on both sides (TDM) | K60: Transport - Drury West 1 IPA | Q60: 0.9160560106 | R60: 2060 | S60: 0 | T60: 0 | U60: 0 | V60: 0 | W60: 0 | X60: 0 | Y60: 0 | Z60: 0 | AA60: -315853.4683 | AB60: -3138032.922 | AC60: -3453886.39 | AF60: =IFERROR(VLOOKUP(K60,FA_Codes!C:F,2,FALSE),"CHECK") -> TRA A24 | AG60: -3453886.39 | AH60: =IFERROR(VLOOKUP(AF60,FA_Codes!D:F,3,FALSE),"CHECK") -> Local | AI60: 0.3181601903 | AJ60: 0.6818398097 | AK60: -289933.0027 | AL60: 0 | AM60: 0 | AN60: 0 | AO60: 0 | AP60: 0 | AQ60: 0 | AR60: 0 | AS60: 0 | AT60: -92056.30025 | AU60: -914587.7118 | AV60: -1006644.012 | AW60: 0 | AX60: 0 | AZ60: 0 | BA60: 0 | BB60: 0 | BC60: 0 | BD60: 0 | BE60: 0 | BF60: 0 | BG60: 0 | BH60: -197283.1679 | BI60: -1960026.208 | BJ60: -2157309.376 | BK60: OK | BL60: Jesmond Rd upgrades from project 41 to New Bremner Rd TRA A24 0.916056010564664 2060 0.318160190325139 | BM60: 2 | BN60: -3163953.388 | BO60: =IFERROR(VLOOKUP(AF60,FA_Codes!D:H,5,FALSE),"CHECK") -> 0 | BP60: TRA | BQ60: 0 | BR60: 42b TRA A24 | BS60: 42b | BT60: Arterial | BU60: 2060
B61: Transport | E61: 46 TRA A24 WK subsidy | F61: Upgrades in GSR/Firth St intersection (overlap with project12) | G61: Possible signals(subject to Auranga assessment) | K61: Transport - Drury West 1 IPA | Q61: 0.9160560106 | R61: 2060 | S61: 0 | T61: 0 | U61: 0 | V61: 0 | W61: 0 | X61: 0 | Y61: 0 | Z61: 0 | AA61: -167301.714 | AB61: -1662157.737 | AC61: -1829459.451 | AF61: =IFERROR(VLOOKUP(K61,FA_Codes!C:F,2,FALSE),"CHECK") -> TRA A24 | AG61: -1829459.451 | AH61: =IFERROR(VLOOKUP(AF61,FA_Codes!D:F,3,FALSE),"CHECK") -> Local | AI61: 0.3181601903 | AJ61: 0.6818398097 | AK61: -153572.1249 | AL61: 0 | AM61: 0 | AN61: 0 | AO61: 0 | AP61: 0 | AQ61: 0 | AR61: 0 | AS61: 0 | AT61: -48760.51193 | AU61: -484440.1188 | AV61: -533200.6307 | AW61: 0 | AX61: 0 | AZ61: 0 | BA61: 0 | BB61: 0 | BC61: 0 | BD61: 0 | BE61: 0 | BF61: 0 | BG61: 0 | BH61: -104497.2287 | BI61: -1038189.467 | BJ61: -1142686.696 | BK61: OK | BL61: Upgrades in GSR/Firth St intersection (overlap with project12) TRA A24 0.916056010564664 2060 0.318160190325139 | BM61: 2 | BN61: -1675887.326 | BO61: =IFERROR(VLOOKUP(AF61,FA_Codes!D:H,5,FALSE),"CHECK") -> 0 | BP61: TRA | BQ61: 0 | BR61: 46 TRA A24 | BS61: 46 | BT61: Arterial | BU61: 2060
B62: Transport | E62: 67 TRA A24 WK subsidy | F62: Active Mode Corridor Drury Central to GSR | G62: 0 | K62: Transport - Drury West 1 IPA | Q62: 0.9160560106 | R62: 2060 | S62: 0 | T62: 0 | U62: 0 | V62: 0 | W62: 0 | X62: 0 | Y62: 0 | Z62: -93133.37067 | AA62: 0 | AB62: -969706.9045 | AC62: -1062840.275 | AF62: =IFERROR(VLOOKUP(K62,FA_Codes!C:F,2,FALSE),"CHECK") -> TRA A24 | AG62: -1062840.275 | AH62: =IFERROR(VLOOKUP(AF62,FA_Codes!D:F,3,FALSE),"CHECK") -> Local | AI62: 0.3181601903 | AJ62: 0.6818398097 | AK62: -89219.05283 | AL62: 0 | AM62: 0 | AN62: 0 | AO62: 0 | AP62: 0 | AQ62: 0 | AR62: 0 | AS62: -27143.95881 | AT62: 0 | AU62: -282623.5546 | AV62: -309767.5134 | AW62: 0 | AX62: 0 | AZ62: 0 | BA62: 0 | BB62: 0 | BC62: 0 | BD62: 0 | BE62: 0 | BF62: 0 | BG62: -58171.42518 | BH62: 0 | BI62: -605682.2838 | BJ62: -663853.709 | BK62: OK | BL62: Active Mode Corridor Drury Central to GSR TRA A24 0.916056010564664 2060 0.318160190325139 | BM62: 2 | BN62: -973621.2224 | BO62: =IFERROR(VLOOKUP(AF62,FA_Codes!D:H,5,FALSE),"CHECK") -> 0 | BP62: TRA | BQ62: 0 | BR62: 67 TRA A24 | BS62: 67 | BT62: Arterial | BU62: 2060
B63: Transport | E63: 70 TRA A24 WK subsidy | F63: walk/cycle bridges on GSR Road bridge over the rail corridor | G63: New cycle bridge 5m wide, 80m long, approach lengths 270m total for both sides. No property required | K63: Transport - Drury West 1 IPA | Q63: 0.9160560106 | R63: 2060 | S63: 0 | T63: 0 | U63: 0 | V63: 0 | W63: 0 | X63: 0 | Y63: 0 | Z63: 0 | AA63: -89998.77042 | AB63: -894557.3833 | AC63: -984556.1537 | AF63: =IFERROR(VLOOKUP(K63,FA_Codes!C:F,2,FALSE),"CHECK") -> TRA A24 | AG63: -984556.1537 | AH63: =IFERROR(VLOOKUP(AF63,FA_Codes!D:F,3,FALSE),"CHECK") -> Local | AI63: 0.3181601903 | AJ63: 0.6818398097 | AK63: -82647.57137 | AL63: 0 | AM63: 0 | AN63: 0 | AO63: 0 | AP63: 0 | AQ63: 0 | AR63: 0 | AS63: 0 | AT63: -26230.37156 | AU63: -260721.0347 | AV63: -286951.4062 | AW63: 0 | AX63: 0 | AZ63: 0 | BA63: 0 | BB63: 0 | BC63: 0 | BD63: 0 | BE63: 0 | BF63: 0 | BG63: 0 | BH63: -56213.54303 | BI63: -558743.6331 | BJ63: -614957.1761 | BK63: OK | BL63: walk/cycle bridges on GSR Road bridge over the rail corridor TRA A24 0.916056010564664 2060 0.318160190325139 | BM63: 2 | BN63: -901908.5824 | BO63: =IFERROR(VLOOKUP(AF63,FA_Codes!D:H,5,FALSE),"CHECK") -> 0 | BP63: TRA | BQ63: 0 | BR63: 70 TRA A24 | BS63: 70 | BT63: Arterial | BU63: 2060
B64: Transport | E64: 14a TRA A25 | F64: Western end of Brookefield Road Extension tie in with Quarry Rd | G64: 2-lane urban (New Road connection to Quarry Road with active modes on both sides + intersection improvements) | K64: Transport - Drury West 2 IPA | Q64: 0.9359051828 | R64: 2060 | S64: 0 | T64: 0 | U64: 0 | V64: 0 | W64: 0 | X64: 0 | Y64: 0 | Z64: 0 | AA64: 0 | AB64: 1129960.657 | AC64: 1129960.657 | AF64: =IFERROR(VLOOKUP(K64,FA_Codes!C:F,2,FALSE),"CHECK") -> TRA A25 | AG64: 1129960.657 | AH64: =IFERROR(VLOOKUP(AF64,FA_Codes!D:F,3,FALSE),"CHECK") -> Local | AI64: 0.003146633103 | AJ64: 0.9968533669 | AK64: 72424.62172 | AL64: 0 | AM64: 0 | AN64: 0 | AO64: 0 | AP64: 0 | AQ64: 0 | AR64: 0 | AS64: 0 | AT64: 0 | AU64: 3327.677895 | AV64: 3327.677895 | AW64: 0 | AX64: 0 | AZ64: 0 | BA64: 0 | BB64: 0 | BC64: 0 | BD64: 0 | BE64: 0 | BF64: 0 | BG64: 0 | BH64: 0 | BI64: 1054208.357 | BJ64: 1054208.357 | BK64: OK | BL64: Western end of Brookefield Road Extension tie in with Quarry Rd TRA A25 0.935905182821966 2060 0.00314663310258024 | BM64: 1 | BN64: 1057536.035 | BO64: =IFERROR(VLOOKUP(AF64,FA_Codes!D:H,5,FALSE),"CHECK") -> 0 | BP64: TRA | BQ64: 1129960.657 | BR64: 14a TRA A25 | BS64: 14a | BT64: Collector | BU64: 2060
B65: Transport | E65: 1b TRA A25 | F65: GSR improvements - Waihoehoe Rd to Drury Interchange | G65: 4-lane urban- existing road layout with active modes on both sides + intersection improvements (TDM) | K65: Transport - Drury West 2 IPA | Q65: 0.9359051828 | R65: 2060 | S65: 0 | T65: 0 | U65: 0 | V65: 0 | W65: 0 | X65: 0 | Y65: 0 | Z65: 0 | AA65: 182434.4233 | AB65: 1812502.581 | AC65: 1994937.004 | AF65: =IFERROR(VLOOKUP(K65,FA_Codes!C:F,2,FALSE),"CHECK") -> TRA A25 | AG65: 1994937.004 | AH65: =IFERROR(VLOOKUP(AF65,FA_Codes!D:F,3,FALSE),"CHECK") -> Local | AI65: 0.003146633103 | AJ65: 0.9968533669 | AK65: 127865.1225 | AL65: 0 | AM65: 0 | AN65: 0 | AO65: 0 | AP65: 0 | AQ65: 0 | AR65: 0 | AS65: 0 | AT65: 537.2602968 | AU65: 5337.72989 | AV65: 5874.990187 | AW65: 0 | AX65: 0 | AZ65: 0 | BA65: 0 | BB65: 0 | BC65: 0 | BD65: 0 | BE65: 0 | BF65: 0 | BG65: 0 | BH65: 170204.062 | BI65: 1690992.829 | BJ65: 1861196.891 | BK65: OK | BL65: GSR improvements - Waihoehoe Rd to Drury Interchange TRA A25 0.935905182821966 2060 0.00314663310258024 | BM65: 2 | BN65: 1867071.881 | BO65: =IFERROR(VLOOKUP(AF65,FA_Codes!D:H,5,FALSE),"CHECK") -> 0 | BP65: TRA | BQ65: 1994937.004 | BR65: 1b TRA A25 | BS65: 1b | BT65: Arterial | BU65: 2060
B66: Transport | E66: 9b TRA A25 | F66: Upgrade in Norrie Rd/GSR/Waihoehoe intersection | G66: multi-lane signalised intersection with active mode crossings, SGA design | K66: Transport - Drury West 2 IPA | Q66: 0.9359051828 | R66: 2060 | S66: 0 | T66: 0 | U66: 0 | V66: 0 | W66: 0 | X66: 0 | Y66: 0 | Z66: 64647.29127 | AA66: 80177.04707 | AB66: 810345.6989 | AC66: 955170.0373 | AF66: =IFERROR(VLOOKUP(K66,FA_Codes!C:F,2,FALSE),"CHECK") -> TRA A25 | AG66: 955170.0373 | AH66: =IFERROR(VLOOKUP(AF66,FA_Codes!D:F,3,FALSE),"CHECK") -> Local | AI66: 0.003146633103 | AJ66: 0.9968533669 | AK66: 61221.44891 | AL66: 0 | AM66: 0 | AN66: 0 | AO66: 0 | AP66: 0 | AQ66: 0 | AR66: 0 | AS66: 190.3830552 | AT66: 236.1174131 | AU66: 2386.427752 | AV66: 2812.92822 | AW66: 0 | AX66: 0 | AZ66: 0 | BA66: 0 | BB66: 0 | BC66: 0 | BD66: 0 | BE66: 0 | BF66: 0 | BG66: 60313.3519 | BH66: 74801.99648 | BI66: 756020.3118 | BJ66: 891135.6601 | BK66: OK | BL66: Upgrade in Norrie Rd/GSR/Waihoehoe intersection TRA A25 0.935905182821966 2060 0.00314663310258024 | BM66: 2 | BN66: 893948.5884 | BO66: =IFERROR(VLOOKUP(AF66,FA_Codes!D:H,5,FALSE),"CHECK") -> 0 | BP66: TRA | BQ66: 955170.0373 | BR66: 9b TRA A25 | BS66: 9b | BT66: Arterial | BU66: 2060
B67: Transport | E67: 23b TRA A25 | F67: Waihoehoe Rd West upgrades- between GSR & Kath Henry Lane | G67: Final 4-lane - following interim option, upgrade Road corridor to provide four lanes with additional turning lanes at intersections where required (as indicated in SGA Design | K67: Transport - Drury West 2 IPA | Q67: 0.9359051828 | R67: 2060 | S67: 0 | T67: 34790.87922 | U67: 0 | V67: 0 | W67: 0 | X67: 0 | Y67: 0 | Z67: 342450.7344 | AA67: 101327.0566 | AB67: 1014378.781 | AC67: 1492947.451 | AF67: =IFERROR(VLOOKUP(K67,FA_Codes!C:F,2,FALSE),"CHECK") -> TRA A25 | AG67: 1492947.451 | AH67: =IFERROR(VLOOKUP(AF67,FA_Codes!D:F,3,FALSE),"CHECK") -> Local | AI67: 0.003146633103 | AJ67: 0.9968533669 | AK67: 95690.19393 | AL67: 0 | AM67: 102.4574077 | AN67: 0 | AO67: 0 | AP67: 0 | AQ67: 0 | AR67: 0 | AS67: 1008.500369 | AT67: 298.4031385 | AU67: 2987.295023 | AV67: 4396.655938 | AW67: 0 | AX67: 0 | AZ67: 0 | BA67: 32458.50677 | BB67: 0 | BC67: 0 | BD67: 0 | BE67: 0 | BF67: 0 | BG67: 319492.9168 | BH67: 94534.11428 | BI67: 946375.0632 | BJ67: 1392860.601 | BK67: OK | BL67: Waihoehoe Rd West upgrades- between GSR & Kath Henry Lane TRA A25 0.935905182821966 2060 0.00314663310258024 | BM67: 2 | BN67: 1397257.257 | BO67: =IFERROR(VLOOKUP(AF67,FA_Codes!D:H,5,FALSE),"CHECK") -> 0 | BP67: TRA | BQ67: 1492947.451 | BR67: 23b TRA A25 | BS67: 23b | BT67: Arterial | BU67: 2060
B68: Transport | E68: 23d TRA A25 | F68: Waihoehoe Rd West upgrades- between Kath Henry Lane and Fitzgerald Rd | G68: Final 4-lane - following interim option, upgrade Road corridor to provide four lanes with additional turning lanes at intersections where required (as indicated in SGA Design | K68: Transport - Drury West 2 IPA | Q68: 0.9359051828 | R68: 2060 | S68: 0 | T68: 0 | U68: 0 | V68: 0 | W68: 0 | X68: 1132.368911 | Y68: 0 | Z68: 59343.35962 | AA68: 19253.26771 | AB68: 201142.9753 | AC68: 280871.9715 | AF68: =IFERROR(VLOOKUP(K68,FA_Codes!C:F,2,FALSE),"CHECK") -> TRA A25 | AG68: 280871.9715 | AH68: =IFERROR(VLOOKUP(AF68,FA_Codes!D:F,3,FALSE),"CHECK") -> Local | AI68: 0.003146633103 | AJ68: 0.9968533669 | AK68: 18002.43767 | AL68: 0 | AM68: 0 | AN68: 0 | AO68: 0 | AP68: 0 | AQ68: 3.334770084 | AR68: 0 | AS68: 174.7632405 | AT68: 56.69991515 | AU68: 592.3560512 | AV68: 827.1539769 | AW68: 0 | AX68: 0 | AZ68: 0 | BA68: 0 | BB68: 0 | BC68: 0 | BD68: 0 | BE68: 1056.455162 | BF68: 0 | BG68: 55364.99459 | BH68: 17962.53312 | BI68: 187658.397 | BJ68: 262042.3799 | BK68: OK | BL68: Waihoehoe Rd West upgrades- between Kath Henry Lane and Fitzgerald Rd TRA A25 0.935905182821966 2060 0.00314663310258024 | BM68: 2 | BN68: 262869.5339 | BO68: =IFERROR(VLOOKUP(AF68,FA_Codes!D:H,5,FALSE),"CHECK") -> 0 | BP68: TRA | BQ68: 280871.9715 | BR68: 23d TRA A25 | BS68: 23d | BT68: Arterial | BU68: 2060
B69: Transport | E69: 36a TRA A25 | F69: Bremner-Norrie Road east of SH1 up to GSR (overlap with project 12) | G69: 2-lane urban- upgrade existing road layout with active modes on both sides (Under construction) | K69: Transport - Drury West 2 IPA | Q69: 0.9359051828 | R69: 2060 | S69: 0 | T69: 0 | U69: 0 | V69: 0 | W69: 0 | X69: 0 | Y69: 0 | Z69: 0 | AA69: 0 | AB69: 676561.2208 | AC69: 676561.2208 | AF69: =IFERROR(VLOOKUP(K69,FA_Codes!C:F,2,FALSE),"CHECK") -> TRA A25 | AG69: 676561.2208 | AH69: =IFERROR(VLOOKUP(AF69,FA_Codes!D:F,3,FALSE),"CHECK") -> Local | AI69: 0.003146633103 | AJ69: 0.9968533669 | AK69: 43364.06776 | AL69: 0 | AM69: 0 | AN69: 0 | AO69: 0 | AP69: 0 | AQ69: 0 | AR69: 0 | AS69: 0 | AT69: 0 | AU69: 1992.439122 | AV69: 1992.439122 | AW69: 0 | AX69: 0 | AZ69: 0 | BA69: 0 | BB69: 0 | BC69: 0 | BD69: 0 | BE69: 0 | BF69: 0 | BG69: 0 | BH69: 0 | BI69: 631204.7139 | BJ69: 631204.7139 | BK69: OK | BL69: Bremner-Norrie Road east of SH1 up to GSR (overlap with project 12) TRA A25 0.935905182821966 2060 0.00314663310258024 | BM69: 2 | BN69: 633197.1531 | BO69: =IFERROR(VLOOKUP(AF69,FA_Codes!D:H,5,FALSE),"CHECK") -> 0 | BP69: TRA | BQ69: 676561.2208 | BR69: 36a TRA A25 | BS69: 36a | BT69: Arterial | BU69: 2060
B70: Transport | E70: 40a TRA A25 | F70: New intersection on Jesmond/Bremner Rd | G70: 2-lane signalised intersection (new intersection with active mode crossings) | K70: Transport - Drury West 2 IPA | Q70: 0.9359051828 | R70: 2060 | S70: 0 | T70: 0 | U70: 0 | V70: 147632.1837 | W70: 99310.73056 | X70: 997087.1567 | Y70: 0 | Z70: 0 | AA70: 0 | AB70: 0 | AC70: 1244030.071 | AF70: =IFERROR(VLOOKUP(K70,FA_Codes!C:F,2,FALSE),"CHECK") -> TRA A25 | AG70: 1244030.071 | AH70: =IFERROR(VLOOKUP(AF70,FA_Codes!D:F,3,FALSE),"CHECK") -> Local | AI70: 0.003146633103 | AJ70: 0.9968533669 | AK70: 79735.87997 | AL70: 0 | AM70: 0 | AN70: 0 | AO70: 434.7694332 | AP70: 292.4651587 | AQ70: 2936.372051 | AR70: 0 | AS70: 0 | AT70: 0 | AU70: 0 | AV70: 3663.606643 | AW70: 0 | AX70: 0 | AZ70: 0 | BA70: 0 | BB70: 0 | BC70: 137734.9565 | BD70: 92652.96228 | BE70: 930242.6657 | BF70: 0 | BG70: 0 | BH70: 0 | BI70: 0 | BJ70: 1160630.584 | BK70: OK | BL70: New intersection on Jesmond/Bremner Rd TRA A25 0.935905182821966 2060 0.00314663310258024 | BM70: 2 | BN70: 1164294.191 | BO70: =IFERROR(VLOOKUP(AF70,FA_Codes!D:H,5,FALSE),"CHECK") -> 0 | BP70: TRA | BQ70: 1244030.071 | BR70: 40a TRA A25 | BS70: 40a | BT70: Arterial | BU70: 2060
B71: Transport | E71: 40b TRA A25 | F71: Upgrade intersection on Jesmond/Bremner Rd | G71: Multi-lane signalised intersection (upgrade intersection with active mode crossings) | K71: Transport - Drury West 2 IPA | Q71: 0.9359051828 | R71: 2060 | S71: 0 | T71: 0 | U71: 0 | V71: 0 | W71: 0 | X71: 0 | Y71: 0 | Z71: 0 | AA71: 155388.5888 | AB71: 1543799.756 | AC71: 1699188.345 | AF71: =IFERROR(VLOOKUP(K71,FA_Codes!C:F,2,FALSE),"CHECK") -> TRA A25 | AG71: 1699188.345 | AH71: =IFERROR(VLOOKUP(AF71,FA_Codes!D:F,3,FALSE),"CHECK") -> Local | AI71: 0.003146633103 | AJ71: 0.9968533669 | AK71: 108909.1663 | AL71: 0 | AM71: 0 | AN71: 0 | AO71: 0 | AP71: 0 | AQ71: 0 | AR71: 0 | AS71: 0 | AT71: 457.6116602 | AU71: 4546.413445 | AV71: 5004.025106 | AW71: 0 | AX71: 0 | AZ71: 0 | BA71: 0 | BB71: 0 | BC71: 0 | BD71: 0 | BE71: 0 | BF71: 0 | BG71: 0 | BH71: 144971.374 | BI71: 1440303.779 | BJ71: 1585275.153 | BK71: OK | BL71: Upgrade intersection on Jesmond/Bremner Rd TRA A25 0.935905182821966 2060 0.00314663310258024 | BM71: 2 | BN71: 1590279.179 | BO71: =IFERROR(VLOOKUP(AF71,FA_Codes!D:H,5,FALSE),"CHECK") -> 0 | BP71: TRA | BQ71: 1699188.345 | BR71: 40b TRA A25 | BS71: 40b | BT71: Arterial | BU71: 2060
B72: Transport | E72: 41a TRA A25 | F72: Jesmond Rd upgrades from SH22 to Waipupuke development boundary | G72: 2-lane urban- upgrade existing road with active modes on both sides (TDM) | K72: Transport - Drury West 2 IPA | Q72: 0.9359051828 | R72: 2060 | S72: 0 | T72: 0 | U72: 0 | V72: 0 | W72: 40601.96425 | X72: 403384.2059 | Y72: 0 | Z72: 0 | AA72: 0 | AB72: 0 | AC72: 443986.1702 | AF72: =IFERROR(VLOOKUP(K72,FA_Codes!C:F,2,FALSE),"CHECK") -> TRA A25 | AG72: =AC72-AD72 -> 443986.1702 | AH72: =IFERROR(VLOOKUP(AF72,FA_Codes!D:F,3,FALSE),"CHECK") -> Local | AI72: 0.003146633103 | AJ72: 0.9968533669 | AK72: =AG72*(1-Q72) -> 28457.21241 | AL72: =S72*$Q72*$AI72*(1-$AX72) -> 0 | AM72: =T72*$Q72*$AI72*(1-$AX72) -> 0 | AN72: =U72*$Q72*$AI72*(1-$AX72) -> 0 | AO72: =V72*$Q72*$AI72*(1-$AX72) -> 0 | AP72: =W72*$Q72*$AI72*(1-$AX72) -> 119.5707639 | AQ72: =X72*$Q72*$AI72*(1-$AX72) -> 1187.94641 | AR72: =Y72*$Q72*$AI72*(1-$AX72) -> 0 | AS72: =Z72*$Q72*$AI72*(1-$AX72) -> 0 | AT72: =AA72*$Q72*$AI72*(1-$AX72) -> 0 | AU72: =AB72*$Q72*$AI72*(1-$AX72) -> 0 | AV72: 1307.517174 | AW72: =AD72 -> 0 | AX72: =IFERROR(AW72/AC72,0) -> 0 | AZ72: =S72*$Q72*$AJ72*(1-$AX72) -> 0 | BA72: =T72*$Q72*$AJ72*(1-$AX72) -> 0 | BB72: =U72*$Q72*$AJ72*(1-$AX72) -> 0 | BC72: =V72*$Q72*$AJ72*(1-$AX72) -> 0 | BD72: =W72*$Q72*$AJ72*(1-$AX72) -> 37880.01801 | BE72: =X72*$Q72*$AJ72*(1-$AX72) -> 376341.4226 | BF72: =Y72*$Q72*$AJ72*(1-$AX72) -> 0 | BG72: =Z72*$Q72*$AJ72*(1-$AX72) -> 0 | BH72: =AA72*$Q72*$AJ72*(1-$AX72) -> 0 | BI72: =AB72*$Q72*$AJ72*(1-$AX72) -> 0 | BJ72: 414221.4406 | BK72: OK | BL72: =IF($Q72=0,"",F72&" "&AF72&" "&Q72&" "&R72&" "&AI72) -> Jesmond Rd upgrades from SH22 to Waipupuke development boundary TRA A25 0.935905182821966 2060 0.00314663310258024 | BM72: =COUNTIF($BL$8:$BL$149,BL72) -> 2 | BN72: 415528.9577 | BO72: =IFERROR(VLOOKUP(AF72,FA_Codes!D:H,5,FALSE),"CHECK") -> 0 | BP72: =TRIM(LEFT(AF72,3)) -> TRA | BQ72: =IF(AC72>0,+AC72,0) -> 443986.1702 | BR72: =IF(RIGHT(E72,11)=" WK subsidy",LEFT(E72,LEN(E72)-11),E72) -> 41a TRA A25 | BS72: 41a | BT72: Arterial | BU72: =+R72 -> 2060
B73: Transport | E73: 42b TRA A25 | F73: Jesmond Rd upgrades from project 41 to New Bremner Rd | G73: 2-lane urban- upgrade existing road with active mode facility on both sides (TDM) | K73: Transport - Drury West 2 IPA | Q73: 0.9359051828 | R73: 2060 | S73: 0 | T73: 0 | U73: 0 | V73: 0 | W73: 0 | X73: 0 | Y73: 0 | Z73: 0 | AA73: 68813.3918 | AB73: 683667.3033 | AC73: =SUM(S73:AB73) -> 752480.6951 | AF73: =IFERROR(VLOOKUP(K73,FA_Codes!C:F,2,FALSE),"CHECK") -> TRA A25 | AG73: 752480.6951 | AH73: =IFERROR(VLOOKUP(AF73,FA_Codes!D:F,3,FALSE),"CHECK") -> Local | AI73: 0.003146633103 | AJ73: =1-AI73 -> 0.9968533669 | AK73: 48230.11258 | AL73: 0 | AM73: 0 | AN73: 0 | AO73: 0 | AP73: 0 | AQ73: 0 | AR73: 0 | AS73: 0 | AT73: 202.6520139 | AU73: 2013.366181 | AV73: =SUM(AL73:AU73) -> 2216.018195 | AW73: 0 | AX73: 0 | AZ73: 0 | BA73: 0 | BB73: 0 | BC73: 0 | BD73: 0 | BE73: 0 | BF73: 0 | BG73: 0 | BH73: 64200.15802 | BI73: 637834.4063 | BJ73: =SUM(AZ73:BI73) -> 702034.5643 | BK73: =IF(ABS(AG73-BJ73-AV73-AK73)<0.5,"OK","CHECK") -> OK | BL73: Jesmond Rd upgrades from project 41 to New Bremner Rd TRA A25 0.935905182821966 2060 0.00314663310258024 | BM73: 2 | BN73: =+BJ73+AV73 -> 704250.5825 | BO73: =IFERROR(VLOOKUP(AF73,FA_Codes!D:H,5,FALSE),"CHECK") -> 0 | BP73: TRA | BQ73: 752480.6951 | BR73: 42b TRA A25 | BS73: =IFERROR(LEFT(BR73,LEN(BR73)-8)*1,LEFT(BR73,LEN(BR73)-8)) -> 42b | BT73: Arterial | BU73: 2060
B74: Transport | E74: 67 TRA A25 | F74: Active Mode Corridor Drury Central to GSR | G74: 0 | K74: Transport - Drury West 2 IPA | Q74: 0.9359051828 | R74: 2060 | S74: 0 | T74: 0 | U74: 0 | V74: 0 | W74: 0 | X74: 0 | Y74: 0 | Z74: 121742.9682 | AA74: 0 | AB74: 1267590.725 | AC74: 1389333.693 | AF74: =IFERROR(VLOOKUP(K74,FA_Codes!C:F,2,FALSE),"CHECK") -> TRA A25 | AG74: 1389333.693 | AH74: =IFERROR(VLOOKUP(AF74,FA_Codes!D:F,3,FALSE),"CHECK") -> Local | AI74: 0.003146633103 | AJ74: 0.9968533669 | AK74: 89049.08906 | AL74: 0 | AM74: 0 | AN74: 0 | AO74: 0 | AP74: 0 | AQ74: 0 | AR74: 0 | AS74: 358.5269821 | AT74: 0 | AU74: 3732.991596 | AV74: 4091.518578 | AW74: 0 | AX74: 0 | AZ74: 0 | BA74: 0 | BB74: 0 | BC74: 0 | BD74: 0 | BE74: 0 | BF74: 0 | BG74: 113581.3479 | BH74: 0 | BI74: 1182611.738 | BJ74: 1296193.085 | BK74: OK | BL74: Active Mode Corridor Drury Central to GSR TRA A25 0.935905182821966 2060 0.00314663310258024 | BM74: 2 | BN74: 1300284.604 | BO74: =IFERROR(VLOOKUP(AF74,FA_Codes!D:H,5,FALSE),"CHECK") -> 0 | BP74: TRA | BQ74: 1389333.693 | BR74: 67 TRA A25 | BS74: 67 | BT74: Arterial | BU74: 2060
B75: Transport | E75: 70 TRA A25 | F75: walk/cycle bridges on GSR Road bridge over the rail corridor | G75: New cycle bridge 5m wide, 80m long, approach lengths 270m total for both sides. No property required | K75: Transport - Drury West 2 IPA | Q75: 0.9359051828 | R75: 2060 | S75: 0 | T75: 0 | U75: 0 | V75: 0 | W75: 0 | X75: 0 | Y75: 0 | Z75: 0 | AA75: 352936.3546 | AB75: 3508068.17 | AC75: 3861004.524 | AF75: =IFERROR(VLOOKUP(K75,FA_Codes!C:F,2,FALSE),"CHECK") -> TRA A25 | AG75: 3861004.524 | AH75: =IFERROR(VLOOKUP(AF75,FA_Codes!D:F,3,FALSE),"CHECK") -> Local | AI75: 0.003146633103 | AJ75: 0.9968533669 | AK75: 247470.3791 | AL75: 0 | AM75: 0 | AN75: 0 | AO75: 0 | AP75: 0 | AQ75: 0 | AR75: 0 | AS75: 0 | AT75: 1039.379998 | AU75: 10331.08616 | AV75: 11370.46616 | AW75: 0 | AX75: 0 | AZ75: 0 | BA75: 0 | BB75: 0 | BC75: 0 | BD75: 0 | BE75: 0 | BF75: 0 | BG75: 0 | BH75: 329275.5835 | BI75: 3272888.096 | BJ75: 3602163.679 | BK75: OK | BL75: walk/cycle bridges on GSR Road bridge over the rail corridor TRA A25 0.935905182821966 2060 0.00314663310258024 | BM75: 2 | BN75: 3613534.145 | BO75: =IFERROR(VLOOKUP(AF75,FA_Codes!D:H,5,FALSE),"CHECK") -> 0 | BP75: TRA | BQ75: 3861004.524 | BR75: 70 TRA A25 | BS75: 70 | BT75: Arterial | BU75: 2060
B76: Transport | E76: 1b TRA A25 WK subsidy | F76: GSR improvements - Waihoehoe Rd to Drury Interchange | G76: 4-lane urban- existing road layout with active modes on both sides + intersection improvements (TDM) | K76: Transport - Drury West 2 IPA | Q76: 0.9359051828 | R76: 2060 | S76: 0 | T76: 0 | U76: 0 | V76: 0 | W76: 0 | X76: 0 | Y76: 0 | Z76: 0 | AA76: -93041.55589 | AB76: -924376.3161 | AC76: -1017417.872 | AF76: =IFERROR(VLOOKUP(K76,FA_Codes!C:F,2,FALSE),"CHECK") -> TRA A25 | AG76: -1017417.872 | AH76: =IFERROR(VLOOKUP(AF76,FA_Codes!D:F,3,FALSE),"CHECK") -> Local | AI76: 0.003146633103 | AJ76: 0.9968533669 | AK76: -65211.2125 | AL76: 0 | AM76: 0 | AN76: 0 | AO76: 0 | AP76: 0 | AQ76: 0 | AR76: 0 | AS76: 0 | AT76: -274.0027513 | AU76: -2722.242244 | AV76: -2996.244995 | AW76: 0 | AX76: 0 | AZ76: 0 | BA76: 0 | BB76: 0 | BC76: 0 | BD76: 0 | BE76: 0 | BF76: 0 | BG76: 0 | BH76: -86804.07163 | BI76: -862406.3429 | BJ76: -949210.4145 | BK76: OK | BL76: GSR improvements - Waihoehoe Rd to Drury Interchange TRA A25 0.935905182821966 2060 0.00314663310258024 | BM76: 2 | BN76: -952206.6595 | BO76: =IFERROR(VLOOKUP(AF76,FA_Codes!D:H,5,FALSE),"CHECK") -> 0 | BP76: TRA | BQ76: 0 | BR76: 1b TRA A25 | BS76: 1b | BT76: Arterial | BU76: 2060
B77: Transport | E77: 9b TRA A25 WK subsidy | F77: Upgrade in Norrie Rd/GSR/Waihoehoe intersection | G77: multi-lane signalised intersection with active mode crossings, SGA design | K77: Transport - Drury West 2 IPA | Q77: 0.9359051828 | R77: 2060 | S77: 0 | T77: 0 | U77: 0 | V77: 0 | W77: 0 | X77: 0 | Y77: 0 | Z77: -32970.11855 | AA77: -40890.294 | AB77: -413276.3065 | AC77: -487136.719 | AF77: =IFERROR(VLOOKUP(K77,FA_Codes!C:F,2,FALSE),"CHECK") -> TRA A25 | AG77: -487136.719 | AH77: =IFERROR(VLOOKUP(AF77,FA_Codes!D:F,3,FALSE),"CHECK") -> Local | AI77: 0.003146633103 | AJ77: 0.9968533669 | AK77: -31222.93895 | AL77: 0 | AM77: 0 | AN77: 0 | AO77: 0 | AP77: 0 | AQ77: 0 | AR77: 0 | AS77: -97.09535817 | AT77: -120.4198807 | AU77: -1217.078153 | AV77: -1434.593392 | AW77: 0 | AX77: 0 | AZ77: 0 | BA77: 0 | BB77: 0 | BC77: 0 | BD77: 0 | BE77: 0 | BF77: 0 | BG77: -30759.80947 | BH77: -38149.01821 | BI77: -385570.359 | BJ77: -454479.1867 | BK77: OK | BL77: Upgrade in Norrie Rd/GSR/Waihoehoe intersection TRA A25 0.935905182821966 2060 0.00314663310258024 | BM77: 2 | BN77: -455913.7801 | BO77: =IFERROR(VLOOKUP(AF77,FA_Codes!D:H,5,FALSE),"CHECK") -> 0 | BP77: TRA | BQ77: 0 | BR77: 9b TRA A25 | BS77: 9b | BT77: Arterial | BU77: 2060
B78: Transport | E78: 23b TRA A25 WK subsidy | F78: Waihoehoe Rd West upgrades- between GSR & Kath Henry Lane | G78: Final 4-lane - following interim option, upgrade Road corridor to provide four lanes with additional turning lanes at intersections where required (as indicated in SGA Design | K78: Transport - Drury West 2 IPA | Q78: 0.9359051828 | R78: 2060 | S78: 0 | T78: -17743.3484 | U78: 0 | V78: 0 | W78: 0 | X78: 0 | Y78: 0 | Z78: -174649.8745 | AA78: -51676.79886 | AB78: -517333.1782 | AC78: -761403.2 | AF78: =IFERROR(VLOOKUP(K78,FA_Codes!C:F,2,FALSE),"CHECK") -> TRA A25 | AG78: -761403.2 | AH78: =IFERROR(VLOOKUP(AF78,FA_Codes!D:F,3,FALSE),"CHECK") -> Local | AI78: 0.003146633103 | AJ78: 0.9968533669 | AK78: -48801.9989 | AL78: 0 | AM78: -52.25327795 | AN78: 0 | AO78: 0 | AP78: 0 | AQ78: 0 | AR78: 0 | AS78: -514.3351881 | AT78: -152.1856006 | AU78: -1523.520462 | AV78: -2242.294528 | AW78: 0 | AX78: 0 | AZ78: 0 | BA78: -16553.83845 | BB78: 0 | BC78: 0 | BD78: 0 | BE78: 0 | BF78: 0 | BG78: -162941.3876 | BH78: -48212.39828 | BI78: -482651.2822 | BJ78: -710358.9066 | BK78: OK | BL78: Waihoehoe Rd West upgrades- between GSR & Kath Henry Lane TRA A25 0.935905182821966 2060 0.00314663310258024 | BM78: 2 | BN78: -712601.2011 | BO78: =IFERROR(VLOOKUP(AF78,FA_Codes!D:H,5,FALSE),"CHECK") -> 0 | BP78: TRA | BQ78: 0 | BR78: 23b TRA A25 | BS78: 23b | BT78: Arterial | BU78: 2060
B79: Transport | E79: 23d TRA A25 WK subsidy | F79: Waihoehoe Rd West upgrades- between Kath Henry Lane and Fitzgerald Rd | G79: Final 4-lane - following interim option, upgrade Road corridor to provide four lanes with additional turning lanes at intersections where required (as indicated in SGA Design | K79: Transport - Drury West 2 IPA | Q79: 0.9359051828 | R79: 2060 | S79: 0 | T79: 0 | U79: 0 | V79: 0 | W79: 0 | X79: -577.5081446 | Y79: 0 | Z79: -30265.11341 | AA79: -9819.166531 | AB79: -102582.9174 | AC79: -143244.7055 | AF79: =IFERROR(VLOOKUP(K79,FA_Codes!C:F,2,FALSE),"CHECK") -> TRA A25 | AG79: -143244.7055 | AH79: =IFERROR(VLOOKUP(AF79,FA_Codes!D:F,3,FALSE),"CHECK") -> Local | AI79: 0.003146633103 | AJ79: 0.9968533669 | AK79: -9181.24321 | AL79: 0 | AM79: 0 | AN79: 0 | AO79: 0 | AP79: 0 | AQ79: -1.700732743 | AR79: 0 | AS79: -89.12925266 | AT79: -28.91695673 | AU79: -302.1015861 | AV79: -421.8485282 | AW79: 0 | AX79: 0 | AZ79: 0 | BA79: 0 | BB79: 0 | BC79: 0 | BD79: 0 | BE79: -538.7921329 | BF79: 0 | BG79: -28236.14724 | BH79: -9160.891891 | BI79: -95705.78248 | BJ79: -133641.6137 | BK79: OK | BL79: Waihoehoe Rd West upgrades- between Kath Henry Lane and Fitzgerald Rd TRA A25 0.935905182821966 2060 0.00314663310258024 | BM79: 2 | BN79: -134063.4623 | BO79: =IFERROR(VLOOKUP(AF79,FA_Codes!D:H,5,FALSE),"CHECK") -> 0 | BP79: TRA | BQ79: 0 | BR79: 23d TRA A25 | BS79: 23d | BT79: Arterial | BU79: 2060
B80: Transport | E80: 36a TRA A25 WK subsidy | F80: Bremner-Norrie Road east of SH1 up to GSR (overlap with project 12) | G80: 2-lane urban- upgrade existing road layout with active modes on both sides (Under construction) | K80: Transport - Drury West 2 IPA | Q80: 0.9359051828 | R80: 2060 | S80: 0 | T80: 0 | U80: 0 | V80: 0 | W80: 0 | X80: 0 | Y80: 0 | Z80: 0 | AA80: 0 | AB80: -345046.2226 | AC80: -345046.2226 | AF80: =IFERROR(VLOOKUP(K80,FA_Codes!C:F,2,FALSE),"CHECK") -> TRA A25 | AG80: -345046.2226 | AH80: =IFERROR(VLOOKUP(AF80,FA_Codes!D:F,3,FALSE),"CHECK") -> Local | AI80: 0.003146633103 | AJ80: 0.9968533669 | AK80: -22115.67456 | AL80: 0 | AM80: 0 | AN80: 0 | AO80: 0 | AP80: 0 | AQ80: 0 | AR80: 0 | AS80: 0 | AT80: 0 | AU80: -1016.143952 | AV80: -1016.143952 | AW80: 0 | AX80: 0 | AZ80: 0 | BA80: 0 | BB80: 0 | BC80: 0 | BD80: 0 | BE80: 0 | BF80: 0 | BG80: 0 | BH80: 0 | BI80: -321914.4041 | BJ80: -321914.4041 | BK80: OK | BL80: Bremner-Norrie Road east of SH1 up to GSR (overlap with project 12) TRA A25 0.935905182821966 2060 0.00314663310258024 | BM80: 2 | BN80: -322930.5481 | BO80: =IFERROR(VLOOKUP(AF80,FA_Codes!D:H,5,FALSE),"CHECK") -> 0 | BP80: TRA | BQ80: 0 | BR80: 36a TRA A25 | BS80: 36a | BT80: Arterial | BU80: 2060
B81: Transport | E81: 40a TRA A25 WK subsidy | F81: New intersection on Jesmond/Bremner Rd | G81: 2-lane signalised intersection (new intersection with active mode crossings) | K81: Transport - Drury West 2 IPA | Q81: 0.9359051828 | R81: 2060 | S81: 0 | T81: 0 | U81: 0 | V81: -75292.41369 | W81: -50648.47259 | X81: -508514.4499 | Y81: 0 | Z81: 0 | AA81: 0 | AB81: 0 | AC81: -634455.3362 | AF81: =IFERROR(VLOOKUP(K81,FA_Codes!C:F,2,FALSE),"CHECK") -> TRA A25 | AG81: -634455.3362 | AH81: =IFERROR(VLOOKUP(AF81,FA_Codes!D:F,3,FALSE),"CHECK") -> Local | AI81: 0.003146633103 | AJ81: 0.9968533669 | AK81: -40665.29878 | AL81: 0 | AM81: 0 | AN81: 0 | AO81: -221.732411 | AP81: -149.1572309 | AQ81: -1497.549746 | AR81: 0 | AS81: 0 | AT81: 0 | AU81: 0 | AV81: -1868.439388 | AW81: 0 | AX81: 0 | AZ81: 0 | BA81: 0 | BB81: 0 | BC81: -70244.82779 | BD81: -47253.01076 | BE81: -474423.7595 | BF81: 0 | BG81: 0 | BH81: 0 | BI81: 0 | BJ81: -591921.598 | BK81: OK | BL81: New intersection on Jesmond/Bremner Rd TRA A25 0.935905182821966 2060 0.00314663310258024 | BM81: 2 | BN81: -593790.0374 | BO81: =IFERROR(VLOOKUP(AF81,FA_Codes!D:H,5,FALSE),"CHECK") -> 0 | BP81: TRA | BQ81: 0 | BR81: 40a TRA A25 | BS81: 40a | BT81: Arterial | BU81: 2060
B82: Transport | E82: 40b TRA A25 WK subsidy | F82: Upgrade intersection on Jesmond/Bremner Rd | G82: Multi-lane signalised intersection (upgrade intersection with active mode crossings) | K82: Transport - Drury West 2 IPA | Q82: 0.9359051828 | R82: 2060 | S82: 0 | T82: 0 | U82: 0 | V82: 0 | W82: 0 | X82: 0 | Y82: 0 | Z82: 0 | AA82: -79248.18029 | AB82: -787337.8756 | AC82: -866586.0559 | AF82: =IFERROR(VLOOKUP(K82,FA_Codes!C:F,2,FALSE),"CHECK") -> TRA A25 | AG82: -866586.0559 | AH82: =IFERROR(VLOOKUP(AF82,FA_Codes!D:F,3,FALSE),"CHECK") -> Local | AI82: 0.003146633103 | AJ82: 0.9968533669 | AK82: -55543.67482 | AL82: 0 | AM82: 0 | AN82: 0 | AO82: 0 | AP82: 0 | AQ82: 0 | AR82: 0 | AS82: 0 | AT82: -233.3819467 | AU82: -2318.670857 | AV82: -2552.052804 | AW82: 0 | AX82: 0 | AZ82: 0 | BA82: 0 | BB82: 0 | BC82: 0 | BD82: 0 | BE82: 0 | BF82: 0 | BG82: 0 | BH82: -73935.40072 | BI82: -734554.9275 | BJ82: -808490.3283 | BK82: OK | BL82: Upgrade intersection on Jesmond/Bremner Rd TRA A25 0.935905182821966 2060 0.00314663310258024 | BM82: 2 | BN82: -811042.3811 | BO82: =IFERROR(VLOOKUP(AF82,FA_Codes!D:H,5,FALSE),"CHECK") -> 0 | BP82: TRA | BQ82: 0 | BR82: 40b TRA A25 | BS82: 40b | BT82: Arterial | BU82: 2060
B83: Transport | E83: 41a TRA A25 WK subsidy | F83: Jesmond Rd upgrades from SH22 to Waipupuke development boundary | G83: 2-lane urban- upgrade existing road with active modes on both sides (TDM) | K83: Transport - Drury West 2 IPA | Q83: 0.9359051828 | R83: 2060 | S83: 0 | T83: 0 | U83: 0 | V83: 0 | W83: -20707.00177 | X83: -205725.945 | Y83: 0 | Z83: 0 | AA83: 0 | AB83: 0 | AC83: -226432.9468 | AF83: =IFERROR(VLOOKUP(K83,FA_Codes!C:F,2,FALSE),"CHECK") -> TRA A25 | AG83: -226432.9468 | AH83: =IFERROR(VLOOKUP(AF83,FA_Codes!D:F,3,FALSE),"CHECK") -> Local | AI83: 0.003146633103 | AJ83: 0.9968533669 | AK83: -14513.17833 | AL83: 0 | AM83: 0 | AN83: 0 | AO83: 0 | AP83: -60.9810896 | AQ83: -605.8526689 | AR83: 0 | AS83: 0 | AT83: 0 | AU83: 0 | AV83: -666.8337585 | AW83: 0 | AX83: 0 | AZ83: 0 | BA83: 0 | BB83: 0 | BC83: 0 | BD83: -19318.80919 | BE83: -191934.1255 | BF83: 0 | BG83: 0 | BH83: 0 | BI83: 0 | BJ83: -211252.9347 | BK83: OK | BL83: Jesmond Rd upgrades from SH22 to Waipupuke development boundary TRA A25 0.935905182821966 2060 0.00314663310258024 | BM83: 2 | BN83: -211919.7685 | BO83: =IFERROR(VLOOKUP(AF83,FA_Codes!D:H,5,FALSE),"CHECK") -> 0 | BP83: TRA | BQ83: 0 | BR83: 41a TRA A25 | BS83: 41a | BT83: Arterial | BU83: 2060
B84: Transport | E84: 42b TRA A25 WK subsidy | F84: Jesmond Rd upgrades from project 41 to New Bremner Rd | G84: 2-lane urban- upgrade existing road with active mode facility on both sides (TDM) | K84: Transport - Drury West 2 IPA | Q84: 0.9359051828 | R84: 2060 | S84: 0 | T84: 0 | U84: 0 | V84: 0 | W84: 0 | X84: 0 | Y84: 0 | Z84: 0 | AA84: -35094.82982 | AB84: -348670.3247 | AC84: -383765.1545 | AF84: =IFERROR(VLOOKUP(K84,FA_Codes!C:F,2,FALSE),"CHECK") -> TRA A25 | AG84: -383765.1545 | AH84: =IFERROR(VLOOKUP(AF84,FA_Codes!D:F,3,FALSE),"CHECK") -> Local | AI84: 0.003146633103 | AJ84: 0.9968533669 | AK84: -24597.35742 | AL84: 0 | AM84: 0 | AN84: 0 | AO84: 0 | AP84: 0 | AQ84: 0 | AR84: 0 | AS84: 0 | AT84: -103.3525271 | AU84: -1026.816753 | AV84: -1130.16928 | AW84: 0 | AX84: 0 | AZ84: 0 | BA84: 0 | BB84: 0 | BC84: 0 | BD84: 0 | BE84: 0 | BF84: 0 | BG84: 0 | BH84: -32742.08059 | BI84: -325295.5472 | BJ84: -358037.6278 | BK84: OK | BL84: Jesmond Rd upgrades from project 41 to New Bremner Rd TRA A25 0.935905182821966 2060 0.00314663310258024 | BM84: 2 | BN84: -359167.7971 | BO84: =IFERROR(VLOOKUP(AF84,FA_Codes!D:H,5,FALSE),"CHECK") -> 0 | BP84: TRA | BQ84: 0 | BR84: 42b TRA A25 | BS84: 42b | BT84: Arterial | BU84: 2060
B85: Transport | E85: 67 TRA A25 WK subsidy | F85: Active Mode Corridor Drury Central to GSR | G85: 0 | K85: Transport - Drury West 2 IPA | Q85: 0.9359051828 | R85: 2060 | S85: 0 | T85: 0 | U85: 0 | V85: 0 | W85: 0 | X85: 0 | Y85: 0 | Z85: -62088.91378 | AA85: 0 | AB85: -646471.2697 | AC85: -708560.1835 | AF85: =IFERROR(VLOOKUP(K85,FA_Codes!C:F,2,FALSE),"CHECK") -> TRA A25 | AG85: -708560.1835 | AH85: =IFERROR(VLOOKUP(AF85,FA_Codes!D:F,3,FALSE),"CHECK") -> Local | AI85: 0.003146633103 | AJ85: 0.9968533669 | AK85: -45415.03542 | AL85: 0 | AM85: 0 | AN85: 0 | AO85: 0 | AP85: 0 | AQ85: 0 | AR85: 0 | AS85: -182.8487609 | AT85: 0 | AU85: -1903.825714 | AV85: -2086.674475 | AW85: 0 | AX85: 0 | AZ85: 0 | BA85: 0 | BB85: 0 | BC85: 0 | BD85: 0 | BE85: 0 | BF85: 0 | BG85: -57926.48744 | BH85: 0 | BI85: -603131.9861 | BJ85: -661058.4736 | BK85: OK | BL85: Active Mode Corridor Drury Central to GSR TRA A25 0.935905182821966 2060 0.00314663310258024 | BM85: 2 | BN85: -663145.1481 | BO85: =IFERROR(VLOOKUP(AF85,FA_Codes!D:H,5,FALSE),"CHECK") -> 0 | BP85: TRA | BQ85: 0 | BR85: 67 TRA A25 | BS85: 67 | BT85: Arterial | BU85: 2060
B86: Transport | E86: 70 TRA A25 WK subsidy | F86: walk/cycle bridges on GSR Road bridge over the rail corridor | G86: New cycle bridge 5m wide, 80m long, approach lengths 270m total for both sides. No property required | K86: Transport - Drury West 2 IPA | Q86: 0.9359051828 | R86: 2060 | S86: 0 | T86: 0 | U86: 0 | V86: 0 | W86: 0 | X86: 0 | Y86: 0 | Z86: 0 | AA86: -179997.5408 | AB86: -1789114.767 | AC86: -1969112.307 | AF86: =IFERROR(VLOOKUP(K86,FA_Codes!C:F,2,FALSE),"CHECK") -> TRA A25 | AG86: -1969112.307 | AH86: =IFERROR(VLOOKUP(AF86,FA_Codes!D:F,3,FALSE),"CHECK") -> Local | AI86: 0.003146633103 | AJ86: 0.9968533669 | AK86: -126209.8933 | AL86: 0 | AM86: 0 | AN86: 0 | AO86: 0 | AP86: 0 | AQ86: 0 | AR86: 0 | AS86: 0 | AT86: -530.0837991 | AU86: -5268.853942 | AV86: -5798.937741 | AW86: 0 | AX86: 0 | AZ86: 0 | BA86: 0 | BB86: 0 | BC86: 0 | BD86: 0 | BE86: 0 | BF86: 0 | BG86: 0 | BH86: -167930.5476 | BI86: -1669172.929 | BJ86: -1837103.476 | BK86: OK | BL86: walk/cycle bridges on GSR Road bridge over the rail corridor TRA A25 0.935905182821966 2060 0.00314663310258024 | BM86: 2 | BN86: -1842902.414 | BO86: =IFERROR(VLOOKUP(AF86,FA_Codes!D:H,5,FALSE),"CHECK") -> 0 | BP86: TRA | BQ86: 0 | BR86: 70 TRA A25 | BS86: 70 | BT86: Arterial | BU86: 2060
B87: Transport | E87: 1b TRA A26 | F87: GSR improvements - Waihoehoe Rd to Drury Interchange | G87: 4-lane urban- existing road layout with active modes on both sides + intersection improvements (TDM) | K87: Transport - Opaheke IPA | Q87: 0.7568010918 | R87: 2060 | S87: 0 | T87: 0 | U87: 0 | V87: 0 | W87: 0 | X87: 0 | Y87: 0 | Z87: 0 | AA87: 425680.3211 | AB87: 4229172.688 | AC87: 4654853.009 | AF87: =IFERROR(VLOOKUP(K87,FA_Codes!C:F,2,FALSE),"CHECK") -> TRA A26 | AG87: 4654853.009 | AH87: =IFERROR(VLOOKUP(AF87,FA_Codes!D:F,3,FALSE),"CHECK") -> Local | AI87: 0.118464793 | AJ87: 0.881535207 | AK87: 1132055.169 | AL87: 0 | AM87: 0 | AN87: 0 | AO87: 0 | AP87: 0 | AQ87: 0 | AR87: 0 | AS87: 0 | AT87: 38164.06469 | AU87: 379163.4521 | AV87: 417327.5168 | AW87: 0 | AX87: 0 | AZ87: 0 | BA87: 0 | BB87: 0 | BC87: 0 | BD87: 0 | BE87: 0 | BF87: 0 | BG87: 0 | BH87: 283991.2671 | BI87: 2821479.056 | BJ87: 3105470.323 | BK87: OK | BL87: GSR improvements - Waihoehoe Rd to Drury Interchange TRA A26 0.756801091847854 2060 0.118464792988818 | BM87: 2 | BN87: 3522797.84 | BO87: =IFERROR(VLOOKUP(AF87,FA_Codes!D:H,5,FALSE),"CHECK") -> 0 | BP87: TRA | BQ87: 4654853.009 | BR87: 1b TRA A26 | BS87: 1b | BT87: Arterial | BU87: 2060
B88: Transport | E88: 2a TRA A26 | F88: GSR improvements - From Drury School to Waihoehoe Rd | G88: 2-lane urban- existing road layout with active modes on both sides + intersection improvements (TDM) | K88: Transport - Opaheke IPA | Q88: 0.7568010918 | R88: 2060 | S88: 0 | T88: 0 | U88: 0 | V88: 0 | W88: 0 | X88: 0 | Y88: 0 | Z88: 259017.8231 | AA88: 2573365.62 | AB88: 0 | AC88: 2832383.443 | AF88: =IFERROR(VLOOKUP(K88,FA_Codes!C:F,2,FALSE),"CHECK") -> TRA A26 | AG88: 2832383.443 | AH88: =IFERROR(VLOOKUP(AF88,FA_Codes!D:F,3,FALSE),"CHECK") -> Local | AI88: 0.118464793 | AJ88: 0.881535207 | AK88: 688832.5608 | AL88: 0 | AM88: 0 | AN88: 0 | AO88: 0 | AP88: 0 | AQ88: 0 | AR88: 0 | AS88: 23222.05765 | AT88: 230713.2539 | AU88: 0 | AV88: 253935.3115 | AW88: 0 | AX88: 0 | AZ88: 0 | BA88: 0 | BB88: 0 | BC88: 0 | BD88: 0 | BE88: 0 | BF88: 0 | BG88: 172802.9137 | BH88: 1716812.657 | BI88: 0 | BJ88: 1889615.571 | BK88: OK | BL88: GSR improvements - From Drury School to Waihoehoe Rd TRA A26 0.756801091847854 2060 0.118464792988818 | BM88: 2 | BN88: 2143550.882 | BO88: =IFERROR(VLOOKUP(AF88,FA_Codes!D:H,5,FALSE),"CHECK") -> 0 | BP88: TRA | BQ88: 2832383.443 | BR88: 2a TRA A26 | BS88: 2a | BT88: Arterial | BU88: 2060
B89: Transport | E89: 4b TRA A26 | F89: Waihoehoe Rd East upgrades- from Fitzgerald Rd to before Cossey Rd (development boundary) | G89: Expand to 24m cross section | K89: Transport - Opaheke IPA | Q89: 0.7568010918 | R89: 2060 | S89: 0 | T89: 0 | U89: 1592.474604 | V89: 0 | W89: 0 | X89: 168193.3887 | Y89: 48036.64617 | Z89: 523792.0994 | AA89: 0 | AB89: 0 | AC89: 741614.6089 | AF89: =IFERROR(VLOOKUP(K89,FA_Codes!C:F,2,FALSE),"CHECK") -> TRA A26 | AG89: 741614.6089 | AH89: =IFERROR(VLOOKUP(AF89,FA_Codes!D:F,3,FALSE),"CHECK") -> Local | AI89: 0.118464793 | AJ89: 0.881535207 | AK89: 180359.8631 | AL89: 0 | AM89: 0 | AN89: 142.7721715 | AO89: 0 | AP89: 0 | AQ89: 15079.25795 | AR89: 4306.691151 | AS89: 46960.206 | AT89: 0 | AU89: 0 | AV89: 66488.92727 | AW89: 0 | AX89: 0 | AZ89: 0 | BA89: 0 | BB89: 1062.414347 | BC89: 0 | BD89: 0 | BE89: 112209.6822 | BF89: 32047.49512 | BG89: 349446.2268 | BH89: 0 | BI89: 0 | BJ89: 494765.8185 | BK89: OK | BL89: Waihoehoe Rd East upgrades- from Fitzgerald Rd to before Cossey Rd (development boundary) TRA A26 0.756801091847854 2060 0.118464792988818 | BM89: 2 | BN89: 561254.7457 | BO89: =IFERROR(VLOOKUP(AF89,FA_Codes!D:H,5,FALSE),"CHECK") -> 0 | BP89: TRA | BQ89: 741614.6089 | BR89: 4b TRA A26 | BS89: 4b | BT89: Arterial | BU89: 2060
B90: Transport | E90: 9b TRA A26 | F90: Upgrade in Norrie Rd/GSR/Waihoehoe intersection | G90: multi-lane signalised intersection with active mode crossings, SGA design | K90: Transport - Opaheke IPA | Q90: 0.7568010918 | R90: 2060 | S90: 0 | T90: 0 | U90: 0 | V90: 0 | W90: 0 | X90: 0 | Y90: 0 | Z90: 172392.7767 | AA90: 213805.4588 | AB90: 2160921.864 | AC90: 2547120.099 | AF90: =IFERROR(VLOOKUP(K90,FA_Codes!C:F,2,FALSE),"CHECK") -> TRA A26 | AG90: 2547120.099 | AH90: =IFERROR(VLOOKUP(AF90,FA_Codes!D:F,3,FALSE),"CHECK") -> Local | AI90: 0.118464793 | AJ90: 0.881535207 | AK90: 619456.8271 | AL90: 0 | AM90: 0 | AN90: 0 | AO90: 0 | AP90: 0 | AQ90: 0 | AR90: 0 | AS90: 15455.75108 | AT90: 19168.57547 | AU90: 193735.904 | AV90: 228360.2305 | AW90: 0 | AX90: 0 | AZ90: 0 | BA90: 0 | BB90: 0 | BC90: 0 | BD90: 0 | BE90: 0 | BF90: 0 | BG90: 115011.2906 | BH90: 142639.6292 | BI90: 1441652.122 | BJ90: 1699303.042 | BK90: OK | BL90: Upgrade in Norrie Rd/GSR/Waihoehoe intersection TRA A26 0.756801091847854 2060 0.118464792988818 | BM90: 2 | BN90: 1927663.272 | BO90: =IFERROR(VLOOKUP(AF90,FA_Codes!D:H,5,FALSE),"CHECK") -> 0 | BP90: TRA | BQ90: 2547120.099 | BR90: 9b TRA A26 | BS90: 9b | BT90: Arterial | BU90: 2060
B91: Transport | E91: 10b TRA A26 | F91: New intersection on Waihoehoe Rd/Fitzgerald Rd( including approach cross-sections) | G91: multi-lane roundabout with active mode crossings, SGA design | K91: Transport - Opaheke IPA | Q91: 0.7568010918 | R91: 2060 | S91: 0 | T91: 0 | U91: 0 | V91: 0 | W91: 0 | X91: 0 | Y91: 0 | Z91: 305378.7062 | AA91: 237399.2329 | AB91: 2397062.998 | AC91: 2939840.937 | AF91: =IFERROR(VLOOKUP(K91,FA_Codes!C:F,2,FALSE),"CHECK") -> TRA A26 | AG91: 2939840.937 | AH91: =IFERROR(VLOOKUP(AF91,FA_Codes!D:F,3,FALSE),"CHECK") -> Local | AI91: 0.118464793 | AJ91: 0.881535207 | AK91: 714966.106 | AL91: 0 | AM91: 0 | AN91: 0 | AO91: 0 | AP91: 0 | AQ91: 0 | AR91: 0 | AS91: 27378.50946 | AT91: 21283.85841 | AU91: 214906.9684 | AV91: 263569.3363 | AW91: 0 | AX91: 0 | AZ91: 0 | BA91: 0 | BB91: 0 | BC91: 0 | BD91: 0 | BE91: 0 | BF91: 0 | BG91: 203732.4288 | BH91: 158380.1403 | BI91: 1599192.925 | BJ91: 1961305.495 | BK91: OK | BL91: New intersection on Waihoehoe Rd/Fitzgerald Rd( including approach cross-sections) TRA A26 0.756801091847854 2060 0.118464792988818 | BM91: 2 | BN91: 2224874.831 | BO91: =IFERROR(VLOOKUP(AF91,FA_Codes!D:H,5,FALSE),"CHECK") -> 0 | BP91: TRA | BQ91: 2939840.937 | BR91: 10b TRA A26 | BS91: 10b | BT91: Arterial | BU91: 2060
B92: Transport | E92: 11 TRA A26 | F92: Intersection upgrade Waihoehoe Rd/Fielding Rd/Appleby Rd | G92: Roundabout as per SGA design | K92: Transport - Opaheke IPA | Q92: 0.7568010918 | R92: 2060 | S92: 0 | T92: 0 | U92: 0 | V92: 0 | W92: 0 | X92: 6357.954823 | Y92: 0 | Z92: 12672.04428 | AA92: 6474.524534 | AB92: 64324.98984 | AC92: 89829.51348 | AF92: =IFERROR(VLOOKUP(K92,FA_Codes!C:F,2,FALSE),"CHECK") -> TRA A26 | AG92: 89829.51348 | AH92: =IFERROR(VLOOKUP(AF92,FA_Codes!D:F,3,FALSE),"CHECK") -> Local | AI92: 0.118464793 | AJ92: 0.881535207 | AK92: 21846.4396 | AL92: 0 | AM92: 0 | AN92: 0 | AO92: 0 | AP92: 0 | AQ92: 570.0178917 | AR92: 0 | AS92: 1136.103066 | AT92: 580.4688657 | AU92: 5767.010951 | AV92: 8053.600774 | AW92: 0 | AX92: 0 | AZ92: 0 | BA92: 0 | BB92: 0 | BC92: 0 | BD92: 0 | BE92: 4241.68926 | BF92: 0 | BG92: 8454.113884 | BH92: 4319.458371 | BI92: 42914.21159 | BJ92: 59929.4731 | BK92: OK | BL92: Intersection upgrade Waihoehoe Rd/Fielding Rd/Appleby Rd TRA A26 0.756801091847854 2060 0.118464792988818 | BM92: 2 | BN92: 67983.07388 | BO92: =IFERROR(VLOOKUP(AF92,FA_Codes!D:H,5,FALSE),"CHECK") -> 0 | BP92: TRA | BQ92: 89829.51348 | BR92: 11 TRA A26 | BS92: 11 | BT92: Arterial | BU92: 2060
B93: Transport | E93: 23b TRA A26 | F93: Waihoehoe Rd West upgrades- between GSR & Kath Henry Lane | G93: Final 4-lane - following interim option, upgrade Road corridor to provide four lanes with additional turning lanes at intersections where required (as indicated in SGA Design | K93: Transport - Opaheke IPA | Q93: 0.7568010918 | R93: 2060 | S93: 0 | T93: 243536.1546 | U93: 0 | V93: 0 | W93: 0 | X93: 0 | Y93: 0 | Z93: 2397155.141 | AA93: 709289.3961 | AB93: 7100651.465 | AC93: 10450632.16 | AF93: =IFERROR(VLOOKUP(K93,FA_Codes!C:F,2,FALSE),"CHECK") -> TRA A26 | AG93: 10450632.16 | AH93: =IFERROR(VLOOKUP(AF93,FA_Codes!D:F,3,FALSE),"CHECK") -> Local | AI93: 0.118464793 | AJ93: 0.881535207 | AK93: 2541582.33 | AL93: 0 | AM93: 21834.05973 | AN93: 0 | AO93: 0 | AP93: 0 | AQ93: 0 | AR93: 0 | AS93: 214915.2294 | AT93: 63590.83344 | AU93: 636603.8279 | AV93: 936943.9505 | AW93: 0 | AX93: 0 | AZ93: 0 | BA93: 162474.3679 | BB93: 0 | BC93: 0 | BD93: 0 | BE93: 0 | BF93: 0 | BG93: 1599254.399 | BH93: 473200.156 | BI93: 4737176.954 | BJ93: 6972105.876 | BK93: OK | BL93: Waihoehoe Rd West upgrades- between GSR & Kath Henry Lane TRA A26 0.756801091847854 2060 0.118464792988818 | BM93: 2 | BN93: 7909049.827 | BO93: =IFERROR(VLOOKUP(AF93,FA_Codes!D:H,5,FALSE),"CHECK") -> 0 | BP93: TRA | BQ93: 10450632.16 | BR93: 23b TRA A26 | BS93: 23b | BT93: Arterial | BU93: 2060
B94: Transport | E94: 23d TRA A26 | F94: Waihoehoe Rd West upgrades- between Kath Henry Lane and Fitzgerald Rd | G94: Final 4-lane - following interim option, upgrade Road corridor to provide four lanes with additional turning lanes at intersections where required (as indicated in SGA Design | K94: Transport - Opaheke IPA | Q94: 0.7568010918 | R94: 2060 | S94: 0 | T94: 0 | U94: 0 | V94: 0 | W94: 0 | X94: 7926.582376 | Y94: 0 | Z94: 415403.5173 | AA94: 134772.874 | AB94: 1408000.827 | AC94: 1966103.801 | AF94: =IFERROR(VLOOKUP(K94,FA_Codes!C:F,2,FALSE),"CHECK") -> TRA A26 | AG94: 1966103.801 | AH94: =IFERROR(VLOOKUP(AF94,FA_Codes!D:F,3,FALSE),"CHECK") -> Local | AI94: 0.118464793 | AJ94: 0.881535207 | AK94: 478154.2977 | AL94: 0 | AM94: 0 | AN94: 0 | AO94: 0 | AP94: 0 | AQ94: 710.6520729 | AR94: 0 | AS94: 37242.7052 | AT94: 12082.96561 | AU94: 126233.307 | AV94: 176269.6299 | AW94: 0 | AX94: 0 | AZ94: 0 | BA94: 0 | BB94: 0 | BC94: 0 | BD94: 0 | BE94: 5288.194124 | BF94: 0 | BG94: 277135.1303 | BH94: 89913.29255 | BI94: 939343.2563 | BJ94: 1311679.873 | BK94: OK | BL94: Waihoehoe Rd West upgrades- between Kath Henry Lane and Fitzgerald Rd TRA A26 0.756801091847854 2060 0.118464792988818 | BM94: 2 | BN94: 1487949.503 | BO94: =IFERROR(VLOOKUP(AF94,FA_Codes!D:H,5,FALSE),"CHECK") -> 0 | BP94: TRA | BQ94: 1966103.801 | BR94: 23d TRA A26 | BS94: 23d | BT94: Arterial | BU94: 2060
B95: Transport | E95: 24 TRA A26 | F95: Upgrades on Waihoehoe Rd east- from project 4 to Drury Hills + Drury Hills Intersection | G95: 2-lane urban - upgrade existing road layout with active modes on both sides, 20m cross-section | K95: Transport - Opaheke IPA | Q95: 0.7568010918 | R95: 2060 | S95: 0 | T95: 0 | U95: 0 | V95: 0 | W95: 0 | X95: 11704.24207 | Y95: 0 | Z95: 0 | AA95: 0 | AB95: 0 | AC95: 11704.24207 | AF95: =IFERROR(VLOOKUP(K95,FA_Codes!C:F,2,FALSE),"CHECK") -> TRA A26 | AG95: 11704.24207 | AH95: =IFERROR(VLOOKUP(AF95,FA_Codes!D:F,3,FALSE),"CHECK") -> Local | AI95: 0.118464793 | AJ95: 0.881535207 | AK95: 2846.458892 | AL95: 0 | AM95: 0 | AN95: 0 | AO95: 0 | AP95: 0 | AQ95: 1049.33545 | AR95: 0 | AS95: 0 | AT95: 0 | AU95: 0 | AV95: 1049.33545 | AW95: 0 | AX95: 0 | AZ95: 0 | BA95: 0 | BB95: 0 | BC95: 0 | BD95: 0 | BE95: 7808.447726 | BF95: 0 | BG95: 0 | BH95: 0 | BI95: 0 | BJ95: 7808.447726 | BK95: OK | BL95: Upgrades on Waihoehoe Rd east- from project 4 to Drury Hills + Drury Hills Intersection TRA A26 0.756801091847854 2060 0.118464792988818 | BM95: 2 | BN95: 8857.783177 | BO95: =IFERROR(VLOOKUP(AF95,FA_Codes!D:H,5,FALSE),"CHECK") -> 0 | BP95: TRA | BQ95: 11704.24207 | BR95: 24 TRA A26 | BS95: 24 | BT95: Arterial | BU95: 2060
B96: Transport | E96: 36a TRA A26 | F96: Bremner-Norrie Road east of SH1 up to GSR (overlap with project 12) | G96: 2-lane urban- upgrade existing road layout with active modes on both sides (Under construction) | K96: Transport - Opaheke IPA | Q96: 0.7568010918 | R96: 2060 | S96: 0 | T96: 0 | U96: 0 | V96: 0 | W96: 0 | X96: 0 | Y96: 0 | Z96: 0 | AA96: 0 | AB96: 676561.2208 | AC96: 676561.2208 | AF96: =IFERROR(VLOOKUP(K96,FA_Codes!C:F,2,FALSE),"CHECK") -> TRA A26 | AG96: 676561.2208 | AH96: =IFERROR(VLOOKUP(AF96,FA_Codes!D:F,3,FALSE),"CHECK") -> Local | AI96: 0.118464793 | AJ96: 0.881535207 | AK96: 164538.9502 | AL96: 0 | AM96: 0 | AN96: 0 | AO96: 0 | AP96: 0 | AQ96: 0 | AR96: 0 | AS96: 0 | AT96: 0 | AU96: 60656.61229 | AV96: 60656.61229 | AW96: 0 | AX96: 0 | AZ96: 0 | BA96: 0 | BB96: 0 | BC96: 0 | BD96: 0 | BE96: 0 | BF96: 0 | BG96: 0 | BH96: 0 | BI96: 451365.6583 | BJ96: 451365.6583 | BK96: OK | BL96: Bremner-Norrie Road east of SH1 up to GSR (overlap with project 12) TRA A26 0.756801091847854 2060 0.118464792988818 | BM96: 2 | BN96: 512022.2706 | BO96: =IFERROR(VLOOKUP(AF96,FA_Codes!D:H,5,FALSE),"CHECK") -> 0 | BP96: TRA | BQ96: 676561.2208 | BR96: 36a TRA A26 | BS96: 36a | BT96: Arterial | BU96: 2060
B97: Transport | E97: 1b TRA A26 WK subsidy | F97: GSR improvements - Waihoehoe Rd to Drury Interchange | G97: 4-lane urban- existing road layout with active modes on both sides + intersection improvements (TDM) | K97: Transport - Opaheke IPA | Q97: 0.7568010918 | R97: 2060 | S97: 0 | T97: 0 | U97: 0 | V97: 0 | W97: 0 | X97: 0 | Y97: 0 | Z97: 0 | AA97: -217096.9637 | AB97: -2156878.071 | AC97: -2373975.035 | AF97: =IFERROR(VLOOKUP(K97,FA_Codes!C:F,2,FALSE),"CHECK") -> TRA A26 | AG97: -2373975.035 | AH97: =IFERROR(VLOOKUP(AF97,FA_Codes!D:F,3,FALSE),"CHECK") -> Local | AI97: 0.118464793 | AJ97: 0.881535207 | AK97: -577348.1364 | AL97: 0 | AM97: 0 | AN97: 0 | AO97: 0 | AP97: 0 | AQ97: 0 | AR97: 0 | AS97: 0 | AT97: -19463.67299 | AU97: -193373.3606 | AV97: -212837.0336 | AW97: 0 | AX97: 0 | AZ97: 0 | BA97: 0 | BB97: 0 | BC97: 0 | BD97: 0 | BE97: 0 | BF97: 0 | BG97: 0 | BH97: -144835.5462 | BI97: -1438954.318 | BJ97: -1583789.865 | BK97: OK | BL97: GSR improvements - Waihoehoe Rd to Drury Interchange TRA A26 0.756801091847854 2060 0.118464792988818 | BM97: 2 | BN97: -1796626.898 | BO97: =IFERROR(VLOOKUP(AF97,FA_Codes!D:H,5,FALSE),"CHECK") -> 0 | BP97: TRA | BQ97: 0 | BR97: 1b TRA A26 | BS97: 1b | BT97: Arterial | BU97: 2060
B98: Transport | E98: 2a TRA A26 WK subsidy | F98: GSR improvements - From Drury School to Waihoehoe Rd | G98: 2-lane urban- existing road layout with active modes on both sides + intersection improvements (TDM) | K98: Transport - Opaheke IPA | Q98: 0.7568010918 | R98: 2060 | S98: 0 | T98: 0 | U98: 0 | V98: 0 | W98: 0 | X98: 0 | Y98: 0 | Z98: -132099.0898 | AA98: -1312416.466 | AB98: 0 | AC98: -1444515.556 | AF98: =IFERROR(VLOOKUP(K98,FA_Codes!C:F,2,FALSE),"CHECK") -> TRA A26 | AG98: -1444515.556 | AH98: =IFERROR(VLOOKUP(AF98,FA_Codes!D:F,3,FALSE),"CHECK") -> Local | AI98: 0.118464793 | AJ98: 0.881535207 | AK98: -351304.606 | AL98: 0 | AM98: 0 | AN98: 0 | AO98: 0 | AP98: 0 | AQ98: 0 | AR98: 0 | AS98: -11843.2494 | AT98: -117663.7595 | AU98: 0 | AV98: -129507.0089 | AW98: 0 | AX98: 0 | AZ98: 0 | BA98: 0 | BB98: 0 | BC98: 0 | BD98: 0 | BE98: 0 | BF98: 0 | BG98: -88129.48599 | BH98: -875574.4551 | BI98: 0 | BJ98: -963703.941 | BK98: OK | BL98: GSR improvements - From Drury School to Waihoehoe Rd TRA A26 0.756801091847854 2060 0.118464792988818 | BM98: 2 | BN98: -1093210.95 | BO98: =IFERROR(VLOOKUP(AF98,FA_Codes!D:H,5,FALSE),"CHECK") -> 0 | BP98: TRA | BQ98: 0 | BR98: 2a TRA A26 | BS98: 2a | BT98: Arterial | BU98: 2060
B99: Transport | E99: 4b TRA A26 WK subsidy | F99: Waihoehoe Rd East upgrades- from Fitzgerald Rd to before Cossey Rd (development boundary) | G99: Expand to 24m cross section | K99: Transport - Opaheke IPA | Q99: 0.7568010918 | R99: 2060 | S99: 0 | T99: 0 | U99: -812.1620478 | V99: 0 | W99: 0 | X99: -85778.62821 | Y99: -24498.68955 | Z99: -267133.9707 | AA99: 0 | AB99: 0 | AC99: -378223.4505 | AF99: =IFERROR(VLOOKUP(K99,FA_Codes!C:F,2,FALSE),"CHECK") -> TRA A26 | AG99: -378223.4505 | AH99: =IFERROR(VLOOKUP(AF99,FA_Codes!D:F,3,FALSE),"CHECK") -> Local | AI99: 0.118464793 | AJ99: 0.881535207 | AK99: -91983.5302 | AL99: 0 | AM99: 0 | AN99: -72.81380744 | AO99: 0 | AP99: 0 | AQ99: -7690.421553 | AR99: -2196.412487 | AS99: -23949.70506 | AT99: 0 | AU99: 0 | AV99: -33909.35291 | AW99: 0 | AX99: 0 | AZ99: 0 | BA99: 0 | BB99: -541.8313171 | BC99: 0 | BD99: 0 | BE99: -57226.93793 | BF99: -16344.22251 | BG99: -178217.5756 | BH99: 0 | BI99: 0 | BJ99: -252330.5674 | BK99: OK | BL99: Waihoehoe Rd East upgrades- from Fitzgerald Rd to before Cossey Rd (development boundary) TRA A26 0.756801091847854 2060 0.118464792988818 | BM99: 2 | BN99: -286239.9203 | BO99: =IFERROR(VLOOKUP(AF99,FA_Codes!D:H,5,FALSE),"CHECK") -> 0 | BP99: TRA | BQ99: 0 | BR99: 4b TRA A26 | BS99: 4b | BT99: Arterial | BU99: 2060
B100: Transport | E100: 9b TRA A26 WK subsidy | F100: Upgrade in Norrie Rd/GSR/Waihoehoe intersection | G100: multi-lane signalised intersection with active mode crossings, SGA design | K100: Transport - Opaheke IPA | Q100: 0.7568010918 | R100: 2060 | S100: 0 | T100: 0 | U100: 0 | V100: 0 | W100: 0 | X100: 0 | Y100: 0 | Z100: -87920.31612 | AA100: -109040.784 | AB100: -1102070.151 | AC100: -1299031.251 | AF100: =IFERROR(VLOOKUP(K100,FA_Codes!C:F,2,FALSE),"CHECK") -> TRA A26 | AG100: -1299031.251 | AH100: =IFERROR(VLOOKUP(AF100,FA_Codes!D:F,3,FALSE),"CHECK") -> Local | AI100: 0.118464793 | AJ100: 0.881535207 | AK100: -315922.9818 | AL100: 0 | AM100: 0 | AN100: 0 | AO100: 0 | AP100: 0 | AQ100: 0 | AR100: 0 | AS100: -7882.433051 | AT100: -9775.973492 | AU100: -98805.31101 | AV100: -116463.7176 | AW100: 0 | AX100: 0 | AZ100: 0 | BA100: 0 | BB100: 0 | BC100: 0 | BD100: 0 | BE100: 0 | BF100: 0 | BG100: -58655.75819 | BH100: -72746.2109 | BI100: -735242.5822 | BJ100: -866644.5513 | BK100: OK | BL100: Upgrade in Norrie Rd/GSR/Waihoehoe intersection TRA A26 0.756801091847854 2060 0.118464792988818 | BM100: 2 | BN100: -983108.2689 | BO100: =IFERROR(VLOOKUP(AF100,FA_Codes!D:H,5,FALSE),"CHECK") -> 0 | BP100: TRA | BQ100: 0 | BR100: 9b TRA A26 | BS100: 9b | BT100: Arterial | BU100: 2060
B101: Transport | E101: 10b TRA A26 WK subsidy | F101: New intersection on Waihoehoe Rd/Fitzgerald Rd( including approach cross-sections) | G101: multi-lane roundabout with active mode crossings, SGA design | K101: Transport - Opaheke IPA | Q101: 0.7568010918 | R101: 2060 | S101: 0 | T101: 0 | U101: 0 | V101: 0 | W101: 0 | X101: 0 | Y101: 0 | Z101: -155743.1402 | AA101: -121073.6088 | AB101: -1222502.129 | AC101: -1499318.878 | AF101: =IFERROR(VLOOKUP(K101,FA_Codes!C:F,2,FALSE),"CHECK") -> TRA A26 | AG101: -1499318.878 | AH101: =IFERROR(VLOOKUP(AF101,FA_Codes!D:F,3,FALSE),"CHECK") -> Local | AI101: 0.118464793 | AJ101: 0.881535207 | AK101: -364632.714 | AL101: 0 | AM101: 0 | AN101: 0 | AO101: 0 | AP101: 0 | AQ101: 0 | AR101: 0 | AS101: -13963.03983 | AT101: -10854.76779 | AU101: -109602.5539 | AV101: -134420.3615 | AW101: 0 | AX101: 0 | AZ101: 0 | BA101: 0 | BB101: 0 | BC101: 0 | BD101: 0 | BE101: 0 | BF101: 0 | BG101: -103903.5387 | BH101: -80773.87153 | BI101: -815588.392 | BJ101: -1000265.802 | BK101: OK | BL101: New intersection on Waihoehoe Rd/Fitzgerald Rd( including approach cross-sections) TRA A26 0.756801091847854 2060 0.118464792988818 | BM101: 2 | BN101: -1134686.164 | BO101: =IFERROR(VLOOKUP(AF101,FA_Codes!D:H,5,FALSE),"CHECK") -> 0 | BP101: TRA | BQ101: 0 | BR101: 10b TRA A26 | BS101: 10b | BT101: Arterial | BU101: 2060
B102: Transport | E102: 11 TRA A26 WK subsidy | F102: Intersection upgrade Waihoehoe Rd/Fielding Rd/Appleby Rd | G102: Roundabout as per SGA design | K102: Transport - Opaheke IPA | Q102: 0.7568010918 | R102: 2060 | S102: 0 | T102: 0 | U102: 0 | V102: 0 | W102: 0 | X102: -3242.55696 | Y102: 0 | Z102: -6462.742585 | AA102: -3302.007512 | AB102: -32805.74482 | AC102: -45813.05187 | AF102: =IFERROR(VLOOKUP(K102,FA_Codes!C:F,2,FALSE),"CHECK") -> TRA A26 | AG102: -45813.05187 | AH102: =IFERROR(VLOOKUP(AF102,FA_Codes!D:F,3,FALSE),"CHECK") -> Local | AI102: 0.118464793 | AJ102: 0.881535207 | AK102: -11141.68419 | AL102: 0 | AM102: 0 | AN102: 0 | AO102: 0 | AP102: 0 | AQ102: -290.7091248 | AR102: 0 | AS102: -579.4125635 | AT102: -296.0391215 | AU102: -2941.175585 | AV102: -4107.336395 | AW102: 0 | AX102: 0 | AZ102: 0 | BA102: 0 | BB102: 0 | BC102: 0 | BD102: 0 | BE102: -2163.261523 | BF102: 0 | BG102: -4311.598081 | BH102: -2202.923769 | BI102: -21886.24791 | BJ102: -30564.03128 | BK102: OK | BL102: Intersection upgrade Waihoehoe Rd/Fielding Rd/Appleby Rd TRA A26 0.756801091847854 2060 0.118464792988818 | BM102: 2 | BN102: -34671.36768 | BO102: =IFERROR(VLOOKUP(AF102,FA_Codes!D:H,5,FALSE),"CHECK") -> 0 | BP102: TRA | BQ102: 0 | BR102: 11 TRA A26 | BS102: 11 | BT102: Arterial | BU102: 2060
B103: Transport | E103: 23b TRA A26 WK subsidy | F103: Waihoehoe Rd West upgrades- between GSR & Kath Henry Lane | G103: Final 4-lane - following interim option, upgrade Road corridor to provide four lanes with additional turning lanes at intersections where required (as indicated in SGA Design | K103: Transport - Opaheke IPA | Q103: 0.7568010918 | R103: 2060 | S103: 0 | T103: -124203.4388 | U103: 0 | V103: 0 | W103: 0 | X103: 0 | Y103: 0 | Z103: -1222549.122 | AA103: -361737.592 | AB103: -3621332.247 | AC103: -5329822.4 | AF103: =IFERROR(VLOOKUP(K103,FA_Codes!C:F,2,FALSE),"CHECK") -> TRA A26 | AG103: -5329822.4 | AH103: =IFERROR(VLOOKUP(AF103,FA_Codes!D:F,3,FALSE),"CHECK") -> Local | AI103: 0.118464793 | AJ103: 0.881535207 | AK103: -1296206.988 | AL103: 0 | AM103: -11135.37046 | AN103: 0 | AO103: 0 | AP103: 0 | AQ103: 0 | AR103: 0 | AS103: -109606.767 | AT103: -32431.32505 | AU103: -324667.9522 | AV103: -477841.4147 | AW103: 0 | AX103: 0 | AZ103: 0 | BA103: -82861.92765 | BB103: 0 | BC103: 0 | BD103: 0 | BE103: 0 | BF103: 0 | BG103: -815619.7432 | BH103: -241332.0795 | BI103: -2415960.246 | BJ103: -3555773.997 | BK103: OK | BL103: Waihoehoe Rd West upgrades- between GSR & Kath Henry Lane TRA A26 0.756801091847854 2060 0.118464792988818 | BM103: 2 | BN103: -4033615.412 | BO103: =IFERROR(VLOOKUP(AF103,FA_Codes!D:H,5,FALSE),"CHECK") -> 0 | BP103: TRA | BQ103: 0 | BR103: 23b TRA A26 | BS103: 23b | BT103: Arterial | BU103: 2060
B104: Transport | E104: 23d TRA A26 WK subsidy | F104: Waihoehoe Rd West upgrades- between Kath Henry Lane and Fitzgerald Rd | G104: Final 4-lane - following interim option, upgrade Road corridor to provide four lanes with additional turning lanes at intersections where required (as indicated in SGA Design | K104: Transport - Opaheke IPA | Q104: 0.7568010918 | R104: 2060 | S104: 0 | T104: 0 | U104: 0 | V104: 0 | W104: 0 | X104: -4042.557012 | Y104: 0 | Z104: -211855.7938 | AA104: -68734.16572 | AB104: -718080.4218 | AC104: -1002712.938 | AF104: =IFERROR(VLOOKUP(K104,FA_Codes!C:F,2,FALSE),"CHECK") -> TRA A26 | AG104: =AC104-AD104 -> -1002712.938 | AH104: =IFERROR(VLOOKUP(AF104,FA_Codes!D:F,3,FALSE),"CHECK") -> Local | AI104: 0.118464793 | AJ104: 0.881535207 | AK104: =AG104*(1-Q104) -> -243858.6918 | AL104: =S104*$Q104*$AI104*(1-$AX104) -> 0 | AM104: =T104*$Q104*$AI104*(1-$AX104) -> 0 | AN104: =U104*$Q104*$AI104*(1-$AX104) -> 0 | AO104: =V104*$Q104*$AI104*(1-$AX104) -> 0 | AP104: =W104*$Q104*$AI104*(1-$AX104) -> 0 | AQ104: =X104*$Q104*$AI104*(1-$AX104) -> -362.4325572 | AR104: =Y104*$Q104*$AI104*(1-$AX104) -> 0 | AS104: =Z104*$Q104*$AI104*(1-$AX104) -> -18993.77965 | AT104: =AA104*$Q104*$AI104*(1-$AX104) -> -6162.31246 | AU104: =AB104*$Q104*$AI104*(1-$AX104) -> -64378.98656 | AV104: -89897.51123 | AW104: =AD104 -> 0 | AX104: =IFERROR(AW104/AC104,0) -> 0 | AZ104: =S104*$Q104*$AJ104*(1-$AX104) -> 0 | BA104: =T104*$Q104*$AJ104*(1-$AX104) -> 0 | BB104: =U104*$Q104*$AJ104*(1-$AX104) -> 0 | BC104: =V104*$Q104*$AJ104*(1-$AX104) -> 0 | BD104: =W104*$Q104*$AJ104*(1-$AX104) -> 0 | BE104: =X104*$Q104*$AJ104*(1-$AX104) -> -2696.979003 | BF104: =Y104*$Q104*$AJ104*(1-$AX104) -> 0 | BG104: =Z104*$Q104*$AJ104*(1-$AX104) -> -141338.9164 | BH104: =AA104*$Q104*$AJ104*(1-$AX104) -> -45855.7792 | BI104: =AB104*$Q104*$AJ104*(1-$AX104) -> -479065.0607 | BJ104: -668956.7353 | BK104: OK | BL104: =IF($Q104=0,"",F104&" "&AF104&" "&Q104&" "&R104&" "&AI104) -> Waihoehoe Rd West upgrades- between Kath Henry Lane and Fitzgerald Rd TRA A26 0.756801091847854 2060 0.118464792988818 | BM104: =COUNTIF($BL$8:$BL$149,BL104) -> 2 | BN104: -758854.2466 | BO104: =IFERROR(VLOOKUP(AF104,FA_Codes!D:H,5,FALSE),"CHECK") -> 0 | BP104: =TRIM(LEFT(AF104,3)) -> TRA | BQ104: =IF(AC104>0,+AC104,0) -> 0 | BR104: =IF(RIGHT(E104,11)=" WK subsidy",LEFT(E104,LEN(E104)-11),E104) -> 23d TRA A26 | BS104: 23d | BT104: Arterial | BU104: =+R104 -> 2060
B105: Transport | E105: 24 TRA A26 WK subsidy | F105: Upgrades on Waihoehoe Rd east- from project 4 to Drury Hills + Drury Hills Intersection | G105: 2-lane urban - upgrade existing road layout with active modes on both sides, 20m cross-section | K105: Transport - Opaheke IPA | Q105: 0.7568010918 | R105: 2060 | S105: 0 | T105: 0 | U105: 0 | V105: 0 | W105: 0 | X105: -5969.163455 | Y105: 0 | Z105: 0 | AA105: 0 | AB105: 0 | AC105: -5969.163455 | AF105: =IFERROR(VLOOKUP(K105,FA_Codes!C:F,2,FALSE),"CHECK") -> TRA A26 | AG105: -5969.163455 | AH105: =IFERROR(VLOOKUP(AF105,FA_Codes!D:F,3,FALSE),"CHECK") -> Local | AI105: 0.118464793 | AJ105: 0.881535207 | AK105: -1451.694035 | AL105: 0 | AM105: 0 | AN105: 0 | AO105: 0 | AP105: 0 | AQ105: -535.1610797 | AR105: 0 | AS105: 0 | AT105: 0 | AU105: 0 | AV105: -535.1610797 | AW105: 0 | AX105: 0 | AZ105: 0 | BA105: 0 | BB105: 0 | BC105: 0 | BD105: 0 | BE105: -3982.30834 | BF105: 0 | BG105: 0 | BH105: 0 | BI105: 0 | BJ105: -3982.30834 | BK105: OK | BL105: Upgrades on Waihoehoe Rd east- from project 4 to Drury Hills + Drury Hills Intersection TRA A26 0.756801091847854 2060 0.118464792988818 | BM105: 2 | BN105: -4517.46942 | BO105: =IFERROR(VLOOKUP(AF105,FA_Codes!D:H,5,FALSE),"CHECK") -> 0 | BP105: TRA | BQ105: 0 | BR105: 24 TRA A26 | BS105: 24 | BT105: Arterial | BU105: 2060
B106: Transport | E106: 36a TRA A26 WK subsidy | F106: Bremner-Norrie Road east of SH1 up to GSR (overlap with project 12) | G106: 2-lane urban- upgrade existing road layout with active modes on both sides (Under construction) | K106: Transport - Opaheke IPA | Q106: 0.7568010918 | R106: 2060 | S106: 0 | T106: 0 | U106: 0 | V106: 0 | W106: 0 | X106: 0 | Y106: 0 | Z106: 0 | AA106: 0 | AB106: -345046.2226 | AC106: -345046.2226 | AF106: =IFERROR(VLOOKUP(K106,FA_Codes!C:F,2,FALSE),"CHECK") -> TRA A26 | AG106: -345046.2226 | AH106: =IFERROR(VLOOKUP(AF106,FA_Codes!D:F,3,FALSE),"CHECK") -> Local | AI106: 0.118464793 | AJ106: 0.881535207 | AK106: -83914.8646 | AL106: 0 | AM106: 0 | AN106: 0 | AO106: 0 | AP106: 0 | AQ106: 0 | AR106: 0 | AS106: 0 | AT106: 0 | AU106: -30934.87227 | AV106: -30934.87227 | AW106: 0 | AX106: 0 | AZ106: 0 | BA106: 0 | BB106: 0 | BC106: 0 | BD106: 0 | BE106: 0 | BF106: 0 | BG106: 0 | BH106: 0 | BI106: -230196.4857 | BJ106: -230196.4857 | BK106: OK | BL106: Bremner-Norrie Road east of SH1 up to GSR (overlap with project 12) TRA A26 0.756801091847854 2060 0.118464792988818 | BM106: 2 | BN106: -261131.358 | BO106: =IFERROR(VLOOKUP(AF106,FA_Codes!D:H,5,FALSE),"CHECK") -> 0 | BP106: TRA | BQ106: 0 | BR106: 36a TRA A26 | BS106: 36a | BT106: Arterial | BU106: 2060
B107: Transport | E107: 70 TRA A27 | F107: walk/cycle bridges on GSR Road bridge over the rail corridor | G107: New cycle bridge 5m wide, 80m long, approach lengths 270m total for both sides. No property required | K107: Transport - Southern Growth Area 3 | Q107: 0.834213969 | R107: 2060 | S107: 0 | T107: 0 | U107: 0 | V107: 0 | W107: 0 | X107: 0 | Y107: 0 | Z107: 0 | AA107: 16042.56157 | AB107: 159457.6441 | AC107: 175500.2057 | AF107: =IFERROR(VLOOKUP(K107,FA_Codes!C:F,2,FALSE),"CHECK") -> TRA A27 | AG107: 175500.2057 | AH107: =IFERROR(VLOOKUP(AF107,FA_Codes!D:F,3,FALSE),"CHECK") -> Local | AI107: 0.5017519271 | AJ107: 0.4982480729 | AK107: 29095.48254 | AL107: 0 | AM107: 0 | AN107: 0 | AO107: 0 | AP107: 0 | AQ107: 0 | AR107: 0 | AS107: 0 | AT107: 6714.910397 | AU107: 66743.94156 | AV107: 73458.85196 | AW107: 0 | AX107: 0 | AZ107: 0 | BA107: 0 | BB107: 0 | BC107: 0 | BD107: 0 | BE107: 0 | BF107: 0 | BG107: 0 | BH107: 6668.018564 | BI107: 66277.85259 | BJ107: 72945.87115 | BK107: OK | BL107: walk/cycle bridges on GSR Road bridge over the rail corridor TRA A27 0.834213968965223 2060 0.501751927119832 | BM107: 2 | BN107: 146404.7231 | BO107: =IFERROR(VLOOKUP(AF107,FA_Codes!D:H,5,FALSE),"CHECK") -> 0 | BP107: TRA | BQ107: 175500.2057 | BR107: 70 TRA A27 | BS107: 70 | BT107: Arterial | BU107: 2060
B108: Transport | E108: 70 TRA A27 WK subsidy | F108: walk/cycle bridges on GSR Road bridge over the rail corridor | G108: New cycle bridge 5m wide, 80m long, approach lengths 270m total for both sides. No property required | K108: Transport - Southern Growth Area 3 | Q108: 0.834213969 | R108: 2060 | S108: 0 | T108: 0 | U108: 0 | V108: 0 | W108: 0 | X108: 0 | Y108: 0 | Z108: 0 | AA108: -8181.706402 | AB108: -81323.39848 | AC108: -89505.10488 | AF108: =IFERROR(VLOOKUP(K108,FA_Codes!C:F,2,FALSE),"CHECK") -> TRA A27 | AG108: -89505.10488 | AH108: =IFERROR(VLOOKUP(AF108,FA_Codes!D:F,3,FALSE),"CHECK") -> Local | AI108: 0.5017519271 | AJ108: 0.4982480729 | AK108: -14838.6961 | AL108: 0 | AM108: 0 | AN108: 0 | AO108: 0 | AP108: 0 | AQ108: 0 | AR108: 0 | AS108: 0 | AT108: -3424.604302 | AU108: -34039.4102 | AV108: -37464.0145 | AW108: 0 | AX108: 0 | AZ108: 0 | BA108: 0 | BB108: 0 | BC108: 0 | BD108: 0 | BE108: 0 | BF108: 0 | BG108: 0 | BH108: -3400.689468 | BI108: -33801.70482 | BJ108: -37202.39429 | BK108: OK | BL108: walk/cycle bridges on GSR Road bridge over the rail corridor TRA A27 0.834213968965223 2060 0.501751927119832 | BM108: 2 | BN108: -74666.40879 | BO108: =IFERROR(VLOOKUP(AF108,FA_Codes!D:H,5,FALSE),"CHECK") -> 0 | BP108: TRA | BQ108: 0 | BR108: 70 TRA A27 | BS108: 70 | BT108: Arterial | BU108: 2060
B109: Transport | E109: 1b TRA A29 | F109: GSR improvements - Waihoehoe Rd to Drury Interchange | G109: 4-lane urban- existing road layout with active modes on both sides + intersection improvements (TDM) | K109: Transport - Southern Growth Area 2 | Q109: 0.6104738292 | R109: 2060 | S109: 0 | T109: 0 | U109: 0 | V109: 0 | W109: 0 | X109: 0 | Y109: 0 | Z109: 0 | AA109: 60811.47444 | AB109: 604167.5269 | AC109: 664979.0013 | AF109: =IFERROR(VLOOKUP(K109,FA_Codes!C:F,2,FALSE),"CHECK") -> TRA A28 | AG109: 664979.0013 | AH109: =IFERROR(VLOOKUP(AF109,FA_Codes!D:F,3,FALSE),"CHECK") -> Local | AI109: 0.3481591828 | AJ109: 0.6518408172 | AK109: 259026.7241 | AL109: 0 | AM109: 0 | AN109: 0 | AO109: 0 | AP109: 0 | AQ109: 0 | AR109: 0 | AS109: 0 | AT109: 12924.99663 | AU109: 128411.0165 | AV109: 141336.0131 | AW109: 0 | AX109: 0 | AZ109: 0 | BA109: 0 | BB109: 0 | BC109: 0 | BD109: 0 | BE109: 0 | BF109: 0 | BG109: 0 | BH109: 24198.81703 | BI109: 240417.4471 | BJ109: 264616.2641 | BK109: OK | BL109: GSR improvements - Waihoehoe Rd to Drury Interchange TRA A28 0.610473829173856 2060 0.348159182804852 | BM109: 2 | BN109: 405952.2772 | BO109: =IFERROR(VLOOKUP(AF109,FA_Codes!D:H,5,FALSE),"CHECK") -> 0 | BP109: TRA | BQ109: 664979.0013 | BR109: 1b TRA A29 | BS109: 1b | BT109: Arterial | BU109: 2060
B110: Transport | E110: 2a TRA A29 | F110: GSR improvements - From Drury School to Waihoehoe Rd | G110: 2-lane urban- existing road layout with active modes on both sides + intersection improvements (TDM) | K110: Transport - Southern Growth Area 2 | Q110: 0.6104738292 | R110: 2060 | S110: 0 | T110: 0 | U110: 0 | V110: 0 | W110: 0 | X110: 0 | Y110: 0 | Z110: 37002.54616 | AA110: 367623.66 | AB110: 0 | AC110: 404626.2061 | AF110: =IFERROR(VLOOKUP(K110,FA_Codes!C:F,2,FALSE),"CHECK") -> TRA A28 | AG110: 404626.2061 | AH110: =IFERROR(VLOOKUP(AF110,FA_Codes!D:F,3,FALSE),"CHECK") -> Local | AI110: 0.3481591828 | AJ110: 0.6518408172 | AK110: 157612.4967 | AL110: 0 | AM110: 0 | AN110: 0 | AO110: 0 | AP110: 0 | AQ110: 0 | AR110: 0 | AS110: 7864.597737 | AT110: 78135.49349 | AU110: 0 | AV110: 86000.09122 | AW110: 0 | AX110: 0 | AZ110: 0 | BA110: 0 | BB110: 0 | BC110: 0 | BD110: 0 | BE110: 0 | BF110: 0 | BG110: 14724.48831 | BH110: 146289.1299 | BI110: 0 | BJ110: 161013.6182 | BK110: OK | BL110: GSR improvements - From Drury School to Waihoehoe Rd TRA A28 0.610473829173856 2060 0.348159182804852 | BM110: 2 | BN110: 247013.7094 | BO110: =IFERROR(VLOOKUP(AF110,FA_Codes!D:H,5,FALSE),"CHECK") -> 0 | BP110: TRA | BQ110: 404626.2061 | BR110: 2a TRA A29 | BS110: 2a | BT110: Arterial | BU110: 2060
B111: Transport | E111: 9b TRA A29 | F111: Upgrade in Norrie Rd/GSR/Waihoehoe intersection | G111: multi-lane signalised intersection with active mode crossings, SGA design | K111: Transport - Southern Growth Area 2 | Q111: 0.6104738292 | R111: 2060 | S111: 0 | T111: 0 | U111: 0 | V111: 0 | W111: 0 | X111: 0 | Y111: 0 | Z111: 21549.09709 | AA111: 26725.68236 | AB111: 270115.233 | AC111: 318390.0124 | AF111: =IFERROR(VLOOKUP(K111,FA_Codes!C:F,2,FALSE),"CHECK") -> TRA A28 | AG111: 318390.0124 | AH111: =IFERROR(VLOOKUP(AF111,FA_Codes!D:F,3,FALSE),"CHECK") -> Local | AI111: 0.3481591828 | AJ111: 0.6518408172 | AK111: 124021.2424 | AL111: 0 | AM111: 0 | AN111: 0 | AO111: 0 | AP111: 0 | AQ111: 0 | AR111: 0 | AS111: 4580.089691 | AT111: 5680.331836 | AU111: 57410.85062 | AV111: 67671.27215 | AW111: 0 | AX111: 0 | AZ111: 0 | BA111: 0 | BB111: 0 | BC111: 0 | BD111: 0 | BE111: 0 | BF111: 0 | BG111: 8575.070124 | BH111: 10634.99781 | BI111: 107487.43 | BJ111: 126697.4979 | BK111: OK | BL111: Upgrade in Norrie Rd/GSR/Waihoehoe intersection TRA A28 0.610473829173856 2060 0.348159182804852 | BM111: 2 | BN111: 194368.7701 | BO111: =IFERROR(VLOOKUP(AF111,FA_Codes!D:H,5,FALSE),"CHECK") -> 0 | BP111: TRA | BQ111: 318390.0124 | BR111: 9b TRA A29 | BS111: 9b | BT111: Arterial | BU111: 2060
B112: Transport | E112: 23b TRA A29 | F112: Waihoehoe Rd West upgrades- between GSR & Kath Henry Lane | G112: Final 4-lane - following interim option, upgrade Road corridor to provide four lanes with additional turning lanes at intersections where required (as indicated in SGA Design | K112: Transport - Southern Growth Area 2 | Q112: 0.6104738292 | R112: 2060 | S112: 0 | T112: 69581.75844 | U112: 0 | V112: 0 | W112: 0 | X112: 0 | Y112: 0 | Z112: 684901.4688 | AA112: 202654.1132 | AB112: 2028757.561 | AC112: 2985894.902 | AF112: =IFERROR(VLOOKUP(K112,FA_Codes!C:F,2,FALSE),"CHECK") -> TRA A28 | AG112: 2985894.902 | AH112: =IFERROR(VLOOKUP(AF112,FA_Codes!D:F,3,FALSE),"CHECK") -> Local | AI112: 0.3481591828 | AJ112: 0.6518408172 | AK112: 1163084.208 | AL112: 0 | AM112: 14789.05094 | AN112: 0 | AO112: 0 | AP112: 0 | AQ112: 0 | AR112: 0 | AS112: 145570.3756 | AT112: 43072.5246 | AU112: 431196.3306 | AV112: 634628.2817 | AW112: 0 | AX112: 0 | AZ112: 0 | BA112: 27688.79158 | BB112: 0 | BC112: 0 | BD112: 0 | BE112: 0 | BF112: 0 | BG112: 272544.0467 | BH112: 80642.50786 | BI112: 807307.0664 | BJ112: 1188182.413 | BK112: OK | BL112: Waihoehoe Rd West upgrades- between GSR & Kath Henry Lane TRA A28 0.610473829173856 2060 0.348159182804852 | BM112: 2 | BN112: 1822810.694 | BO112: =IFERROR(VLOOKUP(AF112,FA_Codes!D:H,5,FALSE),"CHECK") -> 0 | BP112: TRA | BQ112: 2985894.902 | BR112: 23b TRA A29 | BS112: 23b | BT112: Arterial | BU112: 2060
B113: Transport | E113: 23d TRA A29 | F113: Waihoehoe Rd West upgrades- between Kath Henry Lane and Fitzgerald Rd | G113: Final 4-lane - following interim option, upgrade Road corridor to provide four lanes with additional turning lanes at intersections where required (as indicated in SGA Design | K113: Transport - Southern Growth Area 2 | Q113: 0.6104738292 | R113: 2060 | S113: 0 | T113: 0 | U113: 0 | V113: 0 | W113: 0 | X113: 2264.737822 | Y113: 0 | Z113: 118686.7192 | AA113: 38506.53542 | AB113: 402285.9506 | AC113: 561743.9431 | AF113: =IFERROR(VLOOKUP(K113,FA_Codes!C:F,2,FALSE),"CHECK") -> TRA A28 | AG113: 561743.9431 | AH113: =IFERROR(VLOOKUP(AF113,FA_Codes!D:F,3,FALSE),"CHECK") -> Local | AI113: 0.3481591828 | AJ113: 0.6518408172 | AK113: 218813.9671 | AL113: 0 | AM113: 0 | AN113: 0 | AO113: 0 | AP113: 0 | AQ113: 481.3520635 | AR113: 0 | AS113: 25225.92093 | AT113: 8184.258726 | AU113: 85502.68846 | AV113: 119394.2202 | AW113: 0 | AX113: 0 | AZ113: 0 | BA113: 0 | BB113: 0 | BC113: 0 | BD113: 0 | BE113: 901.2111067 | BF113: 0 | BG113: 47229.21504 | BH113: 15322.9734 | BI113: 160082.3562 | BJ113: 223535.7558 | BK113: OK | BL113: Waihoehoe Rd West upgrades- between Kath Henry Lane and Fitzgerald Rd TRA A28 0.610473829173856 2060 0.348159182804852 | BM113: 2 | BN113: 342929.9759 | BO113: =IFERROR(VLOOKUP(AF113,FA_Codes!D:H,5,FALSE),"CHECK") -> 0 | BP113: TRA | BQ113: 561743.9431 | BR113: 23d TRA A29 | BS113: 23d | BT113: Arterial | BU113: 2060
B114: Transport | E114: 67 TRA A29 | F114: Active Mode Corridor Drury Central to GSR | G114: 0 | K114: Transport - Southern Growth Area 2 | Q114: 0.6104738292 | R114: 2060 | S114: 0 | T114: 0 | U114: 0 | V114: 0 | W114: 0 | X114: 0 | Y114: 0 | Z114: 547843.3569 | AA114: 0 | AB114: 5704158.262 | AC114: 6252001.619 | AF114: =IFERROR(VLOOKUP(K114,FA_Codes!C:F,2,FALSE),"CHECK") -> TRA A28 | AG114: 6252001.619 | AH114: =IFERROR(VLOOKUP(AF114,FA_Codes!D:F,3,FALSE),"CHECK") -> Local | AI114: 0.3481591828 | AJ114: 0.6518408172 | AK114: 2435318.251 | AL114: 0 | AM114: 0 | AN114: 0 | AO114: 0 | AP114: 0 | AQ114: 0 | AR114: 0 | AS114: 116439.7608 | AT114: 0 | AU114: 1212373.602 | AV114: 1328813.363 | AW114: 0 | AX114: 0 | AZ114: 0 | BA114: 0 | BB114: 0 | BC114: 0 | BD114: 0 | BE114: 0 | BF114: 0 | BG114: 218004.271 | BH114: 0 | BI114: 2269865.735 | BJ114: 2487870.006 | BK114: OK | BL114: Active Mode Corridor Drury Central to GSR TRA A28 0.610473829173856 2060 0.348159182804852 | BM114: 2 | BN114: 3816683.368 | BO114: =IFERROR(VLOOKUP(AF114,FA_Codes!D:H,5,FALSE),"CHECK") -> 0 | BP114: TRA | BQ114: 6252001.619 | BR114: 67 TRA A29 | BS114: 67 | BT114: Arterial | BU114: 2060
B115: Transport | E115: 1b TRA A29 WK subsidy | F115: GSR improvements - Waihoehoe Rd to Drury Interchange | G115: 4-lane urban- existing road layout with active modes on both sides + intersection improvements (TDM) | K115: Transport - Southern Growth Area 2 | Q115: 0.6104738292 | R115: 2060 | S115: 0 | T115: 0 | U115: 0 | V115: 0 | W115: 0 | X115: 0 | Y115: 0 | Z115: 0 | AA115: -31013.85196 | AB115: -308125.4387 | AC115: -339139.2907 | AF115: =IFERROR(VLOOKUP(K115,FA_Codes!C:F,2,FALSE),"CHECK") -> TRA A28 | AG115: -339139.2907 | AH115: =IFERROR(VLOOKUP(AF115,FA_Codes!D:F,3,FALSE),"CHECK") -> Local | AI115: 0.3481591828 | AJ115: 0.6518408172 | AK115: -132103.6293 | AL115: 0 | AM115: 0 | AN115: 0 | AO115: 0 | AP115: 0 | AQ115: 0 | AR115: 0 | AS115: 0 | AT115: -6591.748279 | AU115: -65489.6184 | AV115: -72081.36668 | AW115: 0 | AX115: 0 | AZ115: 0 | BA115: 0 | BB115: 0 | BC115: 0 | BD115: 0 | BE115: 0 | BF115: 0 | BG115: 0 | BH115: -12341.39669 | BI115: -122612.898 | BJ115: -134954.2947 | BK115: OK | BL115: GSR improvements - Waihoehoe Rd to Drury Interchange TRA A28 0.610473829173856 2060 0.348159182804852 | BM115: 2 | BN115: -207035.6614 | BO115: =IFERROR(VLOOKUP(AF115,FA_Codes!D:H,5,FALSE),"CHECK") -> 0 | BP115: TRA | BQ115: 0 | BR115: 1b TRA A29 | BS115: 1b | BT115: Arterial | BU115: 2060
B116: Transport | E116: 2a TRA A29 WK subsidy | F116: GSR improvements - From Drury School to Waihoehoe Rd | G116: 2-lane urban- existing road layout with active modes on both sides + intersection improvements (TDM) | K116: Transport - Southern Growth Area 2 | Q116: 0.6104738292 | R116: 2060 | S116: 0 | T116: 0 | U116: 0 | V116: 0 | W116: 0 | X116: 0 | Y116: 0 | Z116: -18871.29854 | AA116: -187488.0666 | AB116: 0 | AC116: -206359.3651 | AF116: =IFERROR(VLOOKUP(K116,FA_Codes!C:F,2,FALSE),"CHECK") -> TRA A28 | AG116: -206359.3651 | AH116: =IFERROR(VLOOKUP(AF116,FA_Codes!D:F,3,FALSE),"CHECK") -> Local | AI116: 0.3481591828 | AJ116: 0.6518408172 | AK116: -80382.37331 | AL116: 0 | AM116: 0 | AN116: 0 | AO116: 0 | AP116: 0 | AQ116: 0 | AR116: 0 | AS116: -4010.944846 | AT116: -39849.10168 | AU116: 0 | AV116: -43860.04652 | AW116: 0 | AX116: 0 | AZ116: 0 | BA116: 0 | BB116: 0 | BC116: 0 | BD116: 0 | BE116: 0 | BF116: 0 | BG116: -7509.489036 | BH116: -74607.45626 | BI116: 0 | BJ116: -82116.94529 | BK116: OK | BL116: GSR improvements - From Drury School to Waihoehoe Rd TRA A28 0.610473829173856 2060 0.348159182804852 | BM116: 2 | BN116: -125976.9918 | BO116: =IFERROR(VLOOKUP(AF116,FA_Codes!D:H,5,FALSE),"CHECK") -> 0 | BP116: TRA | BQ116: 0 | BR116: 2a TRA A29 | BS116: 2a | BT116: Arterial | BU116: 2060
B117: Transport | E117: 9b TRA A29 WK subsidy | F117: Upgrade in Norrie Rd/GSR/Waihoehoe intersection | G117: multi-lane signalised intersection with active mode crossings, SGA design | K117: Transport - Southern Growth Area 2 | Q117: 0.6104738292 | R117: 2060 | S117: 0 | T117: 0 | U117: 0 | V117: 0 | W117: 0 | X117: 0 | Y117: 0 | Z117: -10990.03952 | AA117: -13630.098 | AB117: -137758.7688 | AC117: -162378.9063 | AF117: =IFERROR(VLOOKUP(K117,FA_Codes!C:F,2,FALSE),"CHECK") -> TRA A28 | AG117: -162378.9063 | AH117: =IFERROR(VLOOKUP(AF117,FA_Codes!D:F,3,FALSE),"CHECK") -> Local | AI117: 0.3481591828 | AJ117: 0.6518408172 | AK117: -63250.83361 | AL117: 0 | AM117: 0 | AN117: 0 | AO117: 0 | AP117: 0 | AQ117: 0 | AR117: 0 | AS117: -2335.845742 | AT117: -2896.969237 | AU117: -29279.53382 | AV117: -34512.34879 | AW117: 0 | AX117: 0 | AZ117: 0 | BA117: 0 | BB117: 0 | BC117: 0 | BD117: 0 | BE117: 0 | BF117: 0 | BG117: -4373.285763 | BH117: -5423.848882 | BI117: -54818.58929 | BJ117: -64615.72393 | BK117: OK | BL117: Upgrade in Norrie Rd/GSR/Waihoehoe intersection TRA A28 0.610473829173856 2060 0.348159182804852 | BM117: 2 | BN117: -99128.07273 | BO117: =IFERROR(VLOOKUP(AF117,FA_Codes!D:H,5,FALSE),"CHECK") -> 0 | BP117: TRA | BQ117: 0 | BR117: 9b TRA A29 | BS117: 9b | BT117: Arterial | BU117: 2060
B118: Transport | E118: 23b TRA A29 WK subsidy | F118: Waihoehoe Rd West upgrades- between GSR & Kath Henry Lane | G118: Final 4-lane - following interim option, upgrade Road corridor to provide four lanes with additional turning lanes at intersections where required (as indicated in SGA Design | K118: Transport - Southern Growth Area 2 | Q118: 0.6104738292 | R118: 2060 | S118: 0 | T118: -35486.69681 | U118: 0 | V118: 0 | W118: 0 | X118: 0 | Y118: 0 | Z118: -349299.7491 | AA118: -103353.5977 | AB118: -1034666.356 | AC118: -1522806.4 | AF118: =IFERROR(VLOOKUP(K118,FA_Codes!C:F,2,FALSE),"CHECK") -> TRA A28 | AG118: -1522806.4 | AH118: =IFERROR(VLOOKUP(AF118,FA_Codes!D:F,3,FALSE),"CHECK") -> Local | AI118: 0.3481591828 | AJ118: 0.6518408172 | AK118: -593172.9459 | AL118: 0 | AM118: -7542.415979 | AN118: 0 | AO118: 0 | AP118: 0 | AQ118: 0 | AR118: 0 | AS118: -74240.89154 | AT118: -21966.98755 | AU118: -219910.1286 | AV118: -323660.4237 | AW118: 0 | AX118: 0 | AZ118: 0 | BA118: -14121.28371 | BB118: 0 | BC118: 0 | BD118: 0 | BE118: 0 | BF118: 0 | BG118: -138997.4638 | BH118: -41127.67901 | BI118: -411726.6039 | BJ118: -605973.0304 | BK118: OK | BL118: Waihoehoe Rd West upgrades- between GSR & Kath Henry Lane TRA A28 0.610473829173856 2060 0.348159182804852 | BM118: 2 | BN118: -929633.4541 | BO118: =IFERROR(VLOOKUP(AF118,FA_Codes!D:H,5,FALSE),"CHECK") -> 0 | BP118: TRA | BQ118: 0 | BR118: 23b TRA A29 | BS118: 23b | BT118: Arterial | BU118: 2060
B119: Transport | E119: 23d TRA A29 WK subsidy | F119: Waihoehoe Rd West upgrades- between Kath Henry Lane and Fitzgerald Rd | G119: Final 4-lane - following interim option, upgrade Road corridor to provide four lanes with additional turning lanes at intersections where required (as indicated in SGA Design | K119: Transport - Southern Growth Area 2 | Q119: 0.6104738292 | R119: 2060 | S119: 0 | T119: 0 | U119: 0 | V119: 0 | W119: 0 | X119: -1155.016289 | Y119: 0 | Z119: -60530.22681 | AA119: -19638.33306 | AB119: -205165.8348 | AC119: -286489.411 | AF119: =IFERROR(VLOOKUP(K119,FA_Codes!C:F,2,FALSE),"CHECK") -> TRA A28 | AG119: -286489.411 | AH119: =IFERROR(VLOOKUP(AF119,FA_Codes!D:F,3,FALSE),"CHECK") -> Local | AI119: 0.3481591828 | AJ119: 0.6518408172 | AK119: -111595.1232 | AL119: 0 | AM119: 0 | AN119: 0 | AO119: 0 | AP119: 0 | AQ119: -245.4895524 | AR119: 0 | AS119: -12865.21967 | AT119: -4173.97195 | AU119: -43606.37112 | AV119: -60891.05229 | AW119: 0 | AX119: 0 | AZ119: 0 | BA119: 0 | BB119: 0 | BC119: 0 | BD119: 0 | BE119: -459.6176644 | BF119: 0 | BG119: -24086.89967 | BH119: -7814.716433 | BI119: -81642.00167 | BJ119: -114003.2354 | BK119: OK | BL119: Waihoehoe Rd West upgrades- between Kath Henry Lane and Fitzgerald Rd TRA A28 0.610473829173856 2060 0.348159182804852 | BM119: 2 | BN119: -174894.2877 | BO119: =IFERROR(VLOOKUP(AF119,FA_Codes!D:H,5,FALSE),"CHECK") -> 0 | BP119: TRA | BQ119: 0 | BR119: 23d TRA A29 | BS119: 23d | BT119: Arterial | BU119: 2060
B120: Transport | E120: 67 TRA A29 WK subsidy | F120: Active Mode Corridor Drury Central to GSR | G120: 0 | K120: Transport - Southern Growth Area 2 | Q120: 0.6104738292 | R120: 2060 | S120: 0 | T120: 0 | U120: 0 | V120: 0 | W120: 0 | X120: 0 | Y120: 0 | Z120: -279400.112 | AA120: 0 | AB120: -2909120.714 | AC120: -3188520.826 | AF120: =IFERROR(VLOOKUP(K120,FA_Codes!C:F,2,FALSE),"CHECK") -> TRA A28 | AG120: -3188520.826 | AH120: =IFERROR(VLOOKUP(AF120,FA_Codes!D:F,3,FALSE),"CHECK") -> Local | AI120: 0.3481591828 | AJ120: 0.6518408172 | AK120: -1242012.308 | AL120: 0 | AM120: 0 | AN120: 0 | AO120: 0 | AP120: 0 | AQ120: 0 | AR120: 0 | AS120: -59384.27802 | AT120: 0 | AU120: -618310.5369 | AV120: -677694.8149 | AW120: 0 | AX120: 0 | AZ120: 0 | BA120: 0 | BB120: 0 | BC120: 0 | BD120: 0 | BE120: 0 | BF120: 0 | BG120: -111182.1782 | BH120: 0 | BI120: -1157631.525 | BJ120: -1268813.703 | BK120: OK | BL120: Active Mode Corridor Drury Central to GSR TRA A28 0.610473829173856 2060 0.348159182804852 | BM120: 2 | BN120: -1946508.518 | BO120: =IFERROR(VLOOKUP(AF120,FA_Codes!D:H,5,FALSE),"CHECK") -> 0 | BP120: TRA | BQ120: 0 | BR120: 67 TRA A29 | BS120: 67 | BT120: Arterial | BU120: 2060
B121: Transport | E121: 1b TRA A28 | F121: GSR improvements - Waihoehoe Rd to Drury Interchange | G121: 4-lane urban- existing road layout with active modes on both sides + intersection improvements (TDM) | K121: Transport - Southern Growth Area 1 | Q121: 0.3634932839 | R121: 2060 | S121: 0 | T121: 0 | U121: 0 | V121: 0 | W121: 0 | X121: 0 | Y121: 0 | Z121: 0 | AA121: 121622.9489 | AB121: 1208335.054 | AC121: 1329958.003 | AF121: =IFERROR(VLOOKUP(K121,FA_Codes!C:F,2,FALSE),"CHECK") -> TRA A29 | AG121: 1329958.003 | AH121: =IFERROR(VLOOKUP(AF121,FA_Codes!D:F,3,FALSE),"CHECK") -> Local | AI121: 0.4060062402 | AJ121: 0.5939937598 | AK121: 846527.2008 | AL121: 0 | AM121: 0 | AN121: 0 | AO121: 0 | AP121: 0 | AQ121: 0 | AR121: 0 | AS121: 0 | AT121: 17949.18066 | AU121: 178326.7416 | AV121: 196275.9223 | AW121: 0 | AX121: 0 | AZ121: 0 | BA121: 0 | BB121: 0 | BC121: 0 | BD121: 0 | BE121: 0 | BF121: 0 | BG121: 0 | BH121: 26259.94442 | BI121: 260894.9351 | BJ121: 287154.8795 | BK121: OK | BL121: GSR improvements - Waihoehoe Rd to Drury Interchange TRA A29 0.363493283880925 2060 0.40600624024961 | BM121: 2 | BN121: 483430.8018 | BO121: =IFERROR(VLOOKUP(AF121,FA_Codes!D:H,5,FALSE),"CHECK") -> 0 | BP121: TRA | BQ121: 1329958.003 | BR121: 1b TRA A28 | BS121: 1b | BT121: Arterial | BU121: 2060
B122: Transport | E122: 2a TRA A28 | F122: GSR improvements - From Drury School to Waihoehoe Rd | G122: 2-lane urban- existing road layout with active modes on both sides + intersection improvements (TDM) | K122: Transport - Southern Growth Area 1 | Q122: 0.3634932839 | R122: 2060 | S122: 0 | T122: 0 | U122: 0 | V122: 0 | W122: 0 | X122: 0 | Y122: 0 | Z122: 74005.09232 | AA122: 735247.32 | AB122: 0 | AC122: 809252.4123 | AF122: =IFERROR(VLOOKUP(K122,FA_Codes!C:F,2,FALSE),"CHECK") -> TRA A29 | AG122: 809252.4123 | AH122: =IFERROR(VLOOKUP(AF122,FA_Codes!D:F,3,FALSE),"CHECK") -> Local | AI122: 0.4060062402 | AJ122: 0.5939937598 | AK122: 515094.5955 | AL122: 0 | AM122: 0 | AN122: 0 | AO122: 0 | AP122: 0 | AQ122: 0 | AR122: 0 | AS122: 10921.7116 | AT122: 108508.1976 | AU122: 0 | AV122: 119429.9093 | AW122: 0 | AX122: 0 | AZ122: 0 | BA122: 0 | BB122: 0 | BC122: 0 | BD122: 0 | BE122: 0 | BF122: 0 | BG122: 15978.64243 | BH122: 158749.2651 | BI122: 0 | BJ122: 174727.9076 | BK122: OK | BL122: GSR improvements - From Drury School to Waihoehoe Rd TRA A29 0.363493283880925 2060 0.40600624024961 | BM122: 2 | BN122: 294157.8168 | BO122: =IFERROR(VLOOKUP(AF122,FA_Codes!D:H,5,FALSE),"CHECK") -> 0 | BP122: TRA | BQ122: 809252.4123 | BR122: 2a TRA A28 | BS122: 2a | BT122: Arterial | BU122: 2060
B123: Transport | E123: 4b TRA A28 | F123: Waihoehoe Rd East upgrades- from Fitzgerald Rd to before Cossey Rd (development boundary) | G123: Expand to 24m cross section | K123: Transport - Southern Growth Area 1 | Q123: 0.3634932839 | R123: 2060 | S123: 0 | T123: 0 | U123: 530.8248678 | V123: 0 | W123: 0 | X123: 56064.46288 | Y123: 16012.21539 | Z123: 174597.3665 | AA123: 0 | AB123: 0 | AC123: 247204.8696 | AF123: =IFERROR(VLOOKUP(K123,FA_Codes!C:F,2,FALSE),"CHECK") -> TRA A29 | AG123: 247204.8696 | AH123: =IFERROR(VLOOKUP(AF123,FA_Codes!D:F,3,FALSE),"CHECK") -> Local | AI123: 0.4060062402 | AJ123: 0.5939937598 | AK123: 157347.5598 | AL123: 0 | AM123: 0 | AN123: 78.33942146 | AO123: 0 | AP123: 0 | AQ123: 8274.023794 | AR123: 2363.091418 | AS123: 25767.1739 | AT123: 0 | AU123: 0 | AV123: 36482.62853 | AW123: 0 | AX123: 0 | AZ123: 0 | BA123: 0 | BB123: 114.6118529 | BC123: 0 | BD123: 0 | BE123: 12105.03193 | BF123: 3457.241336 | BG123: 37697.7962 | BH123: 0 | BI123: 0 | BJ123: 53374.68132 | BK123: OK | BL123: Waihoehoe Rd East upgrades- from Fitzgerald Rd to before Cossey Rd (development boundary) TRA A29 0.363493283880925 2060 0.40600624024961 | BM123: 2 | BN123: 89857.30985 | BO123: =IFERROR(VLOOKUP(AF123,FA_Codes!D:H,5,FALSE),"CHECK") -> 0 | BP123: TRA | BQ123: 247204.8696 | BR123: 4b TRA A28 | BS123: 4b | BT123: Arterial | BU123: 2060
B124: Transport | E124: 10b TRA A28 | F124: New intersection on Waihoehoe Rd/Fitzgerald Rd( including approach cross-sections) | G124: multi-lane roundabout with active mode crossings, SGA design | K124: Transport - Southern Growth Area 1 | Q124: 0.3634932839 | R124: 2060 | S124: 0 | T124: 0 | U124: 0 | V124: 0 | W124: 0 | X124: 0 | Y124: 0 | Z124: 27761.70057 | AA124: 21581.74845 | AB124: 217914.818 | AC124: 267258.267 | AF124: =IFERROR(VLOOKUP(K124,FA_Codes!C:F,2,FALSE),"CHECK") -> TRA A29 | AG124: 267258.267 | AH124: =IFERROR(VLOOKUP(AF124,FA_Codes!D:F,3,FALSE),"CHECK") -> Local | AI124: 0.4060062402 | AJ124: 0.5939937598 | AK124: 170111.6819 | AL124: 0 | AM124: 0 | AN124: 0 | AO124: 0 | AP124: 0 | AQ124: 0 | AR124: 0 | AS124: 4097.086804 | AT124: 3185.046123 | AU124: 32159.98685 | AV124: 39442.11977 | AW124: 0 | AX124: 0 | AZ124: 0 | BA124: 0 | BB124: 0 | BC124: 0 | BD124: 0 | BE124: 0 | BF124: 0 | BG124: 5994.104901 | BH124: 4659.774491 | BI124: 47050.58594 | BJ124: 57704.46534 | BK124: OK | BL124: New intersection on Waihoehoe Rd/Fitzgerald Rd( including approach cross-sections) TRA A29 0.363493283880925 2060 0.40600624024961 | BM124: 2 | BN124: 97146.58511 | BO124: =IFERROR(VLOOKUP(AF124,FA_Codes!D:H,5,FALSE),"CHECK") -> 0 | BP124: TRA | BQ124: 267258.267 | BR124: 10b TRA A28 | BS124: 10b | BT124: Arterial | BU124: 2060
B125: Transport | E125: 11 TRA A28 | F125: Intersection upgrade Waihoehoe Rd/Fielding Rd/Appleby Rd | G125: Roundabout as per SGA design | K125: Transport - Southern Growth Area 1 | Q125: 0.3634932839 | R125: 2060 | S125: 0 | T125: 0 | U125: 0 | V125: 0 | W125: 0 | X125: 2119.318274 | Y125: 0 | Z125: 4224.014761 | AA125: 2158.174845 | AB125: 21441.66328 | AC125: 29943.17116 | AF125: =IFERROR(VLOOKUP(K125,FA_Codes!C:F,2,FALSE),"CHECK") -> TRA A29 | AG125: 29943.17116 | AH125: =IFERROR(VLOOKUP(AF125,FA_Codes!D:F,3,FALSE),"CHECK") -> Local | AI125: 0.4060062402 | AJ125: 0.5939937598 | AK125: 19059.02954 | AL125: 0 | AM125: 0 | AN125: 0 | AO125: 0 | AP125: 0 | AQ125: 312.7701386 | AR125: 0 | AS125: 623.382386 | AT125: 318.5046123 | AU125: 3164.372278 | AV125: 4419.029415 | AW125: 0 | AX125: 0 | AZ125: 0 | BA125: 0 | BB125: 0 | BC125: 0 | BD125: 0 | BE125: 457.5878205 | BF125: 0 | BG125: 912.0186108 | BH125: 465.9774491 | BI125: 4629.528319 | BJ125: 6465.112199 | BK125: OK | BL125: Intersection upgrade Waihoehoe Rd/Fielding Rd/Appleby Rd TRA A29 0.363493283880925 2060 0.40600624024961 | BM125: 2 | BN125: 10884.14161 | BO125: =IFERROR(VLOOKUP(AF125,FA_Codes!D:H,5,FALSE),"CHECK") -> 0 | BP125: TRA | BQ125: 29943.17116 | BR125: 11 TRA A28 | BS125: 11 | BT125: Arterial | BU125: 2060
B126: Transport | E126: 13a TRA A28 | F126: N-S Opaheke Arterial across development (up to Waihoehoe Stream) | G126: 2-lane urban- new 2-lane arterial with active modes on both sides + intersection improvements (TDM) | K126: Transport - Southern Growth Area 1 | Q126: 0.3634932839 | R126: 2060 | S126: 0 | T126: 0 | U126: 7536.235512 | V126: 0 | W126: 0 | X126: 28036.20597 | Y126: 0 | Z126: 0 | AA126: 0 | AB126: 0 | AC126: 35572.44148 | AF126: =IFERROR(VLOOKUP(K126,FA_Codes!C:F,2,FALSE),"CHECK") -> TRA A29 | AG126: 35572.44148 | AH126: =IFERROR(VLOOKUP(AF126,FA_Codes!D:F,3,FALSE),"CHECK") -> Local | AI126: 0.4060062402 | AJ126: 0.5939937598 | AK126: 22642.09791 | AL126: 0 | AM126: 0 | AN126: 1112.201718 | AO126: 0 | AP126: 0 | AQ126: 4137.59846 | AR126: 0 | AS126: 0 | AT126: 0 | AU126: 0 | AV126: 5249.800178 | AW126: 0 | AX126: 0 | AZ126: 0 | BA126: 0 | BB126: 1627.169276 | BC126: 0 | BD126: 0 | BE126: 6053.374116 | BF126: 0 | BG126: 0 | BH126: 0 | BI126: 0 | BJ126: 7680.543392 | BK126: OK | BL126: N-S Opaheke Arterial across development (up to Waihoehoe Stream) TRA A29 0.363493283880925 2060 0.40600624024961 | BM126: 2 | BN126: 12930.34357 | BO126: =IFERROR(VLOOKUP(AF126,FA_Codes!D:H,5,FALSE),"CHECK") -> 0 | BP126: TRA | BQ126: 35572.44148 | BR126: 13a TRA A28 | BS126: 13a | BT126: Arterial | BU126: 2060
B127: Transport | E127: 23b TRA A28 | F127: Waihoehoe Rd West upgrades- between GSR & Kath Henry Lane | G127: Final 4-lane - following interim option, upgrade Road corridor to provide four lanes with additional turning lanes at intersections where required (as indicated in SGA Design | K127: Transport - Southern Growth Area 1 | Q127: 0.3634932839 | R127: 2060 | S127: 0 | T127: 69581.75844 | U127: 0 | V127: 0 | W127: 0 | X127: 0 | Y127: 0 | Z127: 684901.4688 | AA127: 202654.1132 | AB127: 2028757.561 | AC127: 2985894.902 | AF127: =IFERROR(VLOOKUP(K127,FA_Codes!C:F,2,FALSE),"CHECK") -> TRA A29 | AG127: 2985894.902 | AH127: =IFERROR(VLOOKUP(AF127,FA_Codes!D:F,3,FALSE),"CHECK") -> Local | AI127: 0.4060062402 | AJ127: 0.5939937598 | AK127: 1900542.159 | AL127: 0 | AM127: 10268.91359 | AN127: 0 | AO127: 0 | AP127: 0 | AQ127: 0 | AR127: 0 | AS127: 101078.1297 | AT127: 29907.80377 | AU127: 299405.1396 | AV127: 440659.9866 | AW127: 0 | AX127: 0 | AZ127: 0 | BA127: 15023.58828 | BB127: 0 | BC127: 0 | BD127: 0 | BE127: 0 | BF127: 0 | BG127: 147878.9544 | BH127: 43755.60532 | BI127: 438034.6086 | BJ127: 644692.7566 | BK127: OK | BL127: Waihoehoe Rd West upgrades- between GSR & Kath Henry Lane TRA A29 0.363493283880925 2060 0.40600624024961 | BM127: 2 | BN127: 1085352.743 | BO127: =IFERROR(VLOOKUP(AF127,FA_Codes!D:H,5,FALSE),"CHECK") -> 0 | BP127: TRA | BQ127: 2985894.902 | BR127: 23b TRA A28 | BS127: 23b | BT127: Arterial | BU127: 2060
B128: Transport | E128: 23d TRA A28 | F128: Waihoehoe Rd West upgrades- between Kath Henry Lane and Fitzgerald Rd | G128: Final 4-lane - following interim option, upgrade Road corridor to provide four lanes with additional turning lanes at intersections where required (as indicated in SGA Design | K128: Transport - Southern Growth Area 1 | Q128: 0.3634932839 | R128: 2060 | S128: 0 | T128: 0 | U128: 0 | V128: 0 | W128: 0 | X128: 2264.737822 | Y128: 0 | Z128: 118686.7192 | AA128: 38506.53542 | AB128: 402285.9506 | AC128: 561743.9431 | AF128: =IFERROR(VLOOKUP(K128,FA_Codes!C:F,2,FALSE),"CHECK") -> TRA A29 | AG128: 561743.9431 | AH128: =IFERROR(VLOOKUP(AF128,FA_Codes!D:F,3,FALSE),"CHECK") -> Local | AI128: 0.4060062402 | AJ128: 0.5939937598 | AK128: 357553.7925 | AL128: 0 | AM128: 0 | AN128: 0 | AO128: 0 | AP128: 0 | AQ128: 334.2312342 | AR128: 0 | AS128: 17515.8503 | AT128: 5682.81535 | AU128: 59369.57844 | AV128: 82902.47533 | AW128: 0 | AX128: 0 | AZ128: 0 | BA128: 0 | BB128: 0 | BC128: 0 | BD128: 0 | BE128: 488.9857538 | BF128: 0 | BG128: 25625.97503 | BH128: 8314.051659 | BI128: 86858.66279 | BJ128: 121287.6752 | BK128: OK | BL128: Waihoehoe Rd West upgrades- between Kath Henry Lane and Fitzgerald Rd TRA A29 0.363493283880925 2060 0.40600624024961 | BM128: 2 | BN128: 204190.1506 | BO128: =IFERROR(VLOOKUP(AF128,FA_Codes!D:H,5,FALSE),"CHECK") -> 0 | BP128: TRA | BQ128: 561743.9431 | BR128: 23d TRA A28 | BS128: 23d | BT128: Arterial | BU128: 2060
B129: Transport | E129: 24 TRA A28 | F129: Upgrades on Waihoehoe Rd east- from project 4 to Drury Hills + Drury Hills Intersection | G129: 2-lane urban - upgrade existing road layout with active modes on both sides, 20m cross-section | K129: Transport - Southern Growth Area 1 | Q129: 0.3634932839 | R129: 2060 | S129: 0 | T129: 0 | U129: 0 | V129: 0 | W129: 0 | X129: 3901.414023 | Y129: 0 | Z129: 0 | AA129: 0 | AB129: 0 | AC129: 3901.414023 | AF129: =IFERROR(VLOOKUP(K129,FA_Codes!C:F,2,FALSE),"CHECK") -> TRA A29 | AG129: 3901.414023 | AH129: =IFERROR(VLOOKUP(AF129,FA_Codes!D:F,3,FALSE),"CHECK") -> Local | AI129: 0.4060062402 | AJ129: 0.5939937598 | AK129: 2483.276228 | AL129: 0 | AM129: 0 | AN129: 0 | AO129: 0 | AP129: 0 | AQ129: 575.7727943 | AR129: 0 | AS129: 0 | AT129: 0 | AU129: 0 | AV129: 575.7727943 | AW129: 0 | AX129: 0 | AZ129: 0 | BA129: 0 | BB129: 0 | BC129: 0 | BD129: 0 | BE129: 842.3650007 | BF129: 0 | BG129: 0 | BH129: 0 | BI129: 0 | BJ129: 842.3650007 | BK129: OK | BL129: Upgrades on Waihoehoe Rd east- from project 4 to Drury Hills + Drury Hills Intersection TRA A29 0.363493283880925 2060 0.40600624024961 | BM129: 2 | BN129: 1418.137795 | BO129: =IFERROR(VLOOKUP(AF129,FA_Codes!D:H,5,FALSE),"CHECK") -> 0 | BP129: TRA | BQ129: 3901.414023 | BR129: 24 TRA A28 | BS129: 24 | BT129: Arterial | BU129: 2060
B130: Transport | E130: 1b TRA A28 WK subsidy | F130: GSR improvements - Waihoehoe Rd to Drury Interchange | G130: 4-lane urban- existing road layout with active modes on both sides + intersection improvements (TDM) | K130: Transport - Southern Growth Area 1 | Q130: 0.3634932839 | R130: 2060 | S130: 0 | T130: 0 | U130: 0 | V130: 0 | W130: 0 | X130: 0 | Y130: 0 | Z130: 0 | AA130: -62027.70393 | AB130: -616250.8774 | AC130: -678278.5813 | AF130: =IFERROR(VLOOKUP(K130,FA_Codes!C:F,2,FALSE),"CHECK") -> TRA A29 | AG130: -678278.5813 | AH130: =IFERROR(VLOOKUP(AF130,FA_Codes!D:F,3,FALSE),"CHECK") -> Local | AI130: 0.4060062402 | AJ130: 0.5939937598 | AK130: -431728.8724 | AL130: 0 | AM130: 0 | AN130: 0 | AO130: 0 | AP130: 0 | AQ130: 0 | AR130: 0 | AS130: 0 | AT130: -9154.082136 | AU130: -90946.63821 | AV130: -100100.7204 | AW130: 0 | AX130: 0 | AZ130: 0 | BA130: 0 | BB130: 0 | BC130: 0 | BD130: 0 | BE130: 0 | BF130: 0 | BG130: 0 | BH130: -13392.57166 | BI130: -133056.4169 | BJ130: -146448.9886 | BK130: OK | BL130: GSR improvements - Waihoehoe Rd to Drury Interchange TRA A29 0.363493283880925 2060 0.40600624024961 | BM130: 2 | BN130: -246549.7089 | BO130: =IFERROR(VLOOKUP(AF130,FA_Codes!D:H,5,FALSE),"CHECK") -> 0 | BP130: TRA | BQ130: 0 | BR130: 1b TRA A28 | BS130: 1b | BT130: Arterial | BU130: 2060
B131: Transport | E131: 2a TRA A28 WK subsidy | F131: GSR improvements - From Drury School to Waihoehoe Rd | G131: 2-lane urban- existing road layout with active modes on both sides + intersection improvements (TDM) | K131: Transport - Southern Growth Area 1 | Q131: 0.3634932839 | R131: 2060 | S131: 0 | T131: 0 | U131: 0 | V131: 0 | W131: 0 | X131: 0 | Y131: 0 | Z131: -37742.59708 | AA131: -374976.1332 | AB131: 0 | AC131: -412718.7303 | AF131: =IFERROR(VLOOKUP(K131,FA_Codes!C:F,2,FALSE),"CHECK") -> TRA A29 | AG131: -412718.7303 | AH131: =IFERROR(VLOOKUP(AF131,FA_Codes!D:F,3,FALSE),"CHECK") -> Local | AI131: 0.4060062402 | AJ131: 0.5939937598 | AK131: -262698.2437 | AL131: 0 | AM131: 0 | AN131: 0 | AO131: 0 | AP131: 0 | AQ131: 0 | AR131: 0 | AS131: -5570.072917 | AT131: -55339.1808 | AU131: 0 | AV131: -60909.25372 | AW131: 0 | AX131: 0 | AZ131: 0 | BA131: 0 | BB131: 0 | BC131: 0 | BD131: 0 | BE131: 0 | BF131: 0 | BG131: -8149.107639 | BH131: -80962.12523 | BI131: 0 | BJ131: -89111.23287 | BK131: OK | BL131: GSR improvements - From Drury School to Waihoehoe Rd TRA A29 0.363493283880925 2060 0.40600624024961 | BM131: 2 | BN131: -150020.4866 | BO131: =IFERROR(VLOOKUP(AF131,FA_Codes!D:H,5,FALSE),"CHECK") -> 0 | BP131: TRA | BQ131: 0 | BR131: 2a TRA A28 | BS131: 2a | BT131: Arterial | BU131: 2060
B132: Transport | E132: 4b TRA A28 WK subsidy | F132: Waihoehoe Rd East upgrades- from Fitzgerald Rd to before Cossey Rd (development boundary) | G132: Expand to 24m cross section | K132: Transport - Southern Growth Area 1 | Q132: 0.3634932839 | R132: 2060 | S132: 0 | T132: 0 | U132: -270.7206826 | V132: 0 | W132: 0 | X132: -28592.87607 | Y132: -8166.229849 | Z132: -89044.6569 | AA132: 0 | AB132: 0 | AC132: -126074.4835 | AF132: =IFERROR(VLOOKUP(K132,FA_Codes!C:F,2,FALSE),"CHECK") -> TRA A29 | AG132: -126074.4835 | AH132: =IFERROR(VLOOKUP(AF132,FA_Codes!D:F,3,FALSE),"CHECK") -> Local | AI132: 0.4060062402 | AJ132: 0.5939937598 | AK132: -80247.25548 | AL132: 0 | AM132: 0 | AN132: -39.95310495 | AO132: 0 | AP132: 0 | AQ132: -4219.752135 | AR132: -1205.176623 | AS132: -13141.25869 | AT132: 0 | AU132: 0 | AV132: -18606.14055 | AW132: 0 | AX132: 0 | AZ132: 0 | BA132: 0 | BB132: -58.45204499 | BC132: 0 | BD132: 0 | BE132: -6173.566284 | BF132: -1763.193081 | BG132: -19225.87606 | BH132: 0 | BI132: 0 | BJ132: -27221.08747 | BK132: OK | BL132: Waihoehoe Rd East upgrades- from Fitzgerald Rd to before Cossey Rd (development boundary) TRA A29 0.363493283880925 2060 0.40600624024961 | BM132: 2 | BN132: -45827.22802 | BO132: =IFERROR(VLOOKUP(AF132,FA_Codes!D:H,5,FALSE),"CHECK") -> 0 | BP132: TRA | BQ132: 0 | BR132: 4b TRA A28 | BS132: 4b | BT132: Arterial | BU132: 2060
B133: Transport | E133: 10b TRA A28 WK subsidy | F133: New intersection on Waihoehoe Rd/Fitzgerald Rd( including approach cross-sections) | G133: multi-lane roundabout with active mode crossings, SGA design | K133: Transport - Southern Growth Area 1 | Q133: 0.3634932839 | R133: 2060 | S133: 0 | T133: 0 | U133: 0 | V133: 0 | W133: 0 | X133: 0 | Y133: 0 | Z133: -14158.46729 | AA133: -11006.69171 | AB133: -111136.5572 | AC133: -136301.7162 | AF133: =IFERROR(VLOOKUP(K133,FA_Codes!C:F,2,FALSE),"CHECK") -> TRA A29 | AG133: -136301.7162 | AH133: =IFERROR(VLOOKUP(AF133,FA_Codes!D:F,3,FALSE),"CHECK") -> Local | AI133: 0.4060062402 | AJ133: 0.5939937598 | AK133: -86756.95775 | AL133: 0 | AM133: 0 | AN133: 0 | AO133: 0 | AP133: 0 | AQ133: 0 | AR133: 0 | AS133: -2089.51427 | AT133: -1624.373523 | AU133: -16401.59329 | AV133: -20115.48108 | AW133: 0 | AX133: 0 | AZ133: 0 | BA133: 0 | BB133: 0 | BC133: 0 | BD133: 0 | BE133: 0 | BF133: 0 | BG133: -3056.9935 | BH133: -2376.484991 | BI133: -23995.79883 | BJ133: -29429.27732 | BK133: OK | BL133: New intersection on Waihoehoe Rd/Fitzgerald Rd( including approach cross-sections) TRA A29 0.363493283880925 2060 0.40600624024961 | BM133: 2 | BN133: -49544.75841 | BO133: =IFERROR(VLOOKUP(AF133,FA_Codes!D:H,5,FALSE),"CHECK") -> 0 | BP133: TRA | BQ133: 0 | BR133: 10b TRA A28 | BS133: 10b | BT133: Arterial | BU133: 2060
B134: Transport | E134: 11 TRA A28 WK subsidy | F134: Intersection upgrade Waihoehoe Rd/Fielding Rd/Appleby Rd | G134: Roundabout as per SGA design | K134: Transport - Southern Growth Area 1 | Q134: 0.3634932839 | R134: 2060 | S134: 0 | T134: 0 | U134: 0 | V134: 0 | W134: 0 | X134: -1080.85232 | Y134: 0 | Z134: -2154.247528 | AA134: -1100.669171 | AB134: -10935.24827 | AC134: -15271.01729 | AF134: =IFERROR(VLOOKUP(K134,FA_Codes!C:F,2,FALSE),"CHECK") -> TRA A29 | AG134: -15271.01729 | AH134: =IFERROR(VLOOKUP(AF134,FA_Codes!D:F,3,FALSE),"CHECK") -> Local | AI134: 0.4060062402 | AJ134: 0.5939937598 | AK134: -9720.105068 | AL134: 0 | AM134: 0 | AN134: 0 | AO134: 0 | AP134: 0 | AQ134: -159.5127707 | AR134: 0 | AS134: -317.9250168 | AT134: -162.4373523 | AU134: -1613.829862 | AV134: -2253.705002 | AW134: 0 | AX134: 0 | AZ134: 0 | BA134: 0 | BB134: 0 | BC134: 0 | BD134: 0 | BE134: -233.3697884 | BF134: 0 | BG134: -465.1294915 | BH134: -237.6484991 | BI134: -2361.059443 | BJ134: -3297.207222 | BK134: OK | BL134: Intersection upgrade Waihoehoe Rd/Fielding Rd/Appleby Rd TRA A29 0.363493283880925 2060 0.40600624024961 | BM134: 2 | BN134: -5550.912223 | BO134: =IFERROR(VLOOKUP(AF134,FA_Codes!D:H,5,FALSE),"CHECK") -> 0 | BP134: TRA | BQ134: 0 | BR134: 11 TRA A28 | BS134: 11 | BT134: Arterial | BU134: 2060
B135: Transport | E135: 13a TRA A28 WK subsidy | F135: N-S Opaheke Arterial across development (up to Waihoehoe Stream) | G135: 2-lane urban- new 2-lane arterial with active modes on both sides + intersection improvements (TDM) | K135: Transport - Southern Growth Area 1 | Q135: 0.3634932839 | R135: 2060 | S135: 0 | T135: 0 | U135: -3843.480111 | V135: 0 | W135: 0 | X135: -14298.46505 | Y135: 0 | Z135: 0 | AA135: 0 | AB135: 0 | AC135: -18141.94516 | AF135: =IFERROR(VLOOKUP(K135,FA_Codes!C:F,2,FALSE),"CHECK") -> TRA A29 | AG135: -18141.94516 | AH135: =IFERROR(VLOOKUP(AF135,FA_Codes!D:F,3,FALSE),"CHECK") -> Local | AI135: 0.4060062402 | AJ135: 0.5939937598 | AK135: -11547.46994 | AL135: 0 | AM135: 0 | AN135: -567.2228762 | AO135: 0 | AP135: 0 | AQ135: -2110.175215 | AR135: 0 | AS135: 0 | AT135: 0 | AU135: 0 | AV135: -2677.398091 | AW135: 0 | AX135: 0 | AZ135: 0 | BA135: 0 | BB135: -829.8563309 | BC135: 0 | BD135: 0 | BE135: -3087.220799 | BF135: 0 | BG135: 0 | BH135: 0 | BI135: 0 | BJ135: -3917.07713 | BK135: OK | BL135: N-S Opaheke Arterial across development (up to Waihoehoe Stream) TRA A29 0.363493283880925 2060 0.40600624024961 | BM135: 2 | BN135: -6594.475221 | BO135: =IFERROR(VLOOKUP(AF135,FA_Codes!D:H,5,FALSE),"CHECK") -> 0 | BP135: TRA | BQ135: 0 | BR135: 13a TRA A28 | BS135: 13a | BT135: Arterial | BU135: 2060
B136: Transport | E136: 23b TRA A28 WK subsidy | F136: Waihoehoe Rd West upgrades- between GSR & Kath Henry Lane | G136: Final 4-lane - following interim option, upgrade Road corridor to provide four lanes with additional turning lanes at intersections where required (as indicated in SGA Design | K136: Transport - Southern Growth Area 1 | Q136: 0.3634932839 | R136: 2060 | S136: 0 | T136: -35486.69681 | U136: 0 | V136: 0 | W136: 0 | X136: 0 | Y136: 0 | Z136: -349299.7491 | AA136: -103353.5977 | AB136: -1034666.356 | AC136: -1522806.4 | AF136: =IFERROR(VLOOKUP(K136,FA_Codes!C:F,2,FALSE),"CHECK") -> TRA A29 | AG136: =AC136-AD136 -> -1522806.4 | AH136: =IFERROR(VLOOKUP(AF136,FA_Codes!D:F,3,FALSE),"CHECK") -> Local | AI136: 0.4060062402 | AJ136: 0.5939937598 | AK136: =AG136*(1-Q136) -> -969276.5009 | AL136: =S136*$Q136*$AI136*(1-$AX136) -> 0 | AM136: =T136*$Q136*$AI136*(1-$AX136) -> -5237.145932 | AN136: =U136*$Q136*$AI136*(1-$AX136) -> 0 | AO136: =V136*$Q136*$AI136*(1-$AX136) -> 0 | AP136: =W136*$Q136*$AI136*(1-$AX136) -> 0 | AQ136: =X136*$Q136*$AI136*(1-$AX136) -> 0 | AR136: =Y136*$Q136*$AI136*(1-$AX136) -> 0 | AS136: =Z136*$Q136*$AI136*(1-$AX136) -> -51549.84613 | AT136: =AA136*$Q136*$AI136*(1-$AX136) -> -15252.97992 | AU136: =AB136*$Q136*$AI136*(1-$AX136) -> -152696.6212 | AV136: -224736.5932 | AW136: =AD136 -> 0 | AX136: =IFERROR(AW136/AC136,0) -> 0 | AZ136: =S136*$Q136*$AJ136*(1-$AX136) -> 0 | BA136: =T136*$Q136*$AJ136*(1-$AX136) -> -7662.030024 | BB136: =U136*$Q136*$AJ136*(1-$AX136) -> 0 | BC136: =V136*$Q136*$AJ136*(1-$AX136) -> 0 | BD136: =W136*$Q136*$AJ136*(1-$AX136) -> 0 | BE136: =X136*$Q136*$AJ136*(1-$AX136) -> 0 | BF136: =Y136*$Q136*$AJ136*(1-$AX136) -> 0 | BG136: =Z136*$Q136*$AJ136*(1-$AX136) -> -75418.26672 | BH136: =AA136*$Q136*$AJ136*(1-$AX136) -> -22315.35871 | BI136: =AB136*$Q136*$AJ136*(1-$AX136) -> -223397.6504 | BJ136: -328793.3059 | BK136: OK | BL136: =IF($Q136=0,"",F136&" "&AF136&" "&Q136&" "&R136&" "&AI136) -> Waihoehoe Rd West upgrades- between GSR & Kath Henry Lane TRA A29 0.363493283880925 2060 0.40600624024961 | BM136: =COUNTIF($BL$8:$BL$149,BL136) -> 2 | BN136: -553529.899 | BO136: =IFERROR(VLOOKUP(AF136,FA_Codes!D:H,5,FALSE),"CHECK") -> 0 | BP136: =TRIM(LEFT(AF136,3)) -> TRA | BQ136: =IF(AC136>0,+AC136,0) -> 0 | BR136: =IF(RIGHT(E136,11)=" WK subsidy",LEFT(E136,LEN(E136)-11),E136) -> 23b TRA A28 | BS136: 23b | BT136: Arterial | BU136: =+R136 -> 2060
B137: Transport | E137: 23d TRA A28 WK subsidy | F137: Waihoehoe Rd West upgrades- between Kath Henry Lane and Fitzgerald Rd | G137: Final 4-lane - following interim option, upgrade Road corridor to provide four lanes with additional turning lanes at intersections where required (as indicated in SGA Design | K137: Transport - Southern Growth Area 1 | Q137: 0.3634932839 | R137: 2060 | S137: 0 | T137: 0 | U137: 0 | V137: 0 | W137: 0 | X137: -1155.016289 | Y137: 0 | Z137: -60530.22681 | AA137: -19638.33306 | AB137: -205165.8348 | AC137: =SUM(S137:AB137) -> -286489.411 | AF137: =IFERROR(VLOOKUP(K137,FA_Codes!C:F,2,FALSE),"CHECK") -> TRA A29 | AG137: -286489.411 | AH137: =IFERROR(VLOOKUP(AF137,FA_Codes!D:F,3,FALSE),"CHECK") -> Local | AI137: 0.4060062402 | AJ137: =1-AI137 -> 0.5939937598 | AK137: -182352.4342 | AL137: 0 | AM137: 0 | AN137: 0 | AO137: 0 | AP137: 0 | AQ137: -170.4579294 | AR137: 0 | AS137: -8933.083653 | AT137: -2898.235828 | AU137: -30278.48501 | AV137: =SUM(AL137:AU137) -> -42280.26242 | AW137: 0 | AX137: 0 | AZ137: 0 | BA137: 0 | BB137: 0 | BC137: 0 | BD137: 0 | BE137: -249.3827344 | BF137: 0 | BG137: -13069.24727 | BH137: -4240.166346 | BI137: -44297.91803 | BJ137: =SUM(AZ137:BI137) -> -61856.71437 | BK137: =IF(ABS(AG137-BJ137-AV137-AK137)<0.5,"OK","CHECK") -> OK | BL137: Waihoehoe Rd West upgrades- between Kath Henry Lane and Fitzgerald Rd TRA A29 0.363493283880925 2060 0.40600624024961 | BM137: 2 | BN137: =+BJ137+AV137 -> -104136.9768 | BO137: =IFERROR(VLOOKUP(AF137,FA_Codes!D:H,5,FALSE),"CHECK") -> 0 | BP137: TRA | BQ137: 0 | BR137: 23d TRA A28 | BS137: =IFERROR(LEFT(BR137,LEN(BR137)-8)*1,LEFT(BR137,LEN(BR137)-8)) -> 23d | BT137: Arterial | BU137: 2060
B138: Transport | E138: 24 TRA A28 WK subsidy | F138: Upgrades on Waihoehoe Rd east- from project 4 to Drury Hills + Drury Hills Intersection | G138: 2-lane urban - upgrade existing road layout with active modes on both sides, 20m cross-section | K138: Transport - Southern Growth Area 1 | Q138: 0.3634932839 | R138: 2060 | S138: 0 | T138: 0 | U138: 0 | V138: 0 | W138: 0 | X138: -1989.721152 | Y138: 0 | Z138: 0 | AA138: 0 | AB138: 0 | AC138: -1989.721152 | AF138: =IFERROR(VLOOKUP(K138,FA_Codes!C:F,2,FALSE),"CHECK") -> TRA A29 | AG138: -1989.721152 | AH138: =IFERROR(VLOOKUP(AF138,FA_Codes!D:F,3,FALSE),"CHECK") -> Local | AI138: 0.4060062402 | AJ138: 0.5939937598 | AK138: -1266.470876 | AL138: 0 | AM138: 0 | AN138: 0 | AO138: 0 | AP138: 0 | AQ138: -293.6441251 | AR138: 0 | AS138: 0 | AT138: 0 | AU138: 0 | AV138: -293.6441251 | AW138: 0 | AX138: 0 | AZ138: 0 | BA138: 0 | BB138: 0 | BC138: 0 | BD138: 0 | BE138: -429.6061503 | BF138: 0 | BG138: 0 | BH138: 0 | BI138: 0 | BJ138: -429.6061503 | BK138: OK | BL138: Upgrades on Waihoehoe Rd east- from project 4 to Drury Hills + Drury Hills Intersection TRA A29 0.363493283880925 2060 0.40600624024961 | BM138: 2 | BN138: -723.2502754 | BO138: =IFERROR(VLOOKUP(AF138,FA_Codes!D:H,5,FALSE),"CHECK") -> 0 | BP138: TRA | BQ138: 0 | BR138: 24 TRA A28 | BS138: 24 | BT138: Arterial | BU138: 2060
B139: Transport | E139: 14a TRA A1 | F139: Western end of Brookefield Road Extension tie in with Quarry Rd | G139: 2-lane urban (New Road connection to Quarry Road with active modes on both sides + intersection improvements) | K139: Transport - Auckland wide | Q139: 0.3287199716 | R139: 2060 | S139: 0 | T139: 0 | U139: 0 | V139: 0 | W139: 0 | X139: 0 | Y139: 0 | Z139: 0 | AA139: 0 | AB139: 225992.1314 | AC139: 225992.1314 | AF139: =IFERROR(VLOOKUP(K139,FA_Codes!C:F,2,FALSE),"CHECK") -> TRA A1 | AG139: 225992.1314 | AH139: =IFERROR(VLOOKUP(AF139,FA_Codes!D:F,3,FALSE),"CHECK") -> Wider | AI139: 0.3006770119 | AJ139: 0.6993229881 | AK139: 151704.0044 | AL139: 0 | AM139: 0 | AN139: 0 | AO139: 0 | AP139: 0 | AQ139: 0 | AR139: 0 | AS139: 0 | AT139: 0 | AU139: 22336.73205 | AV139: 22336.73205 | AW139: 0 | AX139: 0 | AZ139: 0 | BA139: 0 | BB139: 0 | BC139: 0 | BD139: 0 | BE139: 0 | BF139: 0 | BG139: 0 | BH139: 0 | BI139: 51951.39496 | BJ139: 51951.39496 | BK139: OK | BL139: Western end of Brookefield Road Extension tie in with Quarry Rd TRA A1 0.328719971596652 2060 0.300677011918574 | BM139: 1 | BN139: 74288.127 | BO139: =IFERROR(VLOOKUP(AF139,FA_Codes!D:H,5,FALSE),"CHECK") -> Regional | BP139: TRA | BQ139: 225992.1314 | BR139: 14a TRA A1 | BS139: =IFERROR(LEFT(BR139,LEN(BR139)-7)*1,LEFT(BR139,LEN(BR139)-7)) -> 14a | BT139: Collector | BU139: 2060
B140: Transport | E140: 1b TRA A1 | F140: GSR improvements - Waihoehoe Rd to Drury Interchange | G140: 4-lane urban- existing road layout with active modes on both sides + intersection improvements (TDM) | K140: Transport - Auckland wide | Q140: 0.3287199716 | R140: 2060 | S140: 0 | T140: 0 | U140: 0 | V140: 0 | W140: 0 | X140: 0 | Y140: 0 | Z140: 0 | AA140: 60811.47444 | AB140: 604167.5269 | AC140: 664979.0013 | AF140: =IFERROR(VLOOKUP(K140,FA_Codes!C:F,2,FALSE),"CHECK") -> TRA A1 | AG140: 664979.0013 | AH140: =IFERROR(VLOOKUP(AF140,FA_Codes!D:F,3,FALSE),"CHECK") -> Wider | AI140: 0.3006770119 | AJ140: 0.6993229881 | AK140: 446387.1229 | AL140: 0 | AM140: 0 | AN140: 0 | AO140: 0 | AP140: 0 | AQ140: 0 | AR140: 0 | AS140: 0 | AT140: 6010.517277 | AU140: 59715.03556 | AV140: 65725.55283 | AW140: 0 | AX140: 0 | AZ140: 0 | BA140: 0 | BB140: 0 | BC140: 0 | BD140: 0 | BE140: 0 | BF140: 0 | BG140: 0 | BH140: 13979.42887 | BI140: 138886.8967 | BJ140: 152866.3256 | BK140: OK | BL140: GSR improvements - Waihoehoe Rd to Drury Interchange TRA A1 0.328719971596652 2060 0.300677011918574 | BM140: 2 | BN140: 218591.8784 | BO140: =IFERROR(VLOOKUP(AF140,FA_Codes!D:H,5,FALSE),"CHECK") -> Regional | BP140: TRA | BQ140: 664979.0013 | BR140: 1b TRA A1 | BS140: =IFERROR(LEFT(BR140,LEN(BR140)-7)*1,LEFT(BR140,LEN(BR140)-7)) -> 1b | BT140: Arterial | BU140: 2060
B141: Transport | E141: 2a TRA A1 | F141: GSR improvements - From Drury School to Waihoehoe Rd | G141: 2-lane urban- existing road layout with active modes on both sides + intersection improvements (TDM) | K141: Transport - Auckland wide | Q141: 0.3287199716 | R141: 2060 | S141: 0 | T141: 0 | U141: 0 | V141: 0 | W141: 0 | X141: 0 | Y141: 0 | Z141: 37002.54616 | AA141: 367623.66 | AB141: 0 | AC141: 404626.2061 | AF141: =IFERROR(VLOOKUP(K141,FA_Codes!C:F,2,FALSE),"CHECK") -> TRA A1 | AG141: 404626.2061 | AH141: =IFERROR(VLOOKUP(AF141,FA_Codes!D:F,3,FALSE),"CHECK") -> Wider | AI141: 0.3006770119 | AJ141: 0.6993229881 | AK141: 271617.4912 | AL141: 0 | AM141: 0 | AN141: 0 | AO141: 0 | AP141: 0 | AQ141: 0 | AR141: 0 | AS141: 3657.277595 | AT141: 36335.38539 | AU141: 0 | AV141: 39992.66298 | AW141: 0 | AX141: 0 | AZ141: 0 | BA141: 0 | BB141: 0 | BC141: 0 | BD141: 0 | BE141: 0 | BF141: 0 | BG141: 8506.198328 | BH141: 84509.85368 | BI141: 0 | BJ141: 93016.05201 | BK141: OK | BL141: GSR improvements - From Drury School to Waihoehoe Rd TRA A1 0.328719971596652 2060 0.300677011918574 | BM141: 2 | BN141: 133008.715 | BO141: =IFERROR(VLOOKUP(AF141,FA_Codes!D:H,5,FALSE),"CHECK") -> Regional | BP141: TRA | BQ141: 404626.2061 | BR141: 2a TRA A1 | BS141: 2a | BT141: Arterial | BU141: 2060
B142: Transport | E142: 36a TRA A1 | F142: Bremner-Norrie Road east of SH1 up to GSR (overlap with project 12) | G142: 2-lane urban- upgrade existing road layout with active modes on both sides (Under construction) | K142: Transport - Auckland wide | Q142: 0.3287199716 | R142: 2060 | S142: 0 | T142: 0 | U142: 0 | V142: 0 | W142: 0 | X142: 0 | Y142: 0 | Z142: 0 | AA142: 0 | AB142: 676561.2208 | AC142: 676561.2208 | AF142: =IFERROR(VLOOKUP(K142,FA_Codes!C:F,2,FALSE),"CHECK") -> TRA A1 | AG142: 676561.2208 | AH142: =IFERROR(VLOOKUP(AF142,FA_Codes!D:F,3,FALSE),"CHECK") -> Wider | AI142: 0.3006770119 | AJ142: 0.6993229881 | AK142: 454162.0355 | AL142: 0 | AM142: 0 | AN142: 0 | AO142: 0 | AP142: 0 | AQ142: 0 | AR142: 0 | AS142: 0 | AT142: 0 | AU142: 66870.32249 | AV142: 66870.32249 | AW142: 0 | AX142: 0 | AZ142: 0 | BA142: 0 | BB142: 0 | BC142: 0 | BD142: 0 | BE142: 0 | BF142: 0 | BG142: 0 | BH142: 0 | BI142: 155528.8628 | BJ142: 155528.8628 | BK142: OK | BL142: Bremner-Norrie Road east of SH1 up to GSR (overlap with project 12) TRA A1 0.328719971596652 2060 0.300677011918574 | BM142: 2 | BN142: 222399.1853 | BO142: =IFERROR(VLOOKUP(AF142,FA_Codes!D:H,5,FALSE),"CHECK") -> Regional | BP142: TRA | BQ142: 676561.2208 | BR142: 36a TRA A1 | BS142: 36a | BT142: Arterial | BU142: 2060
B143: Transport | E143: 40b TRA A1 | F143: Upgrade intersection on Jesmond/Bremner Rd | G143: Multi-lane signalised intersection (upgrade intersection with active mode crossings) | K143: Transport - Auckland wide | Q143: 0.3287199716 | R143: 2060 | S143: 0 | T143: 0 | U143: 0 | V143: 0 | W143: 0 | X143: 0 | Y143: 0 | Z143: 0 | AA143: 17265.39876 | AB143: 171533.3062 | AC143: 188798.705 | AF143: =IFERROR(VLOOKUP(K143,FA_Codes!C:F,2,FALSE),"CHECK") -> TRA A1 | AG143: 188798.705 | AH143: =IFERROR(VLOOKUP(AF143,FA_Codes!D:F,3,FALSE),"CHECK") -> Wider | AI143: 0.3006770119 | AJ143: 0.6993229881 | AK143: 126736.8 | AL143: 0 | AM143: 0 | AN143: 0 | AO143: 0 | AP143: 0 | AQ143: 0 | AR143: 0 | AS143: 0 | AT143: 1706.486785 | AU143: 16954.10135 | AV143: 18660.58813 | AW143: 0 | AX143: 0 | AZ143: 0 | BA143: 0 | BB143: 0 | BC143: 0 | BD143: 0 | BE143: 0 | BF143: 0 | BG143: 0 | BH143: 3968.994604 | BI143: 39432.3222 | BJ143: 43401.31681 | BK143: OK | BL143: Upgrade intersection on Jesmond/Bremner Rd TRA A1 0.328719971596652 2060 0.300677011918574 | BM143: 2 | BN143: 62061.90494 | BO143: =IFERROR(VLOOKUP(AF143,FA_Codes!D:H,5,FALSE),"CHECK") -> Regional | BP143: TRA | BQ143: 188798.705 | BR143: 40b TRA A1 | BS143: 40b | BT143: Arterial | BU143: 2060
B144: Transport | E144: 1b TRA A1 WK subsidy | F144: GSR improvements - Waihoehoe Rd to Drury Interchange | G144: 4-lane urban- existing road layout with active modes on both sides + intersection improvements (TDM) | K144: Transport - Auckland wide | Q144: 0.3287199716 | R144: 2060 | S144: 0 | T144: 0 | U144: 0 | V144: 0 | W144: 0 | X144: 0 | Y144: 0 | Z144: 0 | AA144: -31013.85196 | AB144: -308125.4387 | AC144: -339139.2907 | AF144: =IFERROR(VLOOKUP(K144,FA_Codes!C:F,2,FALSE),"CHECK") -> TRA A1 | AG144: -339139.2907 | AH144: =IFERROR(VLOOKUP(AF144,FA_Codes!D:F,3,FALSE),"CHECK") -> Wider | AI144: 0.3006770119 | AJ144: 0.6993229881 | AK144: -227657.4327 | AL144: 0 | AM144: 0 | AN144: 0 | AO144: 0 | AP144: 0 | AQ144: 0 | AR144: 0 | AS144: 0 | AT144: -3065.363811 | AU144: -30454.66813 | AV144: -33520.03195 | AW144: 0 | AX144: 0 | AZ144: 0 | BA144: 0 | BB144: 0 | BC144: 0 | BD144: 0 | BE144: 0 | BF144: 0 | BG144: 0 | BH144: -7129.508725 | BI144: -70832.31732 | BJ144: -77961.82605 | BK144: OK | BL144: GSR improvements - Waihoehoe Rd to Drury Interchange TRA A1 0.328719971596652 2060 0.300677011918574 | BM144: 2 | BN144: -111481.858 | BO144: =IFERROR(VLOOKUP(AF144,FA_Codes!D:H,5,FALSE),"CHECK") -> Regional | BP144: TRA | BQ144: 0 | BR144: 1b TRA A1 | BS144: 1b | BT144: Arterial | BU144: 2060
B145: Transport | E145: 2a TRA A1 WK subsidy | F145: GSR improvements - From Drury School to Waihoehoe Rd | G145: 2-lane urban- existing road layout with active modes on both sides + intersection improvements (TDM) | K145: Transport - Auckland wide | Q145: 0.3287199716 | R145: 2060 | S145: 0 | T145: 0 | U145: 0 | V145: 0 | W145: 0 | X145: 0 | Y145: 0 | Z145: -18871.29854 | AA145: -187488.0666 | AB145: 0 | AC145: -206359.3651 | AF145: =IFERROR(VLOOKUP(K145,FA_Codes!C:F,2,FALSE),"CHECK") -> TRA A1 | AG145: -206359.3651 | AH145: =IFERROR(VLOOKUP(AF145,FA_Codes!D:F,3,FALSE),"CHECK") -> Wider | AI145: 0.3006770119 | AJ145: 0.6993229881 | AK145: -138524.9205 | AL145: 0 | AM145: 0 | AN145: 0 | AO145: 0 | AP145: 0 | AQ145: 0 | AR145: 0 | AS145: -1865.211574 | AT145: -18531.04655 | AU145: 0 | AV145: -20396.25812 | AW145: 0 | AX145: 0 | AZ145: 0 | BA145: 0 | BB145: 0 | BC145: 0 | BD145: 0 | BE145: 0 | BF145: 0 | BG145: -4338.161147 | BH145: -43100.02538 | BI145: 0 | BJ145: -47438.18652 | BK145: OK | BL145: GSR improvements - From Drury School to Waihoehoe Rd TRA A1 0.328719971596652 2060 0.300677011918574 | BM145: 2 | BN145: -67834.44465 | BO145: =IFERROR(VLOOKUP(AF145,FA_Codes!D:H,5,FALSE),"CHECK") -> Regional | BP145: TRA | BQ145: 0 | BR145: 2a TRA A1 | BS145: 2a | BT145: Arterial | BU145: 2060
B146: Transport | E146: 36a TRA A1 WK subsidy | F146: Bremner-Norrie Road east of SH1 up to GSR (overlap with project 12) | G146: 2-lane urban- upgrade existing road layout with active modes on both sides (Under construction) | K146: Transport - Auckland wide | Q146: 0.3287199716 | R146: 2060 | S146: 0 | T146: 0 | U146: 0 | V146: 0 | W146: 0 | X146: 0 | Y146: 0 | Z146: 0 | AA146: 0 | AB146: -345046.2226 | AC146: -345046.2226 | AF146: =IFERROR(VLOOKUP(K146,FA_Codes!C:F,2,FALSE),"CHECK") -> TRA A1 | AG146: -345046.2226 | AH146: =IFERROR(VLOOKUP(AF146,FA_Codes!D:F,3,FALSE),"CHECK") -> Wider | AI146: 0.3006770119 | AJ146: 0.6993229881 | AK146: -231622.6381 | AL146: 0 | AM146: 0 | AN146: 0 | AO146: 0 | AP146: 0 | AQ146: 0 | AR146: 0 | AS146: 0 | AT146: 0 | AU146: -34103.86447 | AV146: -34103.86447 | AW146: 0 | AX146: 0 | AZ146: 0 | BA146: 0 | BB146: 0 | BC146: 0 | BD146: 0 | BE146: 0 | BF146: 0 | BG146: 0 | BH146: 0 | BI146: -79319.72003 | BJ146: -79319.72003 | BK146: OK | BL146: Bremner-Norrie Road east of SH1 up to GSR (overlap with project 12) TRA A1 0.328719971596652 2060 0.300677011918574 | BM146: 2 | BN146: -113423.5845 | BO146: =IFERROR(VLOOKUP(AF146,FA_Codes!D:H,5,FALSE),"CHECK") -> Regional | BP146: TRA | BQ146: 0 | BR146: 36a TRA A1 | BS146: 36a | BT146: Arterial | BU146: 2060
B147: Transport | E147: 40b TRA A1 WK subsidy | F147: Upgrade intersection on Jesmond/Bremner Rd | G147: Multi-lane signalised intersection (upgrade intersection with active mode crossings) | K147: Transport - Auckland wide | Q147: 0.3287199716 | R147: 2060 | S147: 0 | T147: 0 | U147: 0 | V147: 0 | W147: 0 | X147: 0 | Y147: 0 | Z147: 0 | AA147: -8805.353366 | AB147: -87481.98618 | AC147: -96287.33954 | AF147: =IFERROR(VLOOKUP(K147,FA_Codes!C:F,2,FALSE),"CHECK") -> TRA A1 | AG147: -96287.33954 | AH147: =IFERROR(VLOOKUP(AF147,FA_Codes!D:F,3,FALSE),"CHECK") -> Wider | AI147: 0.3006770119 | AJ147: 0.6993229881 | AK147: -64635.76802 | AL147: 0 | AM147: 0 | AN147: 0 | AO147: 0 | AP147: 0 | AQ147: 0 | AR147: 0 | AS147: 0 | AT147: -870.3082605 | AU147: -8646.591687 | AV147: -9516.899947 | AW147: 0 | AX147: 0 | AZ147: 0 | BA147: 0 | BB147: 0 | BC147: 0 | BD147: 0 | BE147: 0 | BF147: 0 | BG147: 0 | BH147: -2024.187248 | BI147: -20110.48432 | BJ147: -22134.67157 | BK147: OK | BL147: Upgrade intersection on Jesmond/Bremner Rd TRA A1 0.328719971596652 2060 0.300677011918574 | BM147: 2 | BN147: -31651.57152 | BO147: =IFERROR(VLOOKUP(AF147,FA_Codes!D:H,5,FALSE),"CHECK") -> Regional | BP147: TRA | BQ147: 0 | BR147: 40b TRA A1 | BS147: 40b | BT147: Arterial | BU147: 2060
B148: Parks -acquisition | F148: Acquisition of neighbourhood, suburb, and civic parks for Drury | G148: Acquisition of land for civic space to support new growth in accordance with the Open Space Provision Policy | K148: Reserve Acquisition - Drury IPA | Q148: 0.9664886381 | R148: 2060 | S148: 1282729 | T148: 6748071.079 | U148: 8693105.93 | V148: 9343406.975 | W148: 14121199.55 | X148: 15296958.46 | Y148: 12613743.3 | Z148: 16132995.27 | AA148: 20459486.66 | AB148: 21901903.78 | AC148: 126593600 | AF148: =IFERROR(VLOOKUP(K148,FA_Codes!C:F,2,FALSE),"CHECK") -> OSL A28 | AG148: 126593600 | AH148: =IFERROR(VLOOKUP(AF148,FA_Codes!D:F,3,FALSE),"CHECK") -> Local | AI148: 0.1437773906 | AJ148: 0.8562226094 | AK148: 4242323.945 | AL148: 178247.0141 | AM148: 937706.6559 | AN148: 1207987.171 | AO148: 1298352.493 | AP148: 1962270.795 | AQ148: 2125653.33 | AR148: 1752795.86 | AS148: 2241828.349 | AT148: 2843034.193 | AU148: 3043471.344 | AV148: 17591347.2 | AW148: 0 | AX148: 0 | AZ148: 1061495.99 | BA148: 5584227.371 | BB148: 7193800.941 | BC148: 7731944.189 | BD148: 11685708.12 | BE148: 12658683.21 | BF148: 10438243.73 | BG148: 13350528.28 | BH148: 16930827.2 | BI148: 18124469.82 | BJ148: 104759928.9 | BK148: OK | BL148: Acquisition of neighbourhood, suburb, and civic parks for Drury OSL A28 0.966488638093256 2060 0.143777390569724 | BM148: 1 | BN148: 122351276.1 | BO148: =IFERROR(VLOOKUP(AF148,FA_Codes!D:H,5,FALSE),"CHECK") -> 0 | BP148: OSL | BQ148: 126593600 | BR148: 0 | BU148: 2060
B149: Parks -development | F149: Development of neighbourhood, suburb, and civic parks for Drury | G149: Development of land for civic space to support new growth in accordance with the Open Space Provision Policy | K149: Reserve Development - Drury IPA (civic park) | Q149: 0.9664886381 | R149: 2060 | T149: 0 | U149: 0 | V149: 0 | W149: 0 | X149: 0 | Y149: 0 | Z149: 0 | AA149: 0 | AB149: 0 | AC149: 0 | AF149: =IFERROR(VLOOKUP(K149,FA_Codes!C:F,2,FALSE),"CHECK") -> CHECK | AG149: 0 | AH149: =IFERROR(VLOOKUP(AF149,FA_Codes!D:F,3,FALSE),"CHECK") -> CHECK | AI149: 0.1437773906 | AJ149: =1-AI149 -> 0.8562226094 | AK149: 0 | AL149: 0 | AM149: 0 | AN149: 0 | AO149: 0 | AP149: 0 | AQ149: 0 | AR149: 0 | AS149: 0 | AT149: 0 | AU149: 0 | AV149: =SUM(AL149:AU149) -> 0 | AW149: 0 | AX149: 0 | AZ149: 0 | BA149: 0 | BB149: 0 | BC149: 0 | BD149: 0 | BE149: 0 | BF149: 0 | BG149: 0 | BH149: 0 | BI149: 0 | BJ149: =SUM(AZ149:BI149) -> 0 | BK149: =IF(ABS(AG149-BJ149-AV149-AK149)<0.5,"OK","CHECK") -> OK | BL149: Development of neighbourhood, suburb, and civic parks for Drury CHECK 0.966488638093256 2060 0.143777390569724 | BM149: 1 | BN149: =+BJ149+AV149 -> 0 | BO149: =IFERROR(VLOOKUP(AF149,FA_Codes!D:H,5,FALSE),"CHECK") -> CHECK | BP149: CHE | BQ149: 0 | BR149: 0 | BU149: 2060
F151: Filter total | S151: =SUBTOTAL(9,S8:S150) -> 1282729 | T151: 8139706.248 | U151: 9015788.345 | V151: 10819728.81 | W151: 15520326.49 | X151: 32951822.88 | Y151: 13254231.92 | Z151: 44027577.72 | AA151: 47149797.51 | AB151: 190784028.3 | AC151: 372945737.2 | AD151: 0 | AG151: =SUBTOTAL(9,AG8:AG150) -> 372945737.2 | AK151: =SUBTOTAL(9,AK8:AK150) -> 31826591.89 | AL151: 178247.0141 | AM151: 1065551.018 | AN151: 1232883.327 | AO151: 1686037.256 | AP151: 2329684.042 | AQ151: 6088027.842 | AR151: 1802857.229 | AS151: 4818917.752 | AT151: 5951821.109 | AU151: 24355785.52 | AV151: 49509812.11 | AW151: 0 | AZ151: =SUBTOTAL(9,AZ8:AZ150) -> 1061495.99 | BA151: 6671781.783 | BB151: 7472580.902 | BC151: 8699583.295 | BD151: 12602750.68 | BE151: 24951580.79 | BF151: 10981964.99 | BG151: 35445658.7 | BH151: 37119949.79 | BI151: 146601986.3 | BJ151: 291609333.2 | BN151: =SUBTOTAL(9,BN8:BN150) -> 341119145.3 | BQ151: =SUBTOTAL(9,BQ8:BQ150) -> 372945737.2
F153: Grand total | S153: =SUM(S8:S150) -> 1282729 | T153: 7429972.312 | U153: 8851220.314 | V153: 10066804.68 | W153: 14806771.75 | X153: 23947842.03 | Y153: 12927582.72 | Z153: 29801340.67 | AA153: 33537738.98 | AB153: 109264384.3 | AC153: =SUM(AC8:AC150) -> 251916386.7 | AK153: =SUM(AK8:AK150) -> 18051149.33 | AL153: 178247.0141 | AM153: 1000350.394 | AN153: 1220186.287 | AO153: 1488318.027 | AP153: 2142303.286 | AQ153: 4067216.841 | AR153: 1777325.931 | AS153: 3504602.156 | AT153: 4366339.782 | AU153: 13844406.61 | AV153: 33589296.32 | AW153: 0 | AZ153: =SUM(AZ8:AZ150) -> 1061495.99 | BA153: 6117129.033 | BB153: 7330403.122 | BC153: 8206087.351 | BD153: 12135058.97 | BE153: 18682203.03 | BF153: 10704667.15 | BG153: 24177142.19 | BH153: 26823497.27 | BI153: 85038256.97 | BJ153: 200275941.1 | BL153: =IF($Q153=0,"",F153&" "&AF153&" "&Q153&" "&R153&" "&AI153) ->  | BN153: =SUM(BN8:BN150) -> 233865237.4 | BO153: =+BN153/1000000 -> 233.8652374
F154: WK funding | S154: =SUMIF($AC$8:$AC$149,"<0",S$8:S$149) -> 0 | T154: -709733.9361 | U154: -164568.0318 | V154: -752924.1369 | W154: -713554.7435 | X154: -9003980.859 | Y154: -326649.1939 | Z154: -14226237.05 | AA154: -13612058.54 | AB154: -81519644.02 | AC154: =SUMIF($AC$8:$AC$149,"<0",AC$8:AC$149) -> -121029350.5
F155: Gross project costs (excludes WK funding) | S155: =+S153-S154 -> 1282729 | T155: =+T153-T154 -> 8139706.248 | U155: 9015788.345 | V155: 10819728.81 | W155: 15520326.49 | X155: 32951822.88 | Y155: 13254231.92 | Z155: 44027577.72 | AA155: 47149797.51 | AB155: 190784028.3 | AC155: =+AC153-AC154 -> 372945737.2 | BN155: =+BN153/AC153 -> 0.9283446799
J157: Auckland wide | K157: TRA A1 | AC157: Gross transport costs
J158: Drury East | K158: TRA A23 | S158: =SUMIFS(S$8:S$149,$AC$8:$AC$149,">0",$AF$8:$AF$149,$K157) -> 0 | T158: 0 | U158: 0 | V158: 0 | W158: 0 | X158: 0 | Y158: 0 | Z158: 37002.54616 | AA158: 445700.5332 | AB158: 1678254.185 | AC158: =SUMIFS(AC$8:AC$149,$AC$8:$AC$149,">0",$AF$8:$AF$149,$K157) -> 2160957.265 | AF158: Auckland wide | AK158: =SUMIFS(AK$8:AK$149,$AC$8:$AC$149,">0",$AF$8:$AF$149,$K157) -> 1450607.454 | AL158: 0 | AM158: 0 | AN158: 0 | AO158: 0 | AP158: 0 | AQ158: 0 | AR158: 0 | AS158: 3657.277595 | AT158: 44052.38945 | AU158: 165876.1914 | AV158: 213585.8585 | AW158: 0 | AZ158: =SUMIFS(AZ$8:AZ$149,$AC$8:$AC$149,">0",$AF$8:$AF$149,$K157) -> 0 | BA158: 0 | BB158: 0 | BC158: 0 | BD158: 0 | BE158: 0 | BF158: 0 | BG158: 8506.198328 | BH158: 102458.2772 | BI158: 385799.4767 | BJ158: 496763.9522 | BN158: =SUMIFS(BN$8:BN$149,$AC$8:$AC$149,">0",$AF$8:$AF$149,$K157) -> 710349.8106 | BQ158: =SUMIFS(BQ$8:BQ$149,$AC$8:$AC$149,">0",$AF$8:$AF$149,$K157) -> 2160957.265 | BR158: Auckland wide | BS158: TRA A1
J159: Drury West 1 | K159: TRA A24 | S159: 0 | T159: 939353.739 | U159: 313022.8802 | V159: 0 | W159: 0 | X159: 3359053.02 | Y159: 576439.754 | Z159: 19818352.77 | AA159: 14918630.9 | AB159: 88112903.79 | AC159: 128037756.9 | AF159: Drury East | AK159: 5515557.926 | AL159: 0 | AM159: 70709.99033 | AN159: 23562.84317 | AO159: 0 | AP159: 0 | AQ159: 252853.2082 | AR159: 43391.58694 | AS159: 1491829.409 | AT159: 1123002.127 | AU159: 6632711.743 | AV159: 9638060.907 | AW159: 0 | AZ159: 0 | BA159: 828178.6539 | BB159: 275975.7659 | BC159: 0 | BD159: 0 | BE159: 2961499.905 | BF159: 508216.532 | BG159: 17472796.5 | BH159: 13152970.12 | BI159: 77684500.55 | BJ159: 112884138 | BN159: 122522198.9 | BQ159: 128037756.9 | BR159: Drury East | BS159: TRA A23
J160: Drury West 2 | K160: TRA A25 | S160: 0 | T160: 34790.87922 | U160: 0 | V160: 1328689.653 | W160: 1259214.253 | X160: 12605374.63 | Y160: 0 | Z160: 871071.1146 | AA160: 4230726.997 | AB160: 35358575.4 | AC160: 55688442.93 | AF160: Drury West 1 | AK160: 4674710.065 | AL160: 0 | AM160: 10139.89063 | AN160: 0 | AO160: 387249.9938 | AP160: 367001.211 | AQ160: 3673868.639 | AR160: 0 | AS160: 253875.9016 | AT160: 1233056.191 | AU160: 10305347.13 | AV160: 16230538.96 | AW160: 0 | AZ160: 0 | BA160: 21730.5034 | BB160: 0 | BC160: 829904.1493 | BD160: 786509.5743 | BE160: 7873360.558 | BF160: 0 | BG160: 544074.0285 | BH160: 2642526.703 | BI160: 22085088.39 | BJ160: 34783193.91 | BN160: 51013732.87 | BQ160: 55688442.93 | BR160: Drury West 1 | BS160: TRA A24
J161: Opaheke | K161: TRA A26 | S161: 0 | T161: 34790.87922 | U161: 0 | V161: 147632.1837 | W161: 139912.6948 | X161: 1401603.732 | Y161: 0 | Z161: 588184.3535 | AA161: 960330.1299 | AB161: 12648017.87 | AC161: 15920471.84 | AF161: Drury West 2 | AK161: 1020419.732 | AL161: 0 | AM161: 102.4574077 | AN161: 0 | AO161: 434.7694332 | AP161: 412.0359226 | AQ161: 4127.65323 | AR161: 0 | AS161: 1732.173647 | AT161: 2828.124436 | AU161: 37247.78312 | AV161: 46884.99719 | AW161: 0 | AZ161: 0 | BA161: 32458.50677 | BB161: 0 | BC161: 137734.9565 | BD161: 130532.9803 | BE161: 1307640.543 | BF161: 0 | BG161: 548752.6112 | BH161: 895949.8213 | BI161: 11800097.69 | BJ161: 14853167.11 | BN161: 14900052.11 | BQ161: 15920471.84 | BR161: Drury West 2 | BS161: TRA A25
J162: Drury South | K162: TRA A27 | S162: 0 | T162: 243536.1546 | U162: 1592.474604 | V162: 0 | W162: 0 | X162: 194182.1679 | Y162: 48036.64617 | Z162: 4085812.108 | AA162: 4300787.427 | AB162: 18036696.05 | AC162: 26910643.03 | AF162: Opaheke | AK162: 6544639.003 | AL162: 0 | AM162: 21834.05973 | AN162: 142.7721715 | AO162: 0 | AP162: 0 | AQ162: 17409.26336 | AR162: 4306.691151 | AS162: 366310.5619 | AT162: 385584.0204 | AU162: 1617067.083 | AV162: 2412654.451 | AW162: 0 | AZ162: 0 | BA162: 162474.3679 | BB162: 1062.414347 | BC162: 0 | BD162: 0 | BE162: 129548.0133 | BF162: 32047.49512 | BG162: 2725836.503 | BH162: 2869256.6 | BI162: 12033124.18 | BJ162: 17953349.58 | BN162: 20366004.03 | BQ162: 26910643.03 | BR162: Opaheke | BS162: TRA A26
J163: Paerata / Pukekohe | K163: TRA A28 | S163: 0 | T163: 0 | U163: 0 | V163: 0 | W163: 0 | X163: 0 | Y163: 0 | Z163: 0 | AA163: 16042.56157 | AB163: 159457.6441 | AC163: 175500.2057 | AF163: Drury South | AK163: 29095.48254 | AL163: 0 | AM163: 0 | AN163: 0 | AO163: 0 | AP163: 0 | AQ163: 0 | AR163: 0 | AS163: 0 | AT163: 6714.910397 | AU163: 66743.94156 | AV163: 73458.85196 | AW163: 0 | AZ163: 0 | BA163: 0 | BB163: 0 | BC163: 0 | BD163: 0 | BE163: 0 | BF163: 0 | BG163: 0 | BH163: 6668.018564 | BI163: 66277.85259 | BJ163: 72945.87115 | BN163: 146404.7231 | BQ163: 175500.2057 | BR163: Drury South | BS163: TRA A27
J164: Papakura / Takaanini | K164: TRA A29 | S164: 0 | T164: 69581.75844 | U164: 0 | V164: 0 | W164: 0 | X164: 2264.737822 | Y164: 0 | Z164: 1409983.188 | AA164: 696321.4654 | AB164: 9009484.534 | AC164: 11187635.68 | AF164: Paerata / Pukekohe | AK164: 4357876.889 | AL164: 0 | AM164: 14789.05094 | AN164: 0 | AO164: 0 | AP164: 0 | AQ164: 481.3520635 | AR164: 0 | AS164: 299680.7448 | AT164: 147997.6053 | AU164: 1914894.488 | AV164: 2377843.241 | AW164: 0 | AZ164: 0 | BA164: 27688.79158 | BB164: 0 | BC164: 0 | BD164: 0 | BE164: 901.2111067 | BF164: 0 | BG164: 561077.0912 | BH164: 277088.426 | BI164: 3585160.034 | BJ164: 4451915.554 | BN164: 6829758.795 | BQ164: 11187635.68 | BR164: Paerata / Pukekohe | BS164: TRA A28
S165: 0 | T165: 69581.75844 | U165: 8067.06038 | V165: 0 | W165: 0 | X165: 92386.13897 | Y165: 16012.21539 | Z165: 1084176.362 | AA165: 1121770.841 | AB165: 3878735.047 | AC165: 6270729.423 | AF165: Papakura / Takaanini | AK165: 3991361.393 | AL165: 0 | AM165: 10268.91359 | AN165: 1190.54114 | AO165: 0 | AP165: 0 | AQ165: 13634.39642 | AR165: 2363.091418 | AS165: 160003.3347 | AT165: 165551.5482 | AU165: 572425.8188 | AV165: 925437.6441 | AW165: 0 | AZ165: 0 | BA165: 15023.58828 | BB165: 1741.781129 | BC165: 0 | BD165: 0 | BE165: 19947.34462 | BF165: 3457.241336 | BG165: 234087.4915 | BH165: 242204.6185 | BI165: 837468.3208 | BJ165: 1353930.386 | BN165: 2279368.03 | BQ165: 6270729.423 | BR165: Papakura / Takaanini | BS165: TRA A29
S166: =SUM(S158:S165) -> 0 | T166: 1391635.169 | U166: 322682.4152 | V166: 1476321.837 | W166: 1399126.948 | X166: 17654864.43 | Y166: 640488.6156 | Z166: 27894582.45 | AA166: 26690310.86 | AB166: 168882124.5 | AC166: =SUM(AC158:AC165) -> 246352137.2 | AK166: =SUM(AK158:AK165) -> 27584267.94 | AL166: 0 | AM166: 127844.3626 | AN166: 24896.15648 | AO166: 387684.7633 | AP166: 367413.2469 | AQ166: 3962374.513 | AR166: 50061.36951 | AS166: 2577089.403 | AT166: 3108786.916 | AU166: 21312314.18 | AV166: 31918464.91 | AW166: 0 | AZ166: =SUM(AZ158:AZ165) -> 0 | BA166: 1087554.412 | BB166: 278779.9614 | BC166: 967639.1058 | BD166: 917042.5546 | BE166: 12292897.58 | BF166: 543721.2684 | BG166: 22095130.42 | BH166: 20189122.58 | BI166: 128477516.5 | BJ166: 186849404.4 | BN166: =SUM(BN158:BN165) -> 218767869.3 | BQ166: =SUM(BQ158:BQ165) -> 246352137.2
K169: OSL A28 | S169: =SUMIFS(S$8:S$149,$AC$8:$AC$149,">0",$AF$8:$AF$149,$AF169) -> 1282729 | T169: 6748071.079 | U169: 8693105.93 | V169: 9343406.975 | W169: 14121199.55 | X169: 15296958.46 | Y169: 12613743.3 | Z169: 16132995.27 | AA169: 20459486.66 | AB169: 21901903.78 | AC169: =SUMIFS(AC$8:AC$149,$AC$8:$AC$149,">0",$AF$8:$AF$149,$AF169) -> 126593600 | AF169: OSL A28 | BL169: =IF($Q169=0,"",F169&" "&#REF!&" "&Q169&" "&R169&" "&AI169) -> 
K170: OSL A29 | S170: 0 | T170: 0 | U170: 0 | V170: 0 | W170: 0 | X170: 0 | Y170: 0 | Z170: 0 | AA170: 0 | AB170: 0 | AC170: 0 | AF170: OSL A29 | BL170: =IF($Q170=0,"",F170&" "&#REF!&" "&Q170&" "&R170&" "&AI170) -> 
K171: OSL A30 | S171: 0 | T171: 0 | U171: 0 | V171: 0 | W171: 0 | X171: 0 | Y171: 0 | Z171: 0 | AA171: 0 | AB171: 0 | AC171: 0 | AF171: OSL A30 | BL171: =IF($Q171=0,"",F171&" "&#REF!&" "&Q171&" "&R171&" "&AI171) -> 
K172: OSL A31 | S172: 0 | T172: 0 | U172: 0 | V172: 0 | W172: 0 | X172: 0 | Y172: 0 | Z172: 0 | AA172: 0 | AB172: 0 | AC172: 0 | AF172: OSL A31 | BL172: =IF($Q172=0,"",F172&" "&#REF!&" "&Q172&" "&R172&" "&AI172) -> 
K173: OSL A32 | S173: 0 | T173: 0 | U173: 0 | V173: 0 | W173: 0 | X173: 0 | Y173: 0 | Z173: 0 | AA173: 0 | AB173: 0 | AC173: 0 | AF173: OSL A32 | BL173: =IF($Q173=0,"",F173&" "&#REF!&" "&Q173&" "&R173&" "&AI173) -> 
K174: OSL A33 | S174: 0 | T174: 0 | U174: 0 | V174: 0 | W174: 0 | X174: 0 | Y174: 0 | Z174: 0 | AA174: 0 | AB174: 0 | AC174: 0 | AF174: OSL A33 | BL174: =IF($Q174=0,"",F174&" "&#REF!&" "&Q174&" "&R174&" "&AI174) -> 
K175: OSL A34 | S175: 0 | T175: 0 | U175: 0 | V175: 0 | W175: 0 | X175: 0 | Y175: 0 | Z175: 0 | AA175: 0 | AB175: 0 | AC175: 0 | AF175: OSL A34 | BL175: =IF($Q175=0,"",F175&" "&#REF!&" "&Q175&" "&R175&" "&AI175) -> 
K176: OSD A28 | S176: 0 | T176: 0 | U176: 0 | V176: 0 | W176: 0 | X176: 0 | Y176: 0 | Z176: 0 | AA176: 0 | AB176: 0 | AC176: 0 | AF176: OSD A28 | BL176: =IF($Q176=0,"",F176&" "&#REF!&" "&Q176&" "&R176&" "&AI176) -> 
K177: OSD A29 | S177: 0 | T177: 0 | U177: 0 | V177: 0 | W177: 0 | X177: 0 | Y177: 0 | Z177: 0 | AA177: 0 | AB177: 0 | AC177: 0 | AF177: OSD A29 | BL177: =IF($Q177=0,"",F177&" "&#REF!&" "&Q177&" "&R177&" "&AI177) -> 
K178: OSD A1 | S178: 0 | T178: 0 | U178: 0 | V178: 0 | W178: 0 | X178: 0 | Y178: 0 | Z178: 0 | AA178: 0 | AB178: 0 | AC178: 0 | AF178: OSD A1 | BL178: =IF($Q178=0,"",F178&" "&#REF!&" "&Q178&" "&R178&" "&AI178) -> 
S179: =SUM(S169:S178) -> 1282729 | T179: 6748071.079 | U179: 8693105.93 | V179: 9343406.975 | W179: 14121199.55 | X179: 15296958.46 | Y179: 12613743.3 | Z179: 16132995.27 | AA179: 20459486.66 | AB179: 21901903.78 | AC179: =SUM(AC169:AC178) -> 126593600 | BL179: =IF($Q179=0,"",F179&" "&AF179&" "&Q179&" "&R179&" "&AI179) -> 
K181: Gross capex (excludes WK funding) | S181: =+S179+S166 -> 1282729 | T181: 8139706.248 | U181: 9015788.345 | V181: 10819728.81 | W181: 15520326.49 | X181: 32951822.88 | Y181: 13254231.92 | Z181: 44027577.72 | AA181: 47149797.51 | AB181: 190784028.3 | AC181: =+AC179+AC166 -> 372945737.2
K182: Check of gross capex (should be zero) | S182: =+S181-S155 -> 0 | T182: =+T181-T155 -> 0 | U182: 0 | V182: 0 | W182: 0 | X182: 0 | Y182: 0 | Z182: 0 | AA182: 0 | AB182: 0 | AC182: 0
BL243: =IF($Q243=0,"",F243&" "&AF243&" "&Q243&" "&R243&" "&AI243) -> 
BL307: =IF($Q307=0,"",F307&" "&AF307&" "&Q307&" "&R307&" "&AI307) -> 
BL371: =IF($Q371=0,"",F371&" "&AF371&" "&Q371&" "&R371&" "&AI371) -> 

Sheet O_CWP_TOT
A1: Sumif used:
A2: O_CWP_NOW
A3: O_CWP_FUT
B6: LTP capital expenditure projects - cost allocation model output: Total project cost
D9: Prev | E9: Planned
B10: Activity | C10: FundArea | D10: To date | E10: 2021/22 | F10: 2022/23 | G10: 2023/24 | H10: 2024/25 | I10: 2025/26 | J10: 2026/27 | K10: 2027/28 | L10: 2028/29 | M10: 2029/30 | N10: 2030/31 | O10: Total
A12: OSL A1 | B12: Open Space Land Acquisition | C12: =VLOOKUP($A12,FA_Codes!$D$2:$G$249,4,FALSE) -> Auckland wide | D12: =SUMIF(O_CWP_NOW!$A:$A,$A12,O_CWP_NOW!D:D)+SUMIF(O_CWP_FUT!$A:$A,$A12,O_CWP_FUT!D:D) -> 0 | E12: =SUMIF(O_CWP_NOW!$A:$A,$A12,O_CWP_NOW!E:E)+SUMIF(O_CWP_FUT!$A:$A,$A12,O_CWP_FUT!E:E) -> 0 | F12: =SUMIF(O_CWP_NOW!$A:$A,$A12,O_CWP_NOW!F:F)+SUMIF(O_CWP_FUT!$A:$A,$A12,O_CWP_FUT!F:F) -> 0 | G12: =SUMIF(O_CWP_NOW!$A:$A,$A12,O_CWP_NOW!G:G)+SUMIF(O_CWP_FUT!$A:$A,$A12,O_CWP_FUT!G:G) -> 0 | H12: =SUMIF(O_CWP_NOW!$A:$A,$A12,O_CWP_NOW!H:H)+SUMIF(O_CWP_FUT!$A:$A,$A12,O_CWP_FUT!H:H) -> 0 | I12: =SUMIF(O_CWP_NOW!$A:$A,$A12,O_CWP_NOW!I:I)+SUMIF(O_CWP_FUT!$A:$A,$A12,O_CWP_FUT!I:I) -> 0 | J12: =SUMIF(O_CWP_NOW!$A:$A,$A12,O_CWP_NOW!J:J)+SUMIF(O_CWP_FUT!$A:$A,$A12,O_CWP_FUT!J:J) -> 0 | K12: =SUMIF(O_CWP_NOW!$A:$A,$A12,O_CWP_NOW!K:K)+SUMIF(O_CWP_FUT!$A:$A,$A12,O_CWP_FUT!K:K) -> 0 | L12: =SUMIF(O_CWP_NOW!$A:$A,$A12,O_CWP_NOW!L:L)+SUMIF(O_CWP_FUT!$A:$A,$A12,O_CWP_FUT!L:L) -> 0 | M12: =SUMIF(O_CWP_NOW!$A:$A,$A12,O_CWP_NOW!M:M)+SUMIF(O_CWP_FUT!$A:$A,$A12,O_CWP_FUT!M:M) -> 0 | N12: =SUMIF(O_CWP_NOW!$A:$A,$A12,O_CWP_NOW!N:N)+SUMIF(O_CWP_FUT!$A:$A,$A12,O_CWP_FUT!N:N) -> 0 | O12: =SUM(D12:N12) -> 0
A13: OSL A2 | B13: Open Space Land Acquisition | C13: =VLOOKUP($A13,FA_Codes!$D$2:$G$249,4,FALSE) -> Area 2 | D13: =SUMIF(O_CWP_NOW!$A:$A,$A13,O_CWP_NOW!D:D)+SUMIF(O_CWP_FUT!$A:$A,$A13,O_CWP_FUT!D:D) -> 0 | E13: =SUMIF(O_CWP_NOW!$A:$A,$A13,O_CWP_NOW!E:E)+SUMIF(O_CWP_FUT!$A:$A,$A13,O_CWP_FUT!E:E) -> 0 | F13: =SUMIF(O_CWP_NOW!$A:$A,$A13,O_CWP_NOW!F:F)+SUMIF(O_CWP_FUT!$A:$A,$A13,O_CWP_FUT!F:F) -> 0 | G13: =SUMIF(O_CWP_NOW!$A:$A,$A13,O_CWP_NOW!G:G)+SUMIF(O_CWP_FUT!$A:$A,$A13,O_CWP_FUT!G:G) -> 0 | H13: =SUMIF(O_CWP_NOW!$A:$A,$A13,O_CWP_NOW!H:H)+SUMIF(O_CWP_FUT!$A:$A,$A13,O_CWP_FUT!H:H) -> 0 | I13: =SUMIF(O_CWP_NOW!$A:$A,$A13,O_CWP_NOW!I:I)+SUMIF(O_CWP_FUT!$A:$A,$A13,O_CWP_FUT!I:I) -> 0 | J13: =SUMIF(O_CWP_NOW!$A:$A,$A13,O_CWP_NOW!J:J)+SUMIF(O_CWP_FUT!$A:$A,$A13,O_CWP_FUT!J:J) -> 0 | K13: =SUMIF(O_CWP_NOW!$A:$A,$A13,O_CWP_NOW!K:K)+SUMIF(O_CWP_FUT!$A:$A,$A13,O_CWP_FUT!K:K) -> 0 | L13: =SUMIF(O_CWP_NOW!$A:$A,$A13,O_CWP_NOW!L:L)+SUMIF(O_CWP_FUT!$A:$A,$A13,O_CWP_FUT!L:L) -> 0 | M13: =SUMIF(O_CWP_NOW!$A:$A,$A13,O_CWP_NOW!M:M)+SUMIF(O_CWP_FUT!$A:$A,$A13,O_CWP_FUT!M:M) -> 0 | N13: =SUMIF(O_CWP_NOW!$A:$A,$A13,O_CWP_NOW!N:N)+SUMIF(O_CWP_FUT!$A:$A,$A13,O_CWP_FUT!N:N) -> 0 | O13: =SUM(D13:N13) -> 0
A14: OSL A3 | B14: Open Space Land Acquisition | C14: =VLOOKUP($A14,FA_Codes!$D$2:$G$249,4,FALSE) -> Urban | D14: =SUMIF(O_CWP_NOW!$A:$A,$A14,O_CWP_NOW!D:D)+SUMIF(O_CWP_FUT!$A:$A,$A14,O_CWP_FUT!D:D) -> 0 | E14: =SUMIF(O_CWP_NOW!$A:$A,$A14,O_CWP_NOW!E:E)+SUMIF(O_CWP_FUT!$A:$A,$A14,O_CWP_FUT!E:E) -> 0 | F14: =SUMIF(O_CWP_NOW!$A:$A,$A14,O_CWP_NOW!F:F)+SUMIF(O_CWP_FUT!$A:$A,$A14,O_CWP_FUT!F:F) -> 0 | G14: =SUMIF(O_CWP_NOW!$A:$A,$A14,O_CWP_NOW!G:G)+SUMIF(O_CWP_FUT!$A:$A,$A14,O_CWP_FUT!G:G) -> 0 | H14: =SUMIF(O_CWP_NOW!$A:$A,$A14,O_CWP_NOW!H:H)+SUMIF(O_CWP_FUT!$A:$A,$A14,O_CWP_FUT!H:H) -> 0 | I14: =SUMIF(O_CWP_NOW!$A:$A,$A14,O_CWP_NOW!I:I)+SUMIF(O_CWP_FUT!$A:$A,$A14,O_CWP_FUT!I:I) -> 0 | J14: =SUMIF(O_CWP_NOW!$A:$A,$A14,O_CWP_NOW!J:J)+SUMIF(O_CWP_FUT!$A:$A,$A14,O_CWP_FUT!J:J) -> 0 | K14: =SUMIF(O_CWP_NOW!$A:$A,$A14,O_CWP_NOW!K:K)+SUMIF(O_CWP_FUT!$A:$A,$A14,O_CWP_FUT!K:K) -> 0 | L14: =SUMIF(O_CWP_NOW!$A:$A,$A14,O_CWP_NOW!L:L)+SUMIF(O_CWP_FUT!$A:$A,$A14,O_CWP_FUT!L:L) -> 0 | M14: =SUMIF(O_CWP_NOW!$A:$A,$A14,O_CWP_NOW!M:M)+SUMIF(O_CWP_FUT!$A:$A,$A14,O_CWP_FUT!M:M) -> 0 | N14: =SUMIF(O_CWP_NOW!$A:$A,$A14,O_CWP_NOW!N:N)+SUMIF(O_CWP_FUT!$A:$A,$A14,O_CWP_FUT!N:N) -> 0 | O14: =SUM(D14:N14) -> 0
A15: OSL A4 | B15: Open Space Land Acquisition | C15: =VLOOKUP($A15,FA_Codes!$D$2:$G$249,4,FALSE) -> Area 4 | D15: =SUMIF(O_CWP_NOW!$A:$A,$A15,O_CWP_NOW!D:D)+SUMIF(O_CWP_FUT!$A:$A,$A15,O_CWP_FUT!D:D) -> 0 | E15: =SUMIF(O_CWP_NOW!$A:$A,$A15,O_CWP_NOW!E:E)+SUMIF(O_CWP_FUT!$A:$A,$A15,O_CWP_FUT!E:E) -> 0 | F15: =SUMIF(O_CWP_NOW!$A:$A,$A15,O_CWP_NOW!F:F)+SUMIF(O_CWP_FUT!$A:$A,$A15,O_CWP_FUT!F:F) -> 0 | G15: =SUMIF(O_CWP_NOW!$A:$A,$A15,O_CWP_NOW!G:G)+SUMIF(O_CWP_FUT!$A:$A,$A15,O_CWP_FUT!G:G) -> 0 | H15: =SUMIF(O_CWP_NOW!$A:$A,$A15,O_CWP_NOW!H:H)+SUMIF(O_CWP_FUT!$A:$A,$A15,O_CWP_FUT!H:H) -> 0 | I15: =SUMIF(O_CWP_NOW!$A:$A,$A15,O_CWP_NOW!I:I)+SUMIF(O_CWP_FUT!$A:$A,$A15,O_CWP_FUT!I:I) -> 0 | J15: =SUMIF(O_CWP_NOW!$A:$A,$A15,O_CWP_NOW!J:J)+SUMIF(O_CWP_FUT!$A:$A,$A15,O_CWP_FUT!J:J) -> 0 | K15: =SUMIF(O_CWP_NOW!$A:$A,$A15,O_CWP_NOW!K:K)+SUMIF(O_CWP_FUT!$A:$A,$A15,O_CWP_FUT!K:K) -> 0 | L15: =SUMIF(O_CWP_NOW!$A:$A,$A15,O_CWP_NOW!L:L)+SUMIF(O_CWP_FUT!$A:$A,$A15,O_CWP_FUT!L:L) -> 0 | M15: =SUMIF(O_CWP_NOW!$A:$A,$A15,O_CWP_NOW!M:M)+SUMIF(O_CWP_FUT!$A:$A,$A15,O_CWP_FUT!M:M) -> 0 | N15: =SUMIF(O_CWP_NOW!$A:$A,$A15,O_CWP_NOW!N:N)+SUMIF(O_CWP_FUT!$A:$A,$A15,O_CWP_FUT!N:N) -> 0 | O15: =SUM(D15:N15) -> 0
A16: OSL A5 | B16: Open Space Land Acquisition | C16: =VLOOKUP($A16,FA_Codes!$D$2:$G$249,4,FALSE) -> Warkworth | D16: =SUMIF(O_CWP_NOW!$A:$A,$A16,O_CWP_NOW!D:D)+SUMIF(O_CWP_FUT!$A:$A,$A16,O_CWP_FUT!D:D) -> 0 | E16: =SUMIF(O_CWP_NOW!$A:$A,$A16,O_CWP_NOW!E:E)+SUMIF(O_CWP_FUT!$A:$A,$A16,O_CWP_FUT!E:E) -> 0 | F16: =SUMIF(O_CWP_NOW!$A:$A,$A16,O_CWP_NOW!F:F)+SUMIF(O_CWP_FUT!$A:$A,$A16,O_CWP_FUT!F:F) -> 0 | G16: =SUMIF(O_CWP_NOW!$A:$A,$A16,O_CWP_NOW!G:G)+SUMIF(O_CWP_FUT!$A:$A,$A16,O_CWP_FUT!G:G) -> 0 | H16: =SUMIF(O_CWP_NOW!$A:$A,$A16,O_CWP_NOW!H:H)+SUMIF(O_CWP_FUT!$A:$A,$A16,O_CWP_FUT!H:H) -> 0 | I16: =SUMIF(O_CWP_NOW!$A:$A,$A16,O_CWP_NOW!I:I)+SUMIF(O_CWP_FUT!$A:$A,$A16,O_CWP_FUT!I:I) -> 0 | J16: =SUMIF(O_CWP_NOW!$A:$A,$A16,O_CWP_NOW!J:J)+SUMIF(O_CWP_FUT!$A:$A,$A16,O_CWP_FUT!J:J) -> 0 | K16: =SUMIF(O_CWP_NOW!$A:$A,$A16,O_CWP_NOW!K:K)+SUMIF(O_CWP_FUT!$A:$A,$A16,O_CWP_FUT!K:K) -> 0 | L16: =SUMIF(O_CWP_NOW!$A:$A,$A16,O_CWP_NOW!L:L)+SUMIF(O_CWP_FUT!$A:$A,$A16,O_CWP_FUT!L:L) -> 0 | M16: =SUMIF(O_CWP_NOW!$A:$A,$A16,O_CWP_NOW!M:M)+SUMIF(O_CWP_FUT!$A:$A,$A16,O_CWP_FUT!M:M) -> 0 | N16: =SUMIF(O_CWP_NOW!$A:$A,$A16,O_CWP_NOW!N:N)+SUMIF(O_CWP_FUT!$A:$A,$A16,O_CWP_FUT!N:N) -> 0 | O16: =SUM(D16:N16) -> 0
A17: OSL A6 | B17: Open Space Land Acquisition | C17: =VLOOKUP($A17,FA_Codes!$D$2:$G$249,4,FALSE) -> Dairy Flat | D17: =SUMIF(O_CWP_NOW!$A:$A,$A17,O_CWP_NOW!D:D)+SUMIF(O_CWP_FUT!$A:$A,$A17,O_CWP_FUT!D:D) -> 0 | E17: =SUMIF(O_CWP_NOW!$A:$A,$A17,O_CWP_NOW!E:E)+SUMIF(O_CWP_FUT!$A:$A,$A17,O_CWP_FUT!E:E) -> 0 | F17: =SUMIF(O_CWP_NOW!$A:$A,$A17,O_CWP_NOW!F:F)+SUMIF(O_CWP_FUT!$A:$A,$A17,O_CWP_FUT!F:F) -> 0 | G17: =SUMIF(O_CWP_NOW!$A:$A,$A17,O_CWP_NOW!G:G)+SUMIF(O_CWP_FUT!$A:$A,$A17,O_CWP_FUT!G:G) -> 0 | H17: =SUMIF(O_CWP_NOW!$A:$A,$A17,O_CWP_NOW!H:H)+SUMIF(O_CWP_FUT!$A:$A,$A17,O_CWP_FUT!H:H) -> 0 | I17: =SUMIF(O_CWP_NOW!$A:$A,$A17,O_CWP_NOW!I:I)+SUMIF(O_CWP_FUT!$A:$A,$A17,O_CWP_FUT!I:I) -> 0 | J17: =SUMIF(O_CWP_NOW!$A:$A,$A17,O_CWP_NOW!J:J)+SUMIF(O_CWP_FUT!$A:$A,$A17,O_CWP_FUT!J:J) -> 0 | K17: =SUMIF(O_CWP_NOW!$A:$A,$A17,O_CWP_NOW!K:K)+SUMIF(O_CWP_FUT!$A:$A,$A17,O_CWP_FUT!K:K) -> 0 | L17: =SUMIF(O_CWP_NOW!$A:$A,$A17,O_CWP_NOW!L:L)+SUMIF(O_CWP_FUT!$A:$A,$A17,O_CWP_FUT!L:L) -> 0 | M17: =SUMIF(O_CWP_NOW!$A:$A,$A17,O_CWP_NOW!M:M)+SUMIF(O_CWP_FUT!$A:$A,$A17,O_CWP_FUT!M:M) -> 0 | N17: =SUMIF(O_CWP_NOW!$A:$A,$A17,O_CWP_NOW!N:N)+SUMIF(O_CWP_FUT!$A:$A,$A17,O_CWP_FUT!N:N) -> 0 | O17: =SUM(D17:N17) -> 0
A18: OSL A7 | B18: Open Space Land Acquisition | C18: =VLOOKUP($A18,FA_Codes!$D$2:$G$249,4,FALSE) -> Northwest Greenfield | D18: =SUMIF(O_CWP_NOW!$A:$A,$A18,O_CWP_NOW!D:D)+SUMIF(O_CWP_FUT!$A:$A,$A18,O_CWP_FUT!D:D) -> 0 | E18: =SUMIF(O_CWP_NOW!$A:$A,$A18,O_CWP_NOW!E:E)+SUMIF(O_CWP_FUT!$A:$A,$A18,O_CWP_FUT!E:E) -> 0 | F18: =SUMIF(O_CWP_NOW!$A:$A,$A18,O_CWP_NOW!F:F)+SUMIF(O_CWP_FUT!$A:$A,$A18,O_CWP_FUT!F:F) -> 0 | G18: =SUMIF(O_CWP_NOW!$A:$A,$A18,O_CWP_NOW!G:G)+SUMIF(O_CWP_FUT!$A:$A,$A18,O_CWP_FUT!G:G) -> 0 | H18: =SUMIF(O_CWP_NOW!$A:$A,$A18,O_CWP_NOW!H:H)+SUMIF(O_CWP_FUT!$A:$A,$A18,O_CWP_FUT!H:H) -> 0 | I18: =SUMIF(O_CWP_NOW!$A:$A,$A18,O_CWP_NOW!I:I)+SUMIF(O_CWP_FUT!$A:$A,$A18,O_CWP_FUT!I:I) -> 0 | J18: =SUMIF(O_CWP_NOW!$A:$A,$A18,O_CWP_NOW!J:J)+SUMIF(O_CWP_FUT!$A:$A,$A18,O_CWP_FUT!J:J) -> 0 | K18: =SUMIF(O_CWP_NOW!$A:$A,$A18,O_CWP_NOW!K:K)+SUMIF(O_CWP_FUT!$A:$A,$A18,O_CWP_FUT!K:K) -> 0 | L18: =SUMIF(O_CWP_NOW!$A:$A,$A18,O_CWP_NOW!L:L)+SUMIF(O_CWP_FUT!$A:$A,$A18,O_CWP_FUT!L:L) -> 0 | M18: =SUMIF(O_CWP_NOW!$A:$A,$A18,O_CWP_NOW!M:M)+SUMIF(O_CWP_FUT!$A:$A,$A18,O_CWP_FUT!M:M) -> 0 | N18: =SUMIF(O_CWP_NOW!$A:$A,$A18,O_CWP_NOW!N:N)+SUMIF(O_CWP_FUT!$A:$A,$A18,O_CWP_FUT!N:N) -> 0 | O18: 0
A19: OSL A8 | B19: Open Space Land Acquisition | C19: =VLOOKUP($A19,FA_Codes!$D$2:$G$249,4,FALSE) -> North Greenfield | D19: =SUMIF(O_CWP_NOW!$A:$A,$A19,O_CWP_NOW!D:D)+SUMIF(O_CWP_FUT!$A:$A,$A19,O_CWP_FUT!D:D) -> 0 | E19: =SUMIF(O_CWP_NOW!$A:$A,$A19,O_CWP_NOW!E:E)+SUMIF(O_CWP_FUT!$A:$A,$A19,O_CWP_FUT!E:E) -> 0 | F19: =SUMIF(O_CWP_NOW!$A:$A,$A19,O_CWP_NOW!F:F)+SUMIF(O_CWP_FUT!$A:$A,$A19,O_CWP_FUT!F:F) -> 0 | G19: =SUMIF(O_CWP_NOW!$A:$A,$A19,O_CWP_NOW!G:G)+SUMIF(O_CWP_FUT!$A:$A,$A19,O_CWP_FUT!G:G) -> 0 | H19: =SUMIF(O_CWP_NOW!$A:$A,$A19,O_CWP_NOW!H:H)+SUMIF(O_CWP_FUT!$A:$A,$A19,O_CWP_FUT!H:H) -> 0 | I19: =SUMIF(O_CWP_NOW!$A:$A,$A19,O_CWP_NOW!I:I)+SUMIF(O_CWP_FUT!$A:$A,$A19,O_CWP_FUT!I:I) -> 0 | J19: =SUMIF(O_CWP_NOW!$A:$A,$A19,O_CWP_NOW!J:J)+SUMIF(O_CWP_FUT!$A:$A,$A19,O_CWP_FUT!J:J) -> 0 | K19: =SUMIF(O_CWP_NOW!$A:$A,$A19,O_CWP_NOW!K:K)+SUMIF(O_CWP_FUT!$A:$A,$A19,O_CWP_FUT!K:K) -> 0 | L19: =SUMIF(O_CWP_NOW!$A:$A,$A19,O_CWP_NOW!L:L)+SUMIF(O_CWP_FUT!$A:$A,$A19,O_CWP_FUT!L:L) -> 0 | M19: =SUMIF(O_CWP_NOW!$A:$A,$A19,O_CWP_NOW!M:M)+SUMIF(O_CWP_FUT!$A:$A,$A19,O_CWP_FUT!M:M) -> 0 | N19: =SUMIF(O_CWP_NOW!$A:$A,$A19,O_CWP_NOW!N:N)+SUMIF(O_CWP_FUT!$A:$A,$A19,O_CWP_FUT!N:N) -> 0 | O19: 0
A20: OSL A9 | B20: Open Space Land Acquisition | C20: =VLOOKUP($A20,FA_Codes!$D$2:$G$249,4,FALSE) -> South Greenfield | D20: =SUMIF(O_CWP_NOW!$A:$A,$A20,O_CWP_NOW!D:D)+SUMIF(O_CWP_FUT!$A:$A,$A20,O_CWP_FUT!D:D) -> 0 | E20: =SUMIF(O_CWP_NOW!$A:$A,$A20,O_CWP_NOW!E:E)+SUMIF(O_CWP_FUT!$A:$A,$A20,O_CWP_FUT!E:E) -> 0 | F20: =SUMIF(O_CWP_NOW!$A:$A,$A20,O_CWP_NOW!F:F)+SUMIF(O_CWP_FUT!$A:$A,$A20,O_CWP_FUT!F:F) -> 0 | G20: =SUMIF(O_CWP_NOW!$A:$A,$A20,O_CWP_NOW!G:G)+SUMIF(O_CWP_FUT!$A:$A,$A20,O_CWP_FUT!G:G) -> 0 | H20: =SUMIF(O_CWP_NOW!$A:$A,$A20,O_CWP_NOW!H:H)+SUMIF(O_CWP_FUT!$A:$A,$A20,O_CWP_FUT!H:H) -> 0 | I20: =SUMIF(O_CWP_NOW!$A:$A,$A20,O_CWP_NOW!I:I)+SUMIF(O_CWP_FUT!$A:$A,$A20,O_CWP_FUT!I:I) -> 0 | J20: =SUMIF(O_CWP_NOW!$A:$A,$A20,O_CWP_NOW!J:J)+SUMIF(O_CWP_FUT!$A:$A,$A20,O_CWP_FUT!J:J) -> 0 | K20: =SUMIF(O_CWP_NOW!$A:$A,$A20,O_CWP_NOW!K:K)+SUMIF(O_CWP_FUT!$A:$A,$A20,O_CWP_FUT!K:K) -> 0 | L20: =SUMIF(O_CWP_NOW!$A:$A,$A20,O_CWP_NOW!L:L)+SUMIF(O_CWP_FUT!$A:$A,$A20,O_CWP_FUT!L:L) -> 0 | M20: =SUMIF(O_CWP_NOW!$A:$A,$A20,O_CWP_NOW!M:M)+SUMIF(O_CWP_FUT!$A:$A,$A20,O_CWP_FUT!M:M) -> 0 | N20: =SUMIF(O_CWP_NOW!$A:$A,$A20,O_CWP_NOW!N:N)+SUMIF(O_CWP_FUT!$A:$A,$A20,O_CWP_FUT!N:N) -> 0 | O20: 0
A21: OSL A10 | B21: Open Space Land Acquisition | C21: =VLOOKUP($A21,FA_Codes!$D$2:$G$249,4,FALSE) -> Flatbush | D21: =SUMIF(O_CWP_NOW!$A:$A,$A21,O_CWP_NOW!D:D)+SUMIF(O_CWP_FUT!$A:$A,$A21,O_CWP_FUT!D:D) -> 0 | E21: =SUMIF(O_CWP_NOW!$A:$A,$A21,O_CWP_NOW!E:E)+SUMIF(O_CWP_FUT!$A:$A,$A21,O_CWP_FUT!E:E) -> 0 | F21: =SUMIF(O_CWP_NOW!$A:$A,$A21,O_CWP_NOW!F:F)+SUMIF(O_CWP_FUT!$A:$A,$A21,O_CWP_FUT!F:F) -> 0 | G21: =SUMIF(O_CWP_NOW!$A:$A,$A21,O_CWP_NOW!G:G)+SUMIF(O_CWP_FUT!$A:$A,$A21,O_CWP_FUT!G:G) -> 0 | H21: =SUMIF(O_CWP_NOW!$A:$A,$A21,O_CWP_NOW!H:H)+SUMIF(O_CWP_FUT!$A:$A,$A21,O_CWP_FUT!H:H) -> 0 | I21: =SUMIF(O_CWP_NOW!$A:$A,$A21,O_CWP_NOW!I:I)+SUMIF(O_CWP_FUT!$A:$A,$A21,O_CWP_FUT!I:I) -> 0 | J21: =SUMIF(O_CWP_NOW!$A:$A,$A21,O_CWP_NOW!J:J)+SUMIF(O_CWP_FUT!$A:$A,$A21,O_CWP_FUT!J:J) -> 0 | K21: =SUMIF(O_CWP_NOW!$A:$A,$A21,O_CWP_NOW!K:K)+SUMIF(O_CWP_FUT!$A:$A,$A21,O_CWP_FUT!K:K) -> 0 | L21: =SUMIF(O_CWP_NOW!$A:$A,$A21,O_CWP_NOW!L:L)+SUMIF(O_CWP_FUT!$A:$A,$A21,O_CWP_FUT!L:L) -> 0 | M21: =SUMIF(O_CWP_NOW!$A:$A,$A21,O_CWP_NOW!M:M)+SUMIF(O_CWP_FUT!$A:$A,$A21,O_CWP_FUT!M:M) -> 0 | N21: =SUMIF(O_CWP_NOW!$A:$A,$A21,O_CWP_NOW!N:N)+SUMIF(O_CWP_FUT!$A:$A,$A21,O_CWP_FUT!N:N) -> 0 | O21: 0
A22: OSL A11 | B22: Open Space Land Acquisition | C22: =VLOOKUP($A22,FA_Codes!$D$2:$G$249,4,FALSE) -> Takanini | D22: =SUMIF(O_CWP_NOW!$A:$A,$A22,O_CWP_NOW!D:D)+SUMIF(O_CWP_FUT!$A:$A,$A22,O_CWP_FUT!D:D) -> 0 | E22: =SUMIF(O_CWP_NOW!$A:$A,$A22,O_CWP_NOW!E:E)+SUMIF(O_CWP_FUT!$A:$A,$A22,O_CWP_FUT!E:E) -> 0 | F22: =SUMIF(O_CWP_NOW!$A:$A,$A22,O_CWP_NOW!F:F)+SUMIF(O_CWP_FUT!$A:$A,$A22,O_CWP_FUT!F:F) -> 0 | G22: =SUMIF(O_CWP_NOW!$A:$A,$A22,O_CWP_NOW!G:G)+SUMIF(O_CWP_FUT!$A:$A,$A22,O_CWP_FUT!G:G) -> 0 | H22: =SUMIF(O_CWP_NOW!$A:$A,$A22,O_CWP_NOW!H:H)+SUMIF(O_CWP_FUT!$A:$A,$A22,O_CWP_FUT!H:H) -> 0 | I22: =SUMIF(O_CWP_NOW!$A:$A,$A22,O_CWP_NOW!I:I)+SUMIF(O_CWP_FUT!$A:$A,$A22,O_CWP_FUT!I:I) -> 0 | J22: =SUMIF(O_CWP_NOW!$A:$A,$A22,O_CWP_NOW!J:J)+SUMIF(O_CWP_FUT!$A:$A,$A22,O_CWP_FUT!J:J) -> 0 | K22: =SUMIF(O_CWP_NOW!$A:$A,$A22,O_CWP_NOW!K:K)+SUMIF(O_CWP_FUT!$A:$A,$A22,O_CWP_FUT!K:K) -> 0 | L22: =SUMIF(O_CWP_NOW!$A:$A,$A22,O_CWP_NOW!L:L)+SUMIF(O_CWP_FUT!$A:$A,$A22,O_CWP_FUT!L:L) -> 0 | M22: =SUMIF(O_CWP_NOW!$A:$A,$A22,O_CWP_NOW!M:M)+SUMIF(O_CWP_FUT!$A:$A,$A22,O_CWP_FUT!M:M) -> 0 | N22: =SUMIF(O_CWP_NOW!$A:$A,$A22,O_CWP_NOW!N:N)+SUMIF(O_CWP_FUT!$A:$A,$A22,O_CWP_FUT!N:N) -> 0 | O22: 0
A23: OSL A13 | B23: Open Space Land Acquisition | C23: =VLOOKUP($A23,FA_Codes!$D$2:$G$249,4,FALSE) -> Hingaia | D23: =SUMIF(O_CWP_NOW!$A:$A,$A23,O_CWP_NOW!D:D)+SUMIF(O_CWP_FUT!$A:$A,$A23,O_CWP_FUT!D:D) -> 0 | E23: =SUMIF(O_CWP_NOW!$A:$A,$A23,O_CWP_NOW!E:E)+SUMIF(O_CWP_FUT!$A:$A,$A23,O_CWP_FUT!E:E) -> 0 | F23: =SUMIF(O_CWP_NOW!$A:$A,$A23,O_CWP_NOW!F:F)+SUMIF(O_CWP_FUT!$A:$A,$A23,O_CWP_FUT!F:F) -> 0 | G23: =SUMIF(O_CWP_NOW!$A:$A,$A23,O_CWP_NOW!G:G)+SUMIF(O_CWP_FUT!$A:$A,$A23,O_CWP_FUT!G:G) -> 0 | H23: =SUMIF(O_CWP_NOW!$A:$A,$A23,O_CWP_NOW!H:H)+SUMIF(O_CWP_FUT!$A:$A,$A23,O_CWP_FUT!H:H) -> 0 | I23: =SUMIF(O_CWP_NOW!$A:$A,$A23,O_CWP_NOW!I:I)+SUMIF(O_CWP_FUT!$A:$A,$A23,O_CWP_FUT!I:I) -> 0 | J23: =SUMIF(O_CWP_NOW!$A:$A,$A23,O_CWP_NOW!J:J)+SUMIF(O_CWP_FUT!$A:$A,$A23,O_CWP_FUT!J:J) -> 0 | K23: =SUMIF(O_CWP_NOW!$A:$A,$A23,O_CWP_NOW!K:K)+SUMIF(O_CWP_FUT!$A:$A,$A23,O_CWP_FUT!K:K) -> 0 | L23: =SUMIF(O_CWP_NOW!$A:$A,$A23,O_CWP_NOW!L:L)+SUMIF(O_CWP_FUT!$A:$A,$A23,O_CWP_FUT!L:L) -> 0 | M23: =SUMIF(O_CWP_NOW!$A:$A,$A23,O_CWP_NOW!M:M)+SUMIF(O_CWP_FUT!$A:$A,$A23,O_CWP_FUT!M:M) -> 0 | N23: =SUMIF(O_CWP_NOW!$A:$A,$A23,O_CWP_NOW!N:N)+SUMIF(O_CWP_FUT!$A:$A,$A23,O_CWP_FUT!N:N) -> 0 | O23: 0
A24: OSL A14 | B24: Open Space Land Acquisition | C24: =VLOOKUP($A24,FA_Codes!$D$2:$G$249,4,FALSE) -> Paerata / Pukekohe | D24: =SUMIF(O_CWP_NOW!$A:$A,$A24,O_CWP_NOW!D:D)+SUMIF(O_CWP_FUT!$A:$A,$A24,O_CWP_FUT!D:D) -> 0 | E24: =SUMIF(O_CWP_NOW!$A:$A,$A24,O_CWP_NOW!E:E)+SUMIF(O_CWP_FUT!$A:$A,$A24,O_CWP_FUT!E:E) -> 0 | F24: =SUMIF(O_CWP_NOW!$A:$A,$A24,O_CWP_NOW!F:F)+SUMIF(O_CWP_FUT!$A:$A,$A24,O_CWP_FUT!F:F) -> 0 | G24: =SUMIF(O_CWP_NOW!$A:$A,$A24,O_CWP_NOW!G:G)+SUMIF(O_CWP_FUT!$A:$A,$A24,O_CWP_FUT!G:G) -> 0 | H24: =SUMIF(O_CWP_NOW!$A:$A,$A24,O_CWP_NOW!H:H)+SUMIF(O_CWP_FUT!$A:$A,$A24,O_CWP_FUT!H:H) -> 0 | I24: =SUMIF(O_CWP_NOW!$A:$A,$A24,O_CWP_NOW!I:I)+SUMIF(O_CWP_FUT!$A:$A,$A24,O_CWP_FUT!I:I) -> 0 | J24: =SUMIF(O_CWP_NOW!$A:$A,$A24,O_CWP_NOW!J:J)+SUMIF(O_CWP_FUT!$A:$A,$A24,O_CWP_FUT!J:J) -> 0 | K24: =SUMIF(O_CWP_NOW!$A:$A,$A24,O_CWP_NOW!K:K)+SUMIF(O_CWP_FUT!$A:$A,$A24,O_CWP_FUT!K:K) -> 0 | L24: =SUMIF(O_CWP_NOW!$A:$A,$A24,O_CWP_NOW!L:L)+SUMIF(O_CWP_FUT!$A:$A,$A24,O_CWP_FUT!L:L) -> 0 | M24: =SUMIF(O_CWP_NOW!$A:$A,$A24,O_CWP_NOW!M:M)+SUMIF(O_CWP_FUT!$A:$A,$A24,O_CWP_FUT!M:M) -> 0 | N24: =SUMIF(O_CWP_NOW!$A:$A,$A24,O_CWP_NOW!N:N)+SUMIF(O_CWP_FUT!$A:$A,$A24,O_CWP_FUT!N:N) -> 0 | O24: 0
A25: OSL A15 | B25: Open Space Land Acquisition | C25: =VLOOKUP($A25,FA_Codes!$D$2:$G$249,4,FALSE) -> Hibiscus | D25: =SUMIF(O_CWP_NOW!$A:$A,$A25,O_CWP_NOW!D:D)+SUMIF(O_CWP_FUT!$A:$A,$A25,O_CWP_FUT!D:D) -> 0 | E25: =SUMIF(O_CWP_NOW!$A:$A,$A25,O_CWP_NOW!E:E)+SUMIF(O_CWP_FUT!$A:$A,$A25,O_CWP_FUT!E:E) -> 0 | F25: =SUMIF(O_CWP_NOW!$A:$A,$A25,O_CWP_NOW!F:F)+SUMIF(O_CWP_FUT!$A:$A,$A25,O_CWP_FUT!F:F) -> 0 | G25: =SUMIF(O_CWP_NOW!$A:$A,$A25,O_CWP_NOW!G:G)+SUMIF(O_CWP_FUT!$A:$A,$A25,O_CWP_FUT!G:G) -> 0 | H25: =SUMIF(O_CWP_NOW!$A:$A,$A25,O_CWP_NOW!H:H)+SUMIF(O_CWP_FUT!$A:$A,$A25,O_CWP_FUT!H:H) -> 0 | I25: =SUMIF(O_CWP_NOW!$A:$A,$A25,O_CWP_NOW!I:I)+SUMIF(O_CWP_FUT!$A:$A,$A25,O_CWP_FUT!I:I) -> 0 | J25: =SUMIF(O_CWP_NOW!$A:$A,$A25,O_CWP_NOW!J:J)+SUMIF(O_CWP_FUT!$A:$A,$A25,O_CWP_FUT!J:J) -> 0 | K25: =SUMIF(O_CWP_NOW!$A:$A,$A25,O_CWP_NOW!K:K)+SUMIF(O_CWP_FUT!$A:$A,$A25,O_CWP_FUT!K:K) -> 0 | L25: =SUMIF(O_CWP_NOW!$A:$A,$A25,O_CWP_NOW!L:L)+SUMIF(O_CWP_FUT!$A:$A,$A25,O_CWP_FUT!L:L) -> 0 | M25: =SUMIF(O_CWP_NOW!$A:$A,$A25,O_CWP_NOW!M:M)+SUMIF(O_CWP_FUT!$A:$A,$A25,O_CWP_FUT!M:M) -> 0 | N25: =SUMIF(O_CWP_NOW!$A:$A,$A25,O_CWP_NOW!N:N)+SUMIF(O_CWP_FUT!$A:$A,$A25,O_CWP_FUT!N:N) -> 0 | O25: 0
A26: OSL A16 | B26: Open Space Land Acquisition | C26: =VLOOKUP($A26,FA_Codes!$D$2:$G$249,4,FALSE) -> North Shore | D26: =SUMIF(O_CWP_NOW!$A:$A,$A26,O_CWP_NOW!D:D)+SUMIF(O_CWP_FUT!$A:$A,$A26,O_CWP_FUT!D:D) -> 0 | E26: =SUMIF(O_CWP_NOW!$A:$A,$A26,O_CWP_NOW!E:E)+SUMIF(O_CWP_FUT!$A:$A,$A26,O_CWP_FUT!E:E) -> 0 | F26: =SUMIF(O_CWP_NOW!$A:$A,$A26,O_CWP_NOW!F:F)+SUMIF(O_CWP_FUT!$A:$A,$A26,O_CWP_FUT!F:F) -> 0 | G26: =SUMIF(O_CWP_NOW!$A:$A,$A26,O_CWP_NOW!G:G)+SUMIF(O_CWP_FUT!$A:$A,$A26,O_CWP_FUT!G:G) -> 0 | H26: =SUMIF(O_CWP_NOW!$A:$A,$A26,O_CWP_NOW!H:H)+SUMIF(O_CWP_FUT!$A:$A,$A26,O_CWP_FUT!H:H) -> 0 | I26: =SUMIF(O_CWP_NOW!$A:$A,$A26,O_CWP_NOW!I:I)+SUMIF(O_CWP_FUT!$A:$A,$A26,O_CWP_FUT!I:I) -> 0 | J26: =SUMIF(O_CWP_NOW!$A:$A,$A26,O_CWP_NOW!J:J)+SUMIF(O_CWP_FUT!$A:$A,$A26,O_CWP_FUT!J:J) -> 0 | K26: =SUMIF(O_CWP_NOW!$A:$A,$A26,O_CWP_NOW!K:K)+SUMIF(O_CWP_FUT!$A:$A,$A26,O_CWP_FUT!K:K) -> 0 | L26: =SUMIF(O_CWP_NOW!$A:$A,$A26,O_CWP_NOW!L:L)+SUMIF(O_CWP_FUT!$A:$A,$A26,O_CWP_FUT!L:L) -> 0 | M26: =SUMIF(O_CWP_NOW!$A:$A,$A26,O_CWP_NOW!M:M)+SUMIF(O_CWP_FUT!$A:$A,$A26,O_CWP_FUT!M:M) -> 0 | N26: =SUMIF(O_CWP_NOW!$A:$A,$A26,O_CWP_NOW!N:N)+SUMIF(O_CWP_FUT!$A:$A,$A26,O_CWP_FUT!N:N) -> 0 | O26: 0
A27: OSL A17 | B27: Open Space Land Acquisition | C27: =VLOOKUP($A27,FA_Codes!$D$2:$G$249,4,FALSE) -> West | D27: =SUMIF(O_CWP_NOW!$A:$A,$A27,O_CWP_NOW!D:D)+SUMIF(O_CWP_FUT!$A:$A,$A27,O_CWP_FUT!D:D) -> 0 | E27: =SUMIF(O_CWP_NOW!$A:$A,$A27,O_CWP_NOW!E:E)+SUMIF(O_CWP_FUT!$A:$A,$A27,O_CWP_FUT!E:E) -> 0 | F27: =SUMIF(O_CWP_NOW!$A:$A,$A27,O_CWP_NOW!F:F)+SUMIF(O_CWP_FUT!$A:$A,$A27,O_CWP_FUT!F:F) -> 0 | G27: =SUMIF(O_CWP_NOW!$A:$A,$A27,O_CWP_NOW!G:G)+SUMIF(O_CWP_FUT!$A:$A,$A27,O_CWP_FUT!G:G) -> 0 | H27: =SUMIF(O_CWP_NOW!$A:$A,$A27,O_CWP_NOW!H:H)+SUMIF(O_CWP_FUT!$A:$A,$A27,O_CWP_FUT!H:H) -> 0 | I27: =SUMIF(O_CWP_NOW!$A:$A,$A27,O_CWP_NOW!I:I)+SUMIF(O_CWP_FUT!$A:$A,$A27,O_CWP_FUT!I:I) -> 0 | J27: =SUMIF(O_CWP_NOW!$A:$A,$A27,O_CWP_NOW!J:J)+SUMIF(O_CWP_FUT!$A:$A,$A27,O_CWP_FUT!J:J) -> 0 | K27: =SUMIF(O_CWP_NOW!$A:$A,$A27,O_CWP_NOW!K:K)+SUMIF(O_CWP_FUT!$A:$A,$A27,O_CWP_FUT!K:K) -> 0 | L27: =SUMIF(O_CWP_NOW!$A:$A,$A27,O_CWP_NOW!L:L)+SUMIF(O_CWP_FUT!$A:$A,$A27,O_CWP_FUT!L:L) -> 0 | M27: =SUMIF(O_CWP_NOW!$A:$A,$A27,O_CWP_NOW!M:M)+SUMIF(O_CWP_FUT!$A:$A,$A27,O_CWP_FUT!M:M) -> 0 | N27: =SUMIF(O_CWP_NOW!$A:$A,$A27,O_CWP_NOW!N:N)+SUMIF(O_CWP_FUT!$A:$A,$A27,O_CWP_FUT!N:N) -> 0 | O27: 0
A28: OSL A18 | B28: Open Space Land Acquisition | C28: =VLOOKUP($A28,FA_Codes!$D$2:$G$249,4,FALSE) -> Central | D28: =SUMIF(O_CWP_NOW!$A:$A,$A28,O_CWP_NOW!D:D)+SUMIF(O_CWP_FUT!$A:$A,$A28,O_CWP_FUT!D:D) -> 0 | E28: =SUMIF(O_CWP_NOW!$A:$A,$A28,O_CWP_NOW!E:E)+SUMIF(O_CWP_FUT!$A:$A,$A28,O_CWP_FUT!E:E) -> 0 | F28: =SUMIF(O_CWP_NOW!$A:$A,$A28,O_CWP_NOW!F:F)+SUMIF(O_CWP_FUT!$A:$A,$A28,O_CWP_FUT!F:F) -> 0 | G28: =SUMIF(O_CWP_NOW!$A:$A,$A28,O_CWP_NOW!G:G)+SUMIF(O_CWP_FUT!$A:$A,$A28,O_CWP_FUT!G:G) -> 0 | H28: =SUMIF(O_CWP_NOW!$A:$A,$A28,O_CWP_NOW!H:H)+SUMIF(O_CWP_FUT!$A:$A,$A28,O_CWP_FUT!H:H) -> 0 | I28: =SUMIF(O_CWP_NOW!$A:$A,$A28,O_CWP_NOW!I:I)+SUMIF(O_CWP_FUT!$A:$A,$A28,O_CWP_FUT!I:I) -> 0 | J28: =SUMIF(O_CWP_NOW!$A:$A,$A28,O_CWP_NOW!J:J)+SUMIF(O_CWP_FUT!$A:$A,$A28,O_CWP_FUT!J:J) -> 0 | K28: =SUMIF(O_CWP_NOW!$A:$A,$A28,O_CWP_NOW!K:K)+SUMIF(O_CWP_FUT!$A:$A,$A28,O_CWP_FUT!K:K) -> 0 | L28: =SUMIF(O_CWP_NOW!$A:$A,$A28,O_CWP_NOW!L:L)+SUMIF(O_CWP_FUT!$A:$A,$A28,O_CWP_FUT!L:L) -> 0 | M28: =SUMIF(O_CWP_NOW!$A:$A,$A28,O_CWP_NOW!M:M)+SUMIF(O_CWP_FUT!$A:$A,$A28,O_CWP_FUT!M:M) -> 0 | N28: =SUMIF(O_CWP_NOW!$A:$A,$A28,O_CWP_NOW!N:N)+SUMIF(O_CWP_FUT!$A:$A,$A28,O_CWP_FUT!N:N) -> 0 | O28: 0
A29: OSL A19 | B29: Open Space Land Acquisition | C29: =VLOOKUP($A29,FA_Codes!$D$2:$G$249,4,FALSE) -> South (West) | D29: =SUMIF(O_CWP_NOW!$A:$A,$A29,O_CWP_NOW!D:D)+SUMIF(O_CWP_FUT!$A:$A,$A29,O_CWP_FUT!D:D) -> 0 | E29: =SUMIF(O_CWP_NOW!$A:$A,$A29,O_CWP_NOW!E:E)+SUMIF(O_CWP_FUT!$A:$A,$A29,O_CWP_FUT!E:E) -> 0 | F29: =SUMIF(O_CWP_NOW!$A:$A,$A29,O_CWP_NOW!F:F)+SUMIF(O_CWP_FUT!$A:$A,$A29,O_CWP_FUT!F:F) -> 0 | G29: =SUMIF(O_CWP_NOW!$A:$A,$A29,O_CWP_NOW!G:G)+SUMIF(O_CWP_FUT!$A:$A,$A29,O_CWP_FUT!G:G) -> 0 | H29: =SUMIF(O_CWP_NOW!$A:$A,$A29,O_CWP_NOW!H:H)+SUMIF(O_CWP_FUT!$A:$A,$A29,O_CWP_FUT!H:H) -> 0 | I29: =SUMIF(O_CWP_NOW!$A:$A,$A29,O_CWP_NOW!I:I)+SUMIF(O_CWP_FUT!$A:$A,$A29,O_CWP_FUT!I:I) -> 0 | J29: =SUMIF(O_CWP_NOW!$A:$A,$A29,O_CWP_NOW!J:J)+SUMIF(O_CWP_FUT!$A:$A,$A29,O_CWP_FUT!J:J) -> 0 | K29: =SUMIF(O_CWP_NOW!$A:$A,$A29,O_CWP_NOW!K:K)+SUMIF(O_CWP_FUT!$A:$A,$A29,O_CWP_FUT!K:K) -> 0 | L29: =SUMIF(O_CWP_NOW!$A:$A,$A29,O_CWP_NOW!L:L)+SUMIF(O_CWP_FUT!$A:$A,$A29,O_CWP_FUT!L:L) -> 0 | M29: =SUMIF(O_CWP_NOW!$A:$A,$A29,O_CWP_NOW!M:M)+SUMIF(O_CWP_FUT!$A:$A,$A29,O_CWP_FUT!M:M) -> 0 | N29: =SUMIF(O_CWP_NOW!$A:$A,$A29,O_CWP_NOW!N:N)+SUMIF(O_CWP_FUT!$A:$A,$A29,O_CWP_FUT!N:N) -> 0 | O29: =SUM(D29:N29) -> 0
A30: OSL A20 | B30: Open Space Land Acquisition | C30: =VLOOKUP($A30,FA_Codes!$D$2:$G$249,4,FALSE) -> South (East) | D30: =SUMIF(O_CWP_NOW!$A:$A,$A30,O_CWP_NOW!D:D)+SUMIF(O_CWP_FUT!$A:$A,$A30,O_CWP_FUT!D:D) -> 0 | E30: =SUMIF(O_CWP_NOW!$A:$A,$A30,O_CWP_NOW!E:E)+SUMIF(O_CWP_FUT!$A:$A,$A30,O_CWP_FUT!E:E) -> 0 | F30: =SUMIF(O_CWP_NOW!$A:$A,$A30,O_CWP_NOW!F:F)+SUMIF(O_CWP_FUT!$A:$A,$A30,O_CWP_FUT!F:F) -> 0 | G30: =SUMIF(O_CWP_NOW!$A:$A,$A30,O_CWP_NOW!G:G)+SUMIF(O_CWP_FUT!$A:$A,$A30,O_CWP_FUT!G:G) -> 0 | H30: =SUMIF(O_CWP_NOW!$A:$A,$A30,O_CWP_NOW!H:H)+SUMIF(O_CWP_FUT!$A:$A,$A30,O_CWP_FUT!H:H) -> 0 | I30: =SUMIF(O_CWP_NOW!$A:$A,$A30,O_CWP_NOW!I:I)+SUMIF(O_CWP_FUT!$A:$A,$A30,O_CWP_FUT!I:I) -> 0 | J30: =SUMIF(O_CWP_NOW!$A:$A,$A30,O_CWP_NOW!J:J)+SUMIF(O_CWP_FUT!$A:$A,$A30,O_CWP_FUT!J:J) -> 0 | K30: =SUMIF(O_CWP_NOW!$A:$A,$A30,O_CWP_NOW!K:K)+SUMIF(O_CWP_FUT!$A:$A,$A30,O_CWP_FUT!K:K) -> 0 | L30: =SUMIF(O_CWP_NOW!$A:$A,$A30,O_CWP_NOW!L:L)+SUMIF(O_CWP_FUT!$A:$A,$A30,O_CWP_FUT!L:L) -> 0 | M30: =SUMIF(O_CWP_NOW!$A:$A,$A30,O_CWP_NOW!M:M)+SUMIF(O_CWP_FUT!$A:$A,$A30,O_CWP_FUT!M:M) -> 0 | N30: =SUMIF(O_CWP_NOW!$A:$A,$A30,O_CWP_NOW!N:N)+SUMIF(O_CWP_FUT!$A:$A,$A30,O_CWP_FUT!N:N) -> 0 | O30: 0
A31: OSL A21 | B31: Open Space Land Acquisition | C31: =VLOOKUP($A31,FA_Codes!$D$2:$G$249,4,FALSE) -> Rural North Upper | D31: =SUMIF(O_CWP_NOW!$A:$A,$A31,O_CWP_NOW!D:D)+SUMIF(O_CWP_FUT!$A:$A,$A31,O_CWP_FUT!D:D) -> 0 | E31: =SUMIF(O_CWP_NOW!$A:$A,$A31,O_CWP_NOW!E:E)+SUMIF(O_CWP_FUT!$A:$A,$A31,O_CWP_FUT!E:E) -> 0 | F31: =SUMIF(O_CWP_NOW!$A:$A,$A31,O_CWP_NOW!F:F)+SUMIF(O_CWP_FUT!$A:$A,$A31,O_CWP_FUT!F:F) -> 0 | G31: =SUMIF(O_CWP_NOW!$A:$A,$A31,O_CWP_NOW!G:G)+SUMIF(O_CWP_FUT!$A:$A,$A31,O_CWP_FUT!G:G) -> 0 | H31: =SUMIF(O_CWP_NOW!$A:$A,$A31,O_CWP_NOW!H:H)+SUMIF(O_CWP_FUT!$A:$A,$A31,O_CWP_FUT!H:H) -> 0 | I31: =SUMIF(O_CWP_NOW!$A:$A,$A31,O_CWP_NOW!I:I)+SUMIF(O_CWP_FUT!$A:$A,$A31,O_CWP_FUT!I:I) -> 0 | J31: =SUMIF(O_CWP_NOW!$A:$A,$A31,O_CWP_NOW!J:J)+SUMIF(O_CWP_FUT!$A:$A,$A31,O_CWP_FUT!J:J) -> 0 | K31: =SUMIF(O_CWP_NOW!$A:$A,$A31,O_CWP_NOW!K:K)+SUMIF(O_CWP_FUT!$A:$A,$A31,O_CWP_FUT!K:K) -> 0 | L31: =SUMIF(O_CWP_NOW!$A:$A,$A31,O_CWP_NOW!L:L)+SUMIF(O_CWP_FUT!$A:$A,$A31,O_CWP_FUT!L:L) -> 0 | M31: =SUMIF(O_CWP_NOW!$A:$A,$A31,O_CWP_NOW!M:M)+SUMIF(O_CWP_FUT!$A:$A,$A31,O_CWP_FUT!M:M) -> 0 | N31: =SUMIF(O_CWP_NOW!$A:$A,$A31,O_CWP_NOW!N:N)+SUMIF(O_CWP_FUT!$A:$A,$A31,O_CWP_FUT!N:N) -> 0 | O31: 0
A32: OSL A22 | B32: Open Space Land Acquisition | C32: =VLOOKUP($A32,FA_Codes!$D$2:$G$249,4,FALSE) -> Rural North Lower | D32: =SUMIF(O_CWP_NOW!$A:$A,$A32,O_CWP_NOW!D:D)+SUMIF(O_CWP_FUT!$A:$A,$A32,O_CWP_FUT!D:D) -> 0 | E32: =SUMIF(O_CWP_NOW!$A:$A,$A32,O_CWP_NOW!E:E)+SUMIF(O_CWP_FUT!$A:$A,$A32,O_CWP_FUT!E:E) -> 0 | F32: =SUMIF(O_CWP_NOW!$A:$A,$A32,O_CWP_NOW!F:F)+SUMIF(O_CWP_FUT!$A:$A,$A32,O_CWP_FUT!F:F) -> 0 | G32: =SUMIF(O_CWP_NOW!$A:$A,$A32,O_CWP_NOW!G:G)+SUMIF(O_CWP_FUT!$A:$A,$A32,O_CWP_FUT!G:G) -> 0 | H32: =SUMIF(O_CWP_NOW!$A:$A,$A32,O_CWP_NOW!H:H)+SUMIF(O_CWP_FUT!$A:$A,$A32,O_CWP_FUT!H:H) -> 0 | I32: =SUMIF(O_CWP_NOW!$A:$A,$A32,O_CWP_NOW!I:I)+SUMIF(O_CWP_FUT!$A:$A,$A32,O_CWP_FUT!I:I) -> 0 | J32: =SUMIF(O_CWP_NOW!$A:$A,$A32,O_CWP_NOW!J:J)+SUMIF(O_CWP_FUT!$A:$A,$A32,O_CWP_FUT!J:J) -> 0 | K32: =SUMIF(O_CWP_NOW!$A:$A,$A32,O_CWP_NOW!K:K)+SUMIF(O_CWP_FUT!$A:$A,$A32,O_CWP_FUT!K:K) -> 0 | L32: =SUMIF(O_CWP_NOW!$A:$A,$A32,O_CWP_NOW!L:L)+SUMIF(O_CWP_FUT!$A:$A,$A32,O_CWP_FUT!L:L) -> 0 | M32: =SUMIF(O_CWP_NOW!$A:$A,$A32,O_CWP_NOW!M:M)+SUMIF(O_CWP_FUT!$A:$A,$A32,O_CWP_FUT!M:M) -> 0 | N32: =SUMIF(O_CWP_NOW!$A:$A,$A32,O_CWP_NOW!N:N)+SUMIF(O_CWP_FUT!$A:$A,$A32,O_CWP_FUT!N:N) -> 0 | O32: 0
A33: OSL A23 | B33: Open Space Land Acquisition | C33: =VLOOKUP($A33,FA_Codes!$D$2:$G$249,4,FALSE) -> Rural West | D33: =SUMIF(O_CWP_NOW!$A:$A,$A33,O_CWP_NOW!D:D)+SUMIF(O_CWP_FUT!$A:$A,$A33,O_CWP_FUT!D:D) -> 0 | E33: =SUMIF(O_CWP_NOW!$A:$A,$A33,O_CWP_NOW!E:E)+SUMIF(O_CWP_FUT!$A:$A,$A33,O_CWP_FUT!E:E) -> 0 | F33: =SUMIF(O_CWP_NOW!$A:$A,$A33,O_CWP_NOW!F:F)+SUMIF(O_CWP_FUT!$A:$A,$A33,O_CWP_FUT!F:F) -> 0 | G33: =SUMIF(O_CWP_NOW!$A:$A,$A33,O_CWP_NOW!G:G)+SUMIF(O_CWP_FUT!$A:$A,$A33,O_CWP_FUT!G:G) -> 0 | H33: =SUMIF(O_CWP_NOW!$A:$A,$A33,O_CWP_NOW!H:H)+SUMIF(O_CWP_FUT!$A:$A,$A33,O_CWP_FUT!H:H) -> 0 | I33: =SUMIF(O_CWP_NOW!$A:$A,$A33,O_CWP_NOW!I:I)+SUMIF(O_CWP_FUT!$A:$A,$A33,O_CWP_FUT!I:I) -> 0 | J33: =SUMIF(O_CWP_NOW!$A:$A,$A33,O_CWP_NOW!J:J)+SUMIF(O_CWP_FUT!$A:$A,$A33,O_CWP_FUT!J:J) -> 0 | K33: =SUMIF(O_CWP_NOW!$A:$A,$A33,O_CWP_NOW!K:K)+SUMIF(O_CWP_FUT!$A:$A,$A33,O_CWP_FUT!K:K) -> 0 | L33: =SUMIF(O_CWP_NOW!$A:$A,$A33,O_CWP_NOW!L:L)+SUMIF(O_CWP_FUT!$A:$A,$A33,O_CWP_FUT!L:L) -> 0 | M33: =SUMIF(O_CWP_NOW!$A:$A,$A33,O_CWP_NOW!M:M)+SUMIF(O_CWP_FUT!$A:$A,$A33,O_CWP_FUT!M:M) -> 0 | N33: =SUMIF(O_CWP_NOW!$A:$A,$A33,O_CWP_NOW!N:N)+SUMIF(O_CWP_FUT!$A:$A,$A33,O_CWP_FUT!N:N) -> 0 | O33: 0
A34: OSL A24 | B34: Open Space Land Acquisition | C34: =VLOOKUP($A34,FA_Codes!$D$2:$G$249,4,FALSE) -> Rural South West | D34: =SUMIF(O_CWP_NOW!$A:$A,$A34,O_CWP_NOW!D:D)+SUMIF(O_CWP_FUT!$A:$A,$A34,O_CWP_FUT!D:D) -> 0 | E34: =SUMIF(O_CWP_NOW!$A:$A,$A34,O_CWP_NOW!E:E)+SUMIF(O_CWP_FUT!$A:$A,$A34,O_CWP_FUT!E:E) -> 0 | F34: =SUMIF(O_CWP_NOW!$A:$A,$A34,O_CWP_NOW!F:F)+SUMIF(O_CWP_FUT!$A:$A,$A34,O_CWP_FUT!F:F) -> 0 | G34: =SUMIF(O_CWP_NOW!$A:$A,$A34,O_CWP_NOW!G:G)+SUMIF(O_CWP_FUT!$A:$A,$A34,O_CWP_FUT!G:G) -> 0 | H34: =SUMIF(O_CWP_NOW!$A:$A,$A34,O_CWP_NOW!H:H)+SUMIF(O_CWP_FUT!$A:$A,$A34,O_CWP_FUT!H:H) -> 0 | I34: =SUMIF(O_CWP_NOW!$A:$A,$A34,O_CWP_NOW!I:I)+SUMIF(O_CWP_FUT!$A:$A,$A34,O_CWP_FUT!I:I) -> 0 | J34: =SUMIF(O_CWP_NOW!$A:$A,$A34,O_CWP_NOW!J:J)+SUMIF(O_CWP_FUT!$A:$A,$A34,O_CWP_FUT!J:J) -> 0 | K34: =SUMIF(O_CWP_NOW!$A:$A,$A34,O_CWP_NOW!K:K)+SUMIF(O_CWP_FUT!$A:$A,$A34,O_CWP_FUT!K:K) -> 0 | L34: =SUMIF(O_CWP_NOW!$A:$A,$A34,O_CWP_NOW!L:L)+SUMIF(O_CWP_FUT!$A:$A,$A34,O_CWP_FUT!L:L) -> 0 | M34: =SUMIF(O_CWP_NOW!$A:$A,$A34,O_CWP_NOW!M:M)+SUMIF(O_CWP_FUT!$A:$A,$A34,O_CWP_FUT!M:M) -> 0 | N34: =SUMIF(O_CWP_NOW!$A:$A,$A34,O_CWP_NOW!N:N)+SUMIF(O_CWP_FUT!$A:$A,$A34,O_CWP_FUT!N:N) -> 0 | O34: 0
A35: OSL A25 | B35: Open Space Land Acquisition | C35: =VLOOKUP($A35,FA_Codes!$D$2:$G$249,4,FALSE) -> Rural South East | D35: =SUMIF(O_CWP_NOW!$A:$A,$A35,O_CWP_NOW!D:D)+SUMIF(O_CWP_FUT!$A:$A,$A35,O_CWP_FUT!D:D) -> 0 | E35: =SUMIF(O_CWP_NOW!$A:$A,$A35,O_CWP_NOW!E:E)+SUMIF(O_CWP_FUT!$A:$A,$A35,O_CWP_FUT!E:E) -> 0 | F35: =SUMIF(O_CWP_NOW!$A:$A,$A35,O_CWP_NOW!F:F)+SUMIF(O_CWP_FUT!$A:$A,$A35,O_CWP_FUT!F:F) -> 0 | G35: =SUMIF(O_CWP_NOW!$A:$A,$A35,O_CWP_NOW!G:G)+SUMIF(O_CWP_FUT!$A:$A,$A35,O_CWP_FUT!G:G) -> 0 | H35: =SUMIF(O_CWP_NOW!$A:$A,$A35,O_CWP_NOW!H:H)+SUMIF(O_CWP_FUT!$A:$A,$A35,O_CWP_FUT!H:H) -> 0 | I35: =SUMIF(O_CWP_NOW!$A:$A,$A35,O_CWP_NOW!I:I)+SUMIF(O_CWP_FUT!$A:$A,$A35,O_CWP_FUT!I:I) -> 0 | J35: =SUMIF(O_CWP_NOW!$A:$A,$A35,O_CWP_NOW!J:J)+SUMIF(O_CWP_FUT!$A:$A,$A35,O_CWP_FUT!J:J) -> 0 | K35: =SUMIF(O_CWP_NOW!$A:$A,$A35,O_CWP_NOW!K:K)+SUMIF(O_CWP_FUT!$A:$A,$A35,O_CWP_FUT!K:K) -> 0 | L35: =SUMIF(O_CWP_NOW!$A:$A,$A35,O_CWP_NOW!L:L)+SUMIF(O_CWP_FUT!$A:$A,$A35,O_CWP_FUT!L:L) -> 0 | M35: =SUMIF(O_CWP_NOW!$A:$A,$A35,O_CWP_NOW!M:M)+SUMIF(O_CWP_FUT!$A:$A,$A35,O_CWP_FUT!M:M) -> 0 | N35: =SUMIF(O_CWP_NOW!$A:$A,$A35,O_CWP_NOW!N:N)+SUMIF(O_CWP_FUT!$A:$A,$A35,O_CWP_FUT!N:N) -> 0 | O35: 0
A36: OSL A26 | B36: Open Space Land Acquisition | C36: =VLOOKUP($A36,FA_Codes!$D$2:$G$249,4,FALSE) -> Rural Islands | D36: =SUMIF(O_CWP_NOW!$A:$A,$A36,O_CWP_NOW!D:D)+SUMIF(O_CWP_FUT!$A:$A,$A36,O_CWP_FUT!D:D) -> 0 | E36: =SUMIF(O_CWP_NOW!$A:$A,$A36,O_CWP_NOW!E:E)+SUMIF(O_CWP_FUT!$A:$A,$A36,O_CWP_FUT!E:E) -> 0 | F36: =SUMIF(O_CWP_NOW!$A:$A,$A36,O_CWP_NOW!F:F)+SUMIF(O_CWP_FUT!$A:$A,$A36,O_CWP_FUT!F:F) -> 0 | G36: =SUMIF(O_CWP_NOW!$A:$A,$A36,O_CWP_NOW!G:G)+SUMIF(O_CWP_FUT!$A:$A,$A36,O_CWP_FUT!G:G) -> 0 | H36: =SUMIF(O_CWP_NOW!$A:$A,$A36,O_CWP_NOW!H:H)+SUMIF(O_CWP_FUT!$A:$A,$A36,O_CWP_FUT!H:H) -> 0 | I36: =SUMIF(O_CWP_NOW!$A:$A,$A36,O_CWP_NOW!I:I)+SUMIF(O_CWP_FUT!$A:$A,$A36,O_CWP_FUT!I:I) -> 0 | J36: =SUMIF(O_CWP_NOW!$A:$A,$A36,O_CWP_NOW!J:J)+SUMIF(O_CWP_FUT!$A:$A,$A36,O_CWP_FUT!J:J) -> 0 | K36: =SUMIF(O_CWP_NOW!$A:$A,$A36,O_CWP_NOW!K:K)+SUMIF(O_CWP_FUT!$A:$A,$A36,O_CWP_FUT!K:K) -> 0 | L36: =SUMIF(O_CWP_NOW!$A:$A,$A36,O_CWP_NOW!L:L)+SUMIF(O_CWP_FUT!$A:$A,$A36,O_CWP_FUT!L:L) -> 0 | M36: =SUMIF(O_CWP_NOW!$A:$A,$A36,O_CWP_NOW!M:M)+SUMIF(O_CWP_FUT!$A:$A,$A36,O_CWP_FUT!M:M) -> 0 | N36: =SUMIF(O_CWP_NOW!$A:$A,$A36,O_CWP_NOW!N:N)+SUMIF(O_CWP_FUT!$A:$A,$A36,O_CWP_FUT!N:N) -> 0 | O36: 0
A37: OSL A27 | B37: Open Space Land Acquisition | C37: =VLOOKUP($A37,FA_Codes!$D$2:$G$249,4,FALSE) -> Tamaki | D37: =SUMIF(O_CWP_NOW!$A:$A,$A37,O_CWP_NOW!D:D)+SUMIF(O_CWP_FUT!$A:$A,$A37,O_CWP_FUT!D:D) -> 0 | E37: =SUMIF(O_CWP_NOW!$A:$A,$A37,O_CWP_NOW!E:E)+SUMIF(O_CWP_FUT!$A:$A,$A37,O_CWP_FUT!E:E) -> 0 | F37: =SUMIF(O_CWP_NOW!$A:$A,$A37,O_CWP_NOW!F:F)+SUMIF(O_CWP_FUT!$A:$A,$A37,O_CWP_FUT!F:F) -> 0 | G37: =SUMIF(O_CWP_NOW!$A:$A,$A37,O_CWP_NOW!G:G)+SUMIF(O_CWP_FUT!$A:$A,$A37,O_CWP_FUT!G:G) -> 0 | H37: =SUMIF(O_CWP_NOW!$A:$A,$A37,O_CWP_NOW!H:H)+SUMIF(O_CWP_FUT!$A:$A,$A37,O_CWP_FUT!H:H) -> 0 | I37: =SUMIF(O_CWP_NOW!$A:$A,$A37,O_CWP_NOW!I:I)+SUMIF(O_CWP_FUT!$A:$A,$A37,O_CWP_FUT!I:I) -> 0 | J37: =SUMIF(O_CWP_NOW!$A:$A,$A37,O_CWP_NOW!J:J)+SUMIF(O_CWP_FUT!$A:$A,$A37,O_CWP_FUT!J:J) -> 0 | K37: =SUMIF(O_CWP_NOW!$A:$A,$A37,O_CWP_NOW!K:K)+SUMIF(O_CWP_FUT!$A:$A,$A37,O_CWP_FUT!K:K) -> 0 | L37: =SUMIF(O_CWP_NOW!$A:$A,$A37,O_CWP_NOW!L:L)+SUMIF(O_CWP_FUT!$A:$A,$A37,O_CWP_FUT!L:L) -> 0 | M37: =SUMIF(O_CWP_NOW!$A:$A,$A37,O_CWP_NOW!M:M)+SUMIF(O_CWP_FUT!$A:$A,$A37,O_CWP_FUT!M:M) -> 0 | N37: =SUMIF(O_CWP_NOW!$A:$A,$A37,O_CWP_NOW!N:N)+SUMIF(O_CWP_FUT!$A:$A,$A37,O_CWP_FUT!N:N) -> 0 | O37: =SUM(D37:N37) -> 0
A38: OSL A28 | B38: Open Space Land Acquisition | C38: =VLOOKUP($A38,FA_Codes!$D$2:$G$249,4,FALSE) -> Drury IPA | D38: =SUMIF(O_CWP_NOW!$A:$A,$A38,O_CWP_NOW!D:D)+SUMIF(O_CWP_FUT!$A:$A,$A38,O_CWP_FUT!D:D) -> 0 | E38: =SUMIF(O_CWP_NOW!$A:$A,$A38,O_CWP_NOW!E:E)+SUMIF(O_CWP_FUT!$A:$A,$A38,O_CWP_FUT!E:E) -> 1239743.004 | F38: =SUMIF(O_CWP_NOW!$A:$A,$A38,O_CWP_NOW!F:F)+SUMIF(O_CWP_FUT!$A:$A,$A38,O_CWP_FUT!F:F) -> 6521934.027 | G38: =SUMIF(O_CWP_NOW!$A:$A,$A38,O_CWP_NOW!G:G)+SUMIF(O_CWP_FUT!$A:$A,$A38,O_CWP_FUT!G:G) -> 8401788.111 | H38: =SUMIF(O_CWP_NOW!$A:$A,$A38,O_CWP_NOW!H:H)+SUMIF(O_CWP_FUT!$A:$A,$A38,O_CWP_FUT!H:H) -> 9030296.682 | I38: =SUMIF(O_CWP_NOW!$A:$A,$A38,O_CWP_NOW!I:I)+SUMIF(O_CWP_FUT!$A:$A,$A38,O_CWP_FUT!I:I) -> 13647978.92 | J38: =SUMIF(O_CWP_NOW!$A:$A,$A38,O_CWP_NOW!J:J)+SUMIF(O_CWP_FUT!$A:$A,$A38,O_CWP_FUT!J:J) -> 14784336.54 | K38: =SUMIF(O_CWP_NOW!$A:$A,$A38,O_CWP_NOW!K:K)+SUMIF(O_CWP_FUT!$A:$A,$A38,O_CWP_FUT!K:K) -> 12191039.59 | L38: =SUMIF(O_CWP_NOW!$A:$A,$A38,O_CWP_NOW!L:L)+SUMIF(O_CWP_FUT!$A:$A,$A38,O_CWP_FUT!L:L) -> 15592356.63 | M38: =SUMIF(O_CWP_NOW!$A:$A,$A38,O_CWP_NOW!M:M)+SUMIF(O_CWP_FUT!$A:$A,$A38,O_CWP_FUT!M:M) -> 19773861.4 | N38: =SUMIF(O_CWP_NOW!$A:$A,$A38,O_CWP_NOW!N:N)+SUMIF(O_CWP_FUT!$A:$A,$A38,O_CWP_FUT!N:N) -> 21167941.16 | O38: 122351276.1
A39: OSL A29 | B39: Open Space Land Acquisition | C39: =VLOOKUP($A39,FA_Codes!$D$2:$G$249,4,FALSE) -> Auranga | D39: =SUMIF(O_CWP_NOW!$A:$A,$A39,O_CWP_NOW!D:D)+SUMIF(O_CWP_FUT!$A:$A,$A39,O_CWP_FUT!D:D) -> 0 | E39: =SUMIF(O_CWP_NOW!$A:$A,$A39,O_CWP_NOW!E:E)+SUMIF(O_CWP_FUT!$A:$A,$A39,O_CWP_FUT!E:E) -> 0 | F39: =SUMIF(O_CWP_NOW!$A:$A,$A39,O_CWP_NOW!F:F)+SUMIF(O_CWP_FUT!$A:$A,$A39,O_CWP_FUT!F:F) -> 0 | G39: =SUMIF(O_CWP_NOW!$A:$A,$A39,O_CWP_NOW!G:G)+SUMIF(O_CWP_FUT!$A:$A,$A39,O_CWP_FUT!G:G) -> 0 | H39: =SUMIF(O_CWP_NOW!$A:$A,$A39,O_CWP_NOW!H:H)+SUMIF(O_CWP_FUT!$A:$A,$A39,O_CWP_FUT!H:H) -> 0 | I39: =SUMIF(O_CWP_NOW!$A:$A,$A39,O_CWP_NOW!I:I)+SUMIF(O_CWP_FUT!$A:$A,$A39,O_CWP_FUT!I:I) -> 0 | J39: =SUMIF(O_CWP_NOW!$A:$A,$A39,O_CWP_NOW!J:J)+SUMIF(O_CWP_FUT!$A:$A,$A39,O_CWP_FUT!J:J) -> 0 | K39: =SUMIF(O_CWP_NOW!$A:$A,$A39,O_CWP_NOW!K:K)+SUMIF(O_CWP_FUT!$A:$A,$A39,O_CWP_FUT!K:K) -> 0 | L39: =SUMIF(O_CWP_NOW!$A:$A,$A39,O_CWP_NOW!L:L)+SUMIF(O_CWP_FUT!$A:$A,$A39,O_CWP_FUT!L:L) -> 0 | M39: =SUMIF(O_CWP_NOW!$A:$A,$A39,O_CWP_NOW!M:M)+SUMIF(O_CWP_FUT!$A:$A,$A39,O_CWP_FUT!M:M) -> 0 | N39: =SUMIF(O_CWP_NOW!$A:$A,$A39,O_CWP_NOW!N:N)+SUMIF(O_CWP_FUT!$A:$A,$A39,O_CWP_FUT!N:N) -> 0 | O39: 0
A40: OSL A35 | B40: Open Space Land Acquisition | C40: =VLOOKUP($A40,FA_Codes!$D$2:$G$249,4,FALSE) -> Area 35 | D40: =SUMIF(O_CWP_NOW!$A:$A,$A40,O_CWP_NOW!D:D)+SUMIF(O_CWP_FUT!$A:$A,$A40,O_CWP_FUT!D:D) -> 0 | E40: =SUMIF(O_CWP_NOW!$A:$A,$A40,O_CWP_NOW!E:E)+SUMIF(O_CWP_FUT!$A:$A,$A40,O_CWP_FUT!E:E) -> 0 | F40: =SUMIF(O_CWP_NOW!$A:$A,$A40,O_CWP_NOW!F:F)+SUMIF(O_CWP_FUT!$A:$A,$A40,O_CWP_FUT!F:F) -> 0 | G40: =SUMIF(O_CWP_NOW!$A:$A,$A40,O_CWP_NOW!G:G)+SUMIF(O_CWP_FUT!$A:$A,$A40,O_CWP_FUT!G:G) -> 0 | H40: =SUMIF(O_CWP_NOW!$A:$A,$A40,O_CWP_NOW!H:H)+SUMIF(O_CWP_FUT!$A:$A,$A40,O_CWP_FUT!H:H) -> 0 | I40: =SUMIF(O_CWP_NOW!$A:$A,$A40,O_CWP_NOW!I:I)+SUMIF(O_CWP_FUT!$A:$A,$A40,O_CWP_FUT!I:I) -> 0 | J40: =SUMIF(O_CWP_NOW!$A:$A,$A40,O_CWP_NOW!J:J)+SUMIF(O_CWP_FUT!$A:$A,$A40,O_CWP_FUT!J:J) -> 0 | K40: =SUMIF(O_CWP_NOW!$A:$A,$A40,O_CWP_NOW!K:K)+SUMIF(O_CWP_FUT!$A:$A,$A40,O_CWP_FUT!K:K) -> 0 | L40: =SUMIF(O_CWP_NOW!$A:$A,$A40,O_CWP_NOW!L:L)+SUMIF(O_CWP_FUT!$A:$A,$A40,O_CWP_FUT!L:L) -> 0 | M40: =SUMIF(O_CWP_NOW!$A:$A,$A40,O_CWP_NOW!M:M)+SUMIF(O_CWP_FUT!$A:$A,$A40,O_CWP_FUT!M:M) -> 0 | N40: =SUMIF(O_CWP_NOW!$A:$A,$A40,O_CWP_NOW!N:N)+SUMIF(O_CWP_FUT!$A:$A,$A40,O_CWP_FUT!N:N) -> 0 | O40: 0
A41: OSL A36 | B41: Open Space Land Acquisition | C41: =VLOOKUP($A41,FA_Codes!$D$2:$G$249,4,FALSE) -> Area 36 | D41: =SUMIF(O_CWP_NOW!$A:$A,$A41,O_CWP_NOW!D:D)+SUMIF(O_CWP_FUT!$A:$A,$A41,O_CWP_FUT!D:D) -> 0 | E41: =SUMIF(O_CWP_NOW!$A:$A,$A41,O_CWP_NOW!E:E)+SUMIF(O_CWP_FUT!$A:$A,$A41,O_CWP_FUT!E:E) -> 0 | F41: =SUMIF(O_CWP_NOW!$A:$A,$A41,O_CWP_NOW!F:F)+SUMIF(O_CWP_FUT!$A:$A,$A41,O_CWP_FUT!F:F) -> 0 | G41: =SUMIF(O_CWP_NOW!$A:$A,$A41,O_CWP_NOW!G:G)+SUMIF(O_CWP_FUT!$A:$A,$A41,O_CWP_FUT!G:G) -> 0 | H41: =SUMIF(O_CWP_NOW!$A:$A,$A41,O_CWP_NOW!H:H)+SUMIF(O_CWP_FUT!$A:$A,$A41,O_CWP_FUT!H:H) -> 0 | I41: =SUMIF(O_CWP_NOW!$A:$A,$A41,O_CWP_NOW!I:I)+SUMIF(O_CWP_FUT!$A:$A,$A41,O_CWP_FUT!I:I) -> 0 | J41: =SUMIF(O_CWP_NOW!$A:$A,$A41,O_CWP_NOW!J:J)+SUMIF(O_CWP_FUT!$A:$A,$A41,O_CWP_FUT!J:J) -> 0 | K41: =SUMIF(O_CWP_NOW!$A:$A,$A41,O_CWP_NOW!K:K)+SUMIF(O_CWP_FUT!$A:$A,$A41,O_CWP_FUT!K:K) -> 0 | L41: =SUMIF(O_CWP_NOW!$A:$A,$A41,O_CWP_NOW!L:L)+SUMIF(O_CWP_FUT!$A:$A,$A41,O_CWP_FUT!L:L) -> 0 | M41: =SUMIF(O_CWP_NOW!$A:$A,$A41,O_CWP_NOW!M:M)+SUMIF(O_CWP_FUT!$A:$A,$A41,O_CWP_FUT!M:M) -> 0 | N41: =SUMIF(O_CWP_NOW!$A:$A,$A41,O_CWP_NOW!N:N)+SUMIF(O_CWP_FUT!$A:$A,$A41,O_CWP_FUT!N:N) -> 0 | O41: 0
A42: OSL A37 | B42: Open Space Land Acquisition | C42: =VLOOKUP($A42,FA_Codes!$D$2:$G$249,4,FALSE) -> Area 37 | D42: =SUMIF(O_CWP_NOW!$A:$A,$A42,O_CWP_NOW!D:D)+SUMIF(O_CWP_FUT!$A:$A,$A42,O_CWP_FUT!D:D) -> 0 | E42: =SUMIF(O_CWP_NOW!$A:$A,$A42,O_CWP_NOW!E:E)+SUMIF(O_CWP_FUT!$A:$A,$A42,O_CWP_FUT!E:E) -> 0 | F42: =SUMIF(O_CWP_NOW!$A:$A,$A42,O_CWP_NOW!F:F)+SUMIF(O_CWP_FUT!$A:$A,$A42,O_CWP_FUT!F:F) -> 0 | G42: =SUMIF(O_CWP_NOW!$A:$A,$A42,O_CWP_NOW!G:G)+SUMIF(O_CWP_FUT!$A:$A,$A42,O_CWP_FUT!G:G) -> 0 | H42: =SUMIF(O_CWP_NOW!$A:$A,$A42,O_CWP_NOW!H:H)+SUMIF(O_CWP_FUT!$A:$A,$A42,O_CWP_FUT!H:H) -> 0 | I42: =SUMIF(O_CWP_NOW!$A:$A,$A42,O_CWP_NOW!I:I)+SUMIF(O_CWP_FUT!$A:$A,$A42,O_CWP_FUT!I:I) -> 0 | J42: =SUMIF(O_CWP_NOW!$A:$A,$A42,O_CWP_NOW!J:J)+SUMIF(O_CWP_FUT!$A:$A,$A42,O_CWP_FUT!J:J) -> 0 | K42: =SUMIF(O_CWP_NOW!$A:$A,$A42,O_CWP_NOW!K:K)+SUMIF(O_CWP_FUT!$A:$A,$A42,O_CWP_FUT!K:K) -> 0 | L42: =SUMIF(O_CWP_NOW!$A:$A,$A42,O_CWP_NOW!L:L)+SUMIF(O_CWP_FUT!$A:$A,$A42,O_CWP_FUT!L:L) -> 0 | M42: =SUMIF(O_CWP_NOW!$A:$A,$A42,O_CWP_NOW!M:M)+SUMIF(O_CWP_FUT!$A:$A,$A42,O_CWP_FUT!M:M) -> 0 | N42: =SUMIF(O_CWP_NOW!$A:$A,$A42,O_CWP_NOW!N:N)+SUMIF(O_CWP_FUT!$A:$A,$A42,O_CWP_FUT!N:N) -> 0 | O42: 0
A43: OSL A38 | B43: Open Space Land Acquisition | C43: NA | D43: =SUMIF(O_CWP_NOW!$A:$A,$A43,O_CWP_NOW!D:D)+SUMIF(O_CWP_FUT!$A:$A,$A43,O_CWP_FUT!D:D) -> 0 | E43: =SUMIF(O_CWP_NOW!$A:$A,$A43,O_CWP_NOW!E:E)+SUMIF(O_CWP_FUT!$A:$A,$A43,O_CWP_FUT!E:E) -> 0 | F43: =SUMIF(O_CWP_NOW!$A:$A,$A43,O_CWP_NOW!F:F)+SUMIF(O_CWP_FUT!$A:$A,$A43,O_CWP_FUT!F:F) -> 0 | G43: =SUMIF(O_CWP_NOW!$A:$A,$A43,O_CWP_NOW!G:G)+SUMIF(O_CWP_FUT!$A:$A,$A43,O_CWP_FUT!G:G) -> 0 | H43: =SUMIF(O_CWP_NOW!$A:$A,$A43,O_CWP_NOW!H:H)+SUMIF(O_CWP_FUT!$A:$A,$A43,O_CWP_FUT!H:H) -> 0 | I43: =SUMIF(O_CWP_NOW!$A:$A,$A43,O_CWP_NOW!I:I)+SUMIF(O_CWP_FUT!$A:$A,$A43,O_CWP_FUT!I:I) -> 0 | J43: =SUMIF(O_CWP_NOW!$A:$A,$A43,O_CWP_NOW!J:J)+SUMIF(O_CWP_FUT!$A:$A,$A43,O_CWP_FUT!J:J) -> 0 | K43: =SUMIF(O_CWP_NOW!$A:$A,$A43,O_CWP_NOW!K:K)+SUMIF(O_CWP_FUT!$A:$A,$A43,O_CWP_FUT!K:K) -> 0 | L43: =SUMIF(O_CWP_NOW!$A:$A,$A43,O_CWP_NOW!L:L)+SUMIF(O_CWP_FUT!$A:$A,$A43,O_CWP_FUT!L:L) -> 0 | M43: =SUMIF(O_CWP_NOW!$A:$A,$A43,O_CWP_NOW!M:M)+SUMIF(O_CWP_FUT!$A:$A,$A43,O_CWP_FUT!M:M) -> 0 | N43: =SUMIF(O_CWP_NOW!$A:$A,$A43,O_CWP_NOW!N:N)+SUMIF(O_CWP_FUT!$A:$A,$A43,O_CWP_FUT!N:N) -> 0 | O43: 0
A44: OSL A39 | B44: Open Space Land Acquisition | C44: NA | D44: =SUMIF(O_CWP_NOW!$A:$A,$A44,O_CWP_NOW!D:D)+SUMIF(O_CWP_FUT!$A:$A,$A44,O_CWP_FUT!D:D) -> 0 | E44: =SUMIF(O_CWP_NOW!$A:$A,$A44,O_CWP_NOW!E:E)+SUMIF(O_CWP_FUT!$A:$A,$A44,O_CWP_FUT!E:E) -> 0 | F44: =SUMIF(O_CWP_NOW!$A:$A,$A44,O_CWP_NOW!F:F)+SUMIF(O_CWP_FUT!$A:$A,$A44,O_CWP_FUT!F:F) -> 0 | G44: =SUMIF(O_CWP_NOW!$A:$A,$A44,O_CWP_NOW!G:G)+SUMIF(O_CWP_FUT!$A:$A,$A44,O_CWP_FUT!G:G) -> 0 | H44: =SUMIF(O_CWP_NOW!$A:$A,$A44,O_CWP_NOW!H:H)+SUMIF(O_CWP_FUT!$A:$A,$A44,O_CWP_FUT!H:H) -> 0 | I44: =SUMIF(O_CWP_NOW!$A:$A,$A44,O_CWP_NOW!I:I)+SUMIF(O_CWP_FUT!$A:$A,$A44,O_CWP_FUT!I:I) -> 0 | J44: =SUMIF(O_CWP_NOW!$A:$A,$A44,O_CWP_NOW!J:J)+SUMIF(O_CWP_FUT!$A:$A,$A44,O_CWP_FUT!J:J) -> 0 | K44: =SUMIF(O_CWP_NOW!$A:$A,$A44,O_CWP_NOW!K:K)+SUMIF(O_CWP_FUT!$A:$A,$A44,O_CWP_FUT!K:K) -> 0 | L44: =SUMIF(O_CWP_NOW!$A:$A,$A44,O_CWP_NOW!L:L)+SUMIF(O_CWP_FUT!$A:$A,$A44,O_CWP_FUT!L:L) -> 0 | M44: =SUMIF(O_CWP_NOW!$A:$A,$A44,O_CWP_NOW!M:M)+SUMIF(O_CWP_FUT!$A:$A,$A44,O_CWP_FUT!M:M) -> 0 | N44: =SUMIF(O_CWP_NOW!$A:$A,$A44,O_CWP_NOW!N:N)+SUMIF(O_CWP_FUT!$A:$A,$A44,O_CWP_FUT!N:N) -> 0 | O44: 0
A45: OSL A40 | B45: Open Space Land Acquisition | C45: NA | D45: =SUMIF(O_CWP_NOW!$A:$A,$A45,O_CWP_NOW!D:D)+SUMIF(O_CWP_FUT!$A:$A,$A45,O_CWP_FUT!D:D) -> 0 | E45: =SUMIF(O_CWP_NOW!$A:$A,$A45,O_CWP_NOW!E:E)+SUMIF(O_CWP_FUT!$A:$A,$A45,O_CWP_FUT!E:E) -> 0 | F45: =SUMIF(O_CWP_NOW!$A:$A,$A45,O_CWP_NOW!F:F)+SUMIF(O_CWP_FUT!$A:$A,$A45,O_CWP_FUT!F:F) -> 0 | G45: =SUMIF(O_CWP_NOW!$A:$A,$A45,O_CWP_NOW!G:G)+SUMIF(O_CWP_FUT!$A:$A,$A45,O_CWP_FUT!G:G) -> 0 | H45: =SUMIF(O_CWP_NOW!$A:$A,$A45,O_CWP_NOW!H:H)+SUMIF(O_CWP_FUT!$A:$A,$A45,O_CWP_FUT!H:H) -> 0 | I45: =SUMIF(O_CWP_NOW!$A:$A,$A45,O_CWP_NOW!I:I)+SUMIF(O_CWP_FUT!$A:$A,$A45,O_CWP_FUT!I:I) -> 0 | J45: =SUMIF(O_CWP_NOW!$A:$A,$A45,O_CWP_NOW!J:J)+SUMIF(O_CWP_FUT!$A:$A,$A45,O_CWP_FUT!J:J) -> 0 | K45: =SUMIF(O_CWP_NOW!$A:$A,$A45,O_CWP_NOW!K:K)+SUMIF(O_CWP_FUT!$A:$A,$A45,O_CWP_FUT!K:K) -> 0 | L45: =SUMIF(O_CWP_NOW!$A:$A,$A45,O_CWP_NOW!L:L)+SUMIF(O_CWP_FUT!$A:$A,$A45,O_CWP_FUT!L:L) -> 0 | M45: =SUMIF(O_CWP_NOW!$A:$A,$A45,O_CWP_NOW!M:M)+SUMIF(O_CWP_FUT!$A:$A,$A45,O_CWP_FUT!M:M) -> 0 | N45: =SUMIF(O_CWP_NOW!$A:$A,$A45,O_CWP_NOW!N:N)+SUMIF(O_CWP_FUT!$A:$A,$A45,O_CWP_FUT!N:N) -> 0 | O45: 0
A46: OSL A41 | B46: Open Space Land Acquisition | C46: NA | D46: =SUMIF(O_CWP_NOW!$A:$A,$A46,O_CWP_NOW!D:D)+SUMIF(O_CWP_FUT!$A:$A,$A46,O_CWP_FUT!D:D) -> 0 | E46: =SUMIF(O_CWP_NOW!$A:$A,$A46,O_CWP_NOW!E:E)+SUMIF(O_CWP_FUT!$A:$A,$A46,O_CWP_FUT!E:E) -> 0 | F46: =SUMIF(O_CWP_NOW!$A:$A,$A46,O_CWP_NOW!F:F)+SUMIF(O_CWP_FUT!$A:$A,$A46,O_CWP_FUT!F:F) -> 0 | G46: =SUMIF(O_CWP_NOW!$A:$A,$A46,O_CWP_NOW!G:G)+SUMIF(O_CWP_FUT!$A:$A,$A46,O_CWP_FUT!G:G) -> 0 | H46: =SUMIF(O_CWP_NOW!$A:$A,$A46,O_CWP_NOW!H:H)+SUMIF(O_CWP_FUT!$A:$A,$A46,O_CWP_FUT!H:H) -> 0 | I46: =SUMIF(O_CWP_NOW!$A:$A,$A46,O_CWP_NOW!I:I)+SUMIF(O_CWP_FUT!$A:$A,$A46,O_CWP_FUT!I:I) -> 0 | J46: =SUMIF(O_CWP_NOW!$A:$A,$A46,O_CWP_NOW!J:J)+SUMIF(O_CWP_FUT!$A:$A,$A46,O_CWP_FUT!J:J) -> 0 | K46: =SUMIF(O_CWP_NOW!$A:$A,$A46,O_CWP_NOW!K:K)+SUMIF(O_CWP_FUT!$A:$A,$A46,O_CWP_FUT!K:K) -> 0 | L46: =SUMIF(O_CWP_NOW!$A:$A,$A46,O_CWP_NOW!L:L)+SUMIF(O_CWP_FUT!$A:$A,$A46,O_CWP_FUT!L:L) -> 0 | M46: =SUMIF(O_CWP_NOW!$A:$A,$A46,O_CWP_NOW!M:M)+SUMIF(O_CWP_FUT!$A:$A,$A46,O_CWP_FUT!M:M) -> 0 | N46: =SUMIF(O_CWP_NOW!$A:$A,$A46,O_CWP_NOW!N:N)+SUMIF(O_CWP_FUT!$A:$A,$A46,O_CWP_FUT!N:N) -> 0 | O46: 0
A47: OSL A42 | B47: Open Space Land Acquisition | C47: NA | D47: =SUMIF(O_CWP_NOW!$A:$A,$A47,O_CWP_NOW!D:D)+SUMIF(O_CWP_FUT!$A:$A,$A47,O_CWP_FUT!D:D) -> 0 | E47: =SUMIF(O_CWP_NOW!$A:$A,$A47,O_CWP_NOW!E:E)+SUMIF(O_CWP_FUT!$A:$A,$A47,O_CWP_FUT!E:E) -> 0 | F47: =SUMIF(O_CWP_NOW!$A:$A,$A47,O_CWP_NOW!F:F)+SUMIF(O_CWP_FUT!$A:$A,$A47,O_CWP_FUT!F:F) -> 0 | G47: =SUMIF(O_CWP_NOW!$A:$A,$A47,O_CWP_NOW!G:G)+SUMIF(O_CWP_FUT!$A:$A,$A47,O_CWP_FUT!G:G) -> 0 | H47: =SUMIF(O_CWP_NOW!$A:$A,$A47,O_CWP_NOW!H:H)+SUMIF(O_CWP_FUT!$A:$A,$A47,O_CWP_FUT!H:H) -> 0 | I47: =SUMIF(O_CWP_NOW!$A:$A,$A47,O_CWP_NOW!I:I)+SUMIF(O_CWP_FUT!$A:$A,$A47,O_CWP_FUT!I:I) -> 0 | J47: =SUMIF(O_CWP_NOW!$A:$A,$A47,O_CWP_NOW!J:J)+SUMIF(O_CWP_FUT!$A:$A,$A47,O_CWP_FUT!J:J) -> 0 | K47: =SUMIF(O_CWP_NOW!$A:$A,$A47,O_CWP_NOW!K:K)+SUMIF(O_CWP_FUT!$A:$A,$A47,O_CWP_FUT!K:K) -> 0 | L47: =SUMIF(O_CWP_NOW!$A:$A,$A47,O_CWP_NOW!L:L)+SUMIF(O_CWP_FUT!$A:$A,$A47,O_CWP_FUT!L:L) -> 0 | M47: =SUMIF(O_CWP_NOW!$A:$A,$A47,O_CWP_NOW!M:M)+SUMIF(O_CWP_FUT!$A:$A,$A47,O_CWP_FUT!M:M) -> 0 | N47: =SUMIF(O_CWP_NOW!$A:$A,$A47,O_CWP_NOW!N:N)+SUMIF(O_CWP_FUT!$A:$A,$A47,O_CWP_FUT!N:N) -> 0 | O47: 0
A48: OSL A43 | B48: Open Space Land Acquisition | C48: NA | D48: =SUMIF(O_CWP_NOW!$A:$A,$A48,O_CWP_NOW!D:D)+SUMIF(O_CWP_FUT!$A:$A,$A48,O_CWP_FUT!D:D) -> 0 | E48: =SUMIF(O_CWP_NOW!$A:$A,$A48,O_CWP_NOW!E:E)+SUMIF(O_CWP_FUT!$A:$A,$A48,O_CWP_FUT!E:E) -> 0 | F48: =SUMIF(O_CWP_NOW!$A:$A,$A48,O_CWP_NOW!F:F)+SUMIF(O_CWP_FUT!$A:$A,$A48,O_CWP_FUT!F:F) -> 0 | G48: =SUMIF(O_CWP_NOW!$A:$A,$A48,O_CWP_NOW!G:G)+SUMIF(O_CWP_FUT!$A:$A,$A48,O_CWP_FUT!G:G) -> 0 | H48: =SUMIF(O_CWP_NOW!$A:$A,$A48,O_CWP_NOW!H:H)+SUMIF(O_CWP_FUT!$A:$A,$A48,O_CWP_FUT!H:H) -> 0 | I48: =SUMIF(O_CWP_NOW!$A:$A,$A48,O_CWP_NOW!I:I)+SUMIF(O_CWP_FUT!$A:$A,$A48,O_CWP_FUT!I:I) -> 0 | J48: =SUMIF(O_CWP_NOW!$A:$A,$A48,O_CWP_NOW!J:J)+SUMIF(O_CWP_FUT!$A:$A,$A48,O_CWP_FUT!J:J) -> 0 | K48: =SUMIF(O_CWP_NOW!$A:$A,$A48,O_CWP_NOW!K:K)+SUMIF(O_CWP_FUT!$A:$A,$A48,O_CWP_FUT!K:K) -> 0 | L48: =SUMIF(O_CWP_NOW!$A:$A,$A48,O_CWP_NOW!L:L)+SUMIF(O_CWP_FUT!$A:$A,$A48,O_CWP_FUT!L:L) -> 0 | M48: =SUMIF(O_CWP_NOW!$A:$A,$A48,O_CWP_NOW!M:M)+SUMIF(O_CWP_FUT!$A:$A,$A48,O_CWP_FUT!M:M) -> 0 | N48: =SUMIF(O_CWP_NOW!$A:$A,$A48,O_CWP_NOW!N:N)+SUMIF(O_CWP_FUT!$A:$A,$A48,O_CWP_FUT!N:N) -> 0 | O48: 0
A49: OSD A1 | B49: Open Space Land Development | C49: =VLOOKUP($A49,FA_Codes!$D$2:$G$249,4,FALSE) -> Auckland wide | D49: =SUMIF(O_CWP_NOW!$A:$A,$A49,O_CWP_NOW!D:D)+SUMIF(O_CWP_FUT!$A:$A,$A49,O_CWP_FUT!D:D) -> 0 | E49: =SUMIF(O_CWP_NOW!$A:$A,$A49,O_CWP_NOW!E:E)+SUMIF(O_CWP_FUT!$A:$A,$A49,O_CWP_FUT!E:E) -> 0 | F49: =SUMIF(O_CWP_NOW!$A:$A,$A49,O_CWP_NOW!F:F)+SUMIF(O_CWP_FUT!$A:$A,$A49,O_CWP_FUT!F:F) -> 0 | G49: =SUMIF(O_CWP_NOW!$A:$A,$A49,O_CWP_NOW!G:G)+SUMIF(O_CWP_FUT!$A:$A,$A49,O_CWP_FUT!G:G) -> 0 | H49: =SUMIF(O_CWP_NOW!$A:$A,$A49,O_CWP_NOW!H:H)+SUMIF(O_CWP_FUT!$A:$A,$A49,O_CWP_FUT!H:H) -> 0 | I49: =SUMIF(O_CWP_NOW!$A:$A,$A49,O_CWP_NOW!I:I)+SUMIF(O_CWP_FUT!$A:$A,$A49,O_CWP_FUT!I:I) -> 0 | J49: =SUMIF(O_CWP_NOW!$A:$A,$A49,O_CWP_NOW!J:J)+SUMIF(O_CWP_FUT!$A:$A,$A49,O_CWP_FUT!J:J) -> 0 | K49: =SUMIF(O_CWP_NOW!$A:$A,$A49,O_CWP_NOW!K:K)+SUMIF(O_CWP_FUT!$A:$A,$A49,O_CWP_FUT!K:K) -> 0 | L49: =SUMIF(O_CWP_NOW!$A:$A,$A49,O_CWP_NOW!L:L)+SUMIF(O_CWP_FUT!$A:$A,$A49,O_CWP_FUT!L:L) -> 0 | M49: =SUMIF(O_CWP_NOW!$A:$A,$A49,O_CWP_NOW!M:M)+SUMIF(O_CWP_FUT!$A:$A,$A49,O_CWP_FUT!M:M) -> 0 | N49: =SUMIF(O_CWP_NOW!$A:$A,$A49,O_CWP_NOW!N:N)+SUMIF(O_CWP_FUT!$A:$A,$A49,O_CWP_FUT!N:N) -> 0 | O49: =SUM(D49:N49) -> 0
